Workbook

Sheet Introductie
B2: Introductieblad
B3: MKBA klimaatbestendig ontwerp
B4: Algemene gegevens
B5: Datum: | C5: 2023-10-01 | I5: Auteur: | J5: Msc. Nick van der Lee (Versie 3) & ing. Andy Bruijns (Versie 2) & M.M. Rouvoet BBE (Versie 1)
B6: Versie: | C6: V3.3 | I6: Contact: | J6: j.kluck@hva.nl
B7: Kosten uit jaar: | C7: 2015 | J7: Hogeschool van Amsterdam
B10: Uitleg
B11: Vul alleen de gele vlakken in. Er mogen geen cellen los worden gekopieerd, geknipt of geplakt.
B12: In de invoerbladen praktijkvoorbeelden mogen alleen horizontaal regels worden gekopieerd. Dit geldt alleen voor de regels die onder de kop Kostenpost vallen.
B13: Bij verticaal of verkeerd kopieren kan deze MKBA zijn werking verliezen of foutieve waarden geven
B14: Wanneer er regels worden toegevoegd in de werkbladen: Inrichtings-kosten en Onderhouds-kosten, moeten alle regels (exclusief titels)
B15: van A-Z worden gesorteerd op object. Het is aan te bevelen om voor elk project een kopie van de MKBA te maken.
B17: Resultaten
B18: Het tabblad ‘Resultaten ’geeft een overzicht weer van de uitkomsten uit het model. Dit wordt weergegeven in enkele tabellen en grafieken. Deze tab is gesplitst in de onderdelen ‘Resultaten’ en ‘Uitgebreide resultaten’. Onder ‘Resultaten’ wordt een overzicht gegeven van de kosten (inrichtings-, onderhouds- en schadekosten) en groenbaten en infiltratiewaardes per jaar. De aanlegkosten per jaar zijn berekend op basis van de hoeveelhedenstaat uit het tabblad ‘Invoer’ en de kostenkengetallen uit het tabblad ‘Inrichtingskosten’. De groenbaten bestaan uit de verminderde gezondheidskosten, de woningwaarde stijging en de voordelen voor de waterhuishuiding. Deze laatste uiten zich in kostenvermindering voor het waterschap. De infiltratiewaardes geven het percentage van de gemiddelde netto jaarneerslag (zonder verdamping) die ten goede komt aan het grondwater, ook al wordt het grondwater daardoor direct gedraineerd.
B19: Invoer
B20: In dit blad kunnen alle kenmerken van een (klimaatbestendige) inrichting worden ingevuld. Door van linksboven naar rechtsonder het rekenblad af te werken voorkomt u fouten.
B21: De tabbladen van de hellende praktijkvoorbeelden zijn blauw gekleurd. De vlakke voorbeelden zijn geel gekleurd.
B22: Voordat u dit rekenblad goed kan invullen is een ontwerp nodig van 4 varianten. Variant 0 wordt gebruikt als traditioneel referentie ontwerp. De varianten 1,2 en 3
B23: worden gebruikt als klimaatbestendige varianten.
B24: De tabel en grafiek bovenaan het blad geven de uitkomsten van de MKBA weer. Onder deze tabel begint het invoerveld. Bij de algemene gegevens geeft u
B25: een aantal kenmerken van uw project / inrichting. In de hoeveelhedenstaat vult u alle hoeveelheden die in het ontwerp aanwezig zijn in. De aanwezige objecten kunt u via het
B26: dropdown-menu onder kostenpost selecteren. Per variant en per object geeft u aan wat u met het object in jaar 0 gaat doen. Vervolgens geeft u aan
B27: wat u de aankomende jaren met het object gaat doen. De kosten worden vervolgens gesommeerd en contant gemaakt.
B28: In de tabel en grafiek boven aan het rekenblad worden de uitkomsten weergegeven
B30: Invoerhulp
B31: Dit tabblad kan gebruikt worden als hulp voor het invullen van het Invoertabblad. Dit doorlopen geeft een werkende MKB analyse.
B32: Alle te doorlopen stappen staan vermeld en uitgelegd. Ook zijn er rekenhulpen en kengetallen gegeven bij iedere stap waar dat op van toepassing is.
B34: Berekeningen
B35: Het tabblad ‘Berekeningen’ bevat de belangrijkste berekeningen van de tool: zo worden de kosten bepaald op basis van de hoeveelhedenstaat in het tabblad ‘Invoer’; worden de waterschadekosten bepaald; de groenbaten ingeschat en de contante waarde wordt berekend. In dit tabblad hoeft op geen enkele locatie iets gewijzigd en/of ingevoerd te worden. De uitkomsten van dit tabblad worden nader (grafisch) weergegeven in het tabblad ‘Resultaten’.
B36: Neerslagberekeningen
B37: Het tabblad ‘Neerslagberekeningen’ bevat berekeningen die niet direct belangrijk zijn voor de resultaten en het gebruik van de tool, zoals het rioleringsmodel en de waterschadeschatter. Deze berekeningen zijn voornamelijk apart in de tool opgenomen om het overzicht te behouden.
B38: Klimaatscenario
B39: Het tabblad 'Klimaatscenario' toont het gebruikte klimaatscenario en hoe deze geïnterpoleerd en geëxtrapoleerd is.
B40: Dit tabblad is zo ingericht dat het invoeren van een nieuw klimaatscenario niet te veel werk kost.
B42: Inrichtingskosten
B43: In dit blad zijn alle inrichtingskosten van de objecten opgenomen. Een object kan meerdere regels omvatten. Er wordt per object onderscheidt gemaakt
B44: tussen aanleg-, vervanging- en verwijderingskosten. Aan elke regel is een kostprijs gebonden. De Indexkosten geven de geindexeerde kostprijs weer.
B45: De indexprijs wordt gehanteerd in het invoerblad praktijkvoorbeeld. U kunt achter elke regel zelf een eigenwaarde invullen.
B46: Wanneer u in het introductieblad aangeeft een eigenwaarde te willen gebruiken, vervalt de indexprijs voor deze regel en wordt er met uw eigenwaarde verder gerekend.
B47: U kunt ook zelf een nieuw object toevoegen. Doe dit door een willekeurige ingevulde regel te kopieren en deze onderaan de tabel te plakken.
B48: Vervang de gegevens naar het object wat u wilt toevoegen. Geef voor elke kolom, behalve de indexprijs, een waarde en sorteer de volledige lijst van A-Z
B49: als laatst op kolom object.
B51: Onderhoudskosten
B52: In dit blad zijn alle onderhoudskosten van de objecten opgenomen. Ook hier kan een object meerdere regels omvatten. De jaarlijkse kostprijs wordt berekent
B53: aan de hand van een marktprijs, frequentie van het onderhoud en het percentage van het object wat wordt onderhouden. De indexprijs geeft geeft
B54: de geindexeerde kostprijs weer. U kunt achter elke regel wederom een eigenwaarde invullen. Geef dan wel op dit blad aan of u deze waarde wilt meenemen
B55: in de berekening. U kunt ook zelf een object toevoegen. Dit kan door een willekeurige ingevulde regel te kopieren en deze onderaan de tabel en plakken.
B56: Geef voor alle kolommen, behalve de kostprijs en indexprijs, een waarde. Sorteer de lijst als laatst van A-Z op kolom object.
B58: Definities
B59: Dit tabblad bevat een aantal definities van termen gebruikt in de MKBA tool en hoe ze berekend zijn.
B60: Deze lijst is niet uitputtend.
E64: Alleen gele- en oranje velden
E65: dienen ingevuld te worden
B69: Versiebeheer
B70: Logboek van aanpassingen en wijzigingen.
B72: Versie | C72: Datum wijziging | D72: Auteur wijziging | E72: Wijziging in tabblad | G72: cellen aangepast | I72: Eigenlijke wijziging
B75: 3.3 | C75: 02-10-2023 | D75: Ronald Loeve | E75: Invoer | G75: diverse | I75: aantal dropdownmenu's hersteld (waren harde verwijzingen)
B76: 3.2 | C76: 01-07-2023 | D76: Ted Veldkamp | E76: Invoer | G76: diverse | I76: Nog wat foute verwijzingen aangepast.
B77: 3.1 | C77: 09-02-2023 | D77: Nick van der Lee | E77: Onderhoudskosten | G77: Rij 165 | I77: De Tergakolk heeft dezelfde onderhoudskosten als een gewone kolken. Tenzij alle kolken in een groot gebied Tergakolken zijn, dan is het mogelijk minder door de grotere zandvang.
B78: 3.1 | C78: 09-02-2023 | D78: Nick van der Lee | E78: Berekeningen | G78: Yt/mAF gemengd riool | I78: de kosten van gemengd riool was een rij naar onder geschoven t.o.v. de naam van de kostenpost waar ze bij horen. Dus alles stond verkeerd daar.
B79: 3.1 | C79: 08-02-2023 | D79: Nick van der Lee | E79: berekeningen | G79: 108&111; Ct/mF | I79: de berekening minder patienten was niet per 1000 inwoners, zoals de bron zegt. Nu wel.
B80: 3.0 | C80: 23-01-2023 | D80: Nick van der Lee | E80: Introductie | G80: Uitlegtekst | I80: Tekst voor de nieuwe tabbladen Invoerhulp en Klimaatscenario toegevoegd.
B81: 3.0 | C81: 20-01-2023 | D81: Nick van der Lee | E81: Resultaten | G81: Bt/mG25 | I81: Weergave van de door de gemeente gemaakte kosten per inwoner van de straat
B82: 3.0 | C82: 20-01-2023 | D82: Nick van der Lee | E82: Resultaten | G82: M39t/mU82 | I82: max waterstand op straat per herhalingstijd en ontwerpvariant weergegeven in tabel en grafiek
B83: 3.0 | C83: 11-01-2023 | D83: Nick van der Lee | E83: berekeningen | G83: Bt/mF 100t/m107 | I83: Monetaire groenbaten vanuit de waterhuishouding in lijn gebracht met nieuwe infiltratieberekeningen
B84: 3.0 | C84: 11-01-2023 | D84: Merel Hoevenaar en Nick van der Lee | E84: Invoerhulp | G84: alle | I84: Tabblad invoerhulp aangemaakt met een stappenplan en rekenhulpmiddelen om het invoertabblad in te vullen.
B85: 3.0 | C85: 11-01-2023 | D85: Nick van der Lee | E85: berekeningen | G85: Groenbaten tabel | I85: Volledige waardestijging bij 30% en 50% groen oppervlak, maar nu ook lineaire stijging tussen 0% en 30% of 50% groen oppervlak. Stijging woningwaarde was eerst abrubte stijging van 0% waarde toename naar 100% waarde toename bij 30% en 50% groen oppervlak zonder bomen. Effect bomen wordt dus nog steeds niet meegeteld in huizenprijzen.
B86: 3.0 | C86: 11-01-2023 | D86: Nick van der Lee | E86: berekeningen | G86: Groenbaten tabel | I86: Groenbaten ook voor variant 0 uit laten rekenen, omdat deze variant anders onredelijk nadelig belicht wordt.
B87: 3.0 | C87: 10-01-2023 | D87: Nick van der Lee | E87: Resultaten, Invoer, Berekeningen en Neerslagberekeningen | G87: Res. H&I 11t/m16; Inv Bt/mG 13&15; Ber Bt/mF 110t/m114; neer 774 en lager | I87: Let op! onderstaande celwijzigingen voor 'Invoer' en 'Berekeningen' tabbladen kloppen niet meer door verschuivingen. Infiltratieberekeningen toegevoegd! Van iedere variant wordt nu berekend of per soort oppervlak (verhard, onverhard, dak) alle of niet alle NETTO jaarneerslag kan infiltreren. Bij niet alle druppels telt dat oppervlak niet meer mee. Heel streng dus. Netto jaarneerslag = jaarneerslag - verdamping.
B88: 2.11 | C88: 22-12-2022 | D88: Nick van der Lee | E88: berekeningen | G88: Groenbaten tabel | I88: Kleurencode per variant in lijn gebracht met rest van document. Dit waren eerst groentinten
B89: 2.11 | C89: 20-12-2022 | D89: Nick van der Lee | E89: inrichtingskosten | G89: de invoeren onder 'zand' | I89: Toevoegen van bergende lagen voor in wegfunderingen en innovatieve kolken en buizen. Mogelijk om apart geotextiel enzo toe te voegen. Toegevoegd: hardsteen, betongranulaat, WAVICORE buis, Tergakolk, Lava & bims, ROCKFLOW, AA schelpenmix, AA minerals, geogrid, geotextiel los
B90: 2.11 | C90: 12-12-2022 | D90: Nick van der Lee | E90: neerslagberekeningen | G90: C335t/m340 | I90: Verduidelijking termen onderin rioleringsberekeningen per herhalingstijd
B91: 2.11 | C91: 12-12-2022 | D91: Nick van der Lee | E91: neerslagberekeningen | G91: B256 en verder | I91: Herziening berekening water op straat. Infiltratie vanuit berging vind nu vanaf begin plaats en niet na 1 uur. Berging kan gelijk gevuld worden en niet met 1/60e van de berging per minuut.
B92: 2.10 | C92: 03-11-2022 | D92: Nick van der Lee | E92: resultaten | G92: rij 29 | I92: verzekeraarsbaten voerden onvolledige berekening uit
B93: 2.10 | C93: 03-11-2022 | D93: Nick van der Lee | E93: neerslagberekeningen | G93: M7&M54&M101&M148 | I93: Herhalingskansberekening werd op 1jaar gezet bij 0mm berging, maar dit is te grof. Staat nu op 0,1jaar herhalingskans
B94: 2.10 | C94: 02-11-2022 | D94: Nick van der Lee | E94: Neerslagberekeningen (achtergrond berekeningen) | G94: naam tabblad | I94: Tabblad achtergrondberekeningen hernoemd naar neerslagberekeningen
B95: 2.10 | C95: 27-10-2022 | D95: Nick van der Lee | E95: resultaten | G95: H5 | I95: per jaar' toegevoegd
B96: 2.10 | C96: 27-10-2022 | D96: Nick van der Lee | E96: resultaten | G96: B5 | I96: Verduidelijkt dat de tabel kosten per jaar weergeeft
B97: 2.10 | C97: 13-10-2022 | D97: Nick van der Lee | E97: berekeningen | G97: D,H,L,P217 | I97: verduidelijkt dat het gaat om de contante waarde van de kosten
B98: 2.10 | C98: 13-10-2022 | D98: Nick van der Lee | E98: resultaten | G98: D20&21 | I98: verduidelijkt dat het gaat om de contante waarde van de kosten
B99: 2.10 | C99: 13-10-2022 | D99: Nick van der Lee | E99: invoer | G99: O42 | I99: onzichtbaar onzinnig getal verwijderd
B100: 2.10 | C100: 13-10-2022 | D100: Nick van der Lee | E100: berekeningen | G100: E,I,M,Q 218 | I100: Restwaarde berekening berekend over te resteren levensduur, niet over de geleefde levensduur
B101: 2.10 | C101: 13-10-2022 | D101: Nick van der Lee | E101: invoer | G101: B15 | I101: Afkoppelen ja/nee verduidelijk naar Afkoppelen daken? Ja/nee
B102: 2.10 | C102: 11-10-2022 | D102: Nick van der Lee | E102: berekeningen | G102: B82t/mF82 | I102: toename groen % veranderd in toename groen procentpunten, want Maas et al., 2009, heeft het niet over procentuele veranderingen t.o.v. een basispercentage, maar t.o.v. het % groen binnen een straal van 1km.
B103: 2.10 | C103: 07-10-2022 | D103: Nick van der Lee | E103: berekeningen | G103: B80 | I103: Notitie die uitlegt dat bladerdijk telt als groen op 1e verdieping boven openbare ruimte.
B104: 2.10 | C104: 06-01-2022 | D104: Nick van der Lee | E104: berekeningen | G104: U83t/mZ91 | I104: verwijzing naar invoercellen groen toegevoegd, want XLOOKUP geeft errors als naar ander tabblad verwezen worden
B105: 2.10 | C105: 06-01-2022 | D105: Nick van der Lee | E105: berekeningen | G105: C82t/mF82 | I105: dubbele telling van bomen eruit gehaald
B106: 2.10 | C106: 06-01-2022 | D106: Nick van der Lee | E106: berekeningen | G106: C81t/mF81 | I106: berekening wadi oppervlak uitgezet, moest anders toch vervangen worden door XLOOKUP en deze vakjes worden nu nergens meer voor gebruikt
B107: 2.10 | C107: 06-01-2022 | D107: Nick van der Lee | E107: berekeningen | G107: C80t/mF80 | I107: VLOOKUP vervangen door XLOOKUP wat geen errors geeft
B108: 2.10 | C108: 06-01-2022 | D108: Nick van der Lee | E108: berekeningen | G108: C79t/mF79 | I108: dubbele telling van wadi's er uit gehaald, wadis zitten al in de invoer van totaal groen opp.
B109: 2.10 | C109: 06-01-2022 | D109: Nick van der Lee | E109: berekeningen | G109: C219 | I109: Discontovoet aangepast van 3% naar 2,25% (rapport werkgroep discontovoet 2020)
B110: 2.10 | C110: 05-10-2022 | D110: Nick van der Lee | E110: achtergrond berekeningen & klimaatscenario | G110: alle cellen in Achtergrondberekeningen met neerslag bui T=herhalingskans [mm] | I110: tabblad Klimaatscenario toegevoegd waar klimaatscenarios berekend en vergeleken kunnen worden. Achtergrondberekeningen verwijst nu naar de tabel met het geïnterpoleerde gebruikte scenario en is niet meer hardcoded
B111: 2.10 | C111: 03-10-2022 | D111: Nick van der Lee | E111: berekeningen | G111: B83 | I111: notitie toegevoegd
B112: 2.10 | C112: 26-09-2022 | D112: Nick van der Lee | E112: bronvermelding | G112: regel 19 | I112: bron 18 toegevoegd
B113: 2.10 | C113: 26-09-2022 | D113: Nick van der Lee | E113: berekeningen | G113: X4t/m52t/mAF | I113: Tabel bevatte verwijzingen naar verkeerde regels in invoer of verwijzingen naar regels ontbraken
B114: 2.10 | C114: 26-09-2022 | D114: Nick van der Lee | E114: invoer | G114: Xt/mAE34 | I114: Verduideling in kolomtitels over 2e herinrichting
B115: 2.10 | C115: 15-09-2022 | D115: Nick van der Lee | E115: berekeningen | G115: B108 | I115: van totale groenbaten per jaar naar groenbaten 1e jaar, wegens eenmalige woningwaarde stijging
B116: 2.10 | C116: 15-09-2022 | D116: Nick van der Lee | E116: resultaten | G116: C42 | I116: laten verwijzen naar uitgebreide resultaten i.p.v. de resultatentabel voor consistentie
B117: 2.10 | C117: 14-09-2022 | D117: Nick van der Lee | E117: berekeningen | G117: E218 | I117: verwijzing naar lege cell in tweede deel formule, i.p.v. kosten excl.
B118: 2.10 | C118: 13-09-2022 | D118: Nick van der Lee | E118: resultaten | G118: E9 | I118: schadekosten variant 3 verwees naar de schade van variant2
B119: 2.10 | C119: 12-09-2022 | D119: Nick van der Lee | E119: Definities | G119: alle | I119: Aanmaken tabblad definities
B120: 2.10 | C120: 12-09-2022 | D120: Nick van der Lee | E120: resultaten | G120: F29 | I120: verwees naar schadekosten variant3 i.p.v. variant2
B121: 2.10 | C121: 12-09-2022 | D121: Nick van der Lee | E121: resultaten | G121: F7&E13 | I121: cellen hadden geen IFERROR. Cellen eromheen wel.
B122: 2.10 | C122: 12-09-2022 | D122: Nick van der Lee | E122: berekeningen | G122: E108&F108 | I122: Variant 2 en 3 gaven geen waardes zonder investeringskosten in deze variant. Veranderd naar alleen waardes geven wanneer groen oppervlak>0
B123: 2.10 | C123: 12-09-2022 | D123: Nick van der Lee | E123: berekeningen | G123: C10t/mF108 | I123: totale groenbaten per jaar hadden niet de watersysteembelasing meegenomen. Deze stond wel al in tabel opgenomen, maar niet in de som
B124: 2.10 | C124: 12-09-2022 | D124: Nick van der Lee | E124: invoer | G124: B57t/mJ74+ | I124: opzetten verziebeheer
B125: 2.9 | C125: november 2020 | D125: Ronald Loeve | E125: berekeningen | G125: K72 | I125: Er was een onjuiste link tussen variant 2 en 3 . Cell K72 aangepast: link naar G52 ipv naar I52.
B126: 2.8 | C126: ? | D126: Andy Bruijns | E126: hele tool | G126: veel | I126: groenbaten toegevoegd
B127: 1.1 | C127: ? | D127: M.M. Rouvoet BBE | E127: hele tool | G127: veel | I127: berekeningen uit ondezoek in tool omzetten

Sheet Resultaten
C1: Auteurs: M.M. Rouvoet BBE (Versie 1) & ing. A.J. Bruijns (Versie 2) & Msc. N. van der Lee (versie 3)
B2: Werkblad | C2: Productiedatum: versie 1, december 2016; Versie 2.9, november 2020, Versie 3.1, januari 2023
B4: Resultaten
B5: Bedragen per jaar | C5: Aanlegkosten | D5: Onderhouds-kosten | E5: =IF(Invoer!D6="Vlak","Schadekosten","Schadekosten n.v.t.") -> Schadekosten | F5: Totale Jaarkosten | G5: Restwaarde na 100 jaar | H5: Groenbaten per jaar | I5: Groenbaten (100 jaar) | AN5: 2e contante waarde tabel
B6: Variant 0 | C6: =ROUND((D20-G6-(E6+D6)*Berekeningen!$C$251)/Berekeningen!$C$251,-2) ->  | D6: =Berekeningen!D73 -> 0 | E6: =IF(Invoer!D6="Vlak",Berekeningen!$I$93,"0") -> n.v.t. | F6: =C6+D6+E6 ->  | G6: =Berekeningen!E253 -> 0 | H6: =I6/100 -> 0 | I6: =Berekeningen!G251 -> 0 | AP6: Aanlegkosten | AQ6: Onderhoudskosten | AR6: Schadekosten | AS6: Groenbaten | AT6: Infiltratie
B7: Variant 1 | C7: =IF(E7="n.v.t.",0,ROUND((E20-G7-(E7+D7)*Berekeningen!$C$251)/Berekeningen!$C$251,-2)) -> 0 | D7: =Berekeningen!F73 -> 0 | E7: =IF(Invoer!D6="Vlak",Berekeningen!$J$93,"0") -> n.v.t. | F7: =IFERROR(C7+D7+E7,0) -> 0 | G7: =Berekeningen!I253 -> 0 | H7: =I7/100 -> 0 | I7: =Berekeningen!K251 -> 0 | AN7: Variant 0 | AO7: Kosten | AP7: =C12 ->  | AQ7: =D12 ->  | AR7: =E12 -> 
B8: Variant 2 | C8: =IF(E8="n.v.t.",0,ROUND((F20-G8-(E8+D8)*Berekeningen!$C$251)/Berekeningen!$C$251,-2)) -> 0 | D8: =Berekeningen!H73 -> 0 | E8: =IF(Invoer!D6="Vlak",Berekeningen!$K$93,"0") -> n.v.t. | F8: =IFERROR(C8+D8+E8,0) -> 0 | G8: =Berekeningen!M253 -> 0 | H8: =I8/100 -> 0 | I8: =IFERROR(Berekeningen!O251,0) -> 0 | AO8: Groenbaten | AS8: =F12 -> 
B9: Variant 3 | C9: =IF(E9="n.v.t.",0,ROUND((G20-G9-(E9+D9)*Berekeningen!$C$251)/Berekeningen!$C$251,-2)) -> 0 | D9: =Berekeningen!J73 -> 0 | E9: =IF(Invoer!D6="Vlak",Berekeningen!$L$93,"0") -> n.v.t. | F9: =IFERROR(C9+D9+E9,0) -> 0 | G9: =Berekeningen!Q253 -> 0 | H9: 0 | I9: =IFERROR(Berekeningen!S251,0) -> 0 | AO9: Infiltratie | AT9: =I12 -> 
AN10: Variant 1 | AO10: Kosten | AP10: =C13 -> 0 | AQ10: =D13 -> 0 | AR10: =E13 -> 0
B11: Relatieve contante waarde | C11: Relatieve aanlegkosten per jaar | D11: Relatieve onderhouds-kosten per jaar | E11: =IF(Invoer!D6="Vlak","Relatieve schadekosten","Schadekosten n.v.t.") -> Relatieve schadekosten | F11: Relatieve groenbaten | H11: Percentage van netto jaarneerslag infiltreerbaar voor grondwater aanvulling | AO11: Groenbaten | AS11: =F13 -> 
B12: =D20/D20 ->  | C12: =C6/$F$6 ->  | D12: =D6/$F$6 ->  | E12: =E6/$F$6 ->  | F12: =H6/$F$6 ->  | H12: Variant 0 | I12: =Berekeningen!C139 ->  | AO12: Infiltratie | AT12: =I13 -> 
B13: =IFERROR(E20/$D$20,0) -> 0 | C13: =IFERROR(C7/$F$6,0) -> 0 | D13: 0 | E13: 0 | F13: =H7/$F$6 ->  | H13: Variant 1 | I13: =Berekeningen!D139 ->  | AN13: Variant 2 | AO13: Kosten | AP13: =C14 -> 0 | AQ13: =D14 -> 0 | AR13: =E14 -> 0
B14: =IFERROR(F20/$D$20,0) -> 0 | C14: 0 | D14: 0 | E14: 0 | F14: =H8/$F$6 ->  | H14: Variant 2 | I14: =Berekeningen!E139 ->  | AO14: Groenbaten | AS14: =F14 -> 
B15: =IFERROR(G20/$D$20,0) -> 0 | C15: 0 | D15: 0 | E15: =IFERROR(E9/$F$6,0) -> 0 | F15: =H9/$F$6 ->  | H15: Variant 3 | I15: =Berekeningen!F139 ->  | AO15: Infiltratie | AT15: =I14 -> 
AN16: Variant 3 | AO16: Kosten | AP16: =C15 -> 0 | AQ16: =D15 -> 0 | AR16: =E15 -> 0
AO17: Groenbaten | AS17: =F15 -> 
B18: Uitgebreide resultaten | AO18: Infiltratie | AT18: =I15 -> 
B19: Overigen Resultaten | D19: Variant 0 | E19: Variant 1 | F19: Variant 2 | G19: Variant 3
B20: Contante Waarde van de kosten over 100 jaar | D20: =Berekeningen!E252 ->  | E20: =Berekeningen!I252 ->  | F20: =Berekeningen!M252 -> 0 | G20: =Berekeningen!Q252 -> 0
B22: Kosten en Baten per Variant en Stakeholder
B23: Deze rolverdeling kan verschillen per project! | C23: In € per jaar | D23: Variant 0 | E23: Variant 1 | F23: Variant 2 | G23: Variant 3
B24: Gemeente | C24: Kosten | D24: =C6+D6 ->  | E24: =C7+D7 -> 0 | F24: =C8+D8 -> 0 | G24: =C9+D9 -> 0
C25: Kosten per inwoner | D25: =D24/Invoer!$D27 ->  | E25: =E24/Invoer!$D27 ->  | F25: =F24/Invoer!$D27 ->  | G25: =G24/Invoer!$D27 -> 
C26: Baten | D26: =Berekeningen!C115 -> 0 | E26: =Berekeningen!D115 -> 0 | F26: =Berekeningen!E115 -> 0 | G26: =Berekeningen!F115 -> 0
B27: Waterschap | C27: Kosten | D27: 0 | E27: 0 | F27: 0 | G27: 0
C28: Baten | D28: =Berekeningen!C119+Berekeningen!C122+Berekeningen!C125+Berekeningen!C127 -> 0 | E28: =Berekeningen!D119+Berekeningen!D122+Berekeningen!D125+Berekeningen!D127 -> 0 | F28: =Berekeningen!E119+Berekeningen!E122+Berekeningen!E125+Berekeningen!E127 -> 0 | G28: =Berekeningen!F119+Berekeningen!F122+Berekeningen!F125+Berekeningen!F127 -> 0
B29: Verzekeraar | C29: Kosten | D29: 0 | E29: 0 | F29: 0 | G29: 0
C30: Baten | D30: 0 | E30: =($E$6-E7)+Berekeningen!D106 ->  | F30: =IF(F20=0,0,($E$6-E8)+Berekeningen!E106) -> 0 | G30: =IF(G20=0,0,($E$6-E9)+Berekeningen!F106) -> 0
B31: Bewoner/Woningeigenaar | C31: Kosten | D31: =Berekeningen!C115+Berekeningen!C119+Berekeningen!C117 -> 0 | E31: =Berekeningen!D115+Berekeningen!D119+Berekeningen!D117 -> 0 | F31: =Berekeningen!E115+Berekeningen!E119+Berekeningen!E117 -> 0 | G31: =Berekeningen!F115+Berekeningen!F119+Berekeningen!F117 -> 0
C32: Baten | D32: =Berekeningen!C113/100 -> 0 | E32: =Berekeningen!D113/100 -> 0 | F32: =Berekeningen!E113/100 -> 0 | G32: =Berekeningen!F113/100 -> 0
B33: Het Rijk | C33: Kosten | D33: 0 | E33: 0 | F33: 0 | G33: 0
C34: Baten | D34: =Berekeningen!C117 -> 0 | E34: =Berekeningen!D117 -> 0 | F34: =Berekeningen!E117 -> 0 | G34: =Berekeningen!F117 -> 0
B40: Kosten en Baten per Variant en Stakeholder | M40: Herhalingskans wateroverlast T= | O40: =Invoer!D31 -> 0.1 | Q40: =Invoer!E31 -> 0.1 | S40: =Invoer!F31 -> 0.1 | U40: =Invoer!G31 -> 0.1
C41: Variant 0 | E41: Variant 1 | G41: Variant 2 | I41: Variant 3 | M41: Water op straat | N41: Variant 0 | P41: Variant 1 | R41: Variant 2 | T41: Variant 3
C42: Kosten | D42: Baten | E42: Kosten | F42: Baten | G42: Kosten | H42: Baten | I42: Kosten | J42: Baten | N42: Max. mm waterhoogte | O42: Droog binnen #uur | P42: Max. mm waterhoogte | Q42: Droog binnen #uur | R42: Max. mm waterhoogte | S42: Droog binnen #uur | T42: Max. mm waterhoogte | U42: Droog binnen #uur
B43: Gemeente | C43: =D24 ->  | D43: =D26 -> 0 | E43: =E24 -> 0 | F43: =E26 -> 0 | G43: =F24 -> 0 | H43: =F26 -> 0 | I43: =G24 -> 0 | J43: =G26 -> 0
B44: Waterschap | C44: =D27 -> 0 | D44: =D28 -> 0 | E44: =E27 -> 0 | F44: =E28 -> 0 | G44: =F27 -> 0 | H44: =F28 -> 0 | I44: =G27 -> 0 | J44: =G28 -> 0 | M44: T=1 | N44: =Neerslagberekeningen!L862 ->  | O44: =IF(N44>0,IF(Neerslagberekeningen!L836>0,IF(Neerslagberekeningen!L852>0,IF(Neerslagberekeningen!L853>0,IF(Neerslagberekeningen!L854>0,IF(Neerslagberekeningen!L855>0,IF(Neerslagberekeningen!L856>0,IF(Neerslagberekeningen!L857>0,IF(Neerslagberekeningen!L858>0,IF(Neerslagberekeningen!L859>0,IF(Neerslagberekeningen!L860>0,"Langer",12960/60),11520/60),5760/60),2880/60),1440/60),720/60),8),4),2),1),0) ->  | P44: =Neerslagberekeningen!S862 ->  | Q44: =IF(N44>0,IF(Neerslagberekeningen!S836>0,IF(Neerslagberekeningen!S852>0,IF(Neerslagberekeningen!S853>0,IF(Neerslagberekeningen!S854>0,IF(Neerslagberekeningen!S855>0,IF(Neerslagberekeningen!S856>0,IF(Neerslagberekeningen!S857>0,IF(Neerslagberekeningen!S858>0,IF(Neerslagberekeningen!S859>0,IF(Neerslagberekeningen!S860>0,"Langer",12960/60),11520/60),5760/60),2880/60),1440/60),720/60),8),4),2),1),0) ->  | R44: =Neerslagberekeningen!Z862 ->  | S44: =IF(N44>0,IF(Neerslagberekeningen!Z836>0,IF(Neerslagberekeningen!Z852>0,IF(Neerslagberekeningen!Z853>0,IF(Neerslagberekeningen!Z854>0,IF(Neerslagberekeningen!Z855>0,IF(Neerslagberekeningen!Z856>0,IF(Neerslagberekeningen!Z857>0,IF(Neerslagberekeningen!Z858>0,IF(Neerslagberekeningen!Z859>0,IF(Neerslagberekeningen!Z860>0,"Langer",12960/60),11520/60),5760/60),2880/60),1440/60),720/60),8),4),2),1),0) ->  | T44: =Neerslagberekeningen!AG862 ->  | U44: =IF(N44>0,IF(Neerslagberekeningen!AG836>0,IF(Neerslagberekeningen!AG852>0,IF(Neerslagberekeningen!AG853>0,IF(Neerslagberekeningen!AG854>0,IF(Neerslagberekeningen!AG855>0,IF(Neerslagberekeningen!AG856>0,IF(Neerslagberekeningen!AG857>0,IF(Neerslagberekeningen!AG858>0,IF(Neerslagberekeningen!AG859>0,IF(Neerslagberekeningen!AG860>0,"Langer",12960/60),11520/60),5760/60),2880/60),1440/60),720/60),8),4),2),1),0) -> 
B45: Verzekeraar | C45: =D29 -> 0 | D45: =D30 -> 0 | E45: =E29 -> 0 | F45: =E30 ->  | G45: =F29 -> 0 | H45: =F30 -> 0 | I45: =G29 -> 0 | J45: =G30 -> 0 | M45: T=5 | N45: =Neerslagberekeningen!J335 ->  | O45: =IF(N45>0,IF(Neerslagberekeningen!J318>0,"Langer",1),0) ->  | P45: =Neerslagberekeningen!O335 ->  | Q45: =IF(P45>0,IF(Neerslagberekeningen!O318>0,"Langer",1),0) ->  | R45: =Neerslagberekeningen!T335 ->  | S45: =IF(R45>0,IF(Neerslagberekeningen!T318>0,"Langer",1),0) ->  | T45: =Neerslagberekeningen!Y335 ->  | U45: =IF(T45>0,IF(Neerslagberekeningen!Y318>0,"Langer",1),0) -> 
B46: Bewoner/Woningeigenaar | C46: =D31 -> 0 | D46: =D32 -> 0 | E46: =E31 -> 0 | F46: =E32 -> 0 | G46: =F31 -> 0 | H46: =F32 -> 0 | I46: =G31 -> 0 | J46: =G32 -> 0 | M46: T=10 | N46: =Neerslagberekeningen!AH335 ->  | O46: =IF(N46>0,IF(Neerslagberekeningen!AH318>0,"Langer",1),0) ->  | P46: =Neerslagberekeningen!AM335 ->  | Q46: =IF(P46>0,IF(Neerslagberekeningen!AM318>0,"Langer",1),0) ->  | R46: =Neerslagberekeningen!AR335 ->  | S46: =IF(R46>0,IF(Neerslagberekeningen!AR318>0,"Langer",1),0) ->  | T46: =Neerslagberekeningen!AW335 ->  | U46: =IF(T46>0,IF(Neerslagberekeningen!AW318>0,"Langer",1),0) -> 
B47: Het Rijk | C47: =D33 -> 0 | D47: =D34 -> 0 | E47: =E33 -> 0 | F47: =E34 -> 0 | G47: =F33 -> 0 | H47: =F34 -> 0 | I47: =G33 -> 0 | J47: =G34 -> 0 | M47: T=20 | N47: =Neerslagberekeningen!J421 ->  | O47: =IF(N47>0,IF(Neerslagberekeningen!J404>0,"Langer",1),0) ->  | P47: =Neerslagberekeningen!O421 ->  | Q47: =IF(P47>0,IF(Neerslagberekeningen!O404>0,"Langer",1),0) ->  | R47: =Neerslagberekeningen!T421 ->  | S47: =IF(R47>0,IF(Neerslagberekeningen!T404>0,"Langer",1),0) ->  | T47: =Neerslagberekeningen!Y421 ->  | U47: =IF(T47>0,IF(Neerslagberekeningen!Y404>0,"Langer",1),0) -> 
M48: T=50 | N48: =Neerslagberekeningen!AH421 ->  | O48: =IF(N48>0,IF(Neerslagberekeningen!AH404>0,"Langer",1),0) ->  | P48: =Neerslagberekeningen!AM421 ->  | Q48: =IF(P48>0,IF(Neerslagberekeningen!AM404>0,"Langer",1),0) ->  | R48: =Neerslagberekeningen!AR421 ->  | S48: =IF(R48>0,IF(Neerslagberekeningen!AR404>0,"Langer",1),0) ->  | T48: =Neerslagberekeningen!AW421 ->  | U48: =IF(T48>0,IF(Neerslagberekeningen!AW404>0,"Langer",1),0) -> 
M49: T=100 | N49: =Neerslagberekeningen!J507 ->  | O49: =IF(N49>0,IF(Neerslagberekeningen!J490>0,"Langer",1),0) ->  | P49: =Neerslagberekeningen!O507 ->  | Q49: =IF(P49>0,IF(Neerslagberekeningen!O490>0,"Langer",1),0) ->  | R49: =Neerslagberekeningen!T507 ->  | S49: =IF(R49>0,IF(Neerslagberekeningen!T490>0,"Langer",1),0) ->  | T49: =Neerslagberekeningen!Y507 ->  | U49: =IF(T49>0,IF(Neerslagberekeningen!Y490>0,"Langer",1),0) -> 
B50: Groenbaten per jaar | M50: T=200 | N50: =Neerslagberekeningen!AH507 ->  | O50: =IF(N50>0,IF(Neerslagberekeningen!AH490>0,"Langer",1),0) ->  | P50: =Neerslagberekeningen!AM507 ->  | Q50: =IF(P50>0,IF(Neerslagberekeningen!AM490>0,"Langer",1),0) ->  | R50: =Neerslagberekeningen!AR507 ->  | S50: =IF(R50>0,IF(Neerslagberekeningen!AR490>0,"Langer",1),0) ->  | T50: =Neerslagberekeningen!AW507 ->  | U50: =IF(T50>0,IF(Neerslagberekeningen!AW490>0,"Langer",1),0) -> 
M51: T=250 | N51: =Neerslagberekeningen!J593 ->  | P51: =Neerslagberekeningen!O593 ->  | R51: =Neerslagberekeningen!T593 ->  | T51: =Neerslagberekeningen!Y593 -> 
M52: T=500 | N52: =Neerslagberekeningen!AH593 ->  | P52: =Neerslagberekeningen!AM593 ->  | R52: =Neerslagberekeningen!AR593 ->  | T52: =Neerslagberekeningen!AW593 -> 
M53: T=1.000 | N53: =Neerslagberekeningen!J679 ->  | P53: =Neerslagberekeningen!O679 ->  | R53: =Neerslagberekeningen!T679 ->  | T53: =Neerslagberekeningen!Y679 -> 
M54: T=2.000 | N54: =Neerslagberekeningen!AH679 ->  | P54: =Neerslagberekeningen!AM679 ->  | R54: =Neerslagberekeningen!AR679 ->  | T54: =Neerslagberekeningen!AW679 -> 
M55: T=4.000 | N55: =Neerslagberekeningen!J756 ->  | P55: =Neerslagberekeningen!O756 ->  | R55: =Neerslagberekeningen!T756 ->  | T55: =Neerslagberekeningen!Y756 -> 
M56: T=10.000 | N56: =Neerslagberekeningen!AH756 ->  | P56: =Neerslagberekeningen!AM756 ->  | R56: =Neerslagberekeningen!AR756 ->  | T56: =Neerslagberekeningen!AW756 -> 

Sheet Invoer
C1: Auteurs: M.M. Rouvoet BBE (Versie 1) & ing. A.J. Bruijns (Versie 2) & Msc. N. van der Lee (versie 3)
C2: Productiedatum: versie 1, december 2016; Versie 3.3, oktober 2023
B3: Invoerblad
B4: Algemene gegevens
B5: Jaar | D5: 2023
B6: Gebiedssituatie | D6: Vlak
B7: Herinrichtingsjaar inclusief HWA en DWA | D7: 0 | E7: jaar
B8: Eigenwaarde | D8: Uit
B9: Afvoer- & Bergingscapaciteit | C9: Eenheid | D9: Variant 0 | E9: Variant 1 | F9: Variant 2 | G9: Variant 3
B10: Berging op straat (Tot. opp.) | C10: mm
B11: Afvoercapaciteit regenwaterriool (Verh. opp) | C11: mm/uur
B12: Afvoercapaciteit regenwatervoorzieningen (Verh. opp) | C12: mm/uur
B13: Waarvan infiltratie naar bodem (Verh. Opp) | C13: mm/uur
B14: Bergingscapaciteit regenwatervoorzieningen (Verh. opp) | C14: mm
B15: Waarvan alle geborgen neerslag infiltreert (Verh. Opp) | C15: mm
B16: Infiltratiecpaciteit onverhard | C16: mm/uur
B17: Afkoppelen daken? | D17: Nee | E17: Nee | F17: Ja | G17: Ja
B18: Oppervlakten
B19: Totaal oppervlak | C19: m² | D19: =Dakoppervlak+D21+D23 -> 0 | E19: =E20+E21+E23 -> 0 | F19: =F20+F21+F23 -> 0 | G19: 0
B20: Dakoppervlak | C20: =C19 -> m²
B21: Verhard oppervlak | C21: =C20 -> m²
B22: Openbare ruimte oppervlak | C22: =C21 -> m²
B23: Onverhard- en groen oppervlak | C23: =C22 -> m²
B24: Waarvan Privaat Groen (optioneel) | C24: =C23 -> m²
B25: Woongegevens
B26: Aantal woningen | C26: st | E26: =D26 -> 0 | F26: =E26 -> 0 | G26: =F26 -> 0
B27: Aantal inwoners | C27: st | E27: 0 | F27: =E27 -> 0 | G27: 0
B28: Aantal inwoners binnen straal van 1 km | C28: pers. | D28: =ROUND(D27/Neerslag_oppervlak*3140000,0) ->  | E28: =D28 -> 
B29: Gem. Woningwaarde | E29: =D29 -> 0 | F29: 0 | G29: 0
B30: Straatlengte | C30: m | E30: 0 | F30: 0 | G30: 0
B31: Herhalingskans wateroverlast T= | C31: Jaar | D31: =IF($D$6="Vlak",Berekeningen!$I$86,"n.v.t.") -> 0.1 | E31: =IF($D$6="Vlak",Berekeningen!$J$86,"n.v.t.") -> 0.1 | F31: =IF($D$6="Vlak",Berekeningen!$K$86,"n.v.t.") -> 0.1 | G31: =IF($D$6="Vlak",Berekeningen!$L$86,"n.v.t.") -> 0.1
B32: Af- en toename in eerst volgende kwartier na uursom | C32: mm | D32: =SUM(Neerslagberekeningen!I196:I207) -> 0 | E32: =SUM(Neerslagberekeningen!I211:I222) -> 0 | F32: =SUM(Neerslagberekeningen!I226:I237) -> 0 | G32: =SUM(Neerslagberekeningen!I241:I252) -> 0
B34: Hoeveelhedenstaat
B35: Ga naar database: | D35: Variant 0 | E35: 0-situatie | F35: Variant 1 | H35: Variant 2 | J35: Variant 3 | X35: Variant
C36: Eenheid | D36: Hoeveelheden | E36: Situatie Herinrichting | F36: Hoeveelheden | G36: Situatie Herinrichting | H36: Hoeveelheden | I36: Situatie Herinrichting | J36: Hoeveelheden | K36: Situatie Herinrichting | X36: 0 | Y36: 2e inrichting | Z36: 1 | AA36: 2e inrichting | AB36: 2 | AC36: 2e inrichting | AD36: 3 | AE36: 2e inrichting | AG36: Vervangen | AH36: Vervangen 1 & Vervangen 2
B37: Grondwerk | AG37: Verwijderen | AH37: Verwijderen nvt
B38: Zand | C38: =IFERROR(VLOOKUP(B38,Inrichtingskosten!$C$9:$G$1035,5,FALSE),"") -> m³ | E38: - | G38: - | I38: - | K38: - | X38: =E38 -> - | Y38: =IF(X38="Vervangen","Vervangen", IF(X38="Aanleg","Vervangen",IF(X38="Verwijderen","n.v.t.","-")) ) -> - | Z38: =G38 -> - | AA38: =IF(Z38="Vervangen","Vervangen", IF(Z38="Aanleg","Vervangen",IF(Z38="Verwijderen","n.v.t.","-")) ) -> - | AB38: =I38 -> - | AC38: =IF(AB38="Vervangen","Vervangen", IF(AB38="Aanleg","Vervangen",IF(AB38="Verwijderen","n.v.t.","-")) ) -> - | AD38: =K38 -> - | AE38: =IF(AD38="Vervangen","Vervangen", IF(AD38="Aanleg","Vervangen",IF(AD38="Verwijderen","n.v.t.","-")) ) -> - | AG38: Aanleg | AH38: Aanleggen & Vervangen
B39: Drainzand | C39: =IFERROR(VLOOKUP(B39,Inrichtingskosten!$C$9:$G$1035,5,FALSE),"") -> m³ | E39: - | G39: - | I39: - | K39: - | X39: =E39 -> - | Y39: =IF(X39="Vervangen","Vervangen", IF(X39="Aanleg","Vervangen",IF(X39="Verwijderen","n.v.t.","-")) ) -> - | Z39: =G39 -> - | AA39: =IF(Z39="Vervangen","Vervangen", IF(Z39="Aanleg","Vervangen",IF(Z39="Verwijderen","n.v.t.","-")) ) -> - | AB39: =I39 -> - | AC39: =IF(AB39="Vervangen","Vervangen", IF(AB39="Aanleg","Vervangen",IF(AB39="Verwijderen","n.v.t.","-")) ) -> - | AD39: =K39 -> - | AE39: =IF(AD39="Vervangen","Vervangen", IF(AD39="Aanleg","Vervangen",IF(AD39="Verwijderen","n.v.t.","-")) ) -> - | AG39: -
C40: =IFERROR(VLOOKUP(B40,Inrichtingskosten!$C$9:$G$1035,5,FALSE),"") ->  | E40: - | G40: - | I40: - | K40: - | X40: - | Y40: - | Z40: - | AA40: - | AB40: - | AC40: - | AD40: - | AE40: -
B41: Elementen verharding
B42: Woonstraat en parkeerterrein van betonstraatstenen | C42: =IFERROR(VLOOKUP(B42,Inrichtingskosten!$C$9:$G$1035,5,FALSE),"") -> m² | E42: - | G42: - | I42: - | K42: - | X42: =E42 -> - | Y42: =IF(X42="Vervangen","Vervangen", IF(X42="Aanleg","Vervangen",IF(X42="Verwijderen","n.v.t.","-")) ) -> - | Z42: =G42 -> - | AA42: =IF(Z42="Vervangen","Vervangen", IF(Z42="Aanleg","Vervangen",IF(Z42="Verwijderen","n.v.t.","-")) ) -> - | AB42: =I42 -> - | AC42: =IF(AB42="Vervangen","Vervangen", IF(AB42="Aanleg","Vervangen",IF(AB42="Verwijderen","n.v.t.","-")) ) -> - | AD42: =K42 -> - | AE42: =IF(AD42="Vervangen","Vervangen", IF(AD42="Aanleg","Vervangen",IF(AD42="Verwijderen","n.v.t.","-")) ) -> -
B43: Voetpad/plein van betonstraatstenen | C43: =IFERROR(VLOOKUP(B43,Inrichtingskosten!$C$9:$G$1035,5,FALSE),"") -> m² | E43: - | G43: - | I43: - | K43: - | X43: =E43 -> - | Y43: =IF(X43="Vervangen","Vervangen", IF(X43="Aanleg","Vervangen",IF(X43="Verwijderen","n.v.t.","-")) ) -> - | Z43: =G43 -> - | AA43: =IF(Z43="Vervangen","Vervangen", IF(Z43="Aanleg","Vervangen",IF(Z43="Verwijderen","n.v.t.","-")) ) -> - | AB43: =I43 -> - | AC43: =IF(AB43="Vervangen","Vervangen", IF(AB43="Aanleg","Vervangen",IF(AB43="Verwijderen","n.v.t.","-")) ) -> - | AD43: =K43 -> - | AE43: =IF(AD43="Vervangen","Vervangen", IF(AD43="Aanleg","Vervangen",IF(AD43="Verwijderen","n.v.t.","-")) ) -> -
B44: Woonstraat en parkeerterrein van betonstraatstenen | C44: =IFERROR(VLOOKUP(B44,Inrichtingskosten!$C$9:$G$1035,5,FALSE),"") -> m² | E44: - | G44: - | I44: - | K44: - | X44: =E44 -> - | Y44: =IF(X44="Vervangen","Vervangen", IF(X44="Aanleg","Vervangen",IF(X44="Verwijderen","n.v.t.","-")) ) -> - | Z44: =G44 -> - | AA44: =IF(Z44="Vervangen","Vervangen", IF(Z44="Aanleg","Vervangen",IF(Z44="Verwijderen","n.v.t.","-")) ) -> - | AB44: =I44 -> - | AC44: =IF(AB44="Vervangen","Vervangen", IF(AB44="Aanleg","Vervangen",IF(AB44="Verwijderen","n.v.t.","-")) ) -> - | AD44: =K44 -> - | AE44: =IF(AD44="Vervangen","Vervangen", IF(AD44="Aanleg","Vervangen",IF(AD44="Verwijderen","n.v.t.","-")) ) -> -
B45: Doorlatende verharding | C45: =IFERROR(VLOOKUP(B45,Inrichtingskosten!$C$9:$G$1035,5,FALSE),"") -> m² | E45: - | G45: - | I45: - | K45: - | X45: =E45 -> - | Y45: =IF(X45="Vervangen","Vervangen", IF(X45="Aanleg","Vervangen",IF(X45="Verwijderen","n.v.t.","-")) ) -> - | Z45: =G45 -> - | AA45: =IF(Z45="Vervangen","Vervangen", IF(Z45="Aanleg","Vervangen",IF(Z45="Verwijderen","n.v.t.","-")) ) -> - | AB45: =I45 -> - | AC45: =IF(AB45="Vervangen","Vervangen", IF(AB45="Aanleg","Vervangen",IF(AB45="Verwijderen","n.v.t.","-")) ) -> - | AD45: =K45 -> - | AE45: =IF(AD45="Vervangen","Vervangen", IF(AD45="Aanleg","Vervangen",IF(AD45="Verwijderen","n.v.t.","-")) ) -> -
C46: =IFERROR(VLOOKUP(B46,Inrichtingskosten!$C$9:$G$1035,5,FALSE),"") ->  | E46: - | G46: - | I46: - | K46: - | X46: - | Y46: - | Z46: - | AA46: - | AB46: - | AC46: - | AD46: - | AE46: -
C47: =IFERROR(VLOOKUP(B47,Inrichtingskosten!$C$9:$G$1035,5,FALSE),"") ->  | E47: - | G47: - | I47: - | K47: - | X47: - | Y47: - | Z47: - | AA47: - | AB47: - | AC47: - | AD47: - | AE47: -
C48: =IFERROR(VLOOKUP(B48,Inrichtingskosten!$C$9:$G$1035,5,FALSE),"") ->  | E48: - | G48: - | I48: - | K48: - | X48: - | Y48: - | Z48: - | AA48: - | AB48: - | AC48: - | AD48: - | AE48: -
C49: =IFERROR(VLOOKUP(B49,Inrichtingskosten!$C$9:$G$1035,5,FALSE),"") ->  | E49: - | G49: - | I49: - | K49: - | X49: - | Y49: - | Z49: - | AA49: - | AB49: - | AC49: - | AD49: - | AE49: -
C50: =IFERROR(VLOOKUP(B50,Inrichtingskosten!$C$9:$G$1035,5,FALSE),"") ->  | E50: - | G50: - | I50: - | K50: - | X50: - | Y50: - | Z50: - | AA50: - | AB50: - | AC50: - | AD50: - | AE50: -
B51: Infiltratiesystemen
B52: Centrale wadi | C52: =IFERROR(VLOOKUP(B52,Inrichtingskosten!$C$9:$G$1035,5,FALSE),"") -> m² | E52: - | G52: - | I52: - | K52: - | X52: =E52 -> - | Y52: =IF(X52="Vervangen","Vervangen", IF(X52="Aanleg","Vervangen",IF(X52="Verwijderen","n.v.t.","-")) ) -> - | Z52: =G52 -> - | AA52: =IF(Z52="Vervangen","Vervangen", IF(Z52="Aanleg","Vervangen",IF(Z52="Verwijderen","n.v.t.","-")) ) -> - | AB52: =I52 -> - | AC52: =IF(AB52="Vervangen","Vervangen", IF(AB52="Aanleg","Vervangen",IF(AB52="Verwijderen","n.v.t.","-")) ) -> - | AD52: =K52 -> - | AE52: =IF(AD52="Vervangen","Vervangen", IF(AD52="Aanleg","Vervangen",IF(AD52="Verwijderen","n.v.t.","-")) ) -> -
B53: Molgoot | C53: =IFERROR(VLOOKUP(B53,Inrichtingskosten!$C$9:$G$1035,5,FALSE),"") -> m | E53: - | G53: - | I53: - | K53: - | X53: - | Y53: - | Z53: - | AA53: - | AB53: =I53 -> - | AC53: =IF(AB53="Vervangen","Vervangen", IF(AB53="Aanleg","Vervangen",IF(AB53="Verwijderen","n.v.t.","-")) ) -> - | AD53: - | AE53: -
B54: Verbindingsleiding | C54: =IFERROR(VLOOKUP(B54,Inrichtingskosten!$C$9:$G$1035,5,FALSE),"") -> m | E54: - | G54: - | I54: - | K54: - | X54: =E54 -> - | Y54: =IF(X54="Vervangen","Vervangen", IF(X54="Aanleg","Vervangen",IF(X54="Verwijderen","n.v.t.","-")) ) -> - | Z54: =G54 -> - | AA54: =IF(Z54="Vervangen","Vervangen", IF(Z54="Aanleg","Vervangen",IF(Z54="Verwijderen","n.v.t.","-")) ) -> - | AB54: =I54 -> - | AC54: =IF(AB54="Vervangen","Vervangen", IF(AB54="Aanleg","Vervangen",IF(AB54="Verwijderen","n.v.t.","-")) ) -> - | AD54: =K54 -> - | AE54: =IF(AD54="Vervangen","Vervangen", IF(AD54="Aanleg","Vervangen",IF(AD54="Verwijderen","n.v.t.","-")) ) -> -
C55: =IFERROR(VLOOKUP(B55,Inrichtingskosten!$C$9:$G$1035,5,FALSE),"") ->  | E55: - | G55: - | I55: - | K55: - | X55: - | Y55: - | Z55: - | AA55: - | AB55: - | AC55: - | AD55: - | AE55: -
C56: =IFERROR(VLOOKUP(B56,Inrichtingskosten!$C$9:$G$1035,5,FALSE),"") ->  | E56: - | G56: - | I56: - | K56: - | X56: - | Y56: - | Z56: - | AA56: - | AB56: - | AC56: - | AD56: - | AE56: -
C57: =IFERROR(VLOOKUP(B57,Inrichtingskosten!$C$9:$G$1035,5,FALSE),"") ->  | E57: - | G57: - | I57: - | K57: - | X57: - | Y57: - | Z57: - | AA57: - | AB57: - | AC57: - | AD57: - | AE57: -
C58: =IFERROR(VLOOKUP(B58,Inrichtingskosten!$C$9:$G$1035,5,FALSE),"") ->  | E58: - | G58: - | I58: - | K58: - | X58: - | Y58: - | Z58: - | AA58: - | AB58: - | AC58: - | AD58: - | AE58: -
C59: =IFERROR(VLOOKUP(B59,Inrichtingskosten!$C$9:$G$1035,5,FALSE),"") ->  | E59: - | G59: - | I59: - | K59: - | X59: - | Y59: - | Z59: - | AA59: - | AB59: - | AC59: - | AD59: - | AE59: -
C60: =IFERROR(VLOOKUP(B60,Inrichtingskosten!$C$9:$G$1035,5,FALSE),"") ->  | E60: - | G60: - | I60: - | K60: - | X60: - | Y60: - | Z60: - | AA60: - | AB60: - | AC60: - | AD60: - | AE60: -
C61: =IFERROR(VLOOKUP(B61,Inrichtingskosten!$C$9:$G$1035,5,FALSE),"") ->  | E61: - | G61: - | I61: - | K61: - | X61: - | Y61: - | Z61: - | AA61: - | AB61: - | AC61: - | AD61: - | AE61: -
C62: =IFERROR(VLOOKUP(B62,Inrichtingskosten!$C$9:$G$1035,5,FALSE),"") ->  | E62: - | G62: - | I62: - | K62: - | X62: - | Y62: - | Z62: - | AA62: - | AB62: - | AC62: - | AD62: - | AE62: -
B63: Gescheiden hemelwaterriool
B64: Buis beton 400 | C64: =IFERROR(VLOOKUP(B64,Inrichtingskosten!$C$9:$G$1035,5,FALSE),"") -> m | E64: - | G64: - | I64: - | K64: - | X64: =E64 -> - | Y64: =IF(X64="Vervangen","Vervangen", IF(X64="Aanleg","Vervangen",IF(X64="Verwijderen","n.v.t.","-")) ) -> - | Z64: =G64 -> - | AA64: =IF(Z64="Vervangen","Vervangen", IF(Z64="Aanleg","Vervangen",IF(Z64="Verwijderen","n.v.t.","-")) ) -> - | AB64: =I64 -> - | AC64: =IF(AB64="Vervangen","Vervangen", IF(AB64="Aanleg","Vervangen",IF(AB64="Verwijderen","n.v.t.","-")) ) -> - | AD64: =K64 -> - | AE64: =IF(AD64="Vervangen","Vervangen", IF(AD64="Aanleg","Vervangen",IF(AD64="Verwijderen","n.v.t.","-")) ) -> -
B65: Rioolput beton 400 | C65: =IFERROR(VLOOKUP(B65,Inrichtingskosten!$C$9:$G$1035,5,FALSE),"") -> st | E65: - | G65: - | I65: - | K65: - | X65: - | Y65: - | Z65: - | AA65: - | AB65: - | AC65: - | AD65: - | AE65: -
B66: Perceelaansluiting | C66: =IFERROR(VLOOKUP(B66,Inrichtingskosten!$C$9:$G$1035,5,FALSE),"") -> st | E66: - | G66: - | I66: - | K66: - | X66: - | Y66: - | Z66: - | AA66: - | AB66: - | AC66: - | AD66: - | AE66: -
B67: Kolk | C67: =IFERROR(VLOOKUP(B67,Inrichtingskosten!$C$9:$G$1035,5,FALSE),"") -> st | E67: - | G67: - | I67: - | K67: - | X67: - | Y67: - | Z67: - | AA67: - | AB67: - | AC67: - | AD67: - | AE67: -
B68: Drainage | C68: =IFERROR(VLOOKUP(B68,Inrichtingskosten!$C$9:$G$1035,5,FALSE),"") -> m | E68: - | G68: - | I68: - | K68: - | X68: - | Y68: - | Z68: - | AA68: - | AB68: - | AC68: - | AD68: - | AE68: -
C69: =IFERROR(VLOOKUP(B69,Inrichtingskosten!$C$9:$G$1035,5,FALSE),"") ->  | E69: - | G69: - | I69: - | K69: - | X69: =E69 -> - | Y69: =IF(X69="Vervangen","Vervangen", IF(X69="Aanleg","Vervangen",IF(X69="Verwijderen","n.v.t.","-")) ) -> - | Z69: =G69 -> - | AA69: =IF(Z69="Vervangen","Vervangen", IF(Z69="Aanleg","Vervangen",IF(Z69="Verwijderen","n.v.t.","-")) ) -> - | AB69: =I69 -> - | AC69: =IF(AB69="Vervangen","Vervangen", IF(AB69="Aanleg","Vervangen",IF(AB69="Verwijderen","n.v.t.","-")) ) -> - | AD69: =K69 -> - | AE69: =IF(AD69="Vervangen","Vervangen", IF(AD69="Aanleg","Vervangen",IF(AD69="Verwijderen","n.v.t.","-")) ) -> -
C70: =IFERROR(VLOOKUP(B70,Inrichtingskosten!$C$9:$G$1035,5,FALSE),"") ->  | E70: - | G70: - | I70: - | K70: - | X70: - | Y70: - | Z70: - | AA70: - | AB70: - | AC70: - | AD70: - | AE70: -
C71: =IFERROR(VLOOKUP(B71,Inrichtingskosten!$C$9:$G$1035,5,FALSE),"") ->  | E71: - | G71: - | I71: - | K71: - | X71: - | Y71: - | Z71: - | AA71: - | AB71: - | AC71: - | AD71: - | AE71: -
C72: =IFERROR(VLOOKUP(B72,Inrichtingskosten!$C$9:$G$1035,5,FALSE),"") ->  | E72: - | G72: - | I72: - | K72: - | X72: =E72 -> - | Y72: =IF(X72="Vervangen","Vervangen", IF(X72="Aanleg","Vervangen",IF(X72="Verwijderen","n.v.t.","-")) ) -> - | Z72: =G72 -> - | AA72: =IF(Z72="Vervangen","Vervangen", IF(Z72="Aanleg","Vervangen",IF(Z72="Verwijderen","n.v.t.","-")) ) -> - | AB72: =I72 -> - | AC72: =IF(AB72="Vervangen","Vervangen", IF(AB72="Aanleg","Vervangen",IF(AB72="Verwijderen","n.v.t.","-")) ) -> - | AD72: =K72 -> - | AE72: =IF(AD72="Vervangen","Vervangen", IF(AD72="Aanleg","Vervangen",IF(AD72="Verwijderen","n.v.t.","-")) ) -> -
C73: =IFERROR(VLOOKUP(B73,Inrichtingskosten!$C$9:$G$1035,5,FALSE),"") ->  | E73: - | G73: - | I73: - | K73: - | X73: - | Y73: - | Z73: - | AA73: - | AB73: - | AC73: - | AD73: - | AE73: -
C74: =IFERROR(VLOOKUP(B74,Inrichtingskosten!$C$9:$G$1035,5,FALSE),"") ->  | E74: - | G74: - | I74: - | K74: - | X74: - | Y74: - | Z74: - | AA74: - | AB74: - | AC74: - | AD74: - | AE74: -
B75: Gemengd of afvalwaterriool
B76: Buis beton 400 | C76: =IFERROR(VLOOKUP(B76,Inrichtingskosten!$C$9:$G$1035,5,FALSE),"") -> m | E76: - | G76: - | I76: - | K76: - | X76: =E76 -> - | Y76: =IF(X76="Vervangen","Vervangen", IF(X76="Aanleg","Vervangen",IF(X76="Verwijderen","n.v.t.","-")) ) -> - | Z76: =G76 -> - | AA76: =IF(Z76="Vervangen","Vervangen", IF(Z76="Aanleg","Vervangen",IF(Z76="Verwijderen","n.v.t.","-")) ) -> - | AB76: =I76 -> - | AC76: =IF(AB76="Vervangen","Vervangen", IF(AB76="Aanleg","Vervangen",IF(AB76="Verwijderen","n.v.t.","-")) ) -> - | AD76: =K76 -> - | AE76: =IF(AD76="Vervangen","Vervangen", IF(AD76="Aanleg","Vervangen",IF(AD76="Verwijderen","n.v.t.","-")) ) -> -
B77: Rioolput beton 400 | C77: =IFERROR(VLOOKUP(B77,Inrichtingskosten!$C$9:$G$1035,5,FALSE),"") -> st | E77: - | G77: - | I77: - | K77: - | X77: - | Y77: - | Z77: - | AA77: - | AB77: - | AC77: - | AD77: - | AE77: -
B78: Perceelaansluiting | C78: =IFERROR(VLOOKUP(B78,Inrichtingskosten!$C$9:$G$1035,5,FALSE),"") -> st | E78: - | G78: - | I78: - | K78: - | X78: - | Y78: - | Z78: - | AA78: - | AB78: - | AC78: - | AD78: - | AE78: -
C79: =IFERROR(VLOOKUP(B79,Inrichtingskosten!$C$9:$G$1035,5,FALSE),"") ->  | E79: - | G79: - | I79: - | K79: - | X79: - | Y79: - | Z79: - | AA79: - | AB79: - | AC79: - | AD79: - | AE79: -
C80: =IFERROR(VLOOKUP(B80,Inrichtingskosten!$C$9:$G$1035,5,FALSE),"") ->  | E80: - | G80: - | I80: - | K80: - | X80: =E80 -> - | Y80: =IF(X80="Vervangen","Vervangen", IF(X80="Aanleg","Vervangen",IF(X80="Verwijderen","n.v.t.","-")) ) -> - | Z80: =G80 -> - | AA80: =IF(Z80="Vervangen","Vervangen", IF(Z80="Aanleg","Vervangen",IF(Z80="Verwijderen","n.v.t.","-")) ) -> - | AB80: =I80 -> - | AC80: =IF(AB80="Vervangen","Vervangen", IF(AB80="Aanleg","Vervangen",IF(AB80="Verwijderen","n.v.t.","-")) ) -> - | AD80: =K80 -> - | AE80: =IF(AD80="Vervangen","Vervangen", IF(AD80="Aanleg","Vervangen",IF(AD80="Verwijderen","n.v.t.","-")) ) -> -
C81: =IFERROR(VLOOKUP(B81,Inrichtingskosten!$C$9:$G$1035,5,FALSE),"") ->  | E81: - | G81: - | I81: - | K81: - | X81: - | Y81: - | Z81: - | AA81: - | AB81: - | AC81: - | AD81: - | AE81: -
C82: =IFERROR(VLOOKUP(B82,Inrichtingskosten!$C$9:$G$1035,5,FALSE),"") ->  | E82: - | G82: - | I82: - | K82: - | X82: - | Y82: - | Z82: - | AA82: - | AB82: - | AC82: - | AD82: - | AE82: -
C83: =IFERROR(VLOOKUP(B83,Inrichtingskosten!$C$9:$G$1035,5,FALSE),"") ->  | E83: - | G83: - | I83: - | K83: - | X83: - | Y83: - | Z83: - | AA83: - | AB83: - | AC83: - | AD83: - | AE83: -
C84: =IFERROR(VLOOKUP(B84,Inrichtingskosten!$C$9:$G$1035,5,FALSE),"") ->  | E84: - | G84: - | I84: - | K84: - | X84: - | Y84: - | Z84: - | AA84: - | AB84: - | AC84: - | AD84: - | AE84: -
C85: =IFERROR(VLOOKUP(B85,Inrichtingskosten!$C$9:$G$1035,5,FALSE),"") ->  | E85: - | G85: - | I85: - | K85: - | X85: - | Y85: - | Z85: - | AA85: - | AB85: - | AC85: - | AD85: - | AE85: -
C86: =IFERROR(VLOOKUP(B86,Inrichtingskosten!$C$9:$G$1035,5,FALSE),"") ->  | E86: - | G86: - | I86: - | K86: - | X86: =E86 -> - | Y86: - | Z86: - | AA86: - | AB86: - | AC86: - | AD86: - | AE86: -
C87: =IFERROR(VLOOKUP(B87,Inrichtingskosten!$C$9:$G$1035,5,FALSE),"") ->  | E87: - | G87: - | I87: - | K87: - | X87: - | Y87: - | Z87: - | AA87: - | AB87: - | AC87: - | AD87: - | AE87: -
B88: Groenvoorziening
B89: Gazon | C89: =IFERROR(VLOOKUP(B89,Inrichtingskosten!$C$9:$G$1035,5,FALSE),"") -> m² | E89: - | G89: - | I89: - | K89: - | X89: =E89 -> - | Y89: =IF(X89="Vervangen","Vervangen", IF(X89="Aanleg","Vervangen",IF(X89="Verwijderen","n.v.t.","-")) ) -> - | Z89: =G89 -> - | AA89: =IF(Z89="Vervangen","Vervangen", IF(Z89="Aanleg","Vervangen",IF(Z89="Verwijderen","n.v.t.","-")) ) -> - | AB89: =I89 -> - | AC89: =IF(AB89="Vervangen","Vervangen", IF(AB89="Aanleg","Vervangen",IF(AB89="Verwijderen","n.v.t.","-")) ) -> - | AD89: =K89 -> - | AE89: =IF(AD89="Vervangen","Vervangen", IF(AD89="Aanleg","Vervangen",IF(AD89="Verwijderen","n.v.t.","-")) ) -> -
B90: Haag | C90: =IFERROR(VLOOKUP(B90,Inrichtingskosten!$C$9:$G$1035,5,FALSE),"") -> m² | E90: - | G90: - | I90: - | K90: - | X90: - | Y90: - | Z90: - | AA90: - | AB90: - | AC90: - | AD90: - | AE90: -
B91: Boom in verharding | C91: =IFERROR(VLOOKUP(B91,Inrichtingskosten!$C$9:$G$1035,5,FALSE),"") -> st | E91: - | G91: - | I91: - | K91: - | X91: - | Y91: - | Z91: - | AA91: - | AB91: - | AC91: - | AD91: - | AE91: -
C92: =IFERROR(VLOOKUP(B92,Inrichtingskosten!$C$9:$G$1035,5,FALSE),"") ->  | E92: - | G92: - | I92: - | K92: - | X92: =E92 -> - | Y92: =IF(X92="Vervangen","Vervangen", IF(X92="Aanleg","Vervangen",IF(X92="Verwijderen","n.v.t.","-")) ) -> - | Z92: =G92 -> - | AA92: =IF(Z92="Vervangen","Vervangen", IF(Z92="Aanleg","Vervangen",IF(Z92="Verwijderen","n.v.t.","-")) ) -> - | AB92: =I92 -> - | AC92: =IF(AB92="Vervangen","Vervangen", IF(AB92="Aanleg","Vervangen",IF(AB92="Verwijderen","n.v.t.","-")) ) -> - | AD92: =K92 -> - | AE92: =IF(AD92="Vervangen","Vervangen", IF(AD92="Aanleg","Vervangen",IF(AD92="Verwijderen","n.v.t.","-")) ) -> -
C93: =IFERROR(VLOOKUP(B93,Inrichtingskosten!$C$9:$G$1035,5,FALSE),"") ->  | E93: - | G93: - | I93: - | K93: - | X93: - | Y93: - | Z93: - | AA93: - | AB93: - | AC93: - | AD93: - | AE93: -
C94: =IFERROR(VLOOKUP(B94,Inrichtingskosten!$C$9:$G$1035,5,FALSE),"") ->  | E94: - | G94: - | I94: - | K94: - | X94: - | Y94: - | Z94: - | AA94: - | AB94: - | AC94: - | AD94: - | AE94: -
C95: =IFERROR(VLOOKUP(B95,Inrichtingskosten!$C$9:$G$1035,5,FALSE),"") ->  | E95: - | G95: - | I95: - | K95: - | X95: - | Y95: - | Z95: - | AA95: - | AB95: - | AC95: - | AD95: - | AE95: -
C96: =IFERROR(VLOOKUP(B96,Inrichtingskosten!$C$9:$G$1035,5,FALSE),"") ->  | E96: - | G96: - | I96: - | K96: - | X96: - | Y96: - | Z96: - | AA96: - | AB96: - | AC96: - | AD96: - | AE96: -
B97: Overig
B98: Straatverlichting | C98: =IFERROR(VLOOKUP(B98,Inrichtingskosten!$C$9:$G$1035,5,FALSE),"") -> st | E98: - | G98: - | I98: - | K98: - | X98: =E98 -> - | Y98: =IF(X98="Vervangen","Vervangen", IF(X98="Aanleg","Vervangen",IF(X98="Verwijderen","n.v.t.","-")) ) -> - | Z98: =G98 -> - | AA98: =IF(Z98="Vervangen","Vervangen", IF(Z98="Aanleg","Vervangen",IF(Z98="Verwijderen","n.v.t.","-")) ) -> - | AB98: =I98 -> - | AC98: =IF(AB98="Vervangen","Vervangen", IF(AB98="Aanleg","Vervangen",IF(AB98="Verwijderen","n.v.t.","-")) ) -> - | AD98: =K98 -> - | AE98: =IF(AD98="Vervangen","Vervangen", IF(AD98="Aanleg","Vervangen",IF(AD98="Verwijderen","n.v.t.","-")) ) -> -
C99: =IFERROR(VLOOKUP(B99,Inrichtingskosten!$C$9:$G$1035,5,FALSE),"") ->  | E99: - | G99: - | I99: - | K99: - | X99: =E99 -> - | Y99: =IF(X99="Vervangen","Vervangen", IF(X99="Aanleg","Vervangen",IF(X99="Verwijderen","n.v.t.","-")) ) -> - | Z99: =G99 -> - | AA99: =IF(Z99="Vervangen","Vervangen", IF(Z99="Aanleg","Vervangen",IF(Z99="Verwijderen","n.v.t.","-")) ) -> - | AB99: =I99 -> - | AC99: =IF(AB99="Vervangen","Vervangen", IF(AB99="Aanleg","Vervangen",IF(AB99="Verwijderen","n.v.t.","-")) ) -> - | AD99: =K99 -> - | AE99: =IF(AD99="Vervangen","Vervangen", IF(AD99="Aanleg","Vervangen",IF(AD99="Verwijderen","n.v.t.","-")) ) -> -
C100: =IFERROR(VLOOKUP(B100,Inrichtingskosten!$C$9:$G$1035,5,FALSE),"") ->  | E100: - | G100: - | I100: - | K100: - | X100: =E100 -> - | Y100: =IF(X100="Vervangen","Vervangen", IF(X100="Aanleg","Vervangen",IF(X100="Verwijderen","n.v.t.","-")) ) -> - | Z100: =G100 -> - | AA100: =IF(Z100="Vervangen","Vervangen", IF(Z100="Aanleg","Vervangen",IF(Z100="Verwijderen","n.v.t.","-")) ) -> - | AB100: =I100 -> - | AC100: =IF(AB100="Vervangen","Vervangen", IF(AB100="Aanleg","Vervangen",IF(AB100="Verwijderen","n.v.t.","-")) ) -> - | AD100: =K100 -> - | AE100: =IF(AD100="Vervangen","Vervangen", IF(AD100="Aanleg","Vervangen",IF(AD100="Verwijderen","n.v.t.","-")) ) -> -
C101: =IFERROR(VLOOKUP(B101,Inrichtingskosten!$C$9:$G$1035,5,FALSE),"") ->  | E101: - | G101: - | I101: - | K101: - | X101: =E101 -> - | Y101: =IF(X101="Vervangen","Vervangen", IF(X101="Aanleg","Vervangen",IF(X101="Verwijderen","n.v.t.","-")) ) -> - | Z101: =G101 -> - | AA101: =IF(Z101="Vervangen","Vervangen", IF(Z101="Aanleg","Vervangen",IF(Z101="Verwijderen","n.v.t.","-")) ) -> - | AB101: =I101 -> - | AC101: =IF(AB101="Vervangen","Vervangen", IF(AB101="Aanleg","Vervangen",IF(AB101="Verwijderen","n.v.t.","-")) ) -> - | AD101: =K101 -> - | AE101: =IF(AD101="Vervangen","Vervangen", IF(AD101="Aanleg","Vervangen",IF(AD101="Verwijderen","n.v.t.","-")) ) -> -
C102: =IFERROR(VLOOKUP(B102,Inrichtingskosten!$C$9:$G$1035,5,FALSE),"") ->  | E102: - | G102: - | I102: - | K102: - | X102: =E102 -> - | Y102: =IF(X102="Vervangen","Vervangen", IF(X102="Aanleg","Vervangen",IF(X102="Verwijderen","n.v.t.","-")) ) -> - | Z102: =G102 -> - | AA102: =IF(Z102="Vervangen","Vervangen", IF(Z102="Aanleg","Vervangen",IF(Z102="Verwijderen","n.v.t.","-")) ) -> - | AB102: =I102 -> - | AC102: =IF(AB102="Vervangen","Vervangen", IF(AB102="Aanleg","Vervangen",IF(AB102="Verwijderen","n.v.t.","-")) ) -> - | AD102: =K102 -> - | AE102: =IF(AD102="Vervangen","Vervangen", IF(AD102="Aanleg","Vervangen",IF(AD102="Verwijderen","n.v.t.","-")) ) -> -
B104: Overig (Dropdown menu's)
D105: Dropdown menu opties | F105: 0
D106: Type | E106: Eenheid | Q106: Aan | R106: Vlak | S106: Ja
B107: Inrichtingselementen (alle) | C107: Type | D107: Grondwerk | F107: Elementen Verharding | H107: Hemelwatersysteem | J107: Riolering | L107: Groenvoorziening | N107: Straatmeubilair | Q107: Uit | R107: Hellend | S107: Nee
B108: =IFERROR(INDEX(Inrichtingskosten!$C$9:$C$643, MATCH(0,COUNTIF($B$107:B107, Inrichtingskosten!$C$9:$C$643), 0)),"") -> Asfaltverharding | C108: =INDEX(Inrichtingskosten!A9:A643,MATCH(B108,Inrichtingskosten!C9:C643,0)) -> Elementen verharding | D108: =IFERROR(IF($C108=$D$107,$B108,"")," ") ->  | E108: =IFERROR(IF(ROWS($1:1)<=COUNTA($D$108:$D$175),INDEX($D$108:$D$175,SMALL(IF($D$108:$D$175<>"",ROW($D$108:$D$175)-MIN(ROW($D$108:$D$175))+1),ROWS($1:1))),""),"") -> Zand | F108: =IFERROR(IF($C108=$F$107,$B108,"")," ") -> Asfaltverharding | G108: =IFERROR(IF(ROWS($1:1)<=COUNTA($F$108:$F$175),INDEX($F$108:$F$175,SMALL(IF($F$108:$F$175<>"",ROW($F$108:$F$175)-MIN(ROW($F$108:$F$175))+1),ROWS($1:1))),""),"") -> Asfaltverharding | H108: =IFERROR(IF($C108=$H$107,$B108,"")," ") ->  | I108: =IFERROR(IF(ROWS($1:1)<=COUNTA($H$108:$H$175),INDEX($H$108:$H$175,SMALL(IF($H$108:$H$175<>"",ROW($H$108:$H$175)-MIN(ROW($H$108:$H$175))+1),ROWS($1:1))),""),"") -> Centrale wadi | J108: =IFERROR(IF($C108=$J$107,$B108,"")," ") ->  | K108: =IFERROR(IF(ROWS($1:1)<=COUNTA($J$108:$J$175),INDEX($J$108:$J$175,SMALL(IF($J$108:$J$175<>"",ROW($J$108:$J$175)-MIN(ROW($J$108:$J$175))+1),ROWS($1:1))),""),"") -> Buis beton 1000 | L108: =IFERROR(IF($C108=$L$107,$B108,"")," ") ->  | M108: =IFERROR(IF(ROWS($1:1)<=COUNTA($L$108:$L$175),INDEX($L$108:$L$175,SMALL(IF($L$108:$L$175<>"",ROW($L$108:$L$175)-MIN(ROW($L$108:$L$175))+1),ROWS($1:1))),""),"") -> Boom in beplanting | N108: =IFERROR(IF($C108=$N$107,$B108,"")," ") ->  | O108: =IFERROR(IF(ROWS($1:1)<=COUNTA($N$108:$N$175),INDEX($N$108:$N$175,SMALL(IF($N$108:$N$175<>"",ROW($N$108:$N$175)-MIN(ROW($N$108:$N$175))+1),ROWS($1:1))),""),"") -> Paal beton
B109: =IFERROR(INDEX(Inrichtingskosten!$C$9:$C$643, MATCH(0,COUNTIF($B$107:B108, Inrichtingskosten!$C$9:$C$643), 0)),"") -> Boom in beplanting | C109: =INDEX(Inrichtingskosten!A10:A644,MATCH(B109,Inrichtingskosten!C10:C644,0)) -> Groenvoorziening | D109: =IFERROR(IF($C109=$D$107,$B109,"")," ") ->  | E109: =IFERROR(IF(ROWS($1:2)<=COUNTA($D$108:$D$175),INDEX($D$108:$D$175,SMALL(IF($D$108:$D$175<>"",ROW($D$108:$D$175)-MIN(ROW($D$108:$D$175))+1),ROWS($1:2))),""),"") -> Drainzand | G109: =IFERROR(IF(ROWS($1:2)<=COUNTA($F$108:$F$175),INDEX($F$108:$F$175,SMALL(IF($F$108:$F$175<>"",ROW($F$108:$F$175)-MIN(ROW($F$108:$F$175))+1),ROWS($1:2))),""),"") -> Doorlatende verharding | I109: =IFERROR(IF(ROWS($1:2)<=COUNTA($H$108:$H$175),INDEX($H$108:$H$175,SMALL(IF($H$108:$H$175<>"",ROW($H$108:$H$175)-MIN(ROW($H$108:$H$175))+1),ROWS($1:2))),""),"") -> Gesloten grindgoot | K109: =IFERROR(IF(ROWS($1:2)<=COUNTA($J$108:$J$175),INDEX($J$108:$J$175,SMALL(IF($J$108:$J$175<>"",ROW($J$108:$J$175)-MIN(ROW($J$108:$J$175))+1),ROWS($1:2))),""),"") -> Buis beton 1250 | L109: =IFERROR(IF($C109=$L$107,$B109,"")," ") -> Boom in beplanting | M109: =IFERROR(IF(ROWS($1:2)<=COUNTA($L$108:$L$175),INDEX($L$108:$L$175,SMALL(IF($L$108:$L$175<>"",ROW($L$108:$L$175)-MIN(ROW($L$108:$L$175))+1),ROWS($1:2))),""),"") -> Boom in gazon | O109: =IFERROR(IF(ROWS($1:2)<=COUNTA($N$108:$N$175),INDEX($N$108:$N$175,SMALL(IF($N$108:$N$175<>"",ROW($N$108:$N$175)-MIN(ROW($N$108:$N$175))+1),ROWS($1:2))),""),"") -> Straatverlichting | Q109: 0
B110: =IFERROR(INDEX(Inrichtingskosten!$C$9:$C$643, MATCH(0,COUNTIF($B$107:B109, Inrichtingskosten!$C$9:$C$643), 0)),"") -> Boom in gazon | C110: =INDEX(Inrichtingskosten!A11:A645,MATCH(B110,Inrichtingskosten!C11:C645,0)) -> Groenvoorziening | E110: =IFERROR(IF(ROWS($1:3)<=COUNTA($D$108:$D$175),INDEX($D$108:$D$175,SMALL(IF($D$108:$D$175<>"",ROW($D$108:$D$175)-MIN(ROW($D$108:$D$175))+1),ROWS($1:3))),""),"") ->  | G110: =IFERROR(IF(ROWS($1:3)<=COUNTA($F$108:$F$175),INDEX($F$108:$F$175,SMALL(IF($F$108:$F$175<>"",ROW($F$108:$F$175)-MIN(ROW($F$108:$F$175))+1),ROWS($1:3))),""),"") -> Fietspad van betonstraatstenen | I110: =IFERROR(IF(ROWS($1:3)<=COUNTA($H$108:$H$175),INDEX($H$108:$H$175,SMALL(IF($H$108:$H$175<>"",ROW($H$108:$H$175)-MIN(ROW($H$108:$H$175))+1),ROWS($1:3))),""),"") -> Granudrain | K110: =IFERROR(IF(ROWS($1:3)<=COUNTA($J$108:$J$175),INDEX($J$108:$J$175,SMALL(IF($J$108:$J$175<>"",ROW($J$108:$J$175)-MIN(ROW($J$108:$J$175))+1),ROWS($1:3))),""),"") -> Buis beton 300 | L110: Boom in gazon | M110: =IFERROR(IF(ROWS($1:3)<=COUNTA($L$108:$L$175),INDEX($L$108:$L$175,SMALL(IF($L$108:$L$175<>"",ROW($L$108:$L$175)-MIN(ROW($L$108:$L$175))+1),ROWS($1:3))),""),"") -> Boom in verharding | O110: =IFERROR(IF(ROWS($1:3)<=COUNTA($N$108:$N$175),INDEX($N$108:$N$175,SMALL(IF($N$108:$N$175<>"",ROW($N$108:$N$175)-MIN(ROW($N$108:$N$175))+1),ROWS($1:3))),""),"") ->  | Q110: 30
B111: =IFERROR(INDEX(Inrichtingskosten!$C$9:$C$643, MATCH(0,COUNTIF($B$107:B110, Inrichtingskosten!$C$9:$C$643), 0)),"") -> Boom in verharding | C111: =INDEX(Inrichtingskosten!A12:A646,MATCH(B111,Inrichtingskosten!C12:C646,0)) -> Groenvoorziening | E111: =IFERROR(IF(ROWS($1:4)<=COUNTA($D$108:$D$175),INDEX($D$108:$D$175,SMALL(IF($D$108:$D$175<>"",ROW($D$108:$D$175)-MIN(ROW($D$108:$D$175))+1),ROWS($1:4))),""),"") ->  | G111: =IFERROR(IF(ROWS($1:4)<=COUNTA($F$108:$F$175),INDEX($F$108:$F$175,SMALL(IF($F$108:$F$175<>"",ROW($F$108:$F$175)-MIN(ROW($F$108:$F$175))+1),ROWS($1:4))),""),"") -> Rubbertegels | I111: =IFERROR(IF(ROWS($1:4)<=COUNTA($H$108:$H$175),INDEX($H$108:$H$175,SMALL(IF($H$108:$H$175<>"",ROW($H$108:$H$175)-MIN(ROW($H$108:$H$175))+1),ROWS($1:4))),""),"") -> Infiltratie kolk | K111: =IFERROR(IF(ROWS($1:4)<=COUNTA($J$108:$J$175),INDEX($J$108:$J$175,SMALL(IF($J$108:$J$175<>"",ROW($J$108:$J$175)-MIN(ROW($J$108:$J$175))+1),ROWS($1:4))),""),"") -> Buis beton 400 | L111: Boom in verharding | M111: =IFERROR(IF(ROWS($1:4)<=COUNTA($L$108:$L$175),INDEX($L$108:$L$175,SMALL(IF($L$108:$L$175<>"",ROW($L$108:$L$175)-MIN(ROW($L$108:$L$175))+1),ROWS($1:4))),""),"") -> Bosplantsoen | O111: =IFERROR(IF(ROWS($1:4)<=COUNTA($N$108:$N$175),INDEX($N$108:$N$175,SMALL(IF($N$108:$N$175<>"",ROW($N$108:$N$175)-MIN(ROW($N$108:$N$175))+1),ROWS($1:4))),""),"") -> 
B112: =IFERROR(INDEX(Inrichtingskosten!$C$9:$C$643, MATCH(0,COUNTIF($B$107:B111, Inrichtingskosten!$C$9:$C$643), 0)),"") -> Bosplantsoen | C112: =INDEX(Inrichtingskosten!A13:A647,MATCH(B112,Inrichtingskosten!C13:C647,0)) -> Groenvoorziening | E112: =IFERROR(IF(ROWS($1:5)<=COUNTA($D$108:$D$175),INDEX($D$108:$D$175,SMALL(IF($D$108:$D$175<>"",ROW($D$108:$D$175)-MIN(ROW($D$108:$D$175))+1),ROWS($1:5))),""),"") ->  | G112: =IFERROR(IF(ROWS($1:5)<=COUNTA($F$108:$F$175),INDEX($F$108:$F$175,SMALL(IF($F$108:$F$175<>"",ROW($F$108:$F$175)-MIN(ROW($F$108:$F$175))+1),ROWS($1:5))),""),"") -> Voetpad/plein van betonstraatstenen | I112: =IFERROR(IF(ROWS($1:5)<=COUNTA($H$108:$H$175),INDEX($H$108:$H$175,SMALL(IF($H$108:$H$175<>"",ROW($H$108:$H$175)-MIN(ROW($H$108:$H$175))+1),ROWS($1:5))),""),"") -> Infiltratiekrat gemeente makkelijk | K112: =IFERROR(IF(ROWS($1:5)<=COUNTA($J$108:$J$175),INDEX($J$108:$J$175,SMALL(IF($J$108:$J$175<>"",ROW($J$108:$J$175)-MIN(ROW($J$108:$J$175))+1),ROWS($1:5))),""),"") -> Buis beton 500 | L112: Bosplantsoen | M112: =IFERROR(IF(ROWS($1:5)<=COUNTA($L$108:$L$175),INDEX($L$108:$L$175,SMALL(IF($L$108:$L$175<>"",ROW($L$108:$L$175)-MIN(ROW($L$108:$L$175))+1),ROWS($1:5))),""),"") -> Gazon | O112: =IFERROR(IF(ROWS($1:5)<=COUNTA($N$108:$N$175),INDEX($N$108:$N$175,SMALL(IF($N$108:$N$175<>"",ROW($N$108:$N$175)-MIN(ROW($N$108:$N$175))+1),ROWS($1:5))),""),"") -> 
B113: =IFERROR(INDEX(Inrichtingskosten!$C$9:$C$643, MATCH(0,COUNTIF($B$107:B112, Inrichtingskosten!$C$9:$C$643), 0)),"") -> Buis beton 1000 | C113: =INDEX(Inrichtingskosten!A14:A648,MATCH(B113,Inrichtingskosten!C14:C648,0)) -> Riolering | E113: =IFERROR(IF(ROWS($1:6)<=COUNTA($D$108:$D$175),INDEX($D$108:$D$175,SMALL(IF($D$108:$D$175<>"",ROW($D$108:$D$175)-MIN(ROW($D$108:$D$175))+1),ROWS($1:6))),""),"") ->  | G113: =IFERROR(IF(ROWS($1:6)<=COUNTA($F$108:$F$175),INDEX($F$108:$F$175,SMALL(IF($F$108:$F$175<>"",ROW($F$108:$F$175)-MIN(ROW($F$108:$F$175))+1),ROWS($1:6))),""),"") -> Woonstraat en parkeerterrein van betonstraatstenen | I113: =IFERROR(IF(ROWS($1:6)<=COUNTA($H$108:$H$175),INDEX($H$108:$H$175,SMALL(IF($H$108:$H$175<>"",ROW($H$108:$H$175)-MIN(ROW($H$108:$H$175))+1),ROWS($1:6))),""),"") -> Infiltratiekrat particulier makkelijk | J113: =IFERROR(IF($C113=$J$107,$B113,"")," ") -> Buis beton 1000 | K113: =IFERROR(IF(ROWS($1:6)<=COUNTA($J$108:$J$175),INDEX($J$108:$J$175,SMALL(IF($J$108:$J$175<>"",ROW($J$108:$J$175)-MIN(ROW($J$108:$J$175))+1),ROWS($1:6))),""),"") -> Buis beton 600 | M113: =IFERROR(IF(ROWS($1:6)<=COUNTA($L$108:$L$175),INDEX($L$108:$L$175,SMALL(IF($L$108:$L$175<>"",ROW($L$108:$L$175)-MIN(ROW($L$108:$L$175))+1),ROWS($1:6))),""),"") -> Haag | O113: =IFERROR(IF(ROWS($1:6)<=COUNTA($N$108:$N$175),INDEX($N$108:$N$175,SMALL(IF($N$108:$N$175<>"",ROW($N$108:$N$175)-MIN(ROW($N$108:$N$175))+1),ROWS($1:6))),""),"") -> 
B114: =IFERROR(INDEX(Inrichtingskosten!$C$9:$C$643, MATCH(0,COUNTIF($B$107:B113, Inrichtingskosten!$C$9:$C$643), 0)),"") -> Buis beton 1250 | C114: =INDEX(Inrichtingskosten!A15:A649,MATCH(B114,Inrichtingskosten!C15:C649,0)) -> Riolering | E114: =IFERROR(IF(ROWS($1:7)<=COUNTA($D$108:$D$175),INDEX($D$108:$D$175,SMALL(IF($D$108:$D$175<>"",ROW($D$108:$D$175)-MIN(ROW($D$108:$D$175))+1),ROWS($1:7))),""),"") ->  | G114: =IFERROR(IF(ROWS($1:7)<=COUNTA($F$108:$F$175),INDEX($F$108:$F$175,SMALL(IF($F$108:$F$175<>"",ROW($F$108:$F$175)-MIN(ROW($F$108:$F$175))+1),ROWS($1:7))),""),"") ->  | I114: =IFERROR(IF(ROWS($1:7)<=COUNTA($H$108:$H$175),INDEX($H$108:$H$175,SMALL(IF($H$108:$H$175<>"",ROW($H$108:$H$175)-MIN(ROW($H$108:$H$175))+1),ROWS($1:7))),""),"") -> Infiltratiekrat particulier moeilijk | J114: Buis beton 1250 | K114: =IFERROR(IF(ROWS($1:7)<=COUNTA($J$108:$J$175),INDEX($J$108:$J$175,SMALL(IF($J$108:$J$175<>"",ROW($J$108:$J$175)-MIN(ROW($J$108:$J$175))+1),ROWS($1:7))),""),"") -> Buis beton 700 | M114: =IFERROR(IF(ROWS($1:7)<=COUNTA($L$108:$L$175),INDEX($L$108:$L$175,SMALL(IF($L$108:$L$175<>"",ROW($L$108:$L$175)-MIN(ROW($L$108:$L$175))+1),ROWS($1:7))),""),"") -> Sierplantsoen | O114: =IFERROR(IF(ROWS($1:7)<=COUNTA($N$108:$N$175),INDEX($N$108:$N$175,SMALL(IF($N$108:$N$175<>"",ROW($N$108:$N$175)-MIN(ROW($N$108:$N$175))+1),ROWS($1:7))),""),"") -> 
B115: =IFERROR(INDEX(Inrichtingskosten!$C$9:$C$643, MATCH(0,COUNTIF($B$107:B114, Inrichtingskosten!$C$9:$C$643), 0)),"") -> Buis beton 300 | C115: =INDEX(Inrichtingskosten!A16:A650,MATCH(B115,Inrichtingskosten!C16:C650,0)) -> Riolering | E115: =IFERROR(IF(ROWS($1:8)<=COUNTA($D$108:$D$175),INDEX($D$108:$D$175,SMALL(IF($D$108:$D$175<>"",ROW($D$108:$D$175)-MIN(ROW($D$108:$D$175))+1),ROWS($1:8))),""),"") ->  | G115: =IFERROR(IF(ROWS($1:8)<=COUNTA($F$108:$F$175),INDEX($F$108:$F$175,SMALL(IF($F$108:$F$175<>"",ROW($F$108:$F$175)-MIN(ROW($F$108:$F$175))+1),ROWS($1:8))),""),"") ->  | I115: =IFERROR(IF(ROWS($1:8)<=COUNTA($H$108:$H$175),INDEX($H$108:$H$175,SMALL(IF($H$108:$H$175<>"",ROW($H$108:$H$175)-MIN(ROW($H$108:$H$175))+1),ROWS($1:8))),""),"") -> Infiltratiekrat perceelaansluiting makkelijk | J115: =IFERROR(IF($C115=$J$107,$B115,"")," ") -> Buis beton 300 | K115: =IFERROR(IF(ROWS($1:8)<=COUNTA($J$108:$J$175),INDEX($J$108:$J$175,SMALL(IF($J$108:$J$175<>"",ROW($J$108:$J$175)-MIN(ROW($J$108:$J$175))+1),ROWS($1:8))),""),"") -> Drainage | M115: =IFERROR(IF(ROWS($1:8)<=COUNTA($L$108:$L$175),INDEX($L$108:$L$175,SMALL(IF($L$108:$L$175<>"",ROW($L$108:$L$175)-MIN(ROW($L$108:$L$175))+1),ROWS($1:8))),""),"") ->  | O115: =IFERROR(IF(ROWS($1:8)<=COUNTA($N$108:$N$175),INDEX($N$108:$N$175,SMALL(IF($N$108:$N$175<>"",ROW($N$108:$N$175)-MIN(ROW($N$108:$N$175))+1),ROWS($1:8))),""),"") -> 
B116: =IFERROR(INDEX(Inrichtingskosten!$C$9:$C$643, MATCH(0,COUNTIF($B$107:B115, Inrichtingskosten!$C$9:$C$643), 0)),"") -> Buis beton 400 | C116: =INDEX(Inrichtingskosten!A17:A651,MATCH(B116,Inrichtingskosten!C17:C651,0)) -> Riolering | E116: =IFERROR(IF(ROWS($1:9)<=COUNTA($D$108:$D$175),INDEX($D$108:$D$175,SMALL(IF($D$108:$D$175<>"",ROW($D$108:$D$175)-MIN(ROW($D$108:$D$175))+1),ROWS($1:9))),""),"") ->  | G116: =IFERROR(IF(ROWS($1:9)<=COUNTA($F$108:$F$175),INDEX($F$108:$F$175,SMALL(IF($F$108:$F$175<>"",ROW($F$108:$F$175)-MIN(ROW($F$108:$F$175))+1),ROWS($1:9))),""),"") ->  | I116: =IFERROR(IF(ROWS($1:9)<=COUNTA($H$108:$H$175),INDEX($H$108:$H$175,SMALL(IF($H$108:$H$175<>"",ROW($H$108:$H$175)-MIN(ROW($H$108:$H$175))+1),ROWS($1:9))),""),"") -> Infiltratiekrat perceelaansluiting moeilijk | J116: Buis beton 400 | K116: =IFERROR(IF(ROWS($1:9)<=COUNTA($J$108:$J$175),INDEX($J$108:$J$175,SMALL(IF($J$108:$J$175<>"",ROW($J$108:$J$175)-MIN(ROW($J$108:$J$175))+1),ROWS($1:9))),""),"") -> Kolk | M116: =IFERROR(IF(ROWS($1:9)<=COUNTA($L$108:$L$175),INDEX($L$108:$L$175,SMALL(IF($L$108:$L$175<>"",ROW($L$108:$L$175)-MIN(ROW($L$108:$L$175))+1),ROWS($1:9))),""),"") ->  | O116: =IFERROR(IF(ROWS($1:9)<=COUNTA($N$108:$N$175),INDEX($N$108:$N$175,SMALL(IF($N$108:$N$175<>"",ROW($N$108:$N$175)-MIN(ROW($N$108:$N$175))+1),ROWS($1:9))),""),"") -> 
B117: =IFERROR(INDEX(Inrichtingskosten!$C$9:$C$643, MATCH(0,COUNTIF($B$107:B116, Inrichtingskosten!$C$9:$C$643), 0)),"") -> Buis beton 500 | C117: =INDEX(Inrichtingskosten!A18:A652,MATCH(B117,Inrichtingskosten!C18:C652,0)) -> Riolering | E117: =IFERROR(IF(ROWS($1:10)<=COUNTA($D$108:$D$175),INDEX($D$108:$D$175,SMALL(IF($D$108:$D$175<>"",ROW($D$108:$D$175)-MIN(ROW($D$108:$D$175))+1),ROWS($1:10))),""),"") ->  | G117: =IFERROR(IF(ROWS($1:10)<=COUNTA($F$108:$F$175),INDEX($F$108:$F$175,SMALL(IF($F$108:$F$175<>"",ROW($F$108:$F$175)-MIN(ROW($F$108:$F$175))+1),ROWS($1:10))),""),"") ->  | I117: =IFERROR(IF(ROWS($1:10)<=COUNTA($H$108:$H$175),INDEX($H$108:$H$175,SMALL(IF($H$108:$H$175<>"",ROW($H$108:$H$175)-MIN(ROW($H$108:$H$175))+1),ROWS($1:10))),""),"") -> Molgoot | J117: Buis beton 500 | K117: =IFERROR(IF(ROWS($1:10)<=COUNTA($J$108:$J$175),INDEX($J$108:$J$175,SMALL(IF($J$108:$J$175<>"",ROW($J$108:$J$175)-MIN(ROW($J$108:$J$175))+1),ROWS($1:10))),""),"") -> Perceelaansluiting | M117: =IFERROR(IF(ROWS($1:10)<=COUNTA($L$108:$L$175),INDEX($L$108:$L$175,SMALL(IF($L$108:$L$175<>"",ROW($L$108:$L$175)-MIN(ROW($L$108:$L$175))+1),ROWS($1:10))),""),"") ->  | O117: =IFERROR(IF(ROWS($1:10)<=COUNTA($N$108:$N$175),INDEX($N$108:$N$175,SMALL(IF($N$108:$N$175<>"",ROW($N$108:$N$175)-MIN(ROW($N$108:$N$175))+1),ROWS($1:10))),""),"") -> 
B118: =IFERROR(INDEX(Inrichtingskosten!$C$9:$C$643, MATCH(0,COUNTIF($B$107:B117, Inrichtingskosten!$C$9:$C$643), 0)),"") -> Buis beton 600 | C118: =INDEX(Inrichtingskosten!A19:A653,MATCH(B118,Inrichtingskosten!C19:C653,0)) -> Riolering | E118: =IFERROR(IF(ROWS($1:11)<=COUNTA($D$108:$D$175),INDEX($D$108:$D$175,SMALL(IF($D$108:$D$175<>"",ROW($D$108:$D$175)-MIN(ROW($D$108:$D$175))+1),ROWS($1:11))),""),"") ->  | G118: =IFERROR(IF(ROWS($1:11)<=COUNTA($F$108:$F$175),INDEX($F$108:$F$175,SMALL(IF($F$108:$F$175<>"",ROW($F$108:$F$175)-MIN(ROW($F$108:$F$175))+1),ROWS($1:11))),""),"") ->  | I118: =IFERROR(IF(ROWS($1:11)<=COUNTA($H$108:$H$175),INDEX($H$108:$H$175,SMALL(IF($H$108:$H$175<>"",ROW($H$108:$H$175)-MIN(ROW($H$108:$H$175))+1),ROWS($1:11))),""),"") -> Onderhoudsarme wadi (inc. beplanting) | J118: Buis beton 600 | K118: =IFERROR(IF(ROWS($1:11)<=COUNTA($J$108:$J$175),INDEX($J$108:$J$175,SMALL(IF($J$108:$J$175<>"",ROW($J$108:$J$175)-MIN(ROW($J$108:$J$175))+1),ROWS($1:11))),""),"") -> Rioolput beton 1000 | M118: =IFERROR(IF(ROWS($1:11)<=COUNTA($L$108:$L$175),INDEX($L$108:$L$175,SMALL(IF($L$108:$L$175<>"",ROW($L$108:$L$175)-MIN(ROW($L$108:$L$175))+1),ROWS($1:11))),""),"") ->  | O118: =IFERROR(IF(ROWS($1:11)<=COUNTA($N$108:$N$175),INDEX($N$108:$N$175,SMALL(IF($N$108:$N$175<>"",ROW($N$108:$N$175)-MIN(ROW($N$108:$N$175))+1),ROWS($1:11))),""),"") -> 
B119: =IFERROR(INDEX(Inrichtingskosten!$C$9:$C$643, MATCH(0,COUNTIF($B$107:B118, Inrichtingskosten!$C$9:$C$643), 0)),"") -> Buis beton 700 | C119: =INDEX(Inrichtingskosten!A20:A654,MATCH(B119,Inrichtingskosten!C20:C654,0)) -> Riolering | E119: =IFERROR(IF(ROWS($1:12)<=COUNTA($D$108:$D$175),INDEX($D$108:$D$175,SMALL(IF($D$108:$D$175<>"",ROW($D$108:$D$175)-MIN(ROW($D$108:$D$175))+1),ROWS($1:12))),""),"") ->  | G119: =IFERROR(IF(ROWS($1:12)<=COUNTA($F$108:$F$175),INDEX($F$108:$F$175,SMALL(IF($F$108:$F$175<>"",ROW($F$108:$F$175)-MIN(ROW($F$108:$F$175))+1),ROWS($1:12))),""),"") ->  | I119: =IFERROR(IF(ROWS($1:12)<=COUNTA($H$108:$H$175),INDEX($H$108:$H$175,SMALL(IF($H$108:$H$175<>"",ROW($H$108:$H$175)-MIN(ROW($H$108:$H$175))+1),ROWS($1:12))),""),"") -> Open grindgoot | J119: Buis beton 700 | K119: =IFERROR(IF(ROWS($1:12)<=COUNTA($J$108:$J$175),INDEX($J$108:$J$175,SMALL(IF($J$108:$J$175<>"",ROW($J$108:$J$175)-MIN(ROW($J$108:$J$175))+1),ROWS($1:12))),""),"") -> Rioolput beton 1250 | M119: =IFERROR(IF(ROWS($1:12)<=COUNTA($L$108:$L$175),INDEX($L$108:$L$175,SMALL(IF($L$108:$L$175<>"",ROW($L$108:$L$175)-MIN(ROW($L$108:$L$175))+1),ROWS($1:12))),""),"") ->  | O119: =IFERROR(IF(ROWS($1:12)<=COUNTA($N$108:$N$175),INDEX($N$108:$N$175,SMALL(IF($N$108:$N$175<>"",ROW($N$108:$N$175)-MIN(ROW($N$108:$N$175))+1),ROWS($1:12))),""),"") -> 
B120: =IFERROR(INDEX(Inrichtingskosten!$C$9:$C$643, MATCH(0,COUNTIF($B$107:B119, Inrichtingskosten!$C$9:$C$643), 0)),"") -> Centrale wadi | C120: =INDEX(Inrichtingskosten!A21:A655,MATCH(B120,Inrichtingskosten!C21:C655,0)) -> Hemelwatersysteem | E120: =IFERROR(IF(ROWS($1:14)<=COUNTA($D$108:$D$175),INDEX($D$108:$D$175,SMALL(IF($D$108:$D$175<>"",ROW($D$108:$D$175)-MIN(ROW($D$108:$D$175))+1),ROWS($1:14))),""),"") ->  | G120: =IFERROR(IF(ROWS($1:14)<=COUNTA($F$108:$F$175),INDEX($F$108:$F$175,SMALL(IF($F$108:$F$175<>"",ROW($F$108:$F$175)-MIN(ROW($F$108:$F$175))+1),ROWS($1:14))),""),"") ->  | H120: Centrale wadi | I120: =IFERROR(IF(ROWS($1:14)<=COUNTA($H$108:$H$175),INDEX($H$108:$H$175,SMALL(IF($H$108:$H$175<>"",ROW($H$108:$H$175)-MIN(ROW($H$108:$H$175))+1),ROWS($1:14))),""),"") -> Verbindingsleiding | K120: =IFERROR(IF(ROWS($1:13)<=COUNTA($J$108:$J$175),INDEX($J$108:$J$175,SMALL(IF($J$108:$J$175<>"",ROW($J$108:$J$175)-MIN(ROW($J$108:$J$175))+1),ROWS($1:13))),""),"") -> Rioolput beton 300 | M120: =IFERROR(IF(ROWS($1:14)<=COUNTA($L$108:$L$175),INDEX($L$108:$L$175,SMALL(IF($L$108:$L$175<>"",ROW($L$108:$L$175)-MIN(ROW($L$108:$L$175))+1),ROWS($1:14))),""),"") ->  | O120: =IFERROR(IF(ROWS($1:14)<=COUNTA($N$108:$N$175),INDEX($N$108:$N$175,SMALL(IF($N$108:$N$175<>"",ROW($N$108:$N$175)-MIN(ROW($N$108:$N$175))+1),ROWS($1:14))),""),"") -> 
B121: =IFERROR(INDEX(Inrichtingskosten!$C$9:$C$643, MATCH(0,COUNTIF($B$107:B120, Inrichtingskosten!$C$9:$C$643), 0)),"") -> Doorlatende verharding | C121: =INDEX(Inrichtingskosten!A22:A656,MATCH(B121,Inrichtingskosten!C22:C656,0)) -> Elementen verharding | E121: =IFERROR(IF(ROWS($1:16)<=COUNTA($D$108:$D$175),INDEX($D$108:$D$175,SMALL(IF($D$108:$D$175<>"",ROW($D$108:$D$175)-MIN(ROW($D$108:$D$175))+1),ROWS($1:16))),""),"") ->  | F121: Doorlatende verharding | G121: =IFERROR(IF(ROWS($1:16)<=COUNTA($F$108:$F$175),INDEX($F$108:$F$175,SMALL(IF($F$108:$F$175<>"",ROW($F$108:$F$175)-MIN(ROW($F$108:$F$175))+1),ROWS($1:16))),""),"") ->  | I121: =IFERROR(IF(ROWS($1:16)<=COUNTA($H$108:$H$175),INDEX($H$108:$H$175,SMALL(IF($H$108:$H$175<>"",ROW($H$108:$H$175)-MIN(ROW($H$108:$H$175))+1),ROWS($1:16))),""),"") -> Zakput | K121: =IFERROR(IF(ROWS($1:14)<=COUNTA($J$108:$J$175),INDEX($J$108:$J$175,SMALL(IF($J$108:$J$175<>"",ROW($J$108:$J$175)-MIN(ROW($J$108:$J$175))+1),ROWS($1:14))),""),"") -> Rioolput beton 400 | M121: =IFERROR(IF(ROWS($1:16)<=COUNTA($L$108:$L$175),INDEX($L$108:$L$175,SMALL(IF($L$108:$L$175<>"",ROW($L$108:$L$175)-MIN(ROW($L$108:$L$175))+1),ROWS($1:16))),""),"") ->  | O121: =IFERROR(IF(ROWS($1:16)<=COUNTA($N$108:$N$175),INDEX($N$108:$N$175,SMALL(IF($N$108:$N$175<>"",ROW($N$108:$N$175)-MIN(ROW($N$108:$N$175))+1),ROWS($1:16))),""),"") -> 
B122: =IFERROR(INDEX(Inrichtingskosten!$C$9:$C$643, MATCH(0,COUNTIF($B$107:B121, Inrichtingskosten!$C$9:$C$643), 0)),"") -> Drainage | C122: =INDEX(Inrichtingskosten!A23:A657,MATCH(B122,Inrichtingskosten!C23:C657,0)) -> Riolering | E122: =IFERROR(IF(ROWS($1:17)<=COUNTA($D$108:$D$175),INDEX($D$108:$D$175,SMALL(IF($D$108:$D$175<>"",ROW($D$108:$D$175)-MIN(ROW($D$108:$D$175))+1),ROWS($1:17))),""),"") ->  | G122: =IFERROR(IF(ROWS($1:17)<=COUNTA($F$108:$F$175),INDEX($F$108:$F$175,SMALL(IF($F$108:$F$175<>"",ROW($F$108:$F$175)-MIN(ROW($F$108:$F$175))+1),ROWS($1:17))),""),"") ->  | I122: =IFERROR(IF(ROWS($1:17)<=COUNTA($H$108:$H$175),INDEX($H$108:$H$175,SMALL(IF($H$108:$H$175<>"",ROW($H$108:$H$175)-MIN(ROW($H$108:$H$175))+1),ROWS($1:17))),""),"") -> Bergend pakket hardsteen 8/32 - geen doek | J122: Drainage | K122: =IFERROR(IF(ROWS($1:15)<=COUNTA($J$108:$J$175),INDEX($J$108:$J$175,SMALL(IF($J$108:$J$175<>"",ROW($J$108:$J$175)-MIN(ROW($J$108:$J$175))+1),ROWS($1:15))),""),"") -> Rioolput beton 500 | M122: =IFERROR(IF(ROWS($1:17)<=COUNTA($L$108:$L$175),INDEX($L$108:$L$175,SMALL(IF($L$108:$L$175<>"",ROW($L$108:$L$175)-MIN(ROW($L$108:$L$175))+1),ROWS($1:17))),""),"") ->  | O122: =IFERROR(IF(ROWS($1:17)<=COUNTA($N$108:$N$175),INDEX($N$108:$N$175,SMALL(IF($N$108:$N$175<>"",ROW($N$108:$N$175)-MIN(ROW($N$108:$N$175))+1),ROWS($1:17))),""),"") -> 
B123: =IFERROR(INDEX(Inrichtingskosten!$C$9:$C$643, MATCH(0,COUNTIF($B$107:B122, Inrichtingskosten!$C$9:$C$643), 0)),"") -> Fietspad van betonstraatstenen | C123: =INDEX(Inrichtingskosten!A24:A658,MATCH(B123,Inrichtingskosten!C24:C658,0)) -> Elementen verharding | E123: =IFERROR(IF(ROWS($1:18)<=COUNTA($D$108:$D$175),INDEX($D$108:$D$175,SMALL(IF($D$108:$D$175<>"",ROW($D$108:$D$175)-MIN(ROW($D$108:$D$175))+1),ROWS($1:18))),""),"") ->  | F123: Fietspad van betonstraatstenen | G123: =IFERROR(IF(ROWS($1:18)<=COUNTA($F$108:$F$175),INDEX($F$108:$F$175,SMALL(IF($F$108:$F$175<>"",ROW($F$108:$F$175)-MIN(ROW($F$108:$F$175))+1),ROWS($1:18))),""),"") ->  | I123: =IFERROR(IF(ROWS($1:18)<=COUNTA($H$108:$H$175),INDEX($H$108:$H$175,SMALL(IF($H$108:$H$175<>"",ROW($H$108:$H$175)-MIN(ROW($H$108:$H$175))+1),ROWS($1:18))),""),"") -> Bergend pakket Betondgranulaat 12/32 - geen doek | K123: =IFERROR(IF(ROWS($1:16)<=COUNTA($J$108:$J$175),INDEX($J$108:$J$175,SMALL(IF($J$108:$J$175<>"",ROW($J$108:$J$175)-MIN(ROW($J$108:$J$175))+1),ROWS($1:16))),""),"") -> Rioolput beton 600 | M123: =IFERROR(IF(ROWS($1:18)<=COUNTA($L$108:$L$175),INDEX($L$108:$L$175,SMALL(IF($L$108:$L$175<>"",ROW($L$108:$L$175)-MIN(ROW($L$108:$L$175))+1),ROWS($1:18))),""),"") ->  | O123: =IFERROR(IF(ROWS($1:18)<=COUNTA($N$108:$N$175),INDEX($N$108:$N$175,SMALL(IF($N$108:$N$175<>"",ROW($N$108:$N$175)-MIN(ROW($N$108:$N$175))+1),ROWS($1:18))),""),"") -> 
B124: =IFERROR(INDEX(Inrichtingskosten!$C$9:$C$643, MATCH(0,COUNTIF($B$107:B123, Inrichtingskosten!$C$9:$C$643), 0)),"") -> Gazon | C124: =INDEX(Inrichtingskosten!A25:A659,MATCH(B124,Inrichtingskosten!C25:C659,0)) -> Groenvoorziening | E124: =IFERROR(IF(ROWS($1:19)<=COUNTA($D$108:$D$175),INDEX($D$108:$D$175,SMALL(IF($D$108:$D$175<>"",ROW($D$108:$D$175)-MIN(ROW($D$108:$D$175))+1),ROWS($1:19))),""),"") ->  | G124: =IFERROR(IF(ROWS($1:19)<=COUNTA($F$108:$F$175),INDEX($F$108:$F$175,SMALL(IF($F$108:$F$175<>"",ROW($F$108:$F$175)-MIN(ROW($F$108:$F$175))+1),ROWS($1:19))),""),"") ->  | I124: =IFERROR(IF(ROWS($1:19)<=COUNTA($H$108:$H$175),INDEX($H$108:$H$175,SMALL(IF($H$108:$H$175<>"",ROW($H$108:$H$175)-MIN(ROW($H$108:$H$175))+1),ROWS($1:19))),""),"") -> WAVICORE buis in bergend pakket | K124: =IFERROR(IF(ROWS($1:17)<=COUNTA($J$108:$J$175),INDEX($J$108:$J$175,SMALL(IF($J$108:$J$175<>"",ROW($J$108:$J$175)-MIN(ROW($J$108:$J$175))+1),ROWS($1:17))),""),"") -> Rioolput beton 700 | L124: Gazon | M124: =IFERROR(IF(ROWS($1:19)<=COUNTA($L$108:$L$175),INDEX($L$108:$L$175,SMALL(IF($L$108:$L$175<>"",ROW($L$108:$L$175)-MIN(ROW($L$108:$L$175))+1),ROWS($1:19))),""),"") ->  | O124: =IFERROR(IF(ROWS($1:19)<=COUNTA($N$108:$N$175),INDEX($N$108:$N$175,SMALL(IF($N$108:$N$175<>"",ROW($N$108:$N$175)-MIN(ROW($N$108:$N$175))+1),ROWS($1:19))),""),"") -> 
B125: =IFERROR(INDEX(Inrichtingskosten!$C$9:$C$643, MATCH(0,COUNTIF($B$107:B124, Inrichtingskosten!$C$9:$C$643), 0)),"") -> Gesloten grindgoot | C125: =INDEX(Inrichtingskosten!A26:A660,MATCH(B125,Inrichtingskosten!C26:C660,0)) -> Hemelwatersysteem | E125: =IFERROR(IF(ROWS($1:20)<=COUNTA($D$108:$D$175),INDEX($D$108:$D$175,SMALL(IF($D$108:$D$175<>"",ROW($D$108:$D$175)-MIN(ROW($D$108:$D$175))+1),ROWS($1:20))),""),"") ->  | G125: =IFERROR(IF(ROWS($1:20)<=COUNTA($F$108:$F$175),INDEX($F$108:$F$175,SMALL(IF($F$108:$F$175<>"",ROW($F$108:$F$175)-MIN(ROW($F$108:$F$175))+1),ROWS($1:20))),""),"") ->  | H125: Gesloten grindgoot | I125: =IFERROR(IF(ROWS($1:20)<=COUNTA($H$108:$H$175),INDEX($H$108:$H$175,SMALL(IF($H$108:$H$175<>"",ROW($H$108:$H$175)-MIN(ROW($H$108:$H$175))+1),ROWS($1:20))),""),"") -> Bufferblock | K125: =IFERROR(IF(ROWS($1:18)<=COUNTA($J$108:$J$175),INDEX($J$108:$J$175,SMALL(IF($J$108:$J$175<>"",ROW($J$108:$J$175)-MIN(ROW($J$108:$J$175))+1),ROWS($1:18))),""),"") -> Rioolput beton 800 | M125: =IFERROR(IF(ROWS($1:20)<=COUNTA($L$108:$L$175),INDEX($L$108:$L$175,SMALL(IF($L$108:$L$175<>"",ROW($L$108:$L$175)-MIN(ROW($L$108:$L$175))+1),ROWS($1:20))),""),"") ->  | O125: =IFERROR(IF(ROWS($1:20)<=COUNTA($N$108:$N$175),INDEX($N$108:$N$175,SMALL(IF($N$108:$N$175<>"",ROW($N$108:$N$175)-MIN(ROW($N$108:$N$175))+1),ROWS($1:20))),""),"") -> 
B126: =IFERROR(INDEX(Inrichtingskosten!$C$9:$C$643, MATCH(0,COUNTIF($B$107:B125, Inrichtingskosten!$C$9:$C$643), 0)),"") -> Granudrain | C126: =INDEX(Inrichtingskosten!A27:A661,MATCH(B126,Inrichtingskosten!C27:C661,0)) -> Hemelwatersysteem | E126: =IFERROR(IF(ROWS($1:21)<=COUNTA($D$108:$D$175),INDEX($D$108:$D$175,SMALL(IF($D$108:$D$175<>"",ROW($D$108:$D$175)-MIN(ROW($D$108:$D$175))+1),ROWS($1:21))),""),"") ->  | G126: =IFERROR(IF(ROWS($1:21)<=COUNTA($F$108:$F$175),INDEX($F$108:$F$175,SMALL(IF($F$108:$F$175<>"",ROW($F$108:$F$175)-MIN(ROW($F$108:$F$175))+1),ROWS($1:21))),""),"") ->  | H126: Granudrain | I126: =IFERROR(IF(ROWS($1:21)<=COUNTA($H$108:$H$175),INDEX($H$108:$H$175,SMALL(IF($H$108:$H$175<>"",ROW($H$108:$H$175)-MIN(ROW($H$108:$H$175))+1),ROWS($1:21))),""),"") -> Bergend pakket lava of bims 4/32 - geen doek | K126: =IFERROR(IF(ROWS($1:19)<=COUNTA($J$108:$J$175),INDEX($J$108:$J$175,SMALL(IF($J$108:$J$175<>"",ROW($J$108:$J$175)-MIN(ROW($J$108:$J$175))+1),ROWS($1:19))),""),"") -> Rioolput beton 900 | M126: =IFERROR(IF(ROWS($1:21)<=COUNTA($L$108:$L$175),INDEX($L$108:$L$175,SMALL(IF($L$108:$L$175<>"",ROW($L$108:$L$175)-MIN(ROW($L$108:$L$175))+1),ROWS($1:21))),""),"") ->  | O126: =IFERROR(IF(ROWS($1:21)<=COUNTA($N$108:$N$175),INDEX($N$108:$N$175,SMALL(IF($N$108:$N$175<>"",ROW($N$108:$N$175)-MIN(ROW($N$108:$N$175))+1),ROWS($1:21))),""),"") -> 
B127: =IFERROR(INDEX(Inrichtingskosten!$C$9:$C$643, MATCH(0,COUNTIF($B$107:B126, Inrichtingskosten!$C$9:$C$643), 0)),"") -> Haag | C127: =INDEX(Inrichtingskosten!A28:A662,MATCH(B127,Inrichtingskosten!C28:C662,0)) -> Groenvoorziening | E127: =IFERROR(IF(ROWS($1:22)<=COUNTA($D$108:$D$175),INDEX($D$108:$D$175,SMALL(IF($D$108:$D$175<>"",ROW($D$108:$D$175)-MIN(ROW($D$108:$D$175))+1),ROWS($1:22))),""),"") ->  | G127: =IFERROR(IF(ROWS($1:22)<=COUNTA($F$108:$F$175),INDEX($F$108:$F$175,SMALL(IF($F$108:$F$175<>"",ROW($F$108:$F$175)-MIN(ROW($F$108:$F$175))+1),ROWS($1:22))),""),"") ->  | I127: =IFERROR(IF(ROWS($1:22)<=COUNTA($H$108:$H$175),INDEX($H$108:$H$175,SMALL(IF($H$108:$H$175<>"",ROW($H$108:$H$175)-MIN(ROW($H$108:$H$175))+1),ROWS($1:22))),""),"") -> Bergend pakket ROCKFLOW - geen doek | K127: =IFERROR(IF(ROWS($1:20)<=COUNTA($J$108:$J$175),INDEX($J$108:$J$175,SMALL(IF($J$108:$J$175<>"",ROW($J$108:$J$175)-MIN(ROW($J$108:$J$175))+1),ROWS($1:20))),""),"") -> Tergakolk | L127: Haag | M127: =IFERROR(IF(ROWS($1:22)<=COUNTA($L$108:$L$175),INDEX($L$108:$L$175,SMALL(IF($L$108:$L$175<>"",ROW($L$108:$L$175)-MIN(ROW($L$108:$L$175))+1),ROWS($1:22))),""),"") ->  | O127: =IFERROR(IF(ROWS($1:22)<=COUNTA($N$108:$N$175),INDEX($N$108:$N$175,SMALL(IF($N$108:$N$175<>"",ROW($N$108:$N$175)-MIN(ROW($N$108:$N$175))+1),ROWS($1:22))),""),"") -> 
B128: =IFERROR(INDEX(Inrichtingskosten!$C$9:$C$643, MATCH(0,COUNTIF($B$107:B127, Inrichtingskosten!$C$9:$C$643), 0)),"") -> Infiltratie kolk | C128: =INDEX(Inrichtingskosten!A29:A663,MATCH(B128,Inrichtingskosten!C29:C663,0)) -> Hemelwatersysteem | E128: =IFERROR(IF(ROWS($1:23)<=COUNTA($D$108:$D$175),INDEX($D$108:$D$175,SMALL(IF($D$108:$D$175<>"",ROW($D$108:$D$175)-MIN(ROW($D$108:$D$175))+1),ROWS($1:23))),""),"") ->  | G128: =IFERROR(IF(ROWS($1:23)<=COUNTA($F$108:$F$175),INDEX($F$108:$F$175,SMALL(IF($F$108:$F$175<>"",ROW($F$108:$F$175)-MIN(ROW($F$108:$F$175))+1),ROWS($1:23))),""),"") ->  | H128: Infiltratie kolk | I128: =IFERROR(IF(ROWS($1:23)<=COUNTA($H$108:$H$175),INDEX($H$108:$H$175,SMALL(IF($H$108:$H$175<>"",ROW($H$108:$H$175)-MIN(ROW($H$108:$H$175))+1),ROWS($1:23))),""),"") -> Bergend pakket AA Schelpenmix - geen doek | K128: =IFERROR(IF(ROWS($1:21)<=COUNTA($J$108:$J$175),INDEX($J$108:$J$175,SMALL(IF($J$108:$J$175<>"",ROW($J$108:$J$175)-MIN(ROW($J$108:$J$175))+1),ROWS($1:21))),""),"") ->  | M128: =IFERROR(IF(ROWS($1:23)<=COUNTA($L$108:$L$175),INDEX($L$108:$L$175,SMALL(IF($L$108:$L$175<>"",ROW($L$108:$L$175)-MIN(ROW($L$108:$L$175))+1),ROWS($1:23))),""),"") ->  | O128: =IFERROR(IF(ROWS($1:23)<=COUNTA($N$108:$N$175),INDEX($N$108:$N$175,SMALL(IF($N$108:$N$175<>"",ROW($N$108:$N$175)-MIN(ROW($N$108:$N$175))+1),ROWS($1:23))),""),"") -> 
B129: =IFERROR(INDEX(Inrichtingskosten!$C$9:$C$643, MATCH(0,COUNTIF($B$107:B128, Inrichtingskosten!$C$9:$C$643), 0)),"") -> Infiltratiekrat gemeente makkelijk | C129: =INDEX(Inrichtingskosten!A30:A664,MATCH(B129,Inrichtingskosten!C30:C664,0)) -> Hemelwatersysteem | E129: =IFERROR(IF(ROWS($1:24)<=COUNTA($D$108:$D$175),INDEX($D$108:$D$175,SMALL(IF($D$108:$D$175<>"",ROW($D$108:$D$175)-MIN(ROW($D$108:$D$175))+1),ROWS($1:24))),""),"") ->  | G129: =IFERROR(IF(ROWS($1:24)<=COUNTA($F$108:$F$175),INDEX($F$108:$F$175,SMALL(IF($F$108:$F$175<>"",ROW($F$108:$F$175)-MIN(ROW($F$108:$F$175))+1),ROWS($1:24))),""),"") ->  | H129: Infiltratiekrat gemeente makkelijk | I129: =IFERROR(IF(ROWS($1:24)<=COUNTA($H$108:$H$175),INDEX($H$108:$H$175,SMALL(IF($H$108:$H$175<>"",ROW($H$108:$H$175)-MIN(ROW($H$108:$H$175))+1),ROWS($1:24))),""),"") -> AA minerals (los) voor rond drain | K129: =IFERROR(IF(ROWS($1:22)<=COUNTA($J$108:$J$175),INDEX($J$108:$J$175,SMALL(IF($J$108:$J$175<>"",ROW($J$108:$J$175)-MIN(ROW($J$108:$J$175))+1),ROWS($1:22))),""),"") ->  | M129: =IFERROR(IF(ROWS($1:24)<=COUNTA($L$108:$L$175),INDEX($L$108:$L$175,SMALL(IF($L$108:$L$175<>"",ROW($L$108:$L$175)-MIN(ROW($L$108:$L$175))+1),ROWS($1:24))),""),"") ->  | O129: =IFERROR(IF(ROWS($1:24)<=COUNTA($N$108:$N$175),INDEX($N$108:$N$175,SMALL(IF($N$108:$N$175<>"",ROW($N$108:$N$175)-MIN(ROW($N$108:$N$175))+1),ROWS($1:24))),""),"") -> 
B130: =IFERROR(INDEX(Inrichtingskosten!$C$9:$C$643, MATCH(0,COUNTIF($B$107:B129, Inrichtingskosten!$C$9:$C$643), 0)),"") -> Infiltratiekrat particulier makkelijk | C130: =INDEX(Inrichtingskosten!A31:A665,MATCH(B130,Inrichtingskosten!C31:C665,0)) -> Hemelwatersysteem | E130: =IFERROR(IF(ROWS($1:25)<=COUNTA($D$108:$D$175),INDEX($D$108:$D$175,SMALL(IF($D$108:$D$175<>"",ROW($D$108:$D$175)-MIN(ROW($D$108:$D$175))+1),ROWS($1:25))),""),"") ->  | G130: =IFERROR(IF(ROWS($1:25)<=COUNTA($F$108:$F$175),INDEX($F$108:$F$175,SMALL(IF($F$108:$F$175<>"",ROW($F$108:$F$175)-MIN(ROW($F$108:$F$175))+1),ROWS($1:25))),""),"") ->  | H130: Infiltratiekrat particulier makkelijk | I130: =IFERROR(IF(ROWS($1:25)<=COUNTA($H$108:$H$175),INDEX($H$108:$H$175,SMALL(IF($H$108:$H$175<>"",ROW($H$108:$H$175)-MIN(ROW($H$108:$H$175))+1),ROWS($1:25))),""),"") -> Geogrid (los) | K130: =IFERROR(IF(ROWS($1:23)<=COUNTA($J$108:$J$175),INDEX($J$108:$J$175,SMALL(IF($J$108:$J$175<>"",ROW($J$108:$J$175)-MIN(ROW($J$108:$J$175))+1),ROWS($1:23))),""),"") ->  | M130: =IFERROR(IF(ROWS($1:25)<=COUNTA($L$108:$L$175),INDEX($L$108:$L$175,SMALL(IF($L$108:$L$175<>"",ROW($L$108:$L$175)-MIN(ROW($L$108:$L$175))+1),ROWS($1:25))),""),"") ->  | O130: =IFERROR(IF(ROWS($1:25)<=COUNTA($N$108:$N$175),INDEX($N$108:$N$175,SMALL(IF($N$108:$N$175<>"",ROW($N$108:$N$175)-MIN(ROW($N$108:$N$175))+1),ROWS($1:25))),""),"") -> 
B131: =IFERROR(INDEX(Inrichtingskosten!$C$9:$C$643, MATCH(0,COUNTIF($B$107:B130, Inrichtingskosten!$C$9:$C$643), 0)),"") -> Infiltratiekrat particulier moeilijk | C131: =INDEX(Inrichtingskosten!A32:A666,MATCH(B131,Inrichtingskosten!C32:C666,0)) -> Hemelwatersysteem | E131: =IFERROR(IF(ROWS($1:26)<=COUNTA($D$108:$D$175),INDEX($D$108:$D$175,SMALL(IF($D$108:$D$175<>"",ROW($D$108:$D$175)-MIN(ROW($D$108:$D$175))+1),ROWS($1:26))),""),"") ->  | G131: =IFERROR(IF(ROWS($1:26)<=COUNTA($F$108:$F$175),INDEX($F$108:$F$175,SMALL(IF($F$108:$F$175<>"",ROW($F$108:$F$175)-MIN(ROW($F$108:$F$175))+1),ROWS($1:26))),""),"") ->  | H131: Infiltratiekrat particulier moeilijk | I131: =IFERROR(IF(ROWS($1:26)<=COUNTA($H$108:$H$175),INDEX($H$108:$H$175,SMALL(IF($H$108:$H$175<>"",ROW($H$108:$H$175)-MIN(ROW($H$108:$H$175))+1),ROWS($1:26))),""),"") -> geotextiel (los) | K131: =IFERROR(IF(ROWS($1:24)<=COUNTA($J$108:$J$175),INDEX($J$108:$J$175,SMALL(IF($J$108:$J$175<>"",ROW($J$108:$J$175)-MIN(ROW($J$108:$J$175))+1),ROWS($1:24))),""),"") ->  | M131: =IFERROR(IF(ROWS($1:26)<=COUNTA($L$108:$L$175),INDEX($L$108:$L$175,SMALL(IF($L$108:$L$175<>"",ROW($L$108:$L$175)-MIN(ROW($L$108:$L$175))+1),ROWS($1:26))),""),"") ->  | O131: =IFERROR(IF(ROWS($1:26)<=COUNTA($N$108:$N$175),INDEX($N$108:$N$175,SMALL(IF($N$108:$N$175<>"",ROW($N$108:$N$175)-MIN(ROW($N$108:$N$175))+1),ROWS($1:26))),""),"") -> 
B132: =IFERROR(INDEX(Inrichtingskosten!$C$9:$C$643, MATCH(0,COUNTIF($B$107:B131, Inrichtingskosten!$C$9:$C$643), 0)),"") -> Infiltratiekrat perceelaansluiting makkelijk | C132: =INDEX(Inrichtingskosten!A33:A667,MATCH(B132,Inrichtingskosten!C33:C667,0)) -> Hemelwatersysteem | E132: =IFERROR(IF(ROWS($1:27)<=COUNTA($D$108:$D$175),INDEX($D$108:$D$175,SMALL(IF($D$108:$D$175<>"",ROW($D$108:$D$175)-MIN(ROW($D$108:$D$175))+1),ROWS($1:27))),""),"") ->  | G132: =IFERROR(IF(ROWS($1:27)<=COUNTA($F$108:$F$175),INDEX($F$108:$F$175,SMALL(IF($F$108:$F$175<>"",ROW($F$108:$F$175)-MIN(ROW($F$108:$F$175))+1),ROWS($1:27))),""),"") ->  | H132: Infiltratiekrat perceelaansluiting makkelijk | I132: =IFERROR(IF(ROWS($1:27)<=COUNTA($H$108:$H$175),INDEX($H$108:$H$175,SMALL(IF($H$108:$H$175<>"",ROW($H$108:$H$175)-MIN(ROW($H$108:$H$175))+1),ROWS($1:27))),""),"") ->  | K132: =IFERROR(IF(ROWS($1:25)<=COUNTA($J$108:$J$175),INDEX($J$108:$J$175,SMALL(IF($J$108:$J$175<>"",ROW($J$108:$J$175)-MIN(ROW($J$108:$J$175))+1),ROWS($1:25))),""),"") ->  | M132: =IFERROR(IF(ROWS($1:27)<=COUNTA($L$108:$L$175),INDEX($L$108:$L$175,SMALL(IF($L$108:$L$175<>"",ROW($L$108:$L$175)-MIN(ROW($L$108:$L$175))+1),ROWS($1:27))),""),"") ->  | O132: =IFERROR(IF(ROWS($1:27)<=COUNTA($N$108:$N$175),INDEX($N$108:$N$175,SMALL(IF($N$108:$N$175<>"",ROW($N$108:$N$175)-MIN(ROW($N$108:$N$175))+1),ROWS($1:27))),""),"") -> 
B133: =IFERROR(INDEX(Inrichtingskosten!$C$9:$C$643, MATCH(0,COUNTIF($B$107:B132, Inrichtingskosten!$C$9:$C$643), 0)),"") -> Infiltratiekrat perceelaansluiting moeilijk | C133: =INDEX(Inrichtingskosten!A34:A668,MATCH(B133,Inrichtingskosten!C34:C668,0)) -> Hemelwatersysteem | E133: =IFERROR(IF(ROWS($1:28)<=COUNTA($D$108:$D$175),INDEX($D$108:$D$175,SMALL(IF($D$108:$D$175<>"",ROW($D$108:$D$175)-MIN(ROW($D$108:$D$175))+1),ROWS($1:28))),""),"") ->  | G133: =IFERROR(IF(ROWS($1:28)<=COUNTA($F$108:$F$175),INDEX($F$108:$F$175,SMALL(IF($F$108:$F$175<>"",ROW($F$108:$F$175)-MIN(ROW($F$108:$F$175))+1),ROWS($1:28))),""),"") ->  | H133: Infiltratiekrat perceelaansluiting moeilijk | I133: =IFERROR(IF(ROWS($1:28)<=COUNTA($H$108:$H$175),INDEX($H$108:$H$175,SMALL(IF($H$108:$H$175<>"",ROW($H$108:$H$175)-MIN(ROW($H$108:$H$175))+1),ROWS($1:28))),""),"") ->  | K133: =IFERROR(IF(ROWS($1:26)<=COUNTA($J$108:$J$175),INDEX($J$108:$J$175,SMALL(IF($J$108:$J$175<>"",ROW($J$108:$J$175)-MIN(ROW($J$108:$J$175))+1),ROWS($1:26))),""),"") ->  | M133: =IFERROR(IF(ROWS($1:28)<=COUNTA($L$108:$L$175),INDEX($L$108:$L$175,SMALL(IF($L$108:$L$175<>"",ROW($L$108:$L$175)-MIN(ROW($L$108:$L$175))+1),ROWS($1:28))),""),"") ->  | O133: =IFERROR(IF(ROWS($1:28)<=COUNTA($N$108:$N$175),INDEX($N$108:$N$175,SMALL(IF($N$108:$N$175<>"",ROW($N$108:$N$175)-MIN(ROW($N$108:$N$175))+1),ROWS($1:28))),""),"") -> 
B134: =IFERROR(INDEX(Inrichtingskosten!$C$9:$C$643, MATCH(0,COUNTIF($B$107:B133, Inrichtingskosten!$C$9:$C$643), 0)),"") -> Kolk | C134: =INDEX(Inrichtingskosten!A35:A669,MATCH(B134,Inrichtingskosten!C35:C669,0)) -> Riolering | E134: =IFERROR(IF(ROWS($1:29)<=COUNTA($D$108:$D$175),INDEX($D$108:$D$175,SMALL(IF($D$108:$D$175<>"",ROW($D$108:$D$175)-MIN(ROW($D$108:$D$175))+1),ROWS($1:29))),""),"") ->  | G134: =IFERROR(IF(ROWS($1:29)<=COUNTA($F$108:$F$175),INDEX($F$108:$F$175,SMALL(IF($F$108:$F$175<>"",ROW($F$108:$F$175)-MIN(ROW($F$108:$F$175))+1),ROWS($1:29))),""),"") ->  | I134: =IFERROR(IF(ROWS($1:29)<=COUNTA($H$108:$H$175),INDEX($H$108:$H$175,SMALL(IF($H$108:$H$175<>"",ROW($H$108:$H$175)-MIN(ROW($H$108:$H$175))+1),ROWS($1:29))),""),"") ->  | J134: Kolk | K134: =IFERROR(IF(ROWS($1:27)<=COUNTA($J$108:$J$175),INDEX($J$108:$J$175,SMALL(IF($J$108:$J$175<>"",ROW($J$108:$J$175)-MIN(ROW($J$108:$J$175))+1),ROWS($1:27))),""),"") ->  | M134: =IFERROR(IF(ROWS($1:29)<=COUNTA($L$108:$L$175),INDEX($L$108:$L$175,SMALL(IF($L$108:$L$175<>"",ROW($L$108:$L$175)-MIN(ROW($L$108:$L$175))+1),ROWS($1:29))),""),"") ->  | O134: =IFERROR(IF(ROWS($1:29)<=COUNTA($N$108:$N$175),INDEX($N$108:$N$175,SMALL(IF($N$108:$N$175<>"",ROW($N$108:$N$175)-MIN(ROW($N$108:$N$175))+1),ROWS($1:29))),""),"") -> 
B135: =IFERROR(INDEX(Inrichtingskosten!$C$9:$C$643, MATCH(0,COUNTIF($B$107:B134, Inrichtingskosten!$C$9:$C$643), 0)),"") -> Molgoot | C135: =INDEX(Inrichtingskosten!A36:A670,MATCH(B135,Inrichtingskosten!C36:C670,0)) -> Hemelwatersysteem | E135: =IFERROR(IF(ROWS($1:30)<=COUNTA($D$108:$D$175),INDEX($D$108:$D$175,SMALL(IF($D$108:$D$175<>"",ROW($D$108:$D$175)-MIN(ROW($D$108:$D$175))+1),ROWS($1:30))),""),"") ->  | G135: =IFERROR(IF(ROWS($1:30)<=COUNTA($F$108:$F$175),INDEX($F$108:$F$175,SMALL(IF($F$108:$F$175<>"",ROW($F$108:$F$175)-MIN(ROW($F$108:$F$175))+1),ROWS($1:30))),""),"") ->  | H135: Molgoot | I135: =IFERROR(IF(ROWS($1:30)<=COUNTA($H$108:$H$175),INDEX($H$108:$H$175,SMALL(IF($H$108:$H$175<>"",ROW($H$108:$H$175)-MIN(ROW($H$108:$H$175))+1),ROWS($1:30))),""),"") ->  | K135: =IFERROR(IF(ROWS($1:28)<=COUNTA($J$108:$J$175),INDEX($J$108:$J$175,SMALL(IF($J$108:$J$175<>"",ROW($J$108:$J$175)-MIN(ROW($J$108:$J$175))+1),ROWS($1:28))),""),"") ->  | M135: =IFERROR(IF(ROWS($1:30)<=COUNTA($L$108:$L$175),INDEX($L$108:$L$175,SMALL(IF($L$108:$L$175<>"",ROW($L$108:$L$175)-MIN(ROW($L$108:$L$175))+1),ROWS($1:30))),""),"") ->  | O135: =IFERROR(IF(ROWS($1:30)<=COUNTA($N$108:$N$175),INDEX($N$108:$N$175,SMALL(IF($N$108:$N$175<>"",ROW($N$108:$N$175)-MIN(ROW($N$108:$N$175))+1),ROWS($1:30))),""),"") -> 
B136: =IFERROR(INDEX(Inrichtingskosten!$C$9:$C$643, MATCH(0,COUNTIF($B$107:B135, Inrichtingskosten!$C$9:$C$643), 0)),"") -> Onderhoudsarme wadi (inc. beplanting) | C136: =INDEX(Inrichtingskosten!A37:A671,MATCH(B136,Inrichtingskosten!C37:C671,0)) -> Hemelwatersysteem | E136: =IFERROR(IF(ROWS($1:31)<=COUNTA($D$108:$D$175),INDEX($D$108:$D$175,SMALL(IF($D$108:$D$175<>"",ROW($D$108:$D$175)-MIN(ROW($D$108:$D$175))+1),ROWS($1:31))),""),"") ->  | G136: =IFERROR(IF(ROWS($1:31)<=COUNTA($F$108:$F$175),INDEX($F$108:$F$175,SMALL(IF($F$108:$F$175<>"",ROW($F$108:$F$175)-MIN(ROW($F$108:$F$175))+1),ROWS($1:31))),""),"") ->  | H136: Onderhoudsarme wadi (inc. beplanting) | I136: =IFERROR(IF(ROWS($1:31)<=COUNTA($H$108:$H$175),INDEX($H$108:$H$175,SMALL(IF($H$108:$H$175<>"",ROW($H$108:$H$175)-MIN(ROW($H$108:$H$175))+1),ROWS($1:31))),""),"") ->  | K136: =IFERROR(IF(ROWS($1:29)<=COUNTA($J$108:$J$175),INDEX($J$108:$J$175,SMALL(IF($J$108:$J$175<>"",ROW($J$108:$J$175)-MIN(ROW($J$108:$J$175))+1),ROWS($1:29))),""),"") ->  | M136: =IFERROR(IF(ROWS($1:31)<=COUNTA($L$108:$L$175),INDEX($L$108:$L$175,SMALL(IF($L$108:$L$175<>"",ROW($L$108:$L$175)-MIN(ROW($L$108:$L$175))+1),ROWS($1:31))),""),"") ->  | O136: =IFERROR(IF(ROWS($1:31)<=COUNTA($N$108:$N$175),INDEX($N$108:$N$175,SMALL(IF($N$108:$N$175<>"",ROW($N$108:$N$175)-MIN(ROW($N$108:$N$175))+1),ROWS($1:31))),""),"") -> 
B137: =IFERROR(INDEX(Inrichtingskosten!$C$9:$C$643, MATCH(0,COUNTIF($B$107:B136, Inrichtingskosten!$C$9:$C$643), 0)),"") -> Open grindgoot | C137: =INDEX(Inrichtingskosten!A38:A672,MATCH(B137,Inrichtingskosten!C38:C672,0)) -> Hemelwatersysteem | E137: =IFERROR(IF(ROWS($1:32)<=COUNTA($D$108:$D$175),INDEX($D$108:$D$175,SMALL(IF($D$108:$D$175<>"",ROW($D$108:$D$175)-MIN(ROW($D$108:$D$175))+1),ROWS($1:32))),""),"") ->  | G137: =IFERROR(IF(ROWS($1:32)<=COUNTA($F$108:$F$175),INDEX($F$108:$F$175,SMALL(IF($F$108:$F$175<>"",ROW($F$108:$F$175)-MIN(ROW($F$108:$F$175))+1),ROWS($1:32))),""),"") ->  | H137: Open grindgoot | I137: =IFERROR(IF(ROWS($1:32)<=COUNTA($H$108:$H$175),INDEX($H$108:$H$175,SMALL(IF($H$108:$H$175<>"",ROW($H$108:$H$175)-MIN(ROW($H$108:$H$175))+1),ROWS($1:32))),""),"") ->  | K137: =IFERROR(IF(ROWS($1:30)<=COUNTA($J$108:$J$175),INDEX($J$108:$J$175,SMALL(IF($J$108:$J$175<>"",ROW($J$108:$J$175)-MIN(ROW($J$108:$J$175))+1),ROWS($1:30))),""),"") ->  | M137: =IFERROR(IF(ROWS($1:32)<=COUNTA($L$108:$L$175),INDEX($L$108:$L$175,SMALL(IF($L$108:$L$175<>"",ROW($L$108:$L$175)-MIN(ROW($L$108:$L$175))+1),ROWS($1:32))),""),"") ->  | O137: =IFERROR(IF(ROWS($1:32)<=COUNTA($N$108:$N$175),INDEX($N$108:$N$175,SMALL(IF($N$108:$N$175<>"",ROW($N$108:$N$175)-MIN(ROW($N$108:$N$175))+1),ROWS($1:32))),""),"") -> 
B138: =IFERROR(INDEX(Inrichtingskosten!$C$9:$C$643, MATCH(0,COUNTIF($B$107:B137, Inrichtingskosten!$C$9:$C$643), 0)),"") -> Paal beton | C138: =INDEX(Inrichtingskosten!A39:A673,MATCH(B138,Inrichtingskosten!C39:C673,0)) -> Straatmeubilair | E138: =IFERROR(IF(ROWS($1:33)<=COUNTA($D$108:$D$175),INDEX($D$108:$D$175,SMALL(IF($D$108:$D$175<>"",ROW($D$108:$D$175)-MIN(ROW($D$108:$D$175))+1),ROWS($1:33))),""),"") ->  | G138: =IFERROR(IF(ROWS($1:33)<=COUNTA($F$108:$F$175),INDEX($F$108:$F$175,SMALL(IF($F$108:$F$175<>"",ROW($F$108:$F$175)-MIN(ROW($F$108:$F$175))+1),ROWS($1:33))),""),"") ->  | I138: =IFERROR(IF(ROWS($1:33)<=COUNTA($H$108:$H$175),INDEX($H$108:$H$175,SMALL(IF($H$108:$H$175<>"",ROW($H$108:$H$175)-MIN(ROW($H$108:$H$175))+1),ROWS($1:33))),""),"") ->  | K138: =IFERROR(IF(ROWS($1:31)<=COUNTA($J$108:$J$175),INDEX($J$108:$J$175,SMALL(IF($J$108:$J$175<>"",ROW($J$108:$J$175)-MIN(ROW($J$108:$J$175))+1),ROWS($1:31))),""),"") ->  | M138: =IFERROR(IF(ROWS($1:33)<=COUNTA($L$108:$L$175),INDEX($L$108:$L$175,SMALL(IF($L$108:$L$175<>"",ROW($L$108:$L$175)-MIN(ROW($L$108:$L$175))+1),ROWS($1:33))),""),"") ->  | N138: Paal beton | O138: =IFERROR(IF(ROWS($1:33)<=COUNTA($N$108:$N$175),INDEX($N$108:$N$175,SMALL(IF($N$108:$N$175<>"",ROW($N$108:$N$175)-MIN(ROW($N$108:$N$175))+1),ROWS($1:33))),""),"") -> 
B139: =IFERROR(INDEX(Inrichtingskosten!$C$9:$C$643, MATCH(0,COUNTIF($B$107:B138, Inrichtingskosten!$C$9:$C$643), 0)),"") -> Perceelaansluiting | C139: =INDEX(Inrichtingskosten!A40:A674,MATCH(B139,Inrichtingskosten!C40:C674,0)) -> Riolering | E139: =IFERROR(IF(ROWS($1:34)<=COUNTA($D$108:$D$175),INDEX($D$108:$D$175,SMALL(IF($D$108:$D$175<>"",ROW($D$108:$D$175)-MIN(ROW($D$108:$D$175))+1),ROWS($1:34))),""),"") ->  | G139: =IFERROR(IF(ROWS($1:34)<=COUNTA($F$108:$F$175),INDEX($F$108:$F$175,SMALL(IF($F$108:$F$175<>"",ROW($F$108:$F$175)-MIN(ROW($F$108:$F$175))+1),ROWS($1:34))),""),"") ->  | I139: =IFERROR(IF(ROWS($1:34)<=COUNTA($H$108:$H$175),INDEX($H$108:$H$175,SMALL(IF($H$108:$H$175<>"",ROW($H$108:$H$175)-MIN(ROW($H$108:$H$175))+1),ROWS($1:34))),""),"") ->  | J139: Perceelaansluiting | K139: =IFERROR(IF(ROWS($1:32)<=COUNTA($J$108:$J$175),INDEX($J$108:$J$175,SMALL(IF($J$108:$J$175<>"",ROW($J$108:$J$175)-MIN(ROW($J$108:$J$175))+1),ROWS($1:32))),""),"") ->  | M139: =IFERROR(IF(ROWS($1:34)<=COUNTA($L$108:$L$175),INDEX($L$108:$L$175,SMALL(IF($L$108:$L$175<>"",ROW($L$108:$L$175)-MIN(ROW($L$108:$L$175))+1),ROWS($1:34))),""),"") ->  | O139: =IFERROR(IF(ROWS($1:34)<=COUNTA($N$108:$N$175),INDEX($N$108:$N$175,SMALL(IF($N$108:$N$175<>"",ROW($N$108:$N$175)-MIN(ROW($N$108:$N$175))+1),ROWS($1:34))),""),"") -> 
B140: =IFERROR(INDEX(Inrichtingskosten!$C$9:$C$643, MATCH(0,COUNTIF($B$107:B139, Inrichtingskosten!$C$9:$C$643), 0)),"") -> Regenton | C140: =INDEX(Inrichtingskosten!A41:A599,MATCH(B140,Inrichtingskosten!C41:C599,0)) -> Hemelwatersysteem | E140: =IFERROR(IF(ROWS($1:35)<=COUNTA($D$108:$D$175),INDEX($D$108:$D$175,SMALL(IF($D$108:$D$175<>"",ROW($D$108:$D$175)-MIN(ROW($D$108:$D$175))+1),ROWS($1:35))),""),"") ->  | F140: =IFERROR(IF($C140=$F$107,$B140,"")," ") ->  | G140: =IFERROR(IF(ROWS($1:35)<=COUNTA($F$108:$F$175),INDEX($F$108:$F$175,SMALL(IF($F$108:$F$175<>"",ROW($F$108:$F$175)-MIN(ROW($F$108:$F$175))+1),ROWS($1:35))),""),"") ->  | H140: =IFERROR(IF($C140=$H$107,$B140,"")," ") -> Regenton | I140: =IFERROR(IF(ROWS($1:35)<=COUNTA($H$108:$H$175),INDEX($H$108:$H$175,SMALL(IF($H$108:$H$175<>"",ROW($H$108:$H$175)-MIN(ROW($H$108:$H$175))+1),ROWS($1:35))),""),"") ->  | J140: =IFERROR(IF($C140=$J$107,$B140,"")," ") ->  | K140: =IFERROR(IF(ROWS($1:33)<=COUNTA($J$108:$J$175),INDEX($J$108:$J$175,SMALL(IF($J$108:$J$175<>"",ROW($J$108:$J$175)-MIN(ROW($J$108:$J$175))+1),ROWS($1:33))),""),"") ->  | L140: =IFERROR(IF($C140=$L$107,$B140,"")," ") ->  | M140: =IFERROR(IF(ROWS($1:35)<=COUNTA($L$108:$L$175),INDEX($L$108:$L$175,SMALL(IF($L$108:$L$175<>"",ROW($L$108:$L$175)-MIN(ROW($L$108:$L$175))+1),ROWS($1:35))),""),"") ->  | N140: =IFERROR(IF($C140=$N$107,$B140,"")," ") ->  | O140: =IFERROR(IF(ROWS($1:35)<=COUNTA($N$108:$N$175),INDEX($N$108:$N$175,SMALL(IF($N$108:$N$175<>"",ROW($N$108:$N$175)-MIN(ROW($N$108:$N$175))+1),ROWS($1:35))),""),"") -> 
B141: =IFERROR(INDEX(Inrichtingskosten!$C$9:$C$643, MATCH(0,COUNTIF($B$107:B140, Inrichtingskosten!$C$9:$C$643), 0)),"") -> Rioolput beton 1000 | C141: =INDEX(Inrichtingskosten!A42:A600,MATCH(B141,Inrichtingskosten!C42:C600,0)) -> Riolering | E141: =IFERROR(IF(ROWS($1:36)<=COUNTA($D$108:$D$175),INDEX($D$108:$D$175,SMALL(IF($D$108:$D$175<>"",ROW($D$108:$D$175)-MIN(ROW($D$108:$D$175))+1),ROWS($1:36))),""),"") ->  | G141: =IFERROR(IF(ROWS($1:36)<=COUNTA($F$108:$F$175),INDEX($F$108:$F$175,SMALL(IF($F$108:$F$175<>"",ROW($F$108:$F$175)-MIN(ROW($F$108:$F$175))+1),ROWS($1:36))),""),"") ->  | I141: =IFERROR(IF(ROWS($1:36)<=COUNTA($H$108:$H$175),INDEX($H$108:$H$175,SMALL(IF($H$108:$H$175<>"",ROW($H$108:$H$175)-MIN(ROW($H$108:$H$175))+1),ROWS($1:36))),""),"") ->  | J141: Rioolput beton 1000 | K141: =IFERROR(IF(ROWS($1:34)<=COUNTA($J$108:$J$175),INDEX($J$108:$J$175,SMALL(IF($J$108:$J$175<>"",ROW($J$108:$J$175)-MIN(ROW($J$108:$J$175))+1),ROWS($1:34))),""),"") ->  | M141: =IFERROR(IF(ROWS($1:36)<=COUNTA($L$108:$L$175),INDEX($L$108:$L$175,SMALL(IF($L$108:$L$175<>"",ROW($L$108:$L$175)-MIN(ROW($L$108:$L$175))+1),ROWS($1:36))),""),"") ->  | O141: =IFERROR(IF(ROWS($1:36)<=COUNTA($N$108:$N$175),INDEX($N$108:$N$175,SMALL(IF($N$108:$N$175<>"",ROW($N$108:$N$175)-MIN(ROW($N$108:$N$175))+1),ROWS($1:36))),""),"") -> 
B142: =IFERROR(INDEX(Inrichtingskosten!$C$9:$C$643, MATCH(0,COUNTIF($B$107:B141, Inrichtingskosten!$C$9:$C$643), 0)),"") -> Rioolput beton 1250 | C142: =INDEX(Inrichtingskosten!A43:A601,MATCH(B142,Inrichtingskosten!C43:C601,0)) -> Riolering | E142: =IFERROR(IF(ROWS($1:37)<=COUNTA($D$108:$D$175),INDEX($D$108:$D$175,SMALL(IF($D$108:$D$175<>"",ROW($D$108:$D$175)-MIN(ROW($D$108:$D$175))+1),ROWS($1:37))),""),"") ->  | G142: =IFERROR(IF(ROWS($1:37)<=COUNTA($F$108:$F$175),INDEX($F$108:$F$175,SMALL(IF($F$108:$F$175<>"",ROW($F$108:$F$175)-MIN(ROW($F$108:$F$175))+1),ROWS($1:37))),""),"") ->  | I142: =IFERROR(IF(ROWS($1:37)<=COUNTA($H$108:$H$175),INDEX($H$108:$H$175,SMALL(IF($H$108:$H$175<>"",ROW($H$108:$H$175)-MIN(ROW($H$108:$H$175))+1),ROWS($1:37))),""),"") ->  | J142: Rioolput beton 1250 | K142: =IFERROR(IF(ROWS($1:35)<=COUNTA($J$108:$J$175),INDEX($J$108:$J$175,SMALL(IF($J$108:$J$175<>"",ROW($J$108:$J$175)-MIN(ROW($J$108:$J$175))+1),ROWS($1:35))),""),"") ->  | M142: =IFERROR(IF(ROWS($1:37)<=COUNTA($L$108:$L$175),INDEX($L$108:$L$175,SMALL(IF($L$108:$L$175<>"",ROW($L$108:$L$175)-MIN(ROW($L$108:$L$175))+1),ROWS($1:37))),""),"") ->  | O142: =IFERROR(IF(ROWS($1:37)<=COUNTA($N$108:$N$175),INDEX($N$108:$N$175,SMALL(IF($N$108:$N$175<>"",ROW($N$108:$N$175)-MIN(ROW($N$108:$N$175))+1),ROWS($1:37))),""),"") -> 
B143: =IFERROR(INDEX(Inrichtingskosten!$C$9:$C$643, MATCH(0,COUNTIF($B$107:B142, Inrichtingskosten!$C$9:$C$643), 0)),"") -> Rioolput beton 300 | C143: =INDEX(Inrichtingskosten!A44:A602,MATCH(B143,Inrichtingskosten!C44:C602,0)) -> Riolering | E143: =IFERROR(IF(ROWS($1:38)<=COUNTA($D$108:$D$175),INDEX($D$108:$D$175,SMALL(IF($D$108:$D$175<>"",ROW($D$108:$D$175)-MIN(ROW($D$108:$D$175))+1),ROWS($1:38))),""),"") ->  | G143: =IFERROR(IF(ROWS($1:38)<=COUNTA($F$108:$F$175),INDEX($F$108:$F$175,SMALL(IF($F$108:$F$175<>"",ROW($F$108:$F$175)-MIN(ROW($F$108:$F$175))+1),ROWS($1:38))),""),"") ->  | I143: =IFERROR(IF(ROWS($1:38)<=COUNTA($H$108:$H$175),INDEX($H$108:$H$175,SMALL(IF($H$108:$H$175<>"",ROW($H$108:$H$175)-MIN(ROW($H$108:$H$175))+1),ROWS($1:38))),""),"") ->  | J143: Rioolput beton 300 | K143: =IFERROR(IF(ROWS($1:36)<=COUNTA($J$108:$J$175),INDEX($J$108:$J$175,SMALL(IF($J$108:$J$175<>"",ROW($J$108:$J$175)-MIN(ROW($J$108:$J$175))+1),ROWS($1:36))),""),"") ->  | M143: =IFERROR(IF(ROWS($1:38)<=COUNTA($L$108:$L$175),INDEX($L$108:$L$175,SMALL(IF($L$108:$L$175<>"",ROW($L$108:$L$175)-MIN(ROW($L$108:$L$175))+1),ROWS($1:38))),""),"") ->  | O143: =IFERROR(IF(ROWS($1:38)<=COUNTA($N$108:$N$175),INDEX($N$108:$N$175,SMALL(IF($N$108:$N$175<>"",ROW($N$108:$N$175)-MIN(ROW($N$108:$N$175))+1),ROWS($1:38))),""),"") -> 
B144: =IFERROR(INDEX(Inrichtingskosten!$C$9:$C$643, MATCH(0,COUNTIF($B$107:B143, Inrichtingskosten!$C$9:$C$643), 0)),"") -> Rioolput beton 400 | C144: =INDEX(Inrichtingskosten!A45:A603,MATCH(B144,Inrichtingskosten!C45:C603,0)) -> Riolering | E144: =IFERROR(IF(ROWS($1:40)<=COUNTA($D$108:$D$175),INDEX($D$108:$D$175,SMALL(IF($D$108:$D$175<>"",ROW($D$108:$D$175)-MIN(ROW($D$108:$D$175))+1),ROWS($1:40))),""),"") ->  | G144: =IFERROR(IF(ROWS($1:40)<=COUNTA($F$108:$F$175),INDEX($F$108:$F$175,SMALL(IF($F$108:$F$175<>"",ROW($F$108:$F$175)-MIN(ROW($F$108:$F$175))+1),ROWS($1:40))),""),"") ->  | I144: =IFERROR(IF(ROWS($1:40)<=COUNTA($H$108:$H$175),INDEX($H$108:$H$175,SMALL(IF($H$108:$H$175<>"",ROW($H$108:$H$175)-MIN(ROW($H$108:$H$175))+1),ROWS($1:40))),""),"") ->  | J144: =IFERROR(IF($C144=$J$107,$B144,"")," ") -> Rioolput beton 400 | K144: =IFERROR(IF(ROWS($1:37)<=COUNTA($J$108:$J$175),INDEX($J$108:$J$175,SMALL(IF($J$108:$J$175<>"",ROW($J$108:$J$175)-MIN(ROW($J$108:$J$175))+1),ROWS($1:37))),""),"") ->  | M144: =IFERROR(IF(ROWS($1:40)<=COUNTA($L$108:$L$175),INDEX($L$108:$L$175,SMALL(IF($L$108:$L$175<>"",ROW($L$108:$L$175)-MIN(ROW($L$108:$L$175))+1),ROWS($1:40))),""),"") ->  | O144: =IFERROR(IF(ROWS($1:40)<=COUNTA($N$108:$N$175),INDEX($N$108:$N$175,SMALL(IF($N$108:$N$175<>"",ROW($N$108:$N$175)-MIN(ROW($N$108:$N$175))+1),ROWS($1:40))),""),"") -> 
B145: =IFERROR(INDEX(Inrichtingskosten!$C$9:$C$643, MATCH(0,COUNTIF($B$107:B144, Inrichtingskosten!$C$9:$C$643), 0)),"") -> Rioolput beton 500 | C145: =INDEX(Inrichtingskosten!A46:A674,MATCH(B145,Inrichtingskosten!C46:C674,0)) -> Riolering | E145: =IFERROR(IF(ROWS($1:41)<=COUNTA($D$108:$D$175),INDEX($D$108:$D$175,SMALL(IF($D$108:$D$175<>"",ROW($D$108:$D$175)-MIN(ROW($D$108:$D$175))+1),ROWS($1:41))),""),"") ->  | G145: =IFERROR(IF(ROWS($1:41)<=COUNTA($F$108:$F$175),INDEX($F$108:$F$175,SMALL(IF($F$108:$F$175<>"",ROW($F$108:$F$175)-MIN(ROW($F$108:$F$175))+1),ROWS($1:41))),""),"") ->  | I145: =IFERROR(IF(ROWS($1:41)<=COUNTA($H$108:$H$175),INDEX($H$108:$H$175,SMALL(IF($H$108:$H$175<>"",ROW($H$108:$H$175)-MIN(ROW($H$108:$H$175))+1),ROWS($1:41))),""),"") ->  | J145: =IFERROR(IF($C145=$J$107,$B145,"")," ") -> Rioolput beton 500 | K145: =IFERROR(IF(ROWS($1:38)<=COUNTA($J$108:$J$175),INDEX($J$108:$J$175,SMALL(IF($J$108:$J$175<>"",ROW($J$108:$J$175)-MIN(ROW($J$108:$J$175))+1),ROWS($1:38))),""),"") ->  | M145: =IFERROR(IF(ROWS($1:41)<=COUNTA($L$108:$L$175),INDEX($L$108:$L$175,SMALL(IF($L$108:$L$175<>"",ROW($L$108:$L$175)-MIN(ROW($L$108:$L$175))+1),ROWS($1:41))),""),"") ->  | O145: =IFERROR(IF(ROWS($1:41)<=COUNTA($N$108:$N$175),INDEX($N$108:$N$175,SMALL(IF($N$108:$N$175<>"",ROW($N$108:$N$175)-MIN(ROW($N$108:$N$175))+1),ROWS($1:41))),""),"") -> 
B146: =IFERROR(INDEX(Inrichtingskosten!$C$9:$C$643, MATCH(0,COUNTIF($B$107:B145, Inrichtingskosten!$C$9:$C$643), 0)),"") -> Rioolput beton 600 | C146: =INDEX(Inrichtingskosten!A47:A675,MATCH(B146,Inrichtingskosten!C47:C675,0)) -> Riolering | E146: =IFERROR(IF(ROWS($1:42)<=COUNTA($D$108:$D$175),INDEX($D$108:$D$175,SMALL(IF($D$108:$D$175<>"",ROW($D$108:$D$175)-MIN(ROW($D$108:$D$175))+1),ROWS($1:42))),""),"") ->  | G146: =IFERROR(IF(ROWS($1:42)<=COUNTA($F$108:$F$175),INDEX($F$108:$F$175,SMALL(IF($F$108:$F$175<>"",ROW($F$108:$F$175)-MIN(ROW($F$108:$F$175))+1),ROWS($1:42))),""),"") ->  | I146: =IFERROR(IF(ROWS($1:42)<=COUNTA($H$108:$H$175),INDEX($H$108:$H$175,SMALL(IF($H$108:$H$175<>"",ROW($H$108:$H$175)-MIN(ROW($H$108:$H$175))+1),ROWS($1:42))),""),"") ->  | J146: Rioolput beton 600 | K146: =IFERROR(IF(ROWS($1:39)<=COUNTA($J$108:$J$175),INDEX($J$108:$J$175,SMALL(IF($J$108:$J$175<>"",ROW($J$108:$J$175)-MIN(ROW($J$108:$J$175))+1),ROWS($1:39))),""),"") ->  | M146: =IFERROR(IF(ROWS($1:42)<=COUNTA($L$108:$L$175),INDEX($L$108:$L$175,SMALL(IF($L$108:$L$175<>"",ROW($L$108:$L$175)-MIN(ROW($L$108:$L$175))+1),ROWS($1:42))),""),"") ->  | O146: =IFERROR(IF(ROWS($1:42)<=COUNTA($N$108:$N$175),INDEX($N$108:$N$175,SMALL(IF($N$108:$N$175<>"",ROW($N$108:$N$175)-MIN(ROW($N$108:$N$175))+1),ROWS($1:42))),""),"") -> 
B147: =IFERROR(INDEX(Inrichtingskosten!$C$9:$C$643, MATCH(0,COUNTIF($B$107:B146, Inrichtingskosten!$C$9:$C$643), 0)),"") -> Rioolput beton 700 | C147: =INDEX(Inrichtingskosten!A48:A676,MATCH(B147,Inrichtingskosten!C48:C676,0)) -> Riolering | E147: =IFERROR(IF(ROWS($1:43)<=COUNTA($D$108:$D$175),INDEX($D$108:$D$175,SMALL(IF($D$108:$D$175<>"",ROW($D$108:$D$175)-MIN(ROW($D$108:$D$175))+1),ROWS($1:43))),""),"") ->  | G147: =IFERROR(IF(ROWS($1:43)<=COUNTA($F$108:$F$175),INDEX($F$108:$F$175,SMALL(IF($F$108:$F$175<>"",ROW($F$108:$F$175)-MIN(ROW($F$108:$F$175))+1),ROWS($1:43))),""),"") ->  | I147: =IFERROR(IF(ROWS($1:43)<=COUNTA($H$108:$H$175),INDEX($H$108:$H$175,SMALL(IF($H$108:$H$175<>"",ROW($H$108:$H$175)-MIN(ROW($H$108:$H$175))+1),ROWS($1:43))),""),"") ->  | J147: Rioolput beton 700 | K147: =IFERROR(IF(ROWS($1:40)<=COUNTA($J$108:$J$175),INDEX($J$108:$J$175,SMALL(IF($J$108:$J$175<>"",ROW($J$108:$J$175)-MIN(ROW($J$108:$J$175))+1),ROWS($1:40))),""),"") ->  | M147: =IFERROR(IF(ROWS($1:43)<=COUNTA($L$108:$L$175),INDEX($L$108:$L$175,SMALL(IF($L$108:$L$175<>"",ROW($L$108:$L$175)-MIN(ROW($L$108:$L$175))+1),ROWS($1:43))),""),"") ->  | O147: =IFERROR(IF(ROWS($1:43)<=COUNTA($N$108:$N$175),INDEX($N$108:$N$175,SMALL(IF($N$108:$N$175<>"",ROW($N$108:$N$175)-MIN(ROW($N$108:$N$175))+1),ROWS($1:43))),""),"") -> 
B148: =IFERROR(INDEX(Inrichtingskosten!$C$9:$C$643, MATCH(0,COUNTIF($B$107:B147, Inrichtingskosten!$C$9:$C$643), 0)),"") -> Rioolput beton 800 | C148: =INDEX(Inrichtingskosten!A49:A677,MATCH(B148,Inrichtingskosten!C49:C677,0)) -> Riolering | E148: =IFERROR(IF(ROWS($1:44)<=COUNTA($D$108:$D$175),INDEX($D$108:$D$175,SMALL(IF($D$108:$D$175<>"",ROW($D$108:$D$175)-MIN(ROW($D$108:$D$175))+1),ROWS($1:44))),""),"") ->  | G148: =IFERROR(IF(ROWS($1:44)<=COUNTA($F$108:$F$175),INDEX($F$108:$F$175,SMALL(IF($F$108:$F$175<>"",ROW($F$108:$F$175)-MIN(ROW($F$108:$F$175))+1),ROWS($1:44))),""),"") ->  | I148: =IFERROR(IF(ROWS($1:44)<=COUNTA($H$108:$H$175),INDEX($H$108:$H$175,SMALL(IF($H$108:$H$175<>"",ROW($H$108:$H$175)-MIN(ROW($H$108:$H$175))+1),ROWS($1:44))),""),"") ->  | J148: Rioolput beton 800 | K148: =IFERROR(IF(ROWS($1:41)<=COUNTA($J$108:$J$175),INDEX($J$108:$J$175,SMALL(IF($J$108:$J$175<>"",ROW($J$108:$J$175)-MIN(ROW($J$108:$J$175))+1),ROWS($1:41))),""),"") ->  | M148: =IFERROR(IF(ROWS($1:44)<=COUNTA($L$108:$L$175),INDEX($L$108:$L$175,SMALL(IF($L$108:$L$175<>"",ROW($L$108:$L$175)-MIN(ROW($L$108:$L$175))+1),ROWS($1:44))),""),"") ->  | O148: =IFERROR(IF(ROWS($1:44)<=COUNTA($N$108:$N$175),INDEX($N$108:$N$175,SMALL(IF($N$108:$N$175<>"",ROW($N$108:$N$175)-MIN(ROW($N$108:$N$175))+1),ROWS($1:44))),""),"") -> 
B149: =IFERROR(INDEX(Inrichtingskosten!$C$9:$C$643, MATCH(0,COUNTIF($B$107:B148, Inrichtingskosten!$C$9:$C$643), 0)),"") -> Rioolput beton 900 | C149: =INDEX(Inrichtingskosten!A50:A678,MATCH(B149,Inrichtingskosten!C50:C678,0)) -> Riolering | E149: =IFERROR(IF(ROWS($1:49)<=COUNTA($D$108:$D$175),INDEX($D$108:$D$175,SMALL(IF($D$108:$D$175<>"",ROW($D$108:$D$175)-MIN(ROW($D$108:$D$175))+1),ROWS($1:49))),""),"") ->  | G149: =IFERROR(IF(ROWS($1:49)<=COUNTA($F$108:$F$175),INDEX($F$108:$F$175,SMALL(IF($F$108:$F$175<>"",ROW($F$108:$F$175)-MIN(ROW($F$108:$F$175))+1),ROWS($1:49))),""),"") ->  | H149: =IFERROR(IF($C149=$H$107,$B149,"")," ") ->  | I149: =IFERROR(IF(ROWS($1:49)<=COUNTA($H$108:$H$175),INDEX($H$108:$H$175,SMALL(IF($H$108:$H$175<>"",ROW($H$108:$H$175)-MIN(ROW($H$108:$H$175))+1),ROWS($1:49))),""),"") ->  | J149: Rioolput beton 900 | K149: =IFERROR(IF(ROWS($1:42)<=COUNTA($J$108:$J$175),INDEX($J$108:$J$175,SMALL(IF($J$108:$J$175<>"",ROW($J$108:$J$175)-MIN(ROW($J$108:$J$175))+1),ROWS($1:42))),""),"") ->  | M149: =IFERROR(IF(ROWS($1:49)<=COUNTA($L$108:$L$175),INDEX($L$108:$L$175,SMALL(IF($L$108:$L$175<>"",ROW($L$108:$L$175)-MIN(ROW($L$108:$L$175))+1),ROWS($1:49))),""),"") ->  | O149: =IFERROR(IF(ROWS($1:49)<=COUNTA($N$108:$N$175),INDEX($N$108:$N$175,SMALL(IF($N$108:$N$175<>"",ROW($N$108:$N$175)-MIN(ROW($N$108:$N$175))+1),ROWS($1:49))),""),"") -> 
B150: =IFERROR(INDEX(Inrichtingskosten!$C$9:$C$643, MATCH(0,COUNTIF($B$107:B149, Inrichtingskosten!$C$9:$C$643), 0)),"") -> Rubbertegels | C150: =INDEX(Inrichtingskosten!A51:A679,MATCH(B150,Inrichtingskosten!C51:C679,0)) -> Elementen verharding | E150: =IFERROR(IF(ROWS($1:50)<=COUNTA($D$108:$D$175),INDEX($D$108:$D$175,SMALL(IF($D$108:$D$175<>"",ROW($D$108:$D$175)-MIN(ROW($D$108:$D$175))+1),ROWS($1:50))),""),"") ->  | F150: Rubbertegels | G150: =IFERROR(IF(ROWS($1:50)<=COUNTA($F$108:$F$175),INDEX($F$108:$F$175,SMALL(IF($F$108:$F$175<>"",ROW($F$108:$F$175)-MIN(ROW($F$108:$F$175))+1),ROWS($1:50))),""),"") ->  | I150: =IFERROR(IF(ROWS($1:50)<=COUNTA($H$108:$H$175),INDEX($H$108:$H$175,SMALL(IF($H$108:$H$175<>"",ROW($H$108:$H$175)-MIN(ROW($H$108:$H$175))+1),ROWS($1:50))),""),"") ->  | K150: =IFERROR(IF(ROWS($1:43)<=COUNTA($J$108:$J$175),INDEX($J$108:$J$175,SMALL(IF($J$108:$J$175<>"",ROW($J$108:$J$175)-MIN(ROW($J$108:$J$175))+1),ROWS($1:43))),""),"") ->  | M150: =IFERROR(IF(ROWS($1:50)<=COUNTA($L$108:$L$175),INDEX($L$108:$L$175,SMALL(IF($L$108:$L$175<>"",ROW($L$108:$L$175)-MIN(ROW($L$108:$L$175))+1),ROWS($1:50))),""),"") ->  | O150: =IFERROR(IF(ROWS($1:50)<=COUNTA($N$108:$N$175),INDEX($N$108:$N$175,SMALL(IF($N$108:$N$175<>"",ROW($N$108:$N$175)-MIN(ROW($N$108:$N$175))+1),ROWS($1:50))),""),"") -> 
B151: =IFERROR(INDEX(Inrichtingskosten!$C$9:$C$643, MATCH(0,COUNTIF($B$107:B150, Inrichtingskosten!$C$9:$C$643), 0)),"") -> Sierplantsoen | C151: =INDEX(Inrichtingskosten!A52:A680,MATCH(B151,Inrichtingskosten!C52:C680,0)) -> Groenvoorziening | E151: =IFERROR(IF(ROWS($1:51)<=COUNTA($D$108:$D$175),INDEX($D$108:$D$175,SMALL(IF($D$108:$D$175<>"",ROW($D$108:$D$175)-MIN(ROW($D$108:$D$175))+1),ROWS($1:51))),""),"") ->  | G151: =IFERROR(IF(ROWS($1:51)<=COUNTA($F$108:$F$175),INDEX($F$108:$F$175,SMALL(IF($F$108:$F$175<>"",ROW($F$108:$F$175)-MIN(ROW($F$108:$F$175))+1),ROWS($1:51))),""),"") ->  | I151: =IFERROR(IF(ROWS($1:51)<=COUNTA($H$108:$H$175),INDEX($H$108:$H$175,SMALL(IF($H$108:$H$175<>"",ROW($H$108:$H$175)-MIN(ROW($H$108:$H$175))+1),ROWS($1:51))),""),"") ->  | K151: =IFERROR(IF(ROWS($1:44)<=COUNTA($J$108:$J$175),INDEX($J$108:$J$175,SMALL(IF($J$108:$J$175<>"",ROW($J$108:$J$175)-MIN(ROW($J$108:$J$175))+1),ROWS($1:44))),""),"") ->  | L151: Sierplantsoen | M151: =IFERROR(IF(ROWS($1:51)<=COUNTA($L$108:$L$175),INDEX($L$108:$L$175,SMALL(IF($L$108:$L$175<>"",ROW($L$108:$L$175)-MIN(ROW($L$108:$L$175))+1),ROWS($1:51))),""),"") ->  | O151: =IFERROR(IF(ROWS($1:51)<=COUNTA($N$108:$N$175),INDEX($N$108:$N$175,SMALL(IF($N$108:$N$175<>"",ROW($N$108:$N$175)-MIN(ROW($N$108:$N$175))+1),ROWS($1:51))),""),"") -> 
B152: =IFERROR(INDEX(Inrichtingskosten!$C$9:$C$643, MATCH(0,COUNTIF($B$107:B151, Inrichtingskosten!$C$9:$C$643), 0)),"") -> Straatverlichting | C152: =INDEX(Inrichtingskosten!A53:A681,MATCH(B152,Inrichtingskosten!C53:C681,0)) -> Straatmeubilair | E152: =IFERROR(IF(ROWS($1:52)<=COUNTA($D$108:$D$175),INDEX($D$108:$D$175,SMALL(IF($D$108:$D$175<>"",ROW($D$108:$D$175)-MIN(ROW($D$108:$D$175))+1),ROWS($1:52))),""),"") ->  | G152: =IFERROR(IF(ROWS($1:52)<=COUNTA($F$108:$F$175),INDEX($F$108:$F$175,SMALL(IF($F$108:$F$175<>"",ROW($F$108:$F$175)-MIN(ROW($F$108:$F$175))+1),ROWS($1:52))),""),"") ->  | I152: =IFERROR(IF(ROWS($1:52)<=COUNTA($H$108:$H$175),INDEX($H$108:$H$175,SMALL(IF($H$108:$H$175<>"",ROW($H$108:$H$175)-MIN(ROW($H$108:$H$175))+1),ROWS($1:52))),""),"") ->  | K152: =IFERROR(IF(ROWS($1:45)<=COUNTA($J$108:$J$175),INDEX($J$108:$J$175,SMALL(IF($J$108:$J$175<>"",ROW($J$108:$J$175)-MIN(ROW($J$108:$J$175))+1),ROWS($1:45))),""),"") ->  | M152: =IFERROR(IF(ROWS($1:52)<=COUNTA($L$108:$L$175),INDEX($L$108:$L$175,SMALL(IF($L$108:$L$175<>"",ROW($L$108:$L$175)-MIN(ROW($L$108:$L$175))+1),ROWS($1:52))),""),"") ->  | N152: Straatverlichting | O152: =IFERROR(IF(ROWS($1:52)<=COUNTA($N$108:$N$175),INDEX($N$108:$N$175,SMALL(IF($N$108:$N$175<>"",ROW($N$108:$N$175)-MIN(ROW($N$108:$N$175))+1),ROWS($1:52))),""),"") -> 
B153: =IFERROR(INDEX(Inrichtingskosten!$C$9:$C$643, MATCH(0,COUNTIF($B$107:B152, Inrichtingskosten!$C$9:$C$643), 0)),"") -> Verbindingsleiding | C153: =INDEX(Inrichtingskosten!A54:A682,MATCH(B153,Inrichtingskosten!C54:C682,0)) -> Hemelwatersysteem | E153: =IFERROR(IF(ROWS($1:53)<=COUNTA($D$108:$D$175),INDEX($D$108:$D$175,SMALL(IF($D$108:$D$175<>"",ROW($D$108:$D$175)-MIN(ROW($D$108:$D$175))+1),ROWS($1:53))),""),"") ->  | G153: =IFERROR(IF(ROWS($1:53)<=COUNTA($F$108:$F$175),INDEX($F$108:$F$175,SMALL(IF($F$108:$F$175<>"",ROW($F$108:$F$175)-MIN(ROW($F$108:$F$175))+1),ROWS($1:53))),""),"") ->  | H153: Verbindingsleiding | I153: =IFERROR(IF(ROWS($1:53)<=COUNTA($H$108:$H$175),INDEX($H$108:$H$175,SMALL(IF($H$108:$H$175<>"",ROW($H$108:$H$175)-MIN(ROW($H$108:$H$175))+1),ROWS($1:53))),""),"") ->  | K153: =IFERROR(IF(ROWS($1:46)<=COUNTA($J$108:$J$175),INDEX($J$108:$J$175,SMALL(IF($J$108:$J$175<>"",ROW($J$108:$J$175)-MIN(ROW($J$108:$J$175))+1),ROWS($1:46))),""),"") ->  | M153: =IFERROR(IF(ROWS($1:53)<=COUNTA($L$108:$L$175),INDEX($L$108:$L$175,SMALL(IF($L$108:$L$175<>"",ROW($L$108:$L$175)-MIN(ROW($L$108:$L$175))+1),ROWS($1:53))),""),"") ->  | O153: =IFERROR(IF(ROWS($1:53)<=COUNTA($N$108:$N$175),INDEX($N$108:$N$175,SMALL(IF($N$108:$N$175<>"",ROW($N$108:$N$175)-MIN(ROW($N$108:$N$175))+1),ROWS($1:53))),""),"") -> 
B154: =IFERROR(INDEX(Inrichtingskosten!$C$9:$C$643, MATCH(0,COUNTIF($B$107:B153, Inrichtingskosten!$C$9:$C$643), 0)),"") -> Voetpad/plein van betonstraatstenen | C154: =INDEX(Inrichtingskosten!A55:A683,MATCH(B154,Inrichtingskosten!C55:C683,0)) -> Elementen verharding | E154: =IFERROR(IF(ROWS($1:58)<=COUNTA($D$108:$D$175),INDEX($D$108:$D$175,SMALL(IF($D$108:$D$175<>"",ROW($D$108:$D$175)-MIN(ROW($D$108:$D$175))+1),ROWS($1:58))),""),"") ->  | F154: Voetpad/plein van betonstraatstenen | G154: =IFERROR(IF(ROWS($1:58)<=COUNTA($F$108:$F$175),INDEX($F$108:$F$175,SMALL(IF($F$108:$F$175<>"",ROW($F$108:$F$175)-MIN(ROW($F$108:$F$175))+1),ROWS($1:58))),""),"") ->  | I154: =IFERROR(IF(ROWS($1:58)<=COUNTA($H$108:$H$175),INDEX($H$108:$H$175,SMALL(IF($H$108:$H$175<>"",ROW($H$108:$H$175)-MIN(ROW($H$108:$H$175))+1),ROWS($1:58))),""),"") ->  | K154: =IFERROR(IF(ROWS($1:47)<=COUNTA($J$108:$J$175),INDEX($J$108:$J$175,SMALL(IF($J$108:$J$175<>"",ROW($J$108:$J$175)-MIN(ROW($J$108:$J$175))+1),ROWS($1:47))),""),"") ->  | M154: =IFERROR(IF(ROWS($1:58)<=COUNTA($L$108:$L$175),INDEX($L$108:$L$175,SMALL(IF($L$108:$L$175<>"",ROW($L$108:$L$175)-MIN(ROW($L$108:$L$175))+1),ROWS($1:58))),""),"") ->  | O154: =IFERROR(IF(ROWS($1:58)<=COUNTA($N$108:$N$175),INDEX($N$108:$N$175,SMALL(IF($N$108:$N$175<>"",ROW($N$108:$N$175)-MIN(ROW($N$108:$N$175))+1),ROWS($1:58))),""),"") -> 
B155: =IFERROR(INDEX(Inrichtingskosten!$C$9:$C$643, MATCH(0,COUNTIF($B$107:B154, Inrichtingskosten!$C$9:$C$643), 0)),"") -> Wadi (meerdere kleine) | C155: =INDEX(Inrichtingskosten!A56:A684,MATCH(B155,Inrichtingskosten!C56:C684,0)) -> Hemelwatersysteem | E155: =IFERROR(IF(ROWS($1:59)<=COUNTA($D$108:$D$175),INDEX($D$108:$D$175,SMALL(IF($D$108:$D$175<>"",ROW($D$108:$D$175)-MIN(ROW($D$108:$D$175))+1),ROWS($1:59))),""),"") ->  | G155: =IFERROR(IF(ROWS($1:59)<=COUNTA($F$108:$F$175),INDEX($F$108:$F$175,SMALL(IF($F$108:$F$175<>"",ROW($F$108:$F$175)-MIN(ROW($F$108:$F$175))+1),ROWS($1:59))),""),"") ->  | H155: Wadi (meerdere kleine) | I155: =IFERROR(IF(ROWS($1:59)<=COUNTA($H$108:$H$175),INDEX($H$108:$H$175,SMALL(IF($H$108:$H$175<>"",ROW($H$108:$H$175)-MIN(ROW($H$108:$H$175))+1),ROWS($1:59))),""),"") ->  | K155: =IFERROR(IF(ROWS($1:48)<=COUNTA($J$108:$J$175),INDEX($J$108:$J$175,SMALL(IF($J$108:$J$175<>"",ROW($J$108:$J$175)-MIN(ROW($J$108:$J$175))+1),ROWS($1:48))),""),"") ->  | M155: =IFERROR(IF(ROWS($1:59)<=COUNTA($L$108:$L$175),INDEX($L$108:$L$175,SMALL(IF($L$108:$L$175<>"",ROW($L$108:$L$175)-MIN(ROW($L$108:$L$175))+1),ROWS($1:59))),""),"") ->  | O155: =IFERROR(IF(ROWS($1:59)<=COUNTA($N$108:$N$175),INDEX($N$108:$N$175,SMALL(IF($N$108:$N$175<>"",ROW($N$108:$N$175)-MIN(ROW($N$108:$N$175))+1),ROWS($1:59))),""),"") -> 
B156: =IFERROR(INDEX(Inrichtingskosten!$C$9:$C$643, MATCH(0,COUNTIF($B$107:B155, Inrichtingskosten!$C$9:$C$643), 0)),"") -> Woonstraat en parkeerterrein van betonstraatstenen | C156: =INDEX(Inrichtingskosten!A57:A685,MATCH(B156,Inrichtingskosten!C57:C685,0)) -> Elementen verharding | E156: =IFERROR(IF(ROWS($1:60)<=COUNTA($D$108:$D$175),INDEX($D$108:$D$175,SMALL(IF($D$108:$D$175<>"",ROW($D$108:$D$175)-MIN(ROW($D$108:$D$175))+1),ROWS($1:60))),""),"") ->  | F156: Woonstraat en parkeerterrein van betonstraatstenen | G156: =IFERROR(IF(ROWS($1:60)<=COUNTA($F$108:$F$175),INDEX($F$108:$F$175,SMALL(IF($F$108:$F$175<>"",ROW($F$108:$F$175)-MIN(ROW($F$108:$F$175))+1),ROWS($1:60))),""),"") ->  | I156: =IFERROR(IF(ROWS($1:60)<=COUNTA($H$108:$H$175),INDEX($H$108:$H$175,SMALL(IF($H$108:$H$175<>"",ROW($H$108:$H$175)-MIN(ROW($H$108:$H$175))+1),ROWS($1:60))),""),"") ->  | J156: =IFERROR(IF($C156=$J$107,$B156,"")," ") ->  | K156: =IFERROR(IF(ROWS($1:49)<=COUNTA($J$108:$J$175),INDEX($J$108:$J$175,SMALL(IF($J$108:$J$175<>"",ROW($J$108:$J$175)-MIN(ROW($J$108:$J$175))+1),ROWS($1:49))),""),"") ->  | M156: =IFERROR(IF(ROWS($1:60)<=COUNTA($L$108:$L$175),INDEX($L$108:$L$175,SMALL(IF($L$108:$L$175<>"",ROW($L$108:$L$175)-MIN(ROW($L$108:$L$175))+1),ROWS($1:60))),""),"") ->  | O156: =IFERROR(IF(ROWS($1:60)<=COUNTA($N$108:$N$175),INDEX($N$108:$N$175,SMALL(IF($N$108:$N$175<>"",ROW($N$108:$N$175)-MIN(ROW($N$108:$N$175))+1),ROWS($1:60))),""),"") -> 
B157: =IFERROR(INDEX(Inrichtingskosten!$C$9:$C$643, MATCH(0,COUNTIF($B$107:B156, Inrichtingskosten!$C$9:$C$643), 0)),"") -> Zakput | C157: =INDEX(Inrichtingskosten!A58:A686,MATCH(B157,Inrichtingskosten!C58:C686,0)) -> Hemelwatersysteem | E157: =IFERROR(IF(ROWS($1:61)<=COUNTA($D$108:$D$175),INDEX($D$108:$D$175,SMALL(IF($D$108:$D$175<>"",ROW($D$108:$D$175)-MIN(ROW($D$108:$D$175))+1),ROWS($1:61))),""),"") ->  | G157: =IFERROR(IF(ROWS($1:61)<=COUNTA($F$108:$F$175),INDEX($F$108:$F$175,SMALL(IF($F$108:$F$175<>"",ROW($F$108:$F$175)-MIN(ROW($F$108:$F$175))+1),ROWS($1:61))),""),"") ->  | H157: Zakput | I157: =IFERROR(IF(ROWS($1:61)<=COUNTA($H$108:$H$175),INDEX($H$108:$H$175,SMALL(IF($H$108:$H$175<>"",ROW($H$108:$H$175)-MIN(ROW($H$108:$H$175))+1),ROWS($1:61))),""),"") ->  | K157: =IFERROR(IF(ROWS($1:50)<=COUNTA($J$108:$J$175),INDEX($J$108:$J$175,SMALL(IF($J$108:$J$175<>"",ROW($J$108:$J$175)-MIN(ROW($J$108:$J$175))+1),ROWS($1:50))),""),"") ->  | M157: =IFERROR(IF(ROWS($1:61)<=COUNTA($L$108:$L$175),INDEX($L$108:$L$175,SMALL(IF($L$108:$L$175<>"",ROW($L$108:$L$175)-MIN(ROW($L$108:$L$175))+1),ROWS($1:61))),""),"") ->  | O157: =IFERROR(IF(ROWS($1:61)<=COUNTA($N$108:$N$175),INDEX($N$108:$N$175,SMALL(IF($N$108:$N$175<>"",ROW($N$108:$N$175)-MIN(ROW($N$108:$N$175))+1),ROWS($1:61))),""),"") -> 
B158: =IFERROR(INDEX(Inrichtingskosten!$C$9:$C$643, MATCH(0,COUNTIF($B$107:B157, Inrichtingskosten!$C$9:$C$643), 0)),"") -> Zand | C158: =INDEX(Inrichtingskosten!A59:A687,MATCH(B158,Inrichtingskosten!C59:C687,0)) -> Grondwerk | D158: Zand | E158: =IFERROR(IF(ROWS($1:62)<=COUNTA($D$108:$D$175),INDEX($D$108:$D$175,SMALL(IF($D$108:$D$175<>"",ROW($D$108:$D$175)-MIN(ROW($D$108:$D$175))+1),ROWS($1:62))),""),"") ->  | G158: =IFERROR(IF(ROWS($1:62)<=COUNTA($F$108:$F$175),INDEX($F$108:$F$175,SMALL(IF($F$108:$F$175<>"",ROW($F$108:$F$175)-MIN(ROW($F$108:$F$175))+1),ROWS($1:62))),""),"") ->  | I158: =IFERROR(IF(ROWS($1:62)<=COUNTA($H$108:$H$175),INDEX($H$108:$H$175,SMALL(IF($H$108:$H$175<>"",ROW($H$108:$H$175)-MIN(ROW($H$108:$H$175))+1),ROWS($1:62))),""),"") ->  | K158: =IFERROR(IF(ROWS($1:51)<=COUNTA($J$108:$J$175),INDEX($J$108:$J$175,SMALL(IF($J$108:$J$175<>"",ROW($J$108:$J$175)-MIN(ROW($J$108:$J$175))+1),ROWS($1:51))),""),"") ->  | M158: =IFERROR(IF(ROWS($1:62)<=COUNTA($L$108:$L$175),INDEX($L$108:$L$175,SMALL(IF($L$108:$L$175<>"",ROW($L$108:$L$175)-MIN(ROW($L$108:$L$175))+1),ROWS($1:62))),""),"") ->  | O158: =IFERROR(IF(ROWS($1:62)<=COUNTA($N$108:$N$175),INDEX($N$108:$N$175,SMALL(IF($N$108:$N$175<>"",ROW($N$108:$N$175)-MIN(ROW($N$108:$N$175))+1),ROWS($1:62))),""),"") -> 
B159: =IFERROR(INDEX(Inrichtingskosten!$C$9:$C$643, MATCH(0,COUNTIF($B$107:B158, Inrichtingskosten!$C$9:$C$643), 0)),"") -> Bergend pakket hardsteen 8/32 - geen doek | C159: =INDEX(Inrichtingskosten!A60:A688,MATCH(B159,Inrichtingskosten!C60:C688,0)) -> Hemelwatersysteem | E159: =IFERROR(IF(ROWS($1:63)<=COUNTA($D$108:$D$175),INDEX($D$108:$D$175,SMALL(IF($D$108:$D$175<>"",ROW($D$108:$D$175)-MIN(ROW($D$108:$D$175))+1),ROWS($1:63))),""),"") ->  | G159: =IFERROR(IF(ROWS($1:63)<=COUNTA($F$108:$F$175),INDEX($F$108:$F$175,SMALL(IF($F$108:$F$175<>"",ROW($F$108:$F$175)-MIN(ROW($F$108:$F$175))+1),ROWS($1:63))),""),"") ->  | H159: Bergend pakket hardsteen 8/32 - geen doek | I159: =IFERROR(IF(ROWS($1:63)<=COUNTA($H$108:$H$175),INDEX($H$108:$H$175,SMALL(IF($H$108:$H$175<>"",ROW($H$108:$H$175)-MIN(ROW($H$108:$H$175))+1),ROWS($1:63))),""),"") ->  | K159: =IFERROR(IF(ROWS($1:52)<=COUNTA($J$108:$J$175),INDEX($J$108:$J$175,SMALL(IF($J$108:$J$175<>"",ROW($J$108:$J$175)-MIN(ROW($J$108:$J$175))+1),ROWS($1:52))),""),"") ->  | M159: =IFERROR(IF(ROWS($1:63)<=COUNTA($L$108:$L$175),INDEX($L$108:$L$175,SMALL(IF($L$108:$L$175<>"",ROW($L$108:$L$175)-MIN(ROW($L$108:$L$175))+1),ROWS($1:63))),""),"") ->  | O159: =IFERROR(IF(ROWS($1:63)<=COUNTA($N$108:$N$175),INDEX($N$108:$N$175,SMALL(IF($N$108:$N$175<>"",ROW($N$108:$N$175)-MIN(ROW($N$108:$N$175))+1),ROWS($1:63))),""),"") -> 
B160: =IFERROR(INDEX(Inrichtingskosten!$C$9:$C$643, MATCH(0,COUNTIF($B$107:B159, Inrichtingskosten!$C$9:$C$643), 0)),"") -> Bergend pakket Betondgranulaat 12/32 - geen doek | C160: =INDEX(Inrichtingskosten!A61:A689,MATCH(B160,Inrichtingskosten!C61:C689,0)) -> Hemelwatersysteem | E160: =IFERROR(IF(ROWS($1:64)<=COUNTA($D$108:$D$175),INDEX($D$108:$D$175,SMALL(IF($D$108:$D$175<>"",ROW($D$108:$D$175)-MIN(ROW($D$108:$D$175))+1),ROWS($1:64))),""),"") ->  | G160: =IFERROR(IF(ROWS($1:64)<=COUNTA($F$108:$F$175),INDEX($F$108:$F$175,SMALL(IF($F$108:$F$175<>"",ROW($F$108:$F$175)-MIN(ROW($F$108:$F$175))+1),ROWS($1:64))),""),"") ->  | H160: Bergend pakket Betondgranulaat 12/32 - geen doek | I160: =IFERROR(IF(ROWS($1:64)<=COUNTA($H$108:$H$175),INDEX($H$108:$H$175,SMALL(IF($H$108:$H$175<>"",ROW($H$108:$H$175)-MIN(ROW($H$108:$H$175))+1),ROWS($1:64))),""),"") ->  | K160: =IFERROR(IF(ROWS($1:53)<=COUNTA($J$108:$J$175),INDEX($J$108:$J$175,SMALL(IF($J$108:$J$175<>"",ROW($J$108:$J$175)-MIN(ROW($J$108:$J$175))+1),ROWS($1:53))),""),"") ->  | M160: =IFERROR(IF(ROWS($1:64)<=COUNTA($L$108:$L$175),INDEX($L$108:$L$175,SMALL(IF($L$108:$L$175<>"",ROW($L$108:$L$175)-MIN(ROW($L$108:$L$175))+1),ROWS($1:64))),""),"") ->  | O160: =IFERROR(IF(ROWS($1:64)<=COUNTA($N$108:$N$175),INDEX($N$108:$N$175,SMALL(IF($N$108:$N$175<>"",ROW($N$108:$N$175)-MIN(ROW($N$108:$N$175))+1),ROWS($1:64))),""),"") -> 
B161: =IFERROR(INDEX(Inrichtingskosten!$C$9:$C$643, MATCH(0,COUNTIF($B$107:B160, Inrichtingskosten!$C$9:$C$643), 0)),"") -> WAVICORE buis in bergend pakket | C161: =INDEX(Inrichtingskosten!A62:A690,MATCH(B161,Inrichtingskosten!C62:C690,0)) -> Hemelwatersysteem | E161: =IFERROR(IF(ROWS($1:65)<=COUNTA($D$108:$D$175),INDEX($D$108:$D$175,SMALL(IF($D$108:$D$175<>"",ROW($D$108:$D$175)-MIN(ROW($D$108:$D$175))+1),ROWS($1:65))),""),"") ->  | G161: =IFERROR(IF(ROWS($1:65)<=COUNTA($F$108:$F$175),INDEX($F$108:$F$175,SMALL(IF($F$108:$F$175<>"",ROW($F$108:$F$175)-MIN(ROW($F$108:$F$175))+1),ROWS($1:65))),""),"") ->  | H161: WAVICORE buis in bergend pakket | I161: =IFERROR(IF(ROWS($1:65)<=COUNTA($H$108:$H$175),INDEX($H$108:$H$175,SMALL(IF($H$108:$H$175<>"",ROW($H$108:$H$175)-MIN(ROW($H$108:$H$175))+1),ROWS($1:65))),""),"") ->  | K161: =IFERROR(IF(ROWS($1:54)<=COUNTA($J$108:$J$175),INDEX($J$108:$J$175,SMALL(IF($J$108:$J$175<>"",ROW($J$108:$J$175)-MIN(ROW($J$108:$J$175))+1),ROWS($1:54))),""),"") ->  | M161: =IFERROR(IF(ROWS($1:65)<=COUNTA($L$108:$L$175),INDEX($L$108:$L$175,SMALL(IF($L$108:$L$175<>"",ROW($L$108:$L$175)-MIN(ROW($L$108:$L$175))+1),ROWS($1:65))),""),"") ->  | O161: =IFERROR(IF(ROWS($1:65)<=COUNTA($N$108:$N$175),INDEX($N$108:$N$175,SMALL(IF($N$108:$N$175<>"",ROW($N$108:$N$175)-MIN(ROW($N$108:$N$175))+1),ROWS($1:65))),""),"") -> 
B162: =IFERROR(INDEX(Inrichtingskosten!$C$9:$C$643, MATCH(0,COUNTIF($B$107:B161, Inrichtingskosten!$C$9:$C$643), 0)),"") -> Tergakolk | C162: =INDEX(Inrichtingskosten!A63:A691,MATCH(B162,Inrichtingskosten!C63:C691,0)) -> Riolering | E162: =IFERROR(IF(ROWS($1:66)<=COUNTA($D$108:$D$175),INDEX($D$108:$D$175,SMALL(IF($D$108:$D$175<>"",ROW($D$108:$D$175)-MIN(ROW($D$108:$D$175))+1),ROWS($1:66))),""),"") ->  | G162: =IFERROR(IF(ROWS($1:66)<=COUNTA($F$108:$F$175),INDEX($F$108:$F$175,SMALL(IF($F$108:$F$175<>"",ROW($F$108:$F$175)-MIN(ROW($F$108:$F$175))+1),ROWS($1:66))),""),"") ->  | I162: =IFERROR(IF(ROWS($1:66)<=COUNTA($H$108:$H$175),INDEX($H$108:$H$175,SMALL(IF($H$108:$H$175<>"",ROW($H$108:$H$175)-MIN(ROW($H$108:$H$175))+1),ROWS($1:66))),""),"") ->  | J162: Tergakolk | K162: =IFERROR(IF(ROWS($1:55)<=COUNTA($J$108:$J$175),INDEX($J$108:$J$175,SMALL(IF($J$108:$J$175<>"",ROW($J$108:$J$175)-MIN(ROW($J$108:$J$175))+1),ROWS($1:55))),""),"") ->  | M162: =IFERROR(IF(ROWS($1:66)<=COUNTA($L$108:$L$175),INDEX($L$108:$L$175,SMALL(IF($L$108:$L$175<>"",ROW($L$108:$L$175)-MIN(ROW($L$108:$L$175))+1),ROWS($1:66))),""),"") ->  | O162: =IFERROR(IF(ROWS($1:66)<=COUNTA($N$108:$N$175),INDEX($N$108:$N$175,SMALL(IF($N$108:$N$175<>"",ROW($N$108:$N$175)-MIN(ROW($N$108:$N$175))+1),ROWS($1:66))),""),"") -> 
B163: =IFERROR(INDEX(Inrichtingskosten!$C$9:$C$643, MATCH(0,COUNTIF($B$107:B162, Inrichtingskosten!$C$9:$C$643), 0)),"") -> Bufferblock | C163: =INDEX(Inrichtingskosten!A64:A692,MATCH(B163,Inrichtingskosten!C64:C692,0)) -> Hemelwatersysteem | E163: =IFERROR(IF(ROWS($1:67)<=COUNTA($D$108:$D$175),INDEX($D$108:$D$175,SMALL(IF($D$108:$D$175<>"",ROW($D$108:$D$175)-MIN(ROW($D$108:$D$175))+1),ROWS($1:67))),""),"") ->  | G163: =IFERROR(IF(ROWS($1:67)<=COUNTA($F$108:$F$175),INDEX($F$108:$F$175,SMALL(IF($F$108:$F$175<>"",ROW($F$108:$F$175)-MIN(ROW($F$108:$F$175))+1),ROWS($1:67))),""),"") ->  | H163: Bufferblock | I163: =IFERROR(IF(ROWS($1:67)<=COUNTA($H$108:$H$175),INDEX($H$108:$H$175,SMALL(IF($H$108:$H$175<>"",ROW($H$108:$H$175)-MIN(ROW($H$108:$H$175))+1),ROWS($1:67))),""),"") ->  | K163: =IFERROR(IF(ROWS($1:56)<=COUNTA($J$108:$J$175),INDEX($J$108:$J$175,SMALL(IF($J$108:$J$175<>"",ROW($J$108:$J$175)-MIN(ROW($J$108:$J$175))+1),ROWS($1:56))),""),"") ->  | M163: =IFERROR(IF(ROWS($1:67)<=COUNTA($L$108:$L$175),INDEX($L$108:$L$175,SMALL(IF($L$108:$L$175<>"",ROW($L$108:$L$175)-MIN(ROW($L$108:$L$175))+1),ROWS($1:67))),""),"") ->  | O163: =IFERROR(IF(ROWS($1:67)<=COUNTA($N$108:$N$175),INDEX($N$108:$N$175,SMALL(IF($N$108:$N$175<>"",ROW($N$108:$N$175)-MIN(ROW($N$108:$N$175))+1),ROWS($1:67))),""),"") -> 
B164: =IFERROR(INDEX(Inrichtingskosten!$C$9:$C$643, MATCH(0,COUNTIF($B$107:B163, Inrichtingskosten!$C$9:$C$643), 0)),"") -> Bergend pakket lava of bims 4/32 - geen doek | C164: =INDEX(Inrichtingskosten!A65:A693,MATCH(B164,Inrichtingskosten!C65:C693,0)) -> Hemelwatersysteem | E164: =IFERROR(IF(ROWS($1:68)<=COUNTA($D$108:$D$175),INDEX($D$108:$D$175,SMALL(IF($D$108:$D$175<>"",ROW($D$108:$D$175)-MIN(ROW($D$108:$D$175))+1),ROWS($1:68))),""),"") ->  | G164: =IFERROR(IF(ROWS($1:68)<=COUNTA($F$108:$F$175),INDEX($F$108:$F$175,SMALL(IF($F$108:$F$175<>"",ROW($F$108:$F$175)-MIN(ROW($F$108:$F$175))+1),ROWS($1:68))),""),"") ->  | H164: Bergend pakket lava of bims 4/32 - geen doek | I164: =IFERROR(IF(ROWS($1:68)<=COUNTA($H$108:$H$175),INDEX($H$108:$H$175,SMALL(IF($H$108:$H$175<>"",ROW($H$108:$H$175)-MIN(ROW($H$108:$H$175))+1),ROWS($1:68))),""),"") ->  | K164: =IFERROR(IF(ROWS($1:57)<=COUNTA($J$108:$J$175),INDEX($J$108:$J$175,SMALL(IF($J$108:$J$175<>"",ROW($J$108:$J$175)-MIN(ROW($J$108:$J$175))+1),ROWS($1:57))),""),"") ->  | M164: =IFERROR(IF(ROWS($1:68)<=COUNTA($L$108:$L$175),INDEX($L$108:$L$175,SMALL(IF($L$108:$L$175<>"",ROW($L$108:$L$175)-MIN(ROW($L$108:$L$175))+1),ROWS($1:68))),""),"") ->  | O164: =IFERROR(IF(ROWS($1:68)<=COUNTA($N$108:$N$175),INDEX($N$108:$N$175,SMALL(IF($N$108:$N$175<>"",ROW($N$108:$N$175)-MIN(ROW($N$108:$N$175))+1),ROWS($1:68))),""),"") -> 
B165: =IFERROR(INDEX(Inrichtingskosten!$C$9:$C$643, MATCH(0,COUNTIF($B$107:B164, Inrichtingskosten!$C$9:$C$643), 0)),"") -> Bergend pakket ROCKFLOW - geen doek | C165: =INDEX(Inrichtingskosten!A66:A694,MATCH(B165,Inrichtingskosten!C66:C694,0)) -> Hemelwatersysteem | E165: =IFERROR(IF(ROWS($1:73)<=COUNTA($D$108:$D$175),INDEX($D$108:$D$175,SMALL(IF($D$108:$D$175<>"",ROW($D$108:$D$175)-MIN(ROW($D$108:$D$175))+1),ROWS($1:73))),""),"") ->  | G165: =IFERROR(IF(ROWS($1:73)<=COUNTA($F$108:$F$175),INDEX($F$108:$F$175,SMALL(IF($F$108:$F$175<>"",ROW($F$108:$F$175)-MIN(ROW($F$108:$F$175))+1),ROWS($1:73))),""),"") ->  | H165: Bergend pakket ROCKFLOW - geen doek | I165: =IFERROR(IF(ROWS($1:73)<=COUNTA($H$108:$H$175),INDEX($H$108:$H$175,SMALL(IF($H$108:$H$175<>"",ROW($H$108:$H$175)-MIN(ROW($H$108:$H$175))+1),ROWS($1:73))),""),"") ->  | K165: =IFERROR(IF(ROWS($1:58)<=COUNTA($J$108:$J$175),INDEX($J$108:$J$175,SMALL(IF($J$108:$J$175<>"",ROW($J$108:$J$175)-MIN(ROW($J$108:$J$175))+1),ROWS($1:58))),""),"") ->  | M165: =IFERROR(IF(ROWS($1:73)<=COUNTA($L$108:$L$175),INDEX($L$108:$L$175,SMALL(IF($L$108:$L$175<>"",ROW($L$108:$L$175)-MIN(ROW($L$108:$L$175))+1),ROWS($1:73))),""),"") ->  | O165: =IFERROR(IF(ROWS($1:73)<=COUNTA($N$108:$N$175),INDEX($N$108:$N$175,SMALL(IF($N$108:$N$175<>"",ROW($N$108:$N$175)-MIN(ROW($N$108:$N$175))+1),ROWS($1:73))),""),"") -> 
B166: =IFERROR(INDEX(Inrichtingskosten!$C$9:$C$643, MATCH(0,COUNTIF($B$107:B165, Inrichtingskosten!$C$9:$C$643), 0)),"") -> Bergend pakket AA Schelpenmix - geen doek | C166: =INDEX(Inrichtingskosten!A67:A695,MATCH(B166,Inrichtingskosten!C67:C695,0)) -> Hemelwatersysteem | E166: =IFERROR(IF(ROWS($1:74)<=COUNTA($D$108:$D$175),INDEX($D$108:$D$175,SMALL(IF($D$108:$D$175<>"",ROW($D$108:$D$175)-MIN(ROW($D$108:$D$175))+1),ROWS($1:74))),""),"") ->  | G166: =IFERROR(IF(ROWS($1:74)<=COUNTA($F$108:$F$175),INDEX($F$108:$F$175,SMALL(IF($F$108:$F$175<>"",ROW($F$108:$F$175)-MIN(ROW($F$108:$F$175))+1),ROWS($1:74))),""),"") ->  | H166: Bergend pakket AA Schelpenmix - geen doek | I166: =IFERROR(IF(ROWS($1:74)<=COUNTA($H$108:$H$175),INDEX($H$108:$H$175,SMALL(IF($H$108:$H$175<>"",ROW($H$108:$H$175)-MIN(ROW($H$108:$H$175))+1),ROWS($1:74))),""),"") ->  | K166: =IFERROR(IF(ROWS($1:59)<=COUNTA($J$108:$J$175),INDEX($J$108:$J$175,SMALL(IF($J$108:$J$175<>"",ROW($J$108:$J$175)-MIN(ROW($J$108:$J$175))+1),ROWS($1:59))),""),"") ->  | M166: =IFERROR(IF(ROWS($1:74)<=COUNTA($L$108:$L$175),INDEX($L$108:$L$175,SMALL(IF($L$108:$L$175<>"",ROW($L$108:$L$175)-MIN(ROW($L$108:$L$175))+1),ROWS($1:74))),""),"") ->  | O166: =IFERROR(IF(ROWS($1:74)<=COUNTA($N$108:$N$175),INDEX($N$108:$N$175,SMALL(IF($N$108:$N$175<>"",ROW($N$108:$N$175)-MIN(ROW($N$108:$N$175))+1),ROWS($1:74))),""),"") -> 
B167: =IFERROR(INDEX(Inrichtingskosten!$C$9:$C$643, MATCH(0,COUNTIF($B$107:B166, Inrichtingskosten!$C$9:$C$643), 0)),"") -> AA minerals (los) voor rond drain | C167: =INDEX(Inrichtingskosten!A68:A696,MATCH(B167,Inrichtingskosten!C68:C696,0)) -> Hemelwatersysteem | E167: =IFERROR(IF(ROWS($1:75)<=COUNTA($D$108:$D$175),INDEX($D$108:$D$175,SMALL(IF($D$108:$D$175<>"",ROW($D$108:$D$175)-MIN(ROW($D$108:$D$175))+1),ROWS($1:75))),""),"") ->  | G167: =IFERROR(IF(ROWS($1:75)<=COUNTA($F$108:$F$175),INDEX($F$108:$F$175,SMALL(IF($F$108:$F$175<>"",ROW($F$108:$F$175)-MIN(ROW($F$108:$F$175))+1),ROWS($1:75))),""),"") ->  | H167: AA minerals (los) voor rond drain | I167: =IFERROR(IF(ROWS($1:75)<=COUNTA($H$108:$H$175),INDEX($H$108:$H$175,SMALL(IF($H$108:$H$175<>"",ROW($H$108:$H$175)-MIN(ROW($H$108:$H$175))+1),ROWS($1:75))),""),"") ->  | J167: =IFERROR(IF($C167=$J$107,$B167,"")," ") ->  | K167: =IFERROR(IF(ROWS($1:60)<=COUNTA($J$108:$J$175),INDEX($J$108:$J$175,SMALL(IF($J$108:$J$175<>"",ROW($J$108:$J$175)-MIN(ROW($J$108:$J$175))+1),ROWS($1:60))),""),"") ->  | M167: =IFERROR(IF(ROWS($1:75)<=COUNTA($L$108:$L$175),INDEX($L$108:$L$175,SMALL(IF($L$108:$L$175<>"",ROW($L$108:$L$175)-MIN(ROW($L$108:$L$175))+1),ROWS($1:75))),""),"") ->  | O167: =IFERROR(IF(ROWS($1:75)<=COUNTA($N$108:$N$175),INDEX($N$108:$N$175,SMALL(IF($N$108:$N$175<>"",ROW($N$108:$N$175)-MIN(ROW($N$108:$N$175))+1),ROWS($1:75))),""),"") -> 
B168: =IFERROR(INDEX(Inrichtingskosten!$C$9:$C$643, MATCH(0,COUNTIF($B$107:B167, Inrichtingskosten!$C$9:$C$643), 0)),"") -> Geogrid (los) | C168: =INDEX(Inrichtingskosten!A69:A697,MATCH(B168,Inrichtingskosten!C69:C697,0)) -> Hemelwatersysteem | E168: =IFERROR(IF(ROWS($1:76)<=COUNTA($D$108:$D$175),INDEX($D$108:$D$175,SMALL(IF($D$108:$D$175<>"",ROW($D$108:$D$175)-MIN(ROW($D$108:$D$175))+1),ROWS($1:76))),""),"") ->  | G168: =IFERROR(IF(ROWS($1:76)<=COUNTA($F$108:$F$175),INDEX($F$108:$F$175,SMALL(IF($F$108:$F$175<>"",ROW($F$108:$F$175)-MIN(ROW($F$108:$F$175))+1),ROWS($1:76))),""),"") ->  | H168: Geogrid (los) | I168: =IFERROR(IF(ROWS($1:76)<=COUNTA($H$108:$H$175),INDEX($H$108:$H$175,SMALL(IF($H$108:$H$175<>"",ROW($H$108:$H$175)-MIN(ROW($H$108:$H$175))+1),ROWS($1:76))),""),"") ->  | K168: =IFERROR(IF(ROWS($1:61)<=COUNTA($J$108:$J$175),INDEX($J$108:$J$175,SMALL(IF($J$108:$J$175<>"",ROW($J$108:$J$175)-MIN(ROW($J$108:$J$175))+1),ROWS($1:61))),""),"") ->  | M168: =IFERROR(IF(ROWS($1:76)<=COUNTA($L$108:$L$175),INDEX($L$108:$L$175,SMALL(IF($L$108:$L$175<>"",ROW($L$108:$L$175)-MIN(ROW($L$108:$L$175))+1),ROWS($1:76))),""),"") ->  | O168: =IFERROR(IF(ROWS($1:76)<=COUNTA($N$108:$N$175),INDEX($N$108:$N$175,SMALL(IF($N$108:$N$175<>"",ROW($N$108:$N$175)-MIN(ROW($N$108:$N$175))+1),ROWS($1:76))),""),"") -> 
B169: =IFERROR(INDEX(Inrichtingskosten!$C$9:$C$643, MATCH(0,COUNTIF($B$107:B168, Inrichtingskosten!$C$9:$C$643), 0)),"") -> geotextiel (los) | C169: =INDEX(Inrichtingskosten!A70:A698,MATCH(B169,Inrichtingskosten!C70:C698,0)) -> Hemelwatersysteem | E169: =IFERROR(IF(ROWS($1:77)<=COUNTA($D$108:$D$175),INDEX($D$108:$D$175,SMALL(IF($D$108:$D$175<>"",ROW($D$108:$D$175)-MIN(ROW($D$108:$D$175))+1),ROWS($1:77))),""),"") ->  | G169: =IFERROR(IF(ROWS($1:77)<=COUNTA($F$108:$F$175),INDEX($F$108:$F$175,SMALL(IF($F$108:$F$175<>"",ROW($F$108:$F$175)-MIN(ROW($F$108:$F$175))+1),ROWS($1:77))),""),"") ->  | H169: geotextiel (los) | I169: =IFERROR(IF(ROWS($1:77)<=COUNTA($H$108:$H$175),INDEX($H$108:$H$175,SMALL(IF($H$108:$H$175<>"",ROW($H$108:$H$175)-MIN(ROW($H$108:$H$175))+1),ROWS($1:77))),""),"") ->  | K169: =IFERROR(IF(ROWS($1:62)<=COUNTA($J$108:$J$175),INDEX($J$108:$J$175,SMALL(IF($J$108:$J$175<>"",ROW($J$108:$J$175)-MIN(ROW($J$108:$J$175))+1),ROWS($1:62))),""),"") ->  | M169: =IFERROR(IF(ROWS($1:77)<=COUNTA($L$108:$L$175),INDEX($L$108:$L$175,SMALL(IF($L$108:$L$175<>"",ROW($L$108:$L$175)-MIN(ROW($L$108:$L$175))+1),ROWS($1:77))),""),"") ->  | O169: =IFERROR(IF(ROWS($1:77)<=COUNTA($N$108:$N$175),INDEX($N$108:$N$175,SMALL(IF($N$108:$N$175<>"",ROW($N$108:$N$175)-MIN(ROW($N$108:$N$175))+1),ROWS($1:77))),""),"") -> 
B170: =IFERROR(INDEX(Inrichtingskosten!$C$9:$C$643, MATCH(0,COUNTIF($B$107:B169, Inrichtingskosten!$C$9:$C$643), 0)),"") -> Drainzand | C170: =INDEX(Inrichtingskosten!A71:A699,MATCH(B170,Inrichtingskosten!C71:C699,0)) -> Grondwerk | D170: Drainzand | E170: =IFERROR(IF(ROWS($1:78)<=COUNTA($D$108:$D$175),INDEX($D$108:$D$175,SMALL(IF($D$108:$D$175<>"",ROW($D$108:$D$175)-MIN(ROW($D$108:$D$175))+1),ROWS($1:78))),""),"") ->  | G170: =IFERROR(IF(ROWS($1:78)<=COUNTA($F$108:$F$175),INDEX($F$108:$F$175,SMALL(IF($F$108:$F$175<>"",ROW($F$108:$F$175)-MIN(ROW($F$108:$F$175))+1),ROWS($1:78))),""),"") ->  | I170: =IFERROR(IF(ROWS($1:78)<=COUNTA($H$108:$H$175),INDEX($H$108:$H$175,SMALL(IF($H$108:$H$175<>"",ROW($H$108:$H$175)-MIN(ROW($H$108:$H$175))+1),ROWS($1:78))),""),"") ->  | K170: =IFERROR(IF(ROWS($1:63)<=COUNTA($J$108:$J$175),INDEX($J$108:$J$175,SMALL(IF($J$108:$J$175<>"",ROW($J$108:$J$175)-MIN(ROW($J$108:$J$175))+1),ROWS($1:63))),""),"") ->  | M170: =IFERROR(IF(ROWS($1:78)<=COUNTA($L$108:$L$175),INDEX($L$108:$L$175,SMALL(IF($L$108:$L$175<>"",ROW($L$108:$L$175)-MIN(ROW($L$108:$L$175))+1),ROWS($1:78))),""),"") ->  | O170: =IFERROR(IF(ROWS($1:78)<=COUNTA($N$108:$N$175),INDEX($N$108:$N$175,SMALL(IF($N$108:$N$175<>"",ROW($N$108:$N$175)-MIN(ROW($N$108:$N$175))+1),ROWS($1:78))),""),"") -> 
B171: =IFERROR(INDEX(Inrichtingskosten!$C$9:$C$643, MATCH(0,COUNTIF($B$107:B170, Inrichtingskosten!$C$9:$C$643), 0)),"") -> 0 | C171: =INDEX(Inrichtingskosten!A72:A700,MATCH(B171,Inrichtingskosten!C72:C700,0)) ->  | E171: =IFERROR(IF(ROWS($1:79)<=COUNTA($D$108:$D$175),INDEX($D$108:$D$175,SMALL(IF($D$108:$D$175<>"",ROW($D$108:$D$175)-MIN(ROW($D$108:$D$175))+1),ROWS($1:79))),""),"") ->  | G171: =IFERROR(IF(ROWS($1:79)<=COUNTA($F$108:$F$175),INDEX($F$108:$F$175,SMALL(IF($F$108:$F$175<>"",ROW($F$108:$F$175)-MIN(ROW($F$108:$F$175))+1),ROWS($1:79))),""),"") ->  | I171: =IFERROR(IF(ROWS($1:79)<=COUNTA($H$108:$H$175),INDEX($H$108:$H$175,SMALL(IF($H$108:$H$175<>"",ROW($H$108:$H$175)-MIN(ROW($H$108:$H$175))+1),ROWS($1:79))),""),"") ->  | K171: =IFERROR(IF(ROWS($1:64)<=COUNTA($J$108:$J$175),INDEX($J$108:$J$175,SMALL(IF($J$108:$J$175<>"",ROW($J$108:$J$175)-MIN(ROW($J$108:$J$175))+1),ROWS($1:64))),""),"") ->  | M171: =IFERROR(IF(ROWS($1:79)<=COUNTA($L$108:$L$175),INDEX($L$108:$L$175,SMALL(IF($L$108:$L$175<>"",ROW($L$108:$L$175)-MIN(ROW($L$108:$L$175))+1),ROWS($1:79))),""),"") ->  | O171: =IFERROR(IF(ROWS($1:79)<=COUNTA($N$108:$N$175),INDEX($N$108:$N$175,SMALL(IF($N$108:$N$175<>"",ROW($N$108:$N$175)-MIN(ROW($N$108:$N$175))+1),ROWS($1:79))),""),"") -> 
B172: =IFERROR(INDEX(Inrichtingskosten!$C$9:$C$643, MATCH(0,COUNTIF($B$107:B171, Inrichtingskosten!$C$9:$C$643), 0)),"") ->  | C172: =INDEX(Inrichtingskosten!A73:A701,MATCH(B172,Inrichtingskosten!C73:C701,0)) ->  | E172: =IFERROR(IF(ROWS($1:86)<=COUNTA($D$108:$D$175),INDEX($D$108:$D$175,SMALL(IF($D$108:$D$175<>"",ROW($D$108:$D$175)-MIN(ROW($D$108:$D$175))+1),ROWS($1:86))),""),"") ->  | G172: =IFERROR(IF(ROWS($1:86)<=COUNTA($F$108:$F$175),INDEX($F$108:$F$175,SMALL(IF($F$108:$F$175<>"",ROW($F$108:$F$175)-MIN(ROW($F$108:$F$175))+1),ROWS($1:86))),""),"") ->  | I172: =IFERROR(IF(ROWS($1:86)<=COUNTA($H$108:$H$175),INDEX($H$108:$H$175,SMALL(IF($H$108:$H$175<>"",ROW($H$108:$H$175)-MIN(ROW($H$108:$H$175))+1),ROWS($1:86))),""),"") ->  | K172: =IFERROR(IF(ROWS($1:65)<=COUNTA($J$108:$J$175),INDEX($J$108:$J$175,SMALL(IF($J$108:$J$175<>"",ROW($J$108:$J$175)-MIN(ROW($J$108:$J$175))+1),ROWS($1:65))),""),"") ->  | M172: =IFERROR(IF(ROWS($1:86)<=COUNTA($L$108:$L$175),INDEX($L$108:$L$175,SMALL(IF($L$108:$L$175<>"",ROW($L$108:$L$175)-MIN(ROW($L$108:$L$175))+1),ROWS($1:86))),""),"") ->  | O172: =IFERROR(IF(ROWS($1:86)<=COUNTA($N$108:$N$175),INDEX($N$108:$N$175,SMALL(IF($N$108:$N$175<>"",ROW($N$108:$N$175)-MIN(ROW($N$108:$N$175))+1),ROWS($1:86))),""),"") -> 
B173: =IFERROR(INDEX(Inrichtingskosten!$C$9:$C$643, MATCH(0,COUNTIF($B$107:B172, Inrichtingskosten!$C$9:$C$643), 0)),"") ->  | C173: =INDEX(Inrichtingskosten!A74:A702,MATCH(B173,Inrichtingskosten!C74:C702,0)) ->  | E173: =IFERROR(IF(ROWS($1:87)<=COUNTA($D$108:$D$175),INDEX($D$108:$D$175,SMALL(IF($D$108:$D$175<>"",ROW($D$108:$D$175)-MIN(ROW($D$108:$D$175))+1),ROWS($1:87))),""),"") ->  | G173: =IFERROR(IF(ROWS($1:87)<=COUNTA($F$108:$F$175),INDEX($F$108:$F$175,SMALL(IF($F$108:$F$175<>"",ROW($F$108:$F$175)-MIN(ROW($F$108:$F$175))+1),ROWS($1:87))),""),"") ->  | I173: =IFERROR(IF(ROWS($1:87)<=COUNTA($H$108:$H$175),INDEX($H$108:$H$175,SMALL(IF($H$108:$H$175<>"",ROW($H$108:$H$175)-MIN(ROW($H$108:$H$175))+1),ROWS($1:87))),""),"") ->  | K173: =IFERROR(IF(ROWS($1:66)<=COUNTA($J$108:$J$175),INDEX($J$108:$J$175,SMALL(IF($J$108:$J$175<>"",ROW($J$108:$J$175)-MIN(ROW($J$108:$J$175))+1),ROWS($1:66))),""),"") ->  | M173: =IFERROR(IF(ROWS($1:87)<=COUNTA($L$108:$L$175),INDEX($L$108:$L$175,SMALL(IF($L$108:$L$175<>"",ROW($L$108:$L$175)-MIN(ROW($L$108:$L$175))+1),ROWS($1:87))),""),"") ->  | O173: =IFERROR(IF(ROWS($1:87)<=COUNTA($N$108:$N$175),INDEX($N$108:$N$175,SMALL(IF($N$108:$N$175<>"",ROW($N$108:$N$175)-MIN(ROW($N$108:$N$175))+1),ROWS($1:87))),""),"") -> 
B174: =IFERROR(INDEX(Inrichtingskosten!$C$9:$C$643, MATCH(0,COUNTIF($B$107:B173, Inrichtingskosten!$C$9:$C$643), 0)),"") ->  | C174: =INDEX(Inrichtingskosten!A75:A703,MATCH(B174,Inrichtingskosten!C75:C703,0)) ->  | E174: =IFERROR(IF(ROWS($1:88)<=COUNTA($D$108:$D$175),INDEX($D$108:$D$175,SMALL(IF($D$108:$D$175<>"",ROW($D$108:$D$175)-MIN(ROW($D$108:$D$175))+1),ROWS($1:88))),""),"") ->  | G174: =IFERROR(IF(ROWS($1:88)<=COUNTA($F$108:$F$175),INDEX($F$108:$F$175,SMALL(IF($F$108:$F$175<>"",ROW($F$108:$F$175)-MIN(ROW($F$108:$F$175))+1),ROWS($1:88))),""),"") ->  | I174: =IFERROR(IF(ROWS($1:88)<=COUNTA($H$108:$H$175),INDEX($H$108:$H$175,SMALL(IF($H$108:$H$175<>"",ROW($H$108:$H$175)-MIN(ROW($H$108:$H$175))+1),ROWS($1:88))),""),"") ->  | K174: =IFERROR(IF(ROWS($1:67)<=COUNTA($J$108:$J$175),INDEX($J$108:$J$175,SMALL(IF($J$108:$J$175<>"",ROW($J$108:$J$175)-MIN(ROW($J$108:$J$175))+1),ROWS($1:67))),""),"") ->  | M174: =IFERROR(IF(ROWS($1:88)<=COUNTA($L$108:$L$175),INDEX($L$108:$L$175,SMALL(IF($L$108:$L$175<>"",ROW($L$108:$L$175)-MIN(ROW($L$108:$L$175))+1),ROWS($1:88))),""),"") ->  | O174: =IFERROR(IF(ROWS($1:88)<=COUNTA($N$108:$N$175),INDEX($N$108:$N$175,SMALL(IF($N$108:$N$175<>"",ROW($N$108:$N$175)-MIN(ROW($N$108:$N$175))+1),ROWS($1:88))),""),"") -> 
B175: =IFERROR(INDEX(Inrichtingskosten!$C$9:$C$643, MATCH(0,COUNTIF($B$107:B174, Inrichtingskosten!$C$9:$C$643), 0)),"") ->  | C175: =INDEX(Inrichtingskosten!A76:A704,MATCH(B175,Inrichtingskosten!C76:C704,0)) ->  | E175: =IFERROR(IF(ROWS($1:89)<=COUNTA($D$108:$D$175),INDEX($D$108:$D$175,SMALL(IF($D$108:$D$175<>"",ROW($D$108:$D$175)-MIN(ROW($D$108:$D$175))+1),ROWS($1:89))),""),"") ->  | G175: =IFERROR(IF(ROWS($1:89)<=COUNTA($F$108:$F$175),INDEX($F$108:$F$175,SMALL(IF($F$108:$F$175<>"",ROW($F$108:$F$175)-MIN(ROW($F$108:$F$175))+1),ROWS($1:89))),""),"") ->  | I175: =IFERROR(IF(ROWS($1:89)<=COUNTA($H$108:$H$175),INDEX($H$108:$H$175,SMALL(IF($H$108:$H$175<>"",ROW($H$108:$H$175)-MIN(ROW($H$108:$H$175))+1),ROWS($1:89))),""),"") ->  | K175: =IFERROR(IF(ROWS($1:68)<=COUNTA($J$108:$J$175),INDEX($J$108:$J$175,SMALL(IF($J$108:$J$175<>"",ROW($J$108:$J$175)-MIN(ROW($J$108:$J$175))+1),ROWS($1:68))),""),"") ->  | M175: =IFERROR(IF(ROWS($1:89)<=COUNTA($L$108:$L$175),INDEX($L$108:$L$175,SMALL(IF($L$108:$L$175<>"",ROW($L$108:$L$175)-MIN(ROW($L$108:$L$175))+1),ROWS($1:89))),""),"") ->  | O175: =IFERROR(IF(ROWS($1:89)<=COUNTA($N$108:$N$175),INDEX($N$108:$N$175,SMALL(IF($N$108:$N$175<>"",ROW($N$108:$N$175)-MIN(ROW($N$108:$N$175))+1),ROWS($1:89))),""),"") -> 
B204: =IFERROR(INDEX($C$9:$C$205, MATCH(0,COUNTIF(B$8:$O203, $C$9:$C$205), 0)),"") -> 

Sheet Invoerhulp
B2: Stappenplan invoeren gegevens MKBA tool
A3: Stap
A4: 1 | B4: Verzamel benodigde gegevens zoals technische tekeningen van de ontwerpvarianten. Zowel doorsnedes als plattegronden.
B5: Begrijp de hydrologische werking van alle ontwerpvarianten goed
B6: Oppervlakten
A7: 2 | B7: Kies de grenzen van het projectgebied (de te analyseren straat). Teken dit in over een kaart van de buurt.
B8: Neem de grenzen op de daken langs de scheiding waar water richting voor- of achtertuin stroomt, bijvoorbeeld langs de nokken van de daken.
B9: Aangeraden wordt om de grenzen zo te tekenen dat je ongeveer 200-250m straatlengte hebt.
A10: 3 | B10: Meet alle benodigde oppervlakten en lengtes in en voer deze in op tabblad 'invoer'. Doe eerst de Oppervlakten en Woongegevens en daarna de Afvoer- en Bergingscapaciteit (die in onderstaande stappen beschreven staat).
B11: Als simpele vuistregel kan je de gemiddelde tuin zien als 50% verhard en 50% onverhard (geen bron)
B12: Meet ook privaat oppervlak in.
B13: Woongegevens
A14: 4 | B14: Tel het aantal woningen en zoek de overige woongegevens op, bijvoorbeeld bij het CBS of het kadaster.
B15: https://cbsinuwbuurt.nl/#vierkant100m2020_gemiddelde_huishoudensgrootte
B16: https://cbsinuwbuurt.nl/#vierkant100m2020_gemiddelde_woz_waarde_woning
B17: Verwerking hemelwater
A18: 5 | B18: Bekijk of de ontwerpvarianten water kunnen bergen op straat, totdat het water bijna over de laagste drempel naar binnen loopt.
B19: Het moment van falen is het moment waarop het water op straat (maaiveld) een kritiek peil bereikt en het water de laagst gelegen woning(en) binnenstroomt.
B20: Onderstaande rekenhulp ziet de straat van gevel tot gevel als een rechthoek. Meet met de dwarsdoorsnede straatprofiel hoeveel water er tussen de drempels geborgen kan worden.
B21: Houd eventueel zelf rekening met hoogteverschillen in de straat via het AHN en schat hiermee een gereduceerde berging op maaiveld.
B22: Belangrijk is dat het aantal mm berging berekend wordt als mm neerslag op het gehele projectgebied.
B23: Berging op straat (t.o.v. totaal opp.) | C23: Eenheid | D23: Variant 0 | E23: Variant 1 | F23: Variant 2 | G23: Variant 3
B24: Hoogte | C24: mm | D24: 400 | E24: 400 | F24: 400 | G24: 400
B25: Breedte straatprofiel | C25: mm | D25: 10100 | E25: 10100 | F25: 10100 | G25: 10100
B26: Lengte straat | C26: mm | D26: =Invoer!D30*1000 -> 0 | E26: =Invoer!E30*1000 -> 0 | F26: =Invoer!F30*1000 -> 0 | G26: =Invoer!G30*1000 -> 0
B27: Totaal oppervlak | C27: m² | D27: =Invoer!Neerslag_oppervlak -> 0 | E27: =Invoer!Neerslag_oppervlak -> 0 | F27: =Invoer!Neerslag_oppervlak -> 0 | G27: =Invoer!Neerslag_oppervlak -> 0
B28: Verhard oppervlak | C28: m² | D28: =Invoer!D21 -> 0 | E28: =Invoer!E21 -> 0 | F28: =Invoer!F21 -> 0 | G28: =Invoer!G21 -> 0
B29: Berging op straat | C29: mm | D29: =(D24*D25*D26)/(D27*1000000) ->  | E29: =(E24*E25*E26)/(E27*1000000) ->  | F29: =(F24*F25*F26)/(F27*1000000) ->  | G29: =(G24*G25*G26)/(G27*1000000) -> 
A31: 6 | B31: Schat in wat de afvoersnelheid is waarmee alle afvoerbuizen en drains de berging van de regenwatervoorzieningen legen. Dit gaat niet over water op straat, maar over water in een speciale berging.
B32: Wanneer er bijvoorbeeld zowel een waterbergende weg als een wadi is, geef dan 1 gecombineerde waarde.
B33: Deze afvoer is in mm/uur t.o.v. het verharde oppervlak in het projectgebied, maar niet het dakoppervlak.
B34: Dit gaat niet om infiltratie naar de bodem, die staat hier onder. Dit is afvoer middels buizen, zoals noodoverlopen.
B35: Gebruikt hiervoor eventueel een berekening zoals onderstaande Chézy formule. Beschouw voor deze afvoersnelheidsberekening de berging als vol met water.
B36: Gebruik eventueel 2mm/uur per buis.
B37: Afvoercapaciteit regenwater voorz.
B38: Aantal buizen | C38: - | D38: 0 | E38: 2 | F38: 1 | G38: 0
B39: A (nat oppervlak) | C39: m² | D39: 0.0201024 | E39: 0.0201024 | F39: 0.0201024 | G39: 0.0201024
B40: C (Chézy coëfficiënt) | C40: m1/2s-1 | D40: =LOG((12*D41)/D46) -> 3.079181246 | E40: =LOG((12*E41)/E46) -> 3.079181246 | F40: =LOG((12*F41)/F46) -> 3.079181246 | G40: 3.079181246
B41: R (Hydraulische straal A/P) | C41: m | D41: =D39/D49 -> 0.04 | E41: =E39/E49 -> 0.04 | F41: =F39/F49 -> 0.04 | G41: =G39/G49 -> 0.04
B42: If (verhang ΔH/L) | C42: - | D42: =-(D44-D43)/D45 -> 0.009047619048 | E42: =-(E44-E43)/E45 -> 0.009047619048 | F42: =-(F44-F43)/F45 -> 0.009047619048 | G42: 0.009047619048
B43: H1 (ene kant buis) | C43: m NAP | D43: -5.03 | E43: -5.03 | F43: -5.03 | G43: -5.03
B44: H2 (andere kant buis) | C44: m NAP | D44: -5.22 | E44: -5.22 | F44: -5.22 | G44: -5.22
B45: L (lengte buizen) | C45: m | D45: 21 | E45: 21 | F45: 21 | G45: 21
B46: K (wandruwheid) | C46: m | D46: 0.0004 | E46: 0.0004 | F46: 0.0004 | G46: 0.0004
B47: r (straal buis) | C47: m | D47: 0.08 | E47: 0.08 | F47: 0.08 | G47: 0.08
B48: d (diameter buis) | C48: m | D48: 0.16 | E48: 0.16 | F48: 0.16 | G48: 0.16
B49: P (omtrek) | C49: m | D49: =D50*D48 -> 0.50256 | E49: =E50*E48 -> 0.50256 | F49: =F50*F48 -> 0.50256 | G49: =G50*G48 -> 0.50256
B50: π | C50: - | D50: 3.141 | E50: 3.141 | F50: 3.141 | G50: 3.141
B51: Q (Afvoer) | C51: m3/s | D51: =SQRT((D41*D42))*D39*D40 -> 0.00117755259 | E51: =SQRT((E41*E42))*E39*E40 -> 0.00117755259 | F51: =SQRT((F41*F42))*F39*F40 -> 0.00117755259 | G51: 0.00117755259
C52: mm/uur | D52: =(D51/D28)*1000*3600*D38 ->  | E52: =(E51/E28)*1000*3600*E38 ->  | F52: =(F51/F28)*1000*3600*F38 ->  | G52: =(G51/G28)*1000*3600*G38 -> 
A54: 7 | B54: Schat de infiltratiesnelheid van water vanuit de regenwatervoorziening naar het grondwater of naar de bodem. Gebruik hiervoor metingen of onderstaande tabellen.
B55: Belangrijk is dat de mm/dag infiltratiesnelheid uitgedrukt wordt t.o.v. het verharde oppervlak in de openbare ruimte.
B56: Het kan hier gaan om infiltratie naar het wegcunet of infiltratie naar de natuurlijke bodem.
B57: Infiltratiecapaciteit bodem
B58: K waarde | C58: m/ dag | E58: =7/1000*24 -> 0.168 | F58: 0.015
B59: breedte berging | C59: mm | E59: 5000 | F59: 10100
B60: Infiltratiecapaciteit bodem | C60: mm/uur | D60: =(D58*D61)*1000/D28/24 ->  | E60: =(E58*E61)*1000/E28/24 ->  | F60: =(F58*F61)*1000/F28/24 ->  | G60: =(G58*G61)*1000/G28/24 -> 
B61: contactoppervlak berging-bodem | C61: m² | D61: =D59*D26/1000000 -> 0 | E61: =E59*E26/1000000 -> 0 | F61: =F59*F26/1000000 -> 0 | G61: 0
B63: Belangrijkste bodemsoort | C63: k-waarde [m/dag]
B64: Klei - zeer dicht | C64: 0.005
B65: Zand - uiterst fijn | C65: 0.35
B66: Zand - middel fijn (dekzand) | C66: 3
B67: Duinzand | C67: 7
B68: Zand - grof | C68: 30
B69: Fijn grind | C69: 5500
B70: Grof grind | C70: 55000
B71: Teelaarde | C71: 5
A73: 8 | B73: Voer op het tabblad 'Invoer' bij afvoercapaciteit regenwatervoorzieningen de som in van de hierboven berekende afvoer regenwatervoorziening en infiltratiecapaciteit bodem.
A74: 9 | B74: Schat de afvoercapaciteit van de regenwaterriolering in de oude situatie. Dit is ofwel een gemengd ofwel een gescheiden stelsel.
B75: Ook dit getal is t.o.v. het verharde oppervlak in de openbare ruimte. Deze kan eventueel op 20mm/uur gezet worden.
A76: 10 | B76: Bereken de bergingscapaciteit van de regenwatervoorziening in mm t.o.v. het verharde oppervlak. Dit gaat om het volume water dat geborgen kan worden voordat er water op straat komt.
B77: Gebruik bijvoorbeeld de aparte tool 'Model - Bergingscapaciteit Wegcunet', echter alleen wanneer de lagen onderling snel genoeg water doorlaten om een klimaatbuis door te kunnen laten.
B78: Houdt rekening met de porositeit en gebruik niet alleen het totale volume van de berging.
B79: Wanneer er bijvoorbeeld zowel een waterbergende weg als een wadi is, geef dan 1 gecombineerde waarde.
A80: 11 | B80: Bereken het bergende volume in de regenwatervoorziening dat niet afgevoerd kan worden en dus alleen infiltreerd.
B81: Dit is bijvoorbeeld het bergende volume onder de overlooppgrens of slokop.
A82: 12 | B82: Schat de infiltratiecapaciteit van al het onverharde oppervlak. Dit is gelijk voor alle onverharde oppervlakken, dus geef het gemiddelde in mm/uur.
B83: De waarde is t.o.v. al het groen(onverharde) oppervlak, dus hoeft niet gecorrigeerd te worden voor andere oppervlakken.
B84: De onverharde infiltratiecapaciteit kan eventueel op 20mm/uur gezet worden.
A85: 13 | B85: Afgekoppelde daken? Ja/Nee. Als de daken afwateren naar het riool (gemengd & gescheiden), dan nee.
B87: Hoeveelhedenstaat
B88: Hieronder wordt de hoeveelhedenstaat ingevuld, waarop alle investerings en onderhoudskosten gebaseerd zijn.
B89: Bedenk dat aanleggen en verwijderen bij elkaar niet hetzelfde zijn als vervangen, want vervangen is efficiënter.
B90: Er zitten geen dubbele werkzaamheden in vervangen waar dit wel zo is bij verwijderen en aanleggen.
B91: Bedenk dat geen van de getallen in de hoeveelhedenstaat invloed heeft op de waterberekeningen. Alleen groen heeft invloed op de groenbaten.
B92: De rest wordt alleen gebruikt voor de aanleg en onderhoudskosten.
A93: 14 | B93: Bedenk hoeveel grond er moet worden uitgegraven en hoeveel hiervan wordt verwijdert en andersom voor wordt aangelegd. Al het grondverzet kan als zand aangegeven worden. Kleine maaiveldverschillen kunnen mogelijk genegeerd worden.
A94: 15 | B94: Als er veranderingen zijn in de verhardingen dan geef je die aan door de oude verhardingen te verwijderen en de nieuwe aan te leggen. Maak gebruik van de bestaande categoriën van verhardingen. Molgoten zijn onderdeel van reguliere bestrating, tenzij ze specifiek doorlatend zijn.
A95: 16 | B95: Kijk naar de doorsnedes van de oude situatie. Als er een gescheiden stelsel ligt, heb je zowel een hemelwaterriool als een afvalwaterriool. Vaak is de lengte van deze riolering dezelfde lengte als de straat (projectgebied). Als er van een gemengd stelsel naar een gescheiden stelsel wordt gegaan, dan vul je in dat het gescheiden wordt aangelegd en de gemengde wordt verwijderd.
A97: 17 | B97: Tel het aantal kolken en perceelaansluitingen in de oude en de nieuwe situaties en vul in.
A98: 18 | B98: Vul alle verschillende soorten groen in
A99: 19 | B99: vul straatverlichting en andere inrichtingselementen in
A100: 20 | B100: Controleerd of echt de hele openbare ruimte ingevuld is in de hoeveelhedenstaat.

Sheet Berekeningen
C1: Auteurs: M.M. Rouvoet BBE (Versie 1) & ing. A.J. Bruijns (Versie 2) & Msc. N. van der Lee (versie 3)
B2: Berekeningen | C2: Productiedatum: versie 1, december 2016; Versie 2.9, november 2020, Versie 3.1, januari 2023
B4: Kostenpost | X4: Uitgesplitst: 2 realisatiefases
B5: Kosten voor de aanleg en onderhoud per variant en per jaar. De balkjes geven het percentage van de totale jaarlijkse kosten weer. | C5: Variant 0 | D5: =Invoer!E35 -> 0-situatie | E5: Variant 1 | G5: Variant 2 | I5: Variant 3 | X5: Kostenposten | Y5: =C5 -> Variant 0 | Z5: =D5 -> 0-situatie | AA5: =E5 -> Variant 1 | AC5: =G5 -> Variant 2 | AE5: =I5 -> Variant 3
C6: Investeringskosten (€/j) | D6: Onderhoudskosten (€/j) | E6: Investeringskosten ( €/j) | F6: Onderhoudskosten (€/j) | G6: Investeringskosten ( €/j) | H6: =F6 -> Onderhoudskosten (€/j) | I6: Investeringskosten ( €/j) | J6: Onderhoudskosten (€/j) | Y6: Realisatiekosten jaar 0 | Z6: Realisatiekosten overig | AA6: Realisatiekosten jaar 0 | AB6: Realisatiekosten overig | AC6: Realisatiekosten jaar 0 | AD6: Realisatiekosten overig | AE6: Realisatiekosten jaar 0 | AF6: Realisatiekosten overig | AK6: Uitsplitsing Kosten
B7: =Invoer!B37 -> Grondwerk | X7: =B7 -> Grondwerk | AJ7: In realisatiekosten jaar 0 + realisatiekosten overig (als som) | AM7: Variant 0 | AN7: Variant 1 | AO7: Variant 2 | AP7: Variant 3
B8: =Invoer!B38 -> Zand | C8: =IF(2*(Y8+Z8)/100=0,"",2*(Y8+Z8)/100) ->  | D8: =IF(IF(Invoer!E38<>"Verwijderen",(SUMIFS(Onderhoudskosten!$K:$K,Onderhoudskosten!$B:$B,Invoer!$B38)*Invoer!D38)," ")=0," ",IF(Invoer!E38<>"Verwijderen",(SUMIFS(Onderhoudskosten!$K:$K,Onderhoudskosten!$B:$B,Invoer!$B38)*Invoer!D38)," ")) ->  | E8: =IF(2*(AA8+AB8)/100=0,"",2*(AA8+AB8)/100) ->  | F8: =IF(IF(Invoer!G38<>"Verwijderen",(SUMIFS(Onderhoudskosten!$K:$K,Onderhoudskosten!$B:$B,Invoer!$B38)*Invoer!F38)," ")=0," ",IF(Invoer!G38<>"Verwijderen",(SUMIFS(Onderhoudskosten!$K:$K,Onderhoudskosten!$B:$B,Invoer!$B38)*Invoer!F38)," ")) ->  | G8: =IF(2*(AC8+AD8)/100=0,"",2*(AC8+AD8)/100) ->  | H8: =IF(IF(Invoer!I38<>"Verwijderen",(SUMIFS(Onderhoudskosten!$K:$K,Onderhoudskosten!$B:$B,Invoer!$B38)*Invoer!H38)," ")=0," ",IF(Invoer!I38<>"Verwijderen",(SUMIFS(Onderhoudskosten!$K:$K,Onderhoudskosten!$B:$B,Invoer!$B38)*Invoer!H38)," ")) ->  | I8: =IF(2*(AE8+AF8)/100=0,"",2*(AE8+AF8)/100) ->  | J8: =IF(IF(Invoer!K38<>"Verwijderen",(SUMIFS(Onderhoudskosten!$K:$K,Onderhoudskosten!$B:$B,Invoer!$B38)*Invoer!J38)," ")=0," ",IF(Invoer!K38<>"Verwijderen",(SUMIFS(Onderhoudskosten!$K:$K,Onderhoudskosten!$B:$B,Invoer!$B38)*Invoer!J38)," ")) ->  | X8: =B8 -> Zand | Y8: =SUMIFS(Inrichtingskosten!$H:$H,Inrichtingskosten!$C:$C,Invoer!$B38,Inrichtingskosten!$B:$B,Invoer!X38)*Invoer!D38 -> 0 | Z8: =SUMIFS(Inrichtingskosten!$H:$H,Inrichtingskosten!$C:$C,Invoer!$B38,Inrichtingskosten!$B:$B,Invoer!Y38)*Invoer!D38 -> 0 | AA8: =SUMIFS(Inrichtingskosten!$H:$H,Inrichtingskosten!$C:$C,Invoer!$B38,Inrichtingskosten!$B:$B,Invoer!Z38)*Invoer!F38 -> 0 | AB8: =SUMIFS(Inrichtingskosten!$H:$H,Inrichtingskosten!$C:$C,Invoer!$B38,Inrichtingskosten!$B:$B,Invoer!AA38)*Invoer!F38 -> 0 | AC8: =SUMIFS(Inrichtingskosten!$H:$H,Inrichtingskosten!$C:$C,Invoer!$B38,Inrichtingskosten!$B:$B,Invoer!AB38)*Invoer!H38 -> 0 | AD8: =SUMIFS(Inrichtingskosten!$H:$H,Inrichtingskosten!$C:$C,Invoer!$B38,Inrichtingskosten!$B:$B,Invoer!AC38)*Invoer!H38 -> 0 | AE8: =SUMIFS(Inrichtingskosten!$H:$H,Inrichtingskosten!$C:$C,Invoer!$B38,Inrichtingskosten!$B:$B,Invoer!AD38)*Invoer!J38 -> 0 | AF8: =SUMIFS(Inrichtingskosten!$H:$H,Inrichtingskosten!$C:$C,Invoer!$B38,Inrichtingskosten!$B:$B,Invoer!AE38)*Invoer!J38 -> 0 | AK8: Grondwerk | AL8: Realisatie | AM8: =Y8+Z8 -> 0 | AN8: =AA8+AB8 -> 0 | AO8: =AC8+AD8 -> 0 | AP8: =AE8+AF8 -> 0
B9: =Invoer!B39 -> Drainzand | C9: =IF(2*(Y9+Z9)/100=0,"",2*(Y9+Z9)/100) ->  | D9: =IF(IF(Invoer!E39<>"Verwijderen",(SUMIFS(Onderhoudskosten!$K:$K,Onderhoudskosten!$B:$B,Invoer!$B39)*Invoer!D39)," ")=0," ",IF(Invoer!E39<>"Verwijderen",(SUMIFS(Onderhoudskosten!$K:$K,Onderhoudskosten!$B:$B,Invoer!$B39)*Invoer!D39)," ")) ->  | E9: =IF(2*(AA9+AB9)/100=0,"",2*(AA9+AB9)/100) ->  | F9: =IF(IF(Invoer!G39<>"Verwijderen",(SUMIFS(Onderhoudskosten!$K:$K,Onderhoudskosten!$B:$B,Invoer!$B39)*Invoer!F39)," ")=0," ",IF(Invoer!G39<>"Verwijderen",(SUMIFS(Onderhoudskosten!$K:$K,Onderhoudskosten!$B:$B,Invoer!$B39)*Invoer!F39)," ")) ->  | G9: =IF(2*(AC9+AD9)/100=0,"",2*(AC9+AD9)/100) ->  | H9: =IF(IF(Invoer!I39<>"Verwijderen",(SUMIFS(Onderhoudskosten!$K:$K,Onderhoudskosten!$B:$B,Invoer!$B39)*Invoer!H39)," ")=0," ",IF(Invoer!I39<>"Verwijderen",(SUMIFS(Onderhoudskosten!$K:$K,Onderhoudskosten!$B:$B,Invoer!$B39)*Invoer!H39)," ")) ->  | I9: =IF(2*(AE9+AF9)/100=0,"",2*(AE9+AF9)/100) ->  | J9: =IF(IF(Invoer!K39<>"Verwijderen",(SUMIFS(Onderhoudskosten!$K:$K,Onderhoudskosten!$B:$B,Invoer!$B39)*Invoer!J39)," ")=0," ",IF(Invoer!K39<>"Verwijderen",(SUMIFS(Onderhoudskosten!$K:$K,Onderhoudskosten!$B:$B,Invoer!$B39)*Invoer!J39)," ")) ->  | X9: =B9 -> Drainzand | Y9: =SUMIFS(Inrichtingskosten!$H:$H,Inrichtingskosten!$C:$C,Invoer!$B39,Inrichtingskosten!$B:$B,Invoer!X39)*Invoer!D39 -> 0 | Z9: =SUMIFS(Inrichtingskosten!$H:$H,Inrichtingskosten!$C:$C,Invoer!$B39,Inrichtingskosten!$B:$B,Invoer!Y39)*Invoer!D39 -> 0 | AA9: =SUMIFS(Inrichtingskosten!$H:$H,Inrichtingskosten!$C:$C,Invoer!$B39,Inrichtingskosten!$B:$B,Invoer!Z39)*Invoer!F39 -> 0 | AB9: =SUMIFS(Inrichtingskosten!$H:$H,Inrichtingskosten!$C:$C,Invoer!$B39,Inrichtingskosten!$B:$B,Invoer!AA39)*Invoer!F39 -> 0 | AC9: =SUMIFS(Inrichtingskosten!$H:$H,Inrichtingskosten!$C:$C,Invoer!$B39,Inrichtingskosten!$B:$B,Invoer!AB39)*Invoer!H39 -> 0 | AD9: =SUMIFS(Inrichtingskosten!$H:$H,Inrichtingskosten!$C:$C,Invoer!$B39,Inrichtingskosten!$B:$B,Invoer!AC39)*Invoer!H39 -> 0 | AE9: =SUMIFS(Inrichtingskosten!$H:$H,Inrichtingskosten!$C:$C,Invoer!$B39,Inrichtingskosten!$B:$B,Invoer!AD39)*Invoer!J39 -> 0 | AF9: =SUMIFS(Inrichtingskosten!$H:$H,Inrichtingskosten!$C:$C,Invoer!$B39,Inrichtingskosten!$B:$B,Invoer!AE39)*Invoer!J39 -> 0
B10: =Invoer!B40 ->  | D10: =IF(IF(Invoer!E40<>"Verwijderen",(SUMIFS(Onderhoudskosten!$K:$K,Onderhoudskosten!$B:$B,Invoer!$B40)*Invoer!D40)," ")=0," ",IF(Invoer!E40<>"Verwijderen",(SUMIFS(Onderhoudskosten!$K:$K,Onderhoudskosten!$B:$B,Invoer!$B40)*Invoer!D40)," ")) ->  | F10: =IF(IF(Invoer!G40<>"Verwijderen",(SUMIFS(Onderhoudskosten!$K:$K,Onderhoudskosten!$B:$B,Invoer!$B40)*Invoer!F40)," ")=0," ",IF(Invoer!G40<>"Verwijderen",(SUMIFS(Onderhoudskosten!$K:$K,Onderhoudskosten!$B:$B,Invoer!$B40)*Invoer!F40)," ")) ->  | H10: =IF(IF(Invoer!I40<>"Verwijderen",(SUMIFS(Onderhoudskosten!$K:$K,Onderhoudskosten!$B:$B,Invoer!$B40)*Invoer!H40)," ")=0," ",IF(Invoer!I40<>"Verwijderen",(SUMIFS(Onderhoudskosten!$K:$K,Onderhoudskosten!$B:$B,Invoer!$B40)*Invoer!H40)," ")) ->  | J10: =IF(IF(Invoer!K40<>"Verwijderen",(SUMIFS(Onderhoudskosten!$K:$K,Onderhoudskosten!$B:$B,Invoer!$B40)*Invoer!J40)," ")=0," ",IF(Invoer!K40<>"Verwijderen",(SUMIFS(Onderhoudskosten!$K:$K,Onderhoudskosten!$B:$B,Invoer!$B40)*Invoer!J40)," ")) ->  | Y10: =SUMIFS(Inrichtingskosten!$H:$H,Inrichtingskosten!$C:$C,Invoer!$B40,Inrichtingskosten!$B:$B,Invoer!X40)*Invoer!D40 -> 0 | Z10: =SUMIFS(Inrichtingskosten!$H:$H,Inrichtingskosten!$C:$C,Invoer!$B40,Inrichtingskosten!$B:$B,Invoer!Y40)*Invoer!D40 -> 0 | AA10: =SUMIFS(Inrichtingskosten!$H:$H,Inrichtingskosten!$C:$C,Invoer!$B40,Inrichtingskosten!$B:$B,Invoer!Z40)*Invoer!F40 -> 0 | AB10: =SUMIFS(Inrichtingskosten!$H:$H,Inrichtingskosten!$C:$C,Invoer!$B40,Inrichtingskosten!$B:$B,Invoer!AA40)*Invoer!F40 -> 0 | AC10: =SUMIFS(Inrichtingskosten!$H:$H,Inrichtingskosten!$C:$C,Invoer!$B40,Inrichtingskosten!$B:$B,Invoer!AB40)*Invoer!H40 -> 0 | AD10: =SUMIFS(Inrichtingskosten!$H:$H,Inrichtingskosten!$C:$C,Invoer!$B40,Inrichtingskosten!$B:$B,Invoer!AC40)*Invoer!H40 -> 0 | AE10: =SUMIFS(Inrichtingskosten!$H:$H,Inrichtingskosten!$C:$C,Invoer!$B40,Inrichtingskosten!$B:$B,Invoer!AD40)*Invoer!J40 -> 0 | AF10: =SUMIFS(Inrichtingskosten!$H:$H,Inrichtingskosten!$C:$C,Invoer!$B40,Inrichtingskosten!$B:$B,Invoer!AE40)*Invoer!J40 -> 0 | AK10: Grondwerk | AL10: Realisatie | AM10: =Y10+Z10 -> 0 | AN10: =AA10+AB10 -> 0 | AO10: =AC10+AD10 -> 0 | AP10: =AE10+AF10 -> 0
B11: =Invoer!B41 -> Elementen verharding | X11: Elementen verharding | AK11: Elementen verharding | AL11: =AL8 -> Realisatie | AM11: =SUM(Y12:Y20)+SUM(Z12:Z20) -> 0 | AN11: =SUM(AA12:AA20)+SUM(AB12:AB20) -> 0 | AO11: =SUM(AD12:AD19)+SUM(AC12:AC19) -> 0 | AP11: =SUM(AF12:AF19)+SUM(AE12:AE19) -> 0
B12: =Invoer!B42 -> Woonstraat en parkeerterrein van betonstraatstenen | C12: =IF(2*(Y12+Z12)/100=0,"",2*(Y12+Z12)/100) ->  | D12: =IF(IF(Invoer!E42<>"Verwijderen",(SUMIFS(Onderhoudskosten!$K:$K,Onderhoudskosten!$B:$B,Invoer!$B42)*Invoer!D42)," ")=0," ",IF(Invoer!E42<>"Verwijderen",(SUMIFS(Onderhoudskosten!$K:$K,Onderhoudskosten!$B:$B,Invoer!$B42)*Invoer!D42)," ")) ->  | E12: =IF(2*(AA12+AB12)/100=0,"",2*(AA12+AB12)/100) ->  | F12: =IF(IF(Invoer!G42<>"Verwijderen",(SUMIFS(Onderhoudskosten!$K:$K,Onderhoudskosten!$B:$B,Invoer!$B42)*Invoer!F42)," ")=0," ",IF(Invoer!G42<>"Verwijderen",(SUMIFS(Onderhoudskosten!$K:$K,Onderhoudskosten!$B:$B,Invoer!$B42)*Invoer!F42)," ")) ->  | G12: =IF(2*(AC12+AD12)/100=0,"",2*(AC12+AD12)/100) ->  | H12: =IF(IF(Invoer!I42<>"Verwijderen",(SUMIFS(Onderhoudskosten!$K:$K,Onderhoudskosten!$B:$B,Invoer!$B42)*Invoer!H42)," ")=0," ",IF(Invoer!I42<>"Verwijderen",(SUMIFS(Onderhoudskosten!$K:$K,Onderhoudskosten!$B:$B,Invoer!$B42)*Invoer!H42)," ")) ->  | I12: =IF(2*(AE12+AF12)/100=0,"",2*(AE12+AF12)/100) ->  | J12: =IF(IF(Invoer!K42<>"Verwijderen",(SUMIFS(Onderhoudskosten!$K:$K,Onderhoudskosten!$B:$B,Invoer!$B42)*Invoer!J42)," ")=0," ",IF(Invoer!K42<>"Verwijderen",(SUMIFS(Onderhoudskosten!$K:$K,Onderhoudskosten!$B:$B,Invoer!$B42)*Invoer!J42)," ")) ->  | X12: Woonstraat en parkeerterrein van betonstraatstenen | Y12: =SUMIFS(Inrichtingskosten!$H:$H,Inrichtingskosten!$C:$C,Invoer!$B42,Inrichtingskosten!$B:$B,Invoer!X42)*Invoer!D42 -> 0 | Z12: =SUMIFS(Inrichtingskosten!$H:$H,Inrichtingskosten!$C:$C,Invoer!$B42,Inrichtingskosten!$B:$B,Invoer!Y42)*Invoer!D42 -> 0 | AA12: =SUMIFS(Inrichtingskosten!$H:$H,Inrichtingskosten!$C:$C,Invoer!$B42,Inrichtingskosten!$B:$B,Invoer!Z42)*Invoer!F42 -> 0 | AB12: =SUMIFS(Inrichtingskosten!$H:$H,Inrichtingskosten!$C:$C,Invoer!$B42,Inrichtingskosten!$B:$B,Invoer!AA42)*Invoer!F42 -> 0 | AC12: =SUMIFS(Inrichtingskosten!$H:$H,Inrichtingskosten!$C:$C,Invoer!$B42,Inrichtingskosten!$B:$B,Invoer!AB42)*Invoer!H42 -> 0 | AD12: =SUMIFS(Inrichtingskosten!$H:$H,Inrichtingskosten!$C:$C,Invoer!$B42,Inrichtingskosten!$B:$B,Invoer!AC42)*Invoer!H42 -> 0 | AE12: =SUMIFS(Inrichtingskosten!$H:$H,Inrichtingskosten!$C:$C,Invoer!$B42,Inrichtingskosten!$B:$B,Invoer!AD42)*Invoer!J42 -> 0 | AF12: =SUMIFS(Inrichtingskosten!$H:$H,Inrichtingskosten!$C:$C,Invoer!$B42,Inrichtingskosten!$B:$B,Invoer!AE42)*Invoer!J42 -> 0 | AL12: Onderhoud | AM12: =SUM(D12:D20) -> 0 | AN12: =SUM(F12:F20) -> 0 | AO12: =SUM(H12:H20) -> 0 | AP12: =SUM(J12:J20) -> 0
B13: =Invoer!B43 -> Voetpad/plein van betonstraatstenen | C13: =IF(2*(Y13+Z13)/100=0,"",2*(Y13+Z13)/100) ->  | D13: =IF(IF(Invoer!E43<>"Verwijderen",(SUMIFS(Onderhoudskosten!$K:$K,Onderhoudskosten!$B:$B,Invoer!$B43)*Invoer!D43)," ")=0," ",IF(Invoer!E43<>"Verwijderen",(SUMIFS(Onderhoudskosten!$K:$K,Onderhoudskosten!$B:$B,Invoer!$B43)*Invoer!D43)," ")) ->  | E13: =IF(2*(AA13+AB13)/100=0,"",2*(AA13+AB13)/100) ->  | F13: =IF(IF(Invoer!G43<>"Verwijderen",(SUMIFS(Onderhoudskosten!$K:$K,Onderhoudskosten!$B:$B,Invoer!$B43)*Invoer!F43)," ")=0," ",IF(Invoer!G43<>"Verwijderen",(SUMIFS(Onderhoudskosten!$K:$K,Onderhoudskosten!$B:$B,Invoer!$B43)*Invoer!F43)," ")) ->  | G13: =IF(2*(AC13+AD13)/100=0,"",2*(AC13+AD13)/100) ->  | H13: =IF(IF(Invoer!I43<>"Verwijderen",(SUMIFS(Onderhoudskosten!$K:$K,Onderhoudskosten!$B:$B,Invoer!$B43)*Invoer!H43)," ")=0," ",IF(Invoer!I43<>"Verwijderen",(SUMIFS(Onderhoudskosten!$K:$K,Onderhoudskosten!$B:$B,Invoer!$B43)*Invoer!H43)," ")) ->  | I13: =IF(2*(AE13+AF13)/100=0,"",2*(AE13+AF13)/100) ->  | J13: =IF(IF(Invoer!K43<>"Verwijderen",(SUMIFS(Onderhoudskosten!$K:$K,Onderhoudskosten!$B:$B,Invoer!$B43)*Invoer!J43)," ")=0," ",IF(Invoer!K43<>"Verwijderen",(SUMIFS(Onderhoudskosten!$K:$K,Onderhoudskosten!$B:$B,Invoer!$B43)*Invoer!J43)," ")) ->  | X13: Voetpad/plein van betonstraatstenen | Y13: =SUMIFS(Inrichtingskosten!$H:$H,Inrichtingskosten!$C:$C,Invoer!$B43,Inrichtingskosten!$B:$B,Invoer!X43)*Invoer!D43 -> 0 | Z13: =SUMIFS(Inrichtingskosten!$H:$H,Inrichtingskosten!$C:$C,Invoer!$B43,Inrichtingskosten!$B:$B,Invoer!Y43)*Invoer!D43 -> 0 | AA13: =SUMIFS(Inrichtingskosten!$H:$H,Inrichtingskosten!$C:$C,Invoer!$B43,Inrichtingskosten!$B:$B,Invoer!Z43)*Invoer!F43 -> 0 | AB13: =SUMIFS(Inrichtingskosten!$H:$H,Inrichtingskosten!$C:$C,Invoer!$B43,Inrichtingskosten!$B:$B,Invoer!AA43)*Invoer!F43 -> 0 | AC13: =SUMIFS(Inrichtingskosten!$H:$H,Inrichtingskosten!$C:$C,Invoer!$B43,Inrichtingskosten!$B:$B,Invoer!AB43)*Invoer!H43 -> 0 | AD13: =SUMIFS(Inrichtingskosten!$H:$H,Inrichtingskosten!$C:$C,Invoer!$B43,Inrichtingskosten!$B:$B,Invoer!AC43)*Invoer!H43 -> 0 | AE13: =SUMIFS(Inrichtingskosten!$H:$H,Inrichtingskosten!$C:$C,Invoer!$B43,Inrichtingskosten!$B:$B,Invoer!AD43)*Invoer!J43 -> 0 | AF13: =SUMIFS(Inrichtingskosten!$H:$H,Inrichtingskosten!$C:$C,Invoer!$B43,Inrichtingskosten!$B:$B,Invoer!AE43)*Invoer!J43 -> 0 | AK13: Infiltratiesystemen | AL13: =AL11 -> Realisatie | AM13: =SUM(Y22:Y32)+SUM(Z22:Z32) -> 0 | AN13: =SUM(AA22:AA32)+SUM(AB22:AB32) -> 0 | AO13: =SUM(AD22:AD32)+SUM(AC22:AC32) -> 0 | AP13: =SUM(AF22:AF32)+SUM(AE22:AE32) -> 0
B14: =Invoer!B44 -> Woonstraat en parkeerterrein van betonstraatstenen | D14: =IF(IF(Invoer!E44<>"Verwijderen",(SUMIFS(Onderhoudskosten!$K:$K,Onderhoudskosten!$B:$B,Invoer!$B44)*Invoer!D44)," ")=0," ",IF(Invoer!E44<>"Verwijderen",(SUMIFS(Onderhoudskosten!$K:$K,Onderhoudskosten!$B:$B,Invoer!$B44)*Invoer!D44)," ")) ->  | F14: =IF(IF(Invoer!G44<>"Verwijderen",(SUMIFS(Onderhoudskosten!$K:$K,Onderhoudskosten!$B:$B,Invoer!$B44)*Invoer!F44)," ")=0," ",IF(Invoer!G44<>"Verwijderen",(SUMIFS(Onderhoudskosten!$K:$K,Onderhoudskosten!$B:$B,Invoer!$B44)*Invoer!F44)," ")) ->  | G14: =IF(2*(AC14+AD14)/100=0,"",2*(AC14+AD14)/100) ->  | H14: =IF(IF(Invoer!I44<>"Verwijderen",(SUMIFS(Onderhoudskosten!$K:$K,Onderhoudskosten!$B:$B,Invoer!$B44)*Invoer!H44)," ")=0," ",IF(Invoer!I44<>"Verwijderen",(SUMIFS(Onderhoudskosten!$K:$K,Onderhoudskosten!$B:$B,Invoer!$B44)*Invoer!H44)," ")) ->  | J14: =IF(IF(Invoer!K44<>"Verwijderen",(SUMIFS(Onderhoudskosten!$K:$K,Onderhoudskosten!$B:$B,Invoer!$B44)*Invoer!J44)," ")=0," ",IF(Invoer!K44<>"Verwijderen",(SUMIFS(Onderhoudskosten!$K:$K,Onderhoudskosten!$B:$B,Invoer!$B44)*Invoer!J44)," ")) ->  | X14: Woonstraat en parkeerterrein van betonstraatstenen | Y14: =SUMIFS(Inrichtingskosten!$H:$H,Inrichtingskosten!$C:$C,Invoer!$B44,Inrichtingskosten!$B:$B,Invoer!X44)*Invoer!D44 -> 0 | Z14: =SUMIFS(Inrichtingskosten!$H:$H,Inrichtingskosten!$C:$C,Invoer!$B44,Inrichtingskosten!$B:$B,Invoer!Y44)*Invoer!D44 -> 0 | AA14: =SUMIFS(Inrichtingskosten!$H:$H,Inrichtingskosten!$C:$C,Invoer!$B44,Inrichtingskosten!$B:$B,Invoer!Z44)*Invoer!F44 -> 0 | AB14: =SUMIFS(Inrichtingskosten!$H:$H,Inrichtingskosten!$C:$C,Invoer!$B44,Inrichtingskosten!$B:$B,Invoer!AA44)*Invoer!F44 -> 0 | AC14: =SUMIFS(Inrichtingskosten!$H:$H,Inrichtingskosten!$C:$C,Invoer!$B44,Inrichtingskosten!$B:$B,Invoer!AB44)*Invoer!H44 -> 0 | AD14: =SUMIFS(Inrichtingskosten!$H:$H,Inrichtingskosten!$C:$C,Invoer!$B44,Inrichtingskosten!$B:$B,Invoer!AC44)*Invoer!H44 -> 0 | AE14: =SUMIFS(Inrichtingskosten!$H:$H,Inrichtingskosten!$C:$C,Invoer!$B44,Inrichtingskosten!$B:$B,Invoer!AD44)*Invoer!J44 -> 0 | AF14: =SUMIFS(Inrichtingskosten!$H:$H,Inrichtingskosten!$C:$C,Invoer!$B44,Inrichtingskosten!$B:$B,Invoer!AE44)*Invoer!J44 -> 0 | AL14: Onderhoud | AM14: =SUM(D22:D32) -> 0 | AN14: =SUM(F22:F32) -> 0 | AO14: =SUM(H22:H32) -> 0 | AP14: =SUM(J22:J32) -> 0
B15: =Invoer!B45 -> Doorlatende verharding | C15: =IF(2*(Y15+Z15)/100=0,"",2*(Y15+Z15)/100) ->  | D15: =IF(IF(Invoer!E45<>"Verwijderen",(SUMIFS(Onderhoudskosten!$K:$K,Onderhoudskosten!$B:$B,Invoer!$B45)*Invoer!D45)," ")=0," ",IF(Invoer!E45<>"Verwijderen",(SUMIFS(Onderhoudskosten!$K:$K,Onderhoudskosten!$B:$B,Invoer!$B45)*Invoer!D45)," ")) ->  | E15: =IF(2*(AA15+AB15)/100=0,"",2*(AA15+AB15)/100) ->  | F15: =IF(IF(Invoer!G45<>"Verwijderen",(SUMIFS(Onderhoudskosten!$K:$K,Onderhoudskosten!$B:$B,Invoer!$B45)*Invoer!F45)," ")=0," ",IF(Invoer!G45<>"Verwijderen",(SUMIFS(Onderhoudskosten!$K:$K,Onderhoudskosten!$B:$B,Invoer!$B45)*Invoer!F45)," ")) ->  | G15: =IF(2*(AC15+AD15)/100=0,"",2*(AC15+AD15)/100) ->  | H15: =IF(IF(Invoer!I45<>"Verwijderen",(SUMIFS(Onderhoudskosten!$K:$K,Onderhoudskosten!$B:$B,Invoer!$B45)*Invoer!H45)," ")=0," ",IF(Invoer!I45<>"Verwijderen",(SUMIFS(Onderhoudskosten!$K:$K,Onderhoudskosten!$B:$B,Invoer!$B45)*Invoer!H45)," ")) ->  | I15: =IF(2*(AE15+AF15)/100=0,"",2*(AE15+AF15)/100) ->  | J15: =IF(IF(Invoer!K45<>"Verwijderen",(SUMIFS(Onderhoudskosten!$K:$K,Onderhoudskosten!$B:$B,Invoer!$B45)*Invoer!J45)," ")=0," ",IF(Invoer!K45<>"Verwijderen",(SUMIFS(Onderhoudskosten!$K:$K,Onderhoudskosten!$B:$B,Invoer!$B45)*Invoer!J45)," ")) ->  | X15: =B15 -> Doorlatende verharding | Y15: =SUMIFS(Inrichtingskosten!$H:$H,Inrichtingskosten!$C:$C,Invoer!$B45,Inrichtingskosten!$B:$B,Invoer!X45)*Invoer!D45 -> 0 | Z15: =SUMIFS(Inrichtingskosten!$H:$H,Inrichtingskosten!$C:$C,Invoer!$B45,Inrichtingskosten!$B:$B,Invoer!Y45)*Invoer!D45 -> 0 | AA15: =SUMIFS(Inrichtingskosten!$H:$H,Inrichtingskosten!$C:$C,Invoer!$B45,Inrichtingskosten!$B:$B,Invoer!Z45)*Invoer!F45 -> 0 | AB15: =SUMIFS(Inrichtingskosten!$H:$H,Inrichtingskosten!$C:$C,Invoer!$B45,Inrichtingskosten!$B:$B,Invoer!AA45)*Invoer!F45 -> 0 | AC15: =SUMIFS(Inrichtingskosten!$H:$H,Inrichtingskosten!$C:$C,Invoer!$B45,Inrichtingskosten!$B:$B,Invoer!AB45)*Invoer!H45 -> 0 | AD15: =SUMIFS(Inrichtingskosten!$H:$H,Inrichtingskosten!$C:$C,Invoer!$B45,Inrichtingskosten!$B:$B,Invoer!AC45)*Invoer!H45 -> 0 | AE15: =SUMIFS(Inrichtingskosten!$H:$H,Inrichtingskosten!$C:$C,Invoer!$B45,Inrichtingskosten!$B:$B,Invoer!AD45)*Invoer!J45 -> 0 | AF15: =SUMIFS(Inrichtingskosten!$H:$H,Inrichtingskosten!$C:$C,Invoer!$B45,Inrichtingskosten!$B:$B,Invoer!AE45)*Invoer!J45 -> 0
B16: =Invoer!B46 ->  | D16: =IF(IF(Invoer!E46<>"Verwijderen",(SUMIFS(Onderhoudskosten!$K:$K,Onderhoudskosten!$B:$B,Invoer!$B46)*Invoer!D46)," ")=0," ",IF(Invoer!E46<>"Verwijderen",(SUMIFS(Onderhoudskosten!$K:$K,Onderhoudskosten!$B:$B,Invoer!$B46)*Invoer!D46)," ")) ->  | F16: =IF(IF(Invoer!G46<>"Verwijderen",(SUMIFS(Onderhoudskosten!$K:$K,Onderhoudskosten!$B:$B,Invoer!$B46)*Invoer!F46)," ")=0," ",IF(Invoer!G46<>"Verwijderen",(SUMIFS(Onderhoudskosten!$K:$K,Onderhoudskosten!$B:$B,Invoer!$B46)*Invoer!F46)," ")) ->  | H16: =IF(IF(Invoer!I46<>"Verwijderen",(SUMIFS(Onderhoudskosten!$K:$K,Onderhoudskosten!$B:$B,Invoer!$B46)*Invoer!H46)," ")=0," ",IF(Invoer!I46<>"Verwijderen",(SUMIFS(Onderhoudskosten!$K:$K,Onderhoudskosten!$B:$B,Invoer!$B46)*Invoer!H46)," ")) ->  | J16: =IF(IF(Invoer!K46<>"Verwijderen",(SUMIFS(Onderhoudskosten!$K:$K,Onderhoudskosten!$B:$B,Invoer!$B46)*Invoer!J46)," ")=0," ",IF(Invoer!K46<>"Verwijderen",(SUMIFS(Onderhoudskosten!$K:$K,Onderhoudskosten!$B:$B,Invoer!$B46)*Invoer!J46)," ")) ->  | Y16: =SUMIFS(Inrichtingskosten!$H:$H,Inrichtingskosten!$C:$C,Invoer!$B46,Inrichtingskosten!$B:$B,Invoer!X46)*Invoer!D46 -> 0 | Z16: =SUMIFS(Inrichtingskosten!$H:$H,Inrichtingskosten!$C:$C,Invoer!$B46,Inrichtingskosten!$B:$B,Invoer!Y46)*Invoer!D46 -> 0 | AA16: =SUMIFS(Inrichtingskosten!$H:$H,Inrichtingskosten!$C:$C,Invoer!$B46,Inrichtingskosten!$B:$B,Invoer!Z46)*Invoer!F46 -> 0 | AB16: =SUMIFS(Inrichtingskosten!$H:$H,Inrichtingskosten!$C:$C,Invoer!$B46,Inrichtingskosten!$B:$B,Invoer!AA46)*Invoer!F46 -> 0 | AC16: =SUMIFS(Inrichtingskosten!$H:$H,Inrichtingskosten!$C:$C,Invoer!$B46,Inrichtingskosten!$B:$B,Invoer!AB46)*Invoer!H46 -> 0 | AD16: =SUMIFS(Inrichtingskosten!$H:$H,Inrichtingskosten!$C:$C,Invoer!$B46,Inrichtingskosten!$B:$B,Invoer!AC46)*Invoer!H46 -> 0 | AE16: =SUMIFS(Inrichtingskosten!$H:$H,Inrichtingskosten!$C:$C,Invoer!$B46,Inrichtingskosten!$B:$B,Invoer!AD46)*Invoer!J46 -> 0 | AF16: =SUMIFS(Inrichtingskosten!$H:$H,Inrichtingskosten!$C:$C,Invoer!$B46,Inrichtingskosten!$B:$B,Invoer!AE46)*Invoer!J46 -> 0
B17: =Invoer!B47 ->  | D17: =IF(IF(Invoer!E47<>"Verwijderen",(SUMIFS(Onderhoudskosten!$K:$K,Onderhoudskosten!$B:$B,Invoer!$B47)*Invoer!D47)," ")=0," ",IF(Invoer!E47<>"Verwijderen",(SUMIFS(Onderhoudskosten!$K:$K,Onderhoudskosten!$B:$B,Invoer!$B47)*Invoer!D47)," ")) ->  | F17: =IF(IF(Invoer!G47<>"Verwijderen",(SUMIFS(Onderhoudskosten!$K:$K,Onderhoudskosten!$B:$B,Invoer!$B47)*Invoer!F47)," ")=0," ",IF(Invoer!G47<>"Verwijderen",(SUMIFS(Onderhoudskosten!$K:$K,Onderhoudskosten!$B:$B,Invoer!$B47)*Invoer!F47)," ")) ->  | H17: =IF(IF(Invoer!I47<>"Verwijderen",(SUMIFS(Onderhoudskosten!$K:$K,Onderhoudskosten!$B:$B,Invoer!$B47)*Invoer!H47)," ")=0," ",IF(Invoer!I47<>"Verwijderen",(SUMIFS(Onderhoudskosten!$K:$K,Onderhoudskosten!$B:$B,Invoer!$B47)*Invoer!H47)," ")) ->  | J17: =IF(IF(Invoer!K47<>"Verwijderen",(SUMIFS(Onderhoudskosten!$K:$K,Onderhoudskosten!$B:$B,Invoer!$B47)*Invoer!J47)," ")=0," ",IF(Invoer!K47<>"Verwijderen",(SUMIFS(Onderhoudskosten!$K:$K,Onderhoudskosten!$B:$B,Invoer!$B47)*Invoer!J47)," ")) ->  | Y17: =SUMIFS(Inrichtingskosten!$H:$H,Inrichtingskosten!$C:$C,Invoer!$B47,Inrichtingskosten!$B:$B,Invoer!X47)*Invoer!D47 -> 0 | Z17: =SUMIFS(Inrichtingskosten!$H:$H,Inrichtingskosten!$C:$C,Invoer!$B47,Inrichtingskosten!$B:$B,Invoer!Y47)*Invoer!D47 -> 0 | AA17: =SUMIFS(Inrichtingskosten!$H:$H,Inrichtingskosten!$C:$C,Invoer!$B47,Inrichtingskosten!$B:$B,Invoer!Z47)*Invoer!F47 -> 0 | AB17: =SUMIFS(Inrichtingskosten!$H:$H,Inrichtingskosten!$C:$C,Invoer!$B47,Inrichtingskosten!$B:$B,Invoer!AA47)*Invoer!F47 -> 0 | AC17: =SUMIFS(Inrichtingskosten!$H:$H,Inrichtingskosten!$C:$C,Invoer!$B47,Inrichtingskosten!$B:$B,Invoer!AB47)*Invoer!H47 -> 0 | AD17: =SUMIFS(Inrichtingskosten!$H:$H,Inrichtingskosten!$C:$C,Invoer!$B47,Inrichtingskosten!$B:$B,Invoer!AC47)*Invoer!H47 -> 0 | AE17: =SUMIFS(Inrichtingskosten!$H:$H,Inrichtingskosten!$C:$C,Invoer!$B47,Inrichtingskosten!$B:$B,Invoer!AD47)*Invoer!J47 -> 0 | AF17: =SUMIFS(Inrichtingskosten!$H:$H,Inrichtingskosten!$C:$C,Invoer!$B47,Inrichtingskosten!$B:$B,Invoer!AE47)*Invoer!J47 -> 0
B18: =Invoer!B48 ->  | D18: =IF(IF(Invoer!E48<>"Verwijderen",(SUMIFS(Onderhoudskosten!$K:$K,Onderhoudskosten!$B:$B,Invoer!$B48)*Invoer!D48)," ")=0," ",IF(Invoer!E48<>"Verwijderen",(SUMIFS(Onderhoudskosten!$K:$K,Onderhoudskosten!$B:$B,Invoer!$B48)*Invoer!D48)," ")) ->  | F18: =IF(IF(Invoer!G48<>"Verwijderen",(SUMIFS(Onderhoudskosten!$K:$K,Onderhoudskosten!$B:$B,Invoer!$B48)*Invoer!F48)," ")=0," ",IF(Invoer!G48<>"Verwijderen",(SUMIFS(Onderhoudskosten!$K:$K,Onderhoudskosten!$B:$B,Invoer!$B48)*Invoer!F48)," ")) ->  | H18: =IF(IF(Invoer!I48<>"Verwijderen",(SUMIFS(Onderhoudskosten!$K:$K,Onderhoudskosten!$B:$B,Invoer!$B48)*Invoer!H48)," ")=0," ",IF(Invoer!I48<>"Verwijderen",(SUMIFS(Onderhoudskosten!$K:$K,Onderhoudskosten!$B:$B,Invoer!$B48)*Invoer!H48)," ")) ->  | J18: =IF(IF(Invoer!K48<>"Verwijderen",(SUMIFS(Onderhoudskosten!$K:$K,Onderhoudskosten!$B:$B,Invoer!$B48)*Invoer!J48)," ")=0," ",IF(Invoer!K48<>"Verwijderen",(SUMIFS(Onderhoudskosten!$K:$K,Onderhoudskosten!$B:$B,Invoer!$B48)*Invoer!J48)," ")) ->  | Y18: =SUMIFS(Inrichtingskosten!$H:$H,Inrichtingskosten!$C:$C,Invoer!$B48,Inrichtingskosten!$B:$B,Invoer!X48)*Invoer!D48 -> 0 | Z18: =SUMIFS(Inrichtingskosten!$H:$H,Inrichtingskosten!$C:$C,Invoer!$B48,Inrichtingskosten!$B:$B,Invoer!Y48)*Invoer!D48 -> 0 | AA18: =SUMIFS(Inrichtingskosten!$H:$H,Inrichtingskosten!$C:$C,Invoer!$B48,Inrichtingskosten!$B:$B,Invoer!Z48)*Invoer!F48 -> 0 | AB18: =SUMIFS(Inrichtingskosten!$H:$H,Inrichtingskosten!$C:$C,Invoer!$B48,Inrichtingskosten!$B:$B,Invoer!AA48)*Invoer!F48 -> 0 | AC18: =SUMIFS(Inrichtingskosten!$H:$H,Inrichtingskosten!$C:$C,Invoer!$B48,Inrichtingskosten!$B:$B,Invoer!AB48)*Invoer!H48 -> 0 | AD18: =SUMIFS(Inrichtingskosten!$H:$H,Inrichtingskosten!$C:$C,Invoer!$B48,Inrichtingskosten!$B:$B,Invoer!AC48)*Invoer!H48 -> 0 | AE18: =SUMIFS(Inrichtingskosten!$H:$H,Inrichtingskosten!$C:$C,Invoer!$B48,Inrichtingskosten!$B:$B,Invoer!AD48)*Invoer!J48 -> 0 | AF18: =SUMIFS(Inrichtingskosten!$H:$H,Inrichtingskosten!$C:$C,Invoer!$B48,Inrichtingskosten!$B:$B,Invoer!AE48)*Invoer!J48 -> 0
B19: =Invoer!B49 ->  | D19: =IF(IF(Invoer!E49<>"Verwijderen",(SUMIFS(Onderhoudskosten!$K:$K,Onderhoudskosten!$B:$B,Invoer!$B49)*Invoer!D49)," ")=0," ",IF(Invoer!E49<>"Verwijderen",(SUMIFS(Onderhoudskosten!$K:$K,Onderhoudskosten!$B:$B,Invoer!$B49)*Invoer!D49)," ")) ->  | F19: =IF(IF(Invoer!G49<>"Verwijderen",(SUMIFS(Onderhoudskosten!$K:$K,Onderhoudskosten!$B:$B,Invoer!$B49)*Invoer!F49)," ")=0," ",IF(Invoer!G49<>"Verwijderen",(SUMIFS(Onderhoudskosten!$K:$K,Onderhoudskosten!$B:$B,Invoer!$B49)*Invoer!F49)," ")) ->  | H19: =IF(IF(Invoer!I49<>"Verwijderen",(SUMIFS(Onderhoudskosten!$K:$K,Onderhoudskosten!$B:$B,Invoer!$B49)*Invoer!H49)," ")=0," ",IF(Invoer!I49<>"Verwijderen",(SUMIFS(Onderhoudskosten!$K:$K,Onderhoudskosten!$B:$B,Invoer!$B49)*Invoer!H49)," ")) ->  | J19: =IF(IF(Invoer!K49<>"Verwijderen",(SUMIFS(Onderhoudskosten!$K:$K,Onderhoudskosten!$B:$B,Invoer!$B49)*Invoer!J49)," ")=0," ",IF(Invoer!K49<>"Verwijderen",(SUMIFS(Onderhoudskosten!$K:$K,Onderhoudskosten!$B:$B,Invoer!$B49)*Invoer!J49)," ")) ->  | Y19: =SUMIFS(Inrichtingskosten!$H:$H,Inrichtingskosten!$C:$C,Invoer!$B49,Inrichtingskosten!$B:$B,Invoer!X49)*Invoer!D49 -> 0 | Z19: =SUMIFS(Inrichtingskosten!$H:$H,Inrichtingskosten!$C:$C,Invoer!$B49,Inrichtingskosten!$B:$B,Invoer!Y49)*Invoer!D49 -> 0 | AA19: =SUMIFS(Inrichtingskosten!$H:$H,Inrichtingskosten!$C:$C,Invoer!$B49,Inrichtingskosten!$B:$B,Invoer!Z49)*Invoer!F49 -> 0 | AB19: =SUMIFS(Inrichtingskosten!$H:$H,Inrichtingskosten!$C:$C,Invoer!$B49,Inrichtingskosten!$B:$B,Invoer!AA49)*Invoer!F49 -> 0 | AC19: =SUMIFS(Inrichtingskosten!$H:$H,Inrichtingskosten!$C:$C,Invoer!$B49,Inrichtingskosten!$B:$B,Invoer!AB49)*Invoer!H49 -> 0 | AD19: =SUMIFS(Inrichtingskosten!$H:$H,Inrichtingskosten!$C:$C,Invoer!$B49,Inrichtingskosten!$B:$B,Invoer!AC49)*Invoer!H49 -> 0 | AE19: =SUMIFS(Inrichtingskosten!$H:$H,Inrichtingskosten!$C:$C,Invoer!$B49,Inrichtingskosten!$B:$B,Invoer!AD49)*Invoer!J49 -> 0 | AF19: =SUMIFS(Inrichtingskosten!$H:$H,Inrichtingskosten!$C:$C,Invoer!$B49,Inrichtingskosten!$B:$B,Invoer!AE49)*Invoer!J49 -> 0 | AK19: Gescheiden hemelwaterriool | AL19: =AL13 -> Realisatie | AM19: =SUM(Y34:Y44)+SUM(Z34:Z44) -> 0 | AN19: =SUM(AA34:AA44)+SUM(AB34:AB44) -> 0 | AO19: =SUM(AD34:AD44)+SUM(AC34:AC44) -> 0 | AP19: =SUM(AF34:AF44)+SUM(AE34:AE44) -> 0
B20: =Invoer!B50 ->  | D20: =IF(IF(Invoer!E50<>"Verwijderen",(SUMIFS(Onderhoudskosten!$K:$K,Onderhoudskosten!$B:$B,Invoer!$B50)*Invoer!D50)," ")=0," ",IF(Invoer!E50<>"Verwijderen",(SUMIFS(Onderhoudskosten!$K:$K,Onderhoudskosten!$B:$B,Invoer!$B50)*Invoer!D50)," ")) ->  | F20: =IF(IF(Invoer!G50<>"Verwijderen",(SUMIFS(Onderhoudskosten!$K:$K,Onderhoudskosten!$B:$B,Invoer!$B50)*Invoer!F50)," ")=0," ",IF(Invoer!G50<>"Verwijderen",(SUMIFS(Onderhoudskosten!$K:$K,Onderhoudskosten!$B:$B,Invoer!$B50)*Invoer!F50)," ")) ->  | H20: =IF(IF(Invoer!I50<>"Verwijderen",(SUMIFS(Onderhoudskosten!$K:$K,Onderhoudskosten!$B:$B,Invoer!$B50)*Invoer!H50)," ")=0," ",IF(Invoer!I50<>"Verwijderen",(SUMIFS(Onderhoudskosten!$K:$K,Onderhoudskosten!$B:$B,Invoer!$B50)*Invoer!H50)," ")) ->  | J20: =IF(IF(Invoer!K50<>"Verwijderen",(SUMIFS(Onderhoudskosten!$K:$K,Onderhoudskosten!$B:$B,Invoer!$B50)*Invoer!J50)," ")=0," ",IF(Invoer!K50<>"Verwijderen",(SUMIFS(Onderhoudskosten!$K:$K,Onderhoudskosten!$B:$B,Invoer!$B50)*Invoer!J50)," ")) ->  | Y20: =SUMIFS(Inrichtingskosten!$H:$H,Inrichtingskosten!$C:$C,Invoer!$B50,Inrichtingskosten!$B:$B,Invoer!X50)*Invoer!D50 -> 0 | Z20: =SUMIFS(Inrichtingskosten!$H:$H,Inrichtingskosten!$C:$C,Invoer!$B50,Inrichtingskosten!$B:$B,Invoer!Y50)*Invoer!D50 -> 0 | AA20: =SUMIFS(Inrichtingskosten!$H:$H,Inrichtingskosten!$C:$C,Invoer!$B50,Inrichtingskosten!$B:$B,Invoer!Z50)*Invoer!F50 -> 0 | AB20: =SUMIFS(Inrichtingskosten!$H:$H,Inrichtingskosten!$C:$C,Invoer!$B50,Inrichtingskosten!$B:$B,Invoer!AA50)*Invoer!F50 -> 0 | AC20: =SUMIFS(Inrichtingskosten!$H:$H,Inrichtingskosten!$C:$C,Invoer!$B50,Inrichtingskosten!$B:$B,Invoer!AB50)*Invoer!H50 -> 0 | AD20: =SUMIFS(Inrichtingskosten!$H:$H,Inrichtingskosten!$C:$C,Invoer!$B50,Inrichtingskosten!$B:$B,Invoer!AC50)*Invoer!H50 -> 0 | AE20: =SUMIFS(Inrichtingskosten!$H:$H,Inrichtingskosten!$C:$C,Invoer!$B50,Inrichtingskosten!$B:$B,Invoer!AD50)*Invoer!J50 -> 0 | AF20: =SUMIFS(Inrichtingskosten!$H:$H,Inrichtingskosten!$C:$C,Invoer!$B50,Inrichtingskosten!$B:$B,Invoer!AE50)*Invoer!J50 -> 0 | AL20: =AL14 -> Onderhoud | AM20: =SUM(D34:D44) -> 0 | AN20: =SUM(F34:F352) ->  | AO20: =SUM(H34:H44) -> 0 | AP20: =SUM(J34:J44) -> 0
B21: =Invoer!B51 -> Infiltratiesystemen | X21: =Invoer!B51 -> Infiltratiesystemen | AK21: Gemengd- of afvalwaterriool | AL21: Realisatie | AM21: =SUM(Y46:Y57)+SUM(Z46:Z57) -> 0 | AN21: =SUM(AA46:AA57)+SUM(AB46:AB57) -> 0 | AO21: =SUM(AD46:AD57)+SUM(AC46:AC57) -> 0 | AP21: =SUM(AF46:AF57)+SUM(AE46:AE57) -> 0
B22: =Invoer!B52 -> Centrale wadi | C22: =IF(2*(Y22+Z22)/100=0,"",2*(Y22+Z22)/100) ->  | D22: =IF(IF(Invoer!E52<>"Verwijderen",(SUMIFS(Onderhoudskosten!$K:$K,Onderhoudskosten!$B:$B,Invoer!$B52)*Invoer!D52)," ")=0," ",IF(Invoer!E52<>"Verwijderen",(SUMIFS(Onderhoudskosten!$K:$K,Onderhoudskosten!$B:$B,Invoer!$B52)*Invoer!D52)," ")) ->  | E22: =IF(2*(AA22+AB22)/100=0,"",2*(AA22+AB22)/100) ->  | F22: =IF(IF(Invoer!G52<>"Verwijderen",(SUMIFS(Onderhoudskosten!$K:$K,Onderhoudskosten!$B:$B,Invoer!$B52)*Invoer!F52)," ")=0," ",IF(Invoer!G52<>"Verwijderen",(SUMIFS(Onderhoudskosten!$K:$K,Onderhoudskosten!$B:$B,Invoer!$B52)*Invoer!F52)," ")) ->  | G22: =IF(2*(AC22+AD22)/100=0,"",2*(AC22+AD22)/100) ->  | H22: =IF(IF(Invoer!I52<>"Verwijderen",(SUMIFS(Onderhoudskosten!$K:$K,Onderhoudskosten!$B:$B,Invoer!$B52)*Invoer!H52)," ")=0," ",IF(Invoer!I52<>"Verwijderen",(SUMIFS(Onderhoudskosten!$K:$K,Onderhoudskosten!$B:$B,Invoer!$B52)*Invoer!H52)," ")) ->  | I22: =IF(2*(AE22+AF22)/100=0,"",2*(AE22+AF22)/100) ->  | J22: =IF(IF(Invoer!K52<>"Verwijderen",(SUMIFS(Onderhoudskosten!$K:$K,Onderhoudskosten!$B:$B,Invoer!$B52)*Invoer!J52)," ")=0," ",IF(Invoer!K52<>"Verwijderen",(SUMIFS(Onderhoudskosten!$K:$K,Onderhoudskosten!$B:$B,Invoer!$B52)*Invoer!J52)," ")) ->  | X22: =B22 -> Centrale wadi | Y22: =SUMIFS(Inrichtingskosten!$H:$H,Inrichtingskosten!$C:$C,Invoer!$B52,Inrichtingskosten!$B:$B,Invoer!X52)*Invoer!D52 -> 0 | Z22: =SUMIFS(Inrichtingskosten!$H:$H,Inrichtingskosten!$C:$C,Invoer!$B52,Inrichtingskosten!$B:$B,Invoer!Y52)*Invoer!D52 -> 0 | AA22: =SUMIFS(Inrichtingskosten!$H:$H,Inrichtingskosten!$C:$C,Invoer!$B52,Inrichtingskosten!$B:$B,Invoer!Z52)*Invoer!F52 -> 0 | AB22: =SUMIFS(Inrichtingskosten!$H:$H,Inrichtingskosten!$C:$C,Invoer!$B52,Inrichtingskosten!$B:$B,Invoer!AA52)*Invoer!F52 -> 0 | AC22: =SUMIFS(Inrichtingskosten!$H:$H,Inrichtingskosten!$C:$C,Invoer!$B52,Inrichtingskosten!$B:$B,Invoer!AB52)*Invoer!H52 -> 0 | AD22: =SUMIFS(Inrichtingskosten!$H:$H,Inrichtingskosten!$C:$C,Invoer!$B52,Inrichtingskosten!$B:$B,Invoer!AC52)*Invoer!H52 -> 0 | AE22: =SUMIFS(Inrichtingskosten!$H:$H,Inrichtingskosten!$C:$C,Invoer!$B52,Inrichtingskosten!$B:$B,Invoer!AD52)*Invoer!J52 -> 0 | AF22: =SUMIFS(Inrichtingskosten!$H:$H,Inrichtingskosten!$C:$C,Invoer!$B52,Inrichtingskosten!$B:$B,Invoer!AE52)*Invoer!J52 -> 0 | AL22: Onderhoud | AM22: =SUM(D46:D57) -> 0 | AN22: =SUM(F46:F57) -> 0 | AO22: =SUM(H46:H57) -> 0 | AP22: =SUM(J46:J57) -> 0
B23: =Invoer!B53 -> Molgoot | C23: =IF(2*(Y23+Z23)/100=0,"",2*(Y23+Z23)/100) ->  | D23: =IF(IF(Invoer!E53<>"Verwijderen",(SUMIFS(Onderhoudskosten!$K:$K,Onderhoudskosten!$B:$B,Invoer!$B53)*Invoer!D53)," ")=0," ",IF(Invoer!E53<>"Verwijderen",(SUMIFS(Onderhoudskosten!$K:$K,Onderhoudskosten!$B:$B,Invoer!$B53)*Invoer!D53)," ")) ->  | E23: =IF(2*(AA23+AB23)/100=0,"",2*(AA23+AB23)/100) ->  | F23: =IF(IF(Invoer!G53<>"Verwijderen",(SUMIFS(Onderhoudskosten!$K:$K,Onderhoudskosten!$B:$B,Invoer!$B53)*Invoer!F53)," ")=0," ",IF(Invoer!G53<>"Verwijderen",(SUMIFS(Onderhoudskosten!$K:$K,Onderhoudskosten!$B:$B,Invoer!$B53)*Invoer!F53)," ")) ->  | G23: =IF(2*(AC23+AD23)/100=0,"",2*(AC23+AD23)/100) ->  | H23: =IF(IF(Invoer!I53<>"Verwijderen",(SUMIFS(Onderhoudskosten!$K:$K,Onderhoudskosten!$B:$B,Invoer!$B53)*Invoer!H53)," ")=0," ",IF(Invoer!I53<>"Verwijderen",(SUMIFS(Onderhoudskosten!$K:$K,Onderhoudskosten!$B:$B,Invoer!$B53)*Invoer!H53)," ")) ->  | I23: =IF(2*(AE23+AF23)/100=0,"",2*(AE23+AF23)/100) ->  | J23: =IF(IF(Invoer!K53<>"Verwijderen",(SUMIFS(Onderhoudskosten!$K:$K,Onderhoudskosten!$B:$B,Invoer!$B53)*Invoer!J53)," ")=0," ",IF(Invoer!K53<>"Verwijderen",(SUMIFS(Onderhoudskosten!$K:$K,Onderhoudskosten!$B:$B,Invoer!$B53)*Invoer!J53)," ")) ->  | X23: =B23 -> Molgoot | Y23: =SUMIFS(Inrichtingskosten!$H:$H,Inrichtingskosten!$C:$C,Invoer!$B53,Inrichtingskosten!$B:$B,Invoer!X53)*Invoer!D53 -> 0 | Z23: =SUMIFS(Inrichtingskosten!$H:$H,Inrichtingskosten!$C:$C,Invoer!$B53,Inrichtingskosten!$B:$B,Invoer!Y53)*Invoer!D53 -> 0 | AA23: =SUMIFS(Inrichtingskosten!$H:$H,Inrichtingskosten!$C:$C,Invoer!$B53,Inrichtingskosten!$B:$B,Invoer!Z53)*Invoer!F53 -> 0 | AB23: =SUMIFS(Inrichtingskosten!$H:$H,Inrichtingskosten!$C:$C,Invoer!$B53,Inrichtingskosten!$B:$B,Invoer!AA53)*Invoer!F53 -> 0 | AC23: =SUMIFS(Inrichtingskosten!$H:$H,Inrichtingskosten!$C:$C,Invoer!$B53,Inrichtingskosten!$B:$B,Invoer!AB53)*Invoer!H53 -> 0 | AD23: =SUMIFS(Inrichtingskosten!$H:$H,Inrichtingskosten!$C:$C,Invoer!$B53,Inrichtingskosten!$B:$B,Invoer!AC53)*Invoer!H53 -> 0 | AE23: =SUMIFS(Inrichtingskosten!$H:$H,Inrichtingskosten!$C:$C,Invoer!$B53,Inrichtingskosten!$B:$B,Invoer!AD53)*Invoer!J53 -> 0 | AF23: =SUMIFS(Inrichtingskosten!$H:$H,Inrichtingskosten!$C:$C,Invoer!$B53,Inrichtingskosten!$B:$B,Invoer!AE53)*Invoer!J53 -> 0 | AK23: Groenvoorziening | AL23: Realisatie | AM23: =SUM(Y59:Y66)+SUM(Z59:Z66) -> 0 | AN23: =SUM(AA59:AA66)+SUM(AB59:AB66) -> 0 | AO23: =SUM(AD59:AD66)+SUM(AC59:AC66) -> 0 | AP23: =SUM(AF59:AF66)+SUM(AE59:AE66) -> 0
B24: =Invoer!B54 -> Verbindingsleiding | C24: =IF(2*(Y24+Z24)/100=0,"",2*(Y24+Z24)/100) ->  | D24: =IF(IF(Invoer!E54<>"Verwijderen",(SUMIFS(Onderhoudskosten!$K:$K,Onderhoudskosten!$B:$B,Invoer!$B54)*Invoer!D54)," ")=0," ",IF(Invoer!E54<>"Verwijderen",(SUMIFS(Onderhoudskosten!$K:$K,Onderhoudskosten!$B:$B,Invoer!$B54)*Invoer!D54)," ")) ->  | E24: =IF(2*(AA24+AB24)/100=0,"",2*(AA24+AB24)/100) ->  | F24: =IF(IF(Invoer!G54<>"Verwijderen",(SUMIFS(Onderhoudskosten!$K:$K,Onderhoudskosten!$B:$B,Invoer!$B54)*Invoer!F54)," ")=0," ",IF(Invoer!G54<>"Verwijderen",(SUMIFS(Onderhoudskosten!$K:$K,Onderhoudskosten!$B:$B,Invoer!$B54)*Invoer!F54)," ")) ->  | G24: =IF(2*(AC24+AD24)/100=0,"",2*(AC24+AD24)/100) ->  | H24: =IF(IF(Invoer!I54<>"Verwijderen",(SUMIFS(Onderhoudskosten!$K:$K,Onderhoudskosten!$B:$B,Invoer!$B54)*Invoer!H54)," ")=0," ",IF(Invoer!I54<>"Verwijderen",(SUMIFS(Onderhoudskosten!$K:$K,Onderhoudskosten!$B:$B,Invoer!$B54)*Invoer!H54)," ")) ->  | I24: =IF(2*(AE24+AF24)/100=0,"",2*(AE24+AF24)/100) ->  | J24: =IF(IF(Invoer!K54<>"Verwijderen",(SUMIFS(Onderhoudskosten!$K:$K,Onderhoudskosten!$B:$B,Invoer!$B54)*Invoer!J54)," ")=0," ",IF(Invoer!K54<>"Verwijderen",(SUMIFS(Onderhoudskosten!$K:$K,Onderhoudskosten!$B:$B,Invoer!$B54)*Invoer!J54)," ")) ->  | X24: =B24 -> Verbindingsleiding | Y24: =SUMIFS(Inrichtingskosten!$H:$H,Inrichtingskosten!$C:$C,Invoer!$B54,Inrichtingskosten!$B:$B,Invoer!X54)*Invoer!D54 -> 0 | Z24: =SUMIFS(Inrichtingskosten!$H:$H,Inrichtingskosten!$C:$C,Invoer!$B54,Inrichtingskosten!$B:$B,Invoer!Y54)*Invoer!D54 -> 0 | AA24: =SUMIFS(Inrichtingskosten!$H:$H,Inrichtingskosten!$C:$C,Invoer!$B54,Inrichtingskosten!$B:$B,Invoer!Z54)*Invoer!F54 -> 0 | AB24: =SUMIFS(Inrichtingskosten!$H:$H,Inrichtingskosten!$C:$C,Invoer!$B54,Inrichtingskosten!$B:$B,Invoer!AA54)*Invoer!F54 -> 0 | AC24: =SUMIFS(Inrichtingskosten!$H:$H,Inrichtingskosten!$C:$C,Invoer!$B54,Inrichtingskosten!$B:$B,Invoer!AB54)*Invoer!H54 -> 0 | AD24: =SUMIFS(Inrichtingskosten!$H:$H,Inrichtingskosten!$C:$C,Invoer!$B54,Inrichtingskosten!$B:$B,Invoer!AC54)*Invoer!H54 -> 0 | AE24: =SUMIFS(Inrichtingskosten!$H:$H,Inrichtingskosten!$C:$C,Invoer!$B54,Inrichtingskosten!$B:$B,Invoer!AD54)*Invoer!J54 -> 0 | AF24: =SUMIFS(Inrichtingskosten!$H:$H,Inrichtingskosten!$C:$C,Invoer!$B54,Inrichtingskosten!$B:$B,Invoer!AE54)*Invoer!J54 -> 0
B25: =Invoer!B55 -> 0 | D25: =IF(IF(Invoer!E55<>"Verwijderen",(SUMIFS(Onderhoudskosten!$K:$K,Onderhoudskosten!$B:$B,Invoer!$B55)*Invoer!D55)," ")=0," ",IF(Invoer!E55<>"Verwijderen",(SUMIFS(Onderhoudskosten!$K:$K,Onderhoudskosten!$B:$B,Invoer!$B55)*Invoer!D55)," ")) ->  | F25: =IF(IF(Invoer!G55<>"Verwijderen",(SUMIFS(Onderhoudskosten!$K:$K,Onderhoudskosten!$B:$B,Invoer!$B55)*Invoer!F55)," ")=0," ",IF(Invoer!G55<>"Verwijderen",(SUMIFS(Onderhoudskosten!$K:$K,Onderhoudskosten!$B:$B,Invoer!$B55)*Invoer!F55)," ")) ->  | H25: =IF(IF(Invoer!I55<>"Verwijderen",(SUMIFS(Onderhoudskosten!$K:$K,Onderhoudskosten!$B:$B,Invoer!$B55)*Invoer!H55)," ")=0," ",IF(Invoer!I55<>"Verwijderen",(SUMIFS(Onderhoudskosten!$K:$K,Onderhoudskosten!$B:$B,Invoer!$B55)*Invoer!H55)," ")) ->  | J25: =IF(IF(Invoer!K55<>"Verwijderen",(SUMIFS(Onderhoudskosten!$K:$K,Onderhoudskosten!$B:$B,Invoer!$B55)*Invoer!J55)," ")=0," ",IF(Invoer!K55<>"Verwijderen",(SUMIFS(Onderhoudskosten!$K:$K,Onderhoudskosten!$B:$B,Invoer!$B55)*Invoer!J55)," ")) ->  | X25: 0 | Y25: =SUMIFS(Inrichtingskosten!$H:$H,Inrichtingskosten!$C:$C,Invoer!$B55,Inrichtingskosten!$B:$B,Invoer!X55)*Invoer!D55 -> 0 | Z25: =SUMIFS(Inrichtingskosten!$H:$H,Inrichtingskosten!$C:$C,Invoer!$B55,Inrichtingskosten!$B:$B,Invoer!Y55)*Invoer!D55 -> 0 | AA25: =SUMIFS(Inrichtingskosten!$H:$H,Inrichtingskosten!$C:$C,Invoer!$B55,Inrichtingskosten!$B:$B,Invoer!Z55)*Invoer!F55 -> 0 | AB25: =SUMIFS(Inrichtingskosten!$H:$H,Inrichtingskosten!$C:$C,Invoer!$B55,Inrichtingskosten!$B:$B,Invoer!AA55)*Invoer!F55 -> 0 | AC25: =SUMIFS(Inrichtingskosten!$H:$H,Inrichtingskosten!$C:$C,Invoer!$B55,Inrichtingskosten!$B:$B,Invoer!AB55)*Invoer!H55 -> 0 | AD25: =SUMIFS(Inrichtingskosten!$H:$H,Inrichtingskosten!$C:$C,Invoer!$B55,Inrichtingskosten!$B:$B,Invoer!AC55)*Invoer!H55 -> 0 | AE25: =SUMIFS(Inrichtingskosten!$H:$H,Inrichtingskosten!$C:$C,Invoer!$B55,Inrichtingskosten!$B:$B,Invoer!AD55)*Invoer!J55 -> 0 | AF25: =SUMIFS(Inrichtingskosten!$H:$H,Inrichtingskosten!$C:$C,Invoer!$B55,Inrichtingskosten!$B:$B,Invoer!AE55)*Invoer!J55 -> 0
B26: =Invoer!B56 -> 0 | D26: =IF(IF(Invoer!E56<>"Verwijderen",(SUMIFS(Onderhoudskosten!$K:$K,Onderhoudskosten!$B:$B,Invoer!$B56)*Invoer!D56)," ")=0," ",IF(Invoer!E56<>"Verwijderen",(SUMIFS(Onderhoudskosten!$K:$K,Onderhoudskosten!$B:$B,Invoer!$B56)*Invoer!D56)," ")) ->  | F26: =IF(IF(Invoer!G56<>"Verwijderen",(SUMIFS(Onderhoudskosten!$K:$K,Onderhoudskosten!$B:$B,Invoer!$B56)*Invoer!F56)," ")=0," ",IF(Invoer!G56<>"Verwijderen",(SUMIFS(Onderhoudskosten!$K:$K,Onderhoudskosten!$B:$B,Invoer!$B56)*Invoer!F56)," ")) ->  | H26: =IF(IF(Invoer!I56<>"Verwijderen",(SUMIFS(Onderhoudskosten!$K:$K,Onderhoudskosten!$B:$B,Invoer!$B56)*Invoer!H56)," ")=0," ",IF(Invoer!I56<>"Verwijderen",(SUMIFS(Onderhoudskosten!$K:$K,Onderhoudskosten!$B:$B,Invoer!$B56)*Invoer!H56)," ")) ->  | J26: =IF(IF(Invoer!K56<>"Verwijderen",(SUMIFS(Onderhoudskosten!$K:$K,Onderhoudskosten!$B:$B,Invoer!$B56)*Invoer!J56)," ")=0," ",IF(Invoer!K56<>"Verwijderen",(SUMIFS(Onderhoudskosten!$K:$K,Onderhoudskosten!$B:$B,Invoer!$B56)*Invoer!J56)," ")) ->  | X26: 0 | Y26: =SUMIFS(Inrichtingskosten!$H:$H,Inrichtingskosten!$C:$C,Invoer!$B56,Inrichtingskosten!$B:$B,Invoer!X56)*Invoer!D56 -> 0 | Z26: =SUMIFS(Inrichtingskosten!$H:$H,Inrichtingskosten!$C:$C,Invoer!$B56,Inrichtingskosten!$B:$B,Invoer!Y56)*Invoer!D56 -> 0 | AA26: =SUMIFS(Inrichtingskosten!$H:$H,Inrichtingskosten!$C:$C,Invoer!$B56,Inrichtingskosten!$B:$B,Invoer!Z56)*Invoer!F56 -> 0 | AB26: =SUMIFS(Inrichtingskosten!$H:$H,Inrichtingskosten!$C:$C,Invoer!$B56,Inrichtingskosten!$B:$B,Invoer!AA56)*Invoer!F56 -> 0 | AC26: =SUMIFS(Inrichtingskosten!$H:$H,Inrichtingskosten!$C:$C,Invoer!$B56,Inrichtingskosten!$B:$B,Invoer!AB56)*Invoer!H56 -> 0 | AD26: =SUMIFS(Inrichtingskosten!$H:$H,Inrichtingskosten!$C:$C,Invoer!$B56,Inrichtingskosten!$B:$B,Invoer!AC56)*Invoer!H56 -> 0 | AE26: =SUMIFS(Inrichtingskosten!$H:$H,Inrichtingskosten!$C:$C,Invoer!$B56,Inrichtingskosten!$B:$B,Invoer!AD56)*Invoer!J56 -> 0 | AF26: =SUMIFS(Inrichtingskosten!$H:$H,Inrichtingskosten!$C:$C,Invoer!$B56,Inrichtingskosten!$B:$B,Invoer!AE56)*Invoer!J56 -> 0
B27: =Invoer!B57 -> 0 | D27: =IF(IF(Invoer!E57<>"Verwijderen",(SUMIFS(Onderhoudskosten!$K:$K,Onderhoudskosten!$B:$B,Invoer!$B57)*Invoer!D57)," ")=0," ",IF(Invoer!E57<>"Verwijderen",(SUMIFS(Onderhoudskosten!$K:$K,Onderhoudskosten!$B:$B,Invoer!$B57)*Invoer!D57)," ")) ->  | F27: =IF(IF(Invoer!G57<>"Verwijderen",(SUMIFS(Onderhoudskosten!$K:$K,Onderhoudskosten!$B:$B,Invoer!$B57)*Invoer!F57)," ")=0," ",IF(Invoer!G57<>"Verwijderen",(SUMIFS(Onderhoudskosten!$K:$K,Onderhoudskosten!$B:$B,Invoer!$B57)*Invoer!F57)," ")) ->  | H27: =IF(IF(Invoer!I57<>"Verwijderen",(SUMIFS(Onderhoudskosten!$K:$K,Onderhoudskosten!$B:$B,Invoer!$B57)*Invoer!H57)," ")=0," ",IF(Invoer!I57<>"Verwijderen",(SUMIFS(Onderhoudskosten!$K:$K,Onderhoudskosten!$B:$B,Invoer!$B57)*Invoer!H57)," ")) ->  | J27: =IF(IF(Invoer!K57<>"Verwijderen",(SUMIFS(Onderhoudskosten!$K:$K,Onderhoudskosten!$B:$B,Invoer!$B57)*Invoer!J57)," ")=0," ",IF(Invoer!K57<>"Verwijderen",(SUMIFS(Onderhoudskosten!$K:$K,Onderhoudskosten!$B:$B,Invoer!$B57)*Invoer!J57)," ")) ->  | X27: 0 | Y27: =SUMIFS(Inrichtingskosten!$H:$H,Inrichtingskosten!$C:$C,Invoer!$B57,Inrichtingskosten!$B:$B,Invoer!X57)*Invoer!D57 -> 0 | Z27: =SUMIFS(Inrichtingskosten!$H:$H,Inrichtingskosten!$C:$C,Invoer!$B57,Inrichtingskosten!$B:$B,Invoer!Y57)*Invoer!D57 -> 0 | AA27: =SUMIFS(Inrichtingskosten!$H:$H,Inrichtingskosten!$C:$C,Invoer!$B57,Inrichtingskosten!$B:$B,Invoer!Z57)*Invoer!F57 -> 0 | AB27: =SUMIFS(Inrichtingskosten!$H:$H,Inrichtingskosten!$C:$C,Invoer!$B57,Inrichtingskosten!$B:$B,Invoer!AA57)*Invoer!F57 -> 0 | AC27: =SUMIFS(Inrichtingskosten!$H:$H,Inrichtingskosten!$C:$C,Invoer!$B57,Inrichtingskosten!$B:$B,Invoer!AB57)*Invoer!H57 -> 0 | AD27: =SUMIFS(Inrichtingskosten!$H:$H,Inrichtingskosten!$C:$C,Invoer!$B57,Inrichtingskosten!$B:$B,Invoer!AC57)*Invoer!H57 -> 0 | AE27: =SUMIFS(Inrichtingskosten!$H:$H,Inrichtingskosten!$C:$C,Invoer!$B57,Inrichtingskosten!$B:$B,Invoer!AD57)*Invoer!J57 -> 0 | AF27: =SUMIFS(Inrichtingskosten!$H:$H,Inrichtingskosten!$C:$C,Invoer!$B57,Inrichtingskosten!$B:$B,Invoer!AE57)*Invoer!J57 -> 0
B28: =Invoer!B58 -> 0 | D28: =IF(IF(Invoer!E58<>"Verwijderen",(SUMIFS(Onderhoudskosten!$K:$K,Onderhoudskosten!$B:$B,Invoer!$B58)*Invoer!D58)," ")=0," ",IF(Invoer!E58<>"Verwijderen",(SUMIFS(Onderhoudskosten!$K:$K,Onderhoudskosten!$B:$B,Invoer!$B58)*Invoer!D58)," ")) ->  | F28: =IF(IF(Invoer!G58<>"Verwijderen",(SUMIFS(Onderhoudskosten!$K:$K,Onderhoudskosten!$B:$B,Invoer!$B58)*Invoer!F58)," ")=0," ",IF(Invoer!G58<>"Verwijderen",(SUMIFS(Onderhoudskosten!$K:$K,Onderhoudskosten!$B:$B,Invoer!$B58)*Invoer!F58)," ")) ->  | H28: =IF(IF(Invoer!I58<>"Verwijderen",(SUMIFS(Onderhoudskosten!$K:$K,Onderhoudskosten!$B:$B,Invoer!$B58)*Invoer!H58)," ")=0," ",IF(Invoer!I58<>"Verwijderen",(SUMIFS(Onderhoudskosten!$K:$K,Onderhoudskosten!$B:$B,Invoer!$B58)*Invoer!H58)," ")) ->  | J28: =IF(IF(Invoer!K58<>"Verwijderen",(SUMIFS(Onderhoudskosten!$K:$K,Onderhoudskosten!$B:$B,Invoer!$B58)*Invoer!J58)," ")=0," ",IF(Invoer!K58<>"Verwijderen",(SUMIFS(Onderhoudskosten!$K:$K,Onderhoudskosten!$B:$B,Invoer!$B58)*Invoer!J58)," ")) ->  | X28: 0 | Y28: =SUMIFS(Inrichtingskosten!$H:$H,Inrichtingskosten!$C:$C,Invoer!$B58,Inrichtingskosten!$B:$B,Invoer!X58)*Invoer!D58 -> 0 | Z28: =SUMIFS(Inrichtingskosten!$H:$H,Inrichtingskosten!$C:$C,Invoer!$B58,Inrichtingskosten!$B:$B,Invoer!Y58)*Invoer!D58 -> 0 | AA28: =SUMIFS(Inrichtingskosten!$H:$H,Inrichtingskosten!$C:$C,Invoer!$B58,Inrichtingskosten!$B:$B,Invoer!Z58)*Invoer!F58 -> 0 | AB28: =SUMIFS(Inrichtingskosten!$H:$H,Inrichtingskosten!$C:$C,Invoer!$B58,Inrichtingskosten!$B:$B,Invoer!AA58)*Invoer!F58 -> 0 | AC28: =SUMIFS(Inrichtingskosten!$H:$H,Inrichtingskosten!$C:$C,Invoer!$B58,Inrichtingskosten!$B:$B,Invoer!AB58)*Invoer!H58 -> 0 | AD28: =SUMIFS(Inrichtingskosten!$H:$H,Inrichtingskosten!$C:$C,Invoer!$B58,Inrichtingskosten!$B:$B,Invoer!AC58)*Invoer!H58 -> 0 | AE28: =SUMIFS(Inrichtingskosten!$H:$H,Inrichtingskosten!$C:$C,Invoer!$B58,Inrichtingskosten!$B:$B,Invoer!AD58)*Invoer!J58 -> 0 | AF28: =SUMIFS(Inrichtingskosten!$H:$H,Inrichtingskosten!$C:$C,Invoer!$B58,Inrichtingskosten!$B:$B,Invoer!AE58)*Invoer!J58 -> 0 | AL28: =AL22 -> Onderhoud | AM28: =SUM(D59:D66) -> 0 | AN28: =SUM(F59:F66) -> 0 | AO28: =SUM(H59:H66) -> 0 | AP28: =SUM(J59:J66) -> 0
B29: =Invoer!B59 -> 0 | D29: =IF(IF(Invoer!E59<>"Verwijderen",(SUMIFS(Onderhoudskosten!$K:$K,Onderhoudskosten!$B:$B,Invoer!$B59)*Invoer!D59)," ")=0," ",IF(Invoer!E59<>"Verwijderen",(SUMIFS(Onderhoudskosten!$K:$K,Onderhoudskosten!$B:$B,Invoer!$B59)*Invoer!D59)," ")) ->  | F29: =IF(IF(Invoer!G59<>"Verwijderen",(SUMIFS(Onderhoudskosten!$K:$K,Onderhoudskosten!$B:$B,Invoer!$B59)*Invoer!F59)," ")=0," ",IF(Invoer!G59<>"Verwijderen",(SUMIFS(Onderhoudskosten!$K:$K,Onderhoudskosten!$B:$B,Invoer!$B59)*Invoer!F59)," ")) ->  | H29: =IF(IF(Invoer!I59<>"Verwijderen",(SUMIFS(Onderhoudskosten!$K:$K,Onderhoudskosten!$B:$B,Invoer!$B59)*Invoer!H59)," ")=0," ",IF(Invoer!I59<>"Verwijderen",(SUMIFS(Onderhoudskosten!$K:$K,Onderhoudskosten!$B:$B,Invoer!$B59)*Invoer!H59)," ")) ->  | J29: =IF(IF(Invoer!K59<>"Verwijderen",(SUMIFS(Onderhoudskosten!$K:$K,Onderhoudskosten!$B:$B,Invoer!$B59)*Invoer!J59)," ")=0," ",IF(Invoer!K59<>"Verwijderen",(SUMIFS(Onderhoudskosten!$K:$K,Onderhoudskosten!$B:$B,Invoer!$B59)*Invoer!J59)," ")) ->  | X29: 0 | Y29: =SUMIFS(Inrichtingskosten!$H:$H,Inrichtingskosten!$C:$C,Invoer!$B59,Inrichtingskosten!$B:$B,Invoer!X59)*Invoer!D59 -> 0 | Z29: =SUMIFS(Inrichtingskosten!$H:$H,Inrichtingskosten!$C:$C,Invoer!$B59,Inrichtingskosten!$B:$B,Invoer!Y59)*Invoer!D59 -> 0 | AA29: =SUMIFS(Inrichtingskosten!$H:$H,Inrichtingskosten!$C:$C,Invoer!$B59,Inrichtingskosten!$B:$B,Invoer!Z59)*Invoer!F59 -> 0 | AB29: =SUMIFS(Inrichtingskosten!$H:$H,Inrichtingskosten!$C:$C,Invoer!$B59,Inrichtingskosten!$B:$B,Invoer!AA59)*Invoer!F59 -> 0 | AC29: =SUMIFS(Inrichtingskosten!$H:$H,Inrichtingskosten!$C:$C,Invoer!$B59,Inrichtingskosten!$B:$B,Invoer!AB59)*Invoer!H59 -> 0 | AD29: =SUMIFS(Inrichtingskosten!$H:$H,Inrichtingskosten!$C:$C,Invoer!$B59,Inrichtingskosten!$B:$B,Invoer!AC59)*Invoer!H59 -> 0 | AE29: =SUMIFS(Inrichtingskosten!$H:$H,Inrichtingskosten!$C:$C,Invoer!$B59,Inrichtingskosten!$B:$B,Invoer!AD59)*Invoer!J59 -> 0 | AF29: =SUMIFS(Inrichtingskosten!$H:$H,Inrichtingskosten!$C:$C,Invoer!$B59,Inrichtingskosten!$B:$B,Invoer!AE59)*Invoer!J59 -> 0 | AK29: Overig | AL29: =AL23 -> Realisatie | AM29: =SUM(Y68:Y72)+SUM(Z68:Z72) -> 0 | AN29: =SUM(AA68:AA72)+SUM(AB68:AB72) -> 0 | AO29: =SUM(AC68:AC72)+SUM(AD68:AD72) -> 0 | AP29: =SUM(AE68:AE72)+SUM(AF68:AF72) -> 0
B30: =Invoer!B60 -> 0 | D30: =IF(IF(Invoer!E60<>"Verwijderen",(SUMIFS(Onderhoudskosten!$K:$K,Onderhoudskosten!$B:$B,Invoer!$B60)*Invoer!D60)," ")=0," ",IF(Invoer!E60<>"Verwijderen",(SUMIFS(Onderhoudskosten!$K:$K,Onderhoudskosten!$B:$B,Invoer!$B60)*Invoer!D60)," ")) ->  | F30: =IF(IF(Invoer!G60<>"Verwijderen",(SUMIFS(Onderhoudskosten!$K:$K,Onderhoudskosten!$B:$B,Invoer!$B60)*Invoer!F60)," ")=0," ",IF(Invoer!G60<>"Verwijderen",(SUMIFS(Onderhoudskosten!$K:$K,Onderhoudskosten!$B:$B,Invoer!$B60)*Invoer!F60)," ")) ->  | H30: =IF(IF(Invoer!I60<>"Verwijderen",(SUMIFS(Onderhoudskosten!$K:$K,Onderhoudskosten!$B:$B,Invoer!$B60)*Invoer!H60)," ")=0," ",IF(Invoer!I60<>"Verwijderen",(SUMIFS(Onderhoudskosten!$K:$K,Onderhoudskosten!$B:$B,Invoer!$B60)*Invoer!H60)," ")) ->  | J30: =IF(IF(Invoer!K60<>"Verwijderen",(SUMIFS(Onderhoudskosten!$K:$K,Onderhoudskosten!$B:$B,Invoer!$B60)*Invoer!J60)," ")=0," ",IF(Invoer!K60<>"Verwijderen",(SUMIFS(Onderhoudskosten!$K:$K,Onderhoudskosten!$B:$B,Invoer!$B60)*Invoer!J60)," ")) ->  | X30: 0 | Y30: =SUMIFS(Inrichtingskosten!$H:$H,Inrichtingskosten!$C:$C,Invoer!$B60,Inrichtingskosten!$B:$B,Invoer!X60)*Invoer!D60 -> 0 | Z30: =SUMIFS(Inrichtingskosten!$H:$H,Inrichtingskosten!$C:$C,Invoer!$B60,Inrichtingskosten!$B:$B,Invoer!Y60)*Invoer!D60 -> 0 | AA30: =SUMIFS(Inrichtingskosten!$H:$H,Inrichtingskosten!$C:$C,Invoer!$B60,Inrichtingskosten!$B:$B,Invoer!Z60)*Invoer!F60 -> 0 | AB30: =SUMIFS(Inrichtingskosten!$H:$H,Inrichtingskosten!$C:$C,Invoer!$B60,Inrichtingskosten!$B:$B,Invoer!AA60)*Invoer!F60 -> 0 | AC30: =SUMIFS(Inrichtingskosten!$H:$H,Inrichtingskosten!$C:$C,Invoer!$B60,Inrichtingskosten!$B:$B,Invoer!AB60)*Invoer!H60 -> 0 | AD30: =SUMIFS(Inrichtingskosten!$H:$H,Inrichtingskosten!$C:$C,Invoer!$B60,Inrichtingskosten!$B:$B,Invoer!AC60)*Invoer!H60 -> 0 | AE30: =SUMIFS(Inrichtingskosten!$H:$H,Inrichtingskosten!$C:$C,Invoer!$B60,Inrichtingskosten!$B:$B,Invoer!AD60)*Invoer!J60 -> 0 | AF30: =SUMIFS(Inrichtingskosten!$H:$H,Inrichtingskosten!$C:$C,Invoer!$B60,Inrichtingskosten!$B:$B,Invoer!AE60)*Invoer!J60 -> 0 | AL30: Onderhoud | AM30: =SUM(D68:D72) -> 0 | AN30: =SUM(F68:F72) -> 0 | AO30: =SUM(H68:H72) -> 0 | AP30: =SUM(J68:J72) -> 0
B31: =Invoer!B61 -> 0 | D31: =IF(IF(Invoer!E61<>"Verwijderen",(SUMIFS(Onderhoudskosten!$K:$K,Onderhoudskosten!$B:$B,Invoer!$B61)*Invoer!D61)," ")=0," ",IF(Invoer!E61<>"Verwijderen",(SUMIFS(Onderhoudskosten!$K:$K,Onderhoudskosten!$B:$B,Invoer!$B61)*Invoer!D61)," ")) ->  | F31: =IF(IF(Invoer!G61<>"Verwijderen",(SUMIFS(Onderhoudskosten!$K:$K,Onderhoudskosten!$B:$B,Invoer!$B61)*Invoer!F61)," ")=0," ",IF(Invoer!G61<>"Verwijderen",(SUMIFS(Onderhoudskosten!$K:$K,Onderhoudskosten!$B:$B,Invoer!$B61)*Invoer!F61)," ")) ->  | H31: =IF(IF(Invoer!I61<>"Verwijderen",(SUMIFS(Onderhoudskosten!$K:$K,Onderhoudskosten!$B:$B,Invoer!$B61)*Invoer!H61)," ")=0," ",IF(Invoer!I61<>"Verwijderen",(SUMIFS(Onderhoudskosten!$K:$K,Onderhoudskosten!$B:$B,Invoer!$B61)*Invoer!H61)," ")) ->  | J31: =IF(IF(Invoer!K61<>"Verwijderen",(SUMIFS(Onderhoudskosten!$K:$K,Onderhoudskosten!$B:$B,Invoer!$B61)*Invoer!J61)," ")=0," ",IF(Invoer!K61<>"Verwijderen",(SUMIFS(Onderhoudskosten!$K:$K,Onderhoudskosten!$B:$B,Invoer!$B61)*Invoer!J61)," ")) ->  | X31: 0 | Y31: =SUMIFS(Inrichtingskosten!$H:$H,Inrichtingskosten!$C:$C,Invoer!$B61,Inrichtingskosten!$B:$B,Invoer!X61)*Invoer!D61 -> 0 | Z31: =SUMIFS(Inrichtingskosten!$H:$H,Inrichtingskosten!$C:$C,Invoer!$B61,Inrichtingskosten!$B:$B,Invoer!Y61)*Invoer!D61 -> 0 | AA31: =SUMIFS(Inrichtingskosten!$H:$H,Inrichtingskosten!$C:$C,Invoer!$B61,Inrichtingskosten!$B:$B,Invoer!Z61)*Invoer!F61 -> 0 | AB31: =SUMIFS(Inrichtingskosten!$H:$H,Inrichtingskosten!$C:$C,Invoer!$B61,Inrichtingskosten!$B:$B,Invoer!AA61)*Invoer!F61 -> 0 | AC31: =SUMIFS(Inrichtingskosten!$H:$H,Inrichtingskosten!$C:$C,Invoer!$B61,Inrichtingskosten!$B:$B,Invoer!AB61)*Invoer!H61 -> 0 | AD31: =SUMIFS(Inrichtingskosten!$H:$H,Inrichtingskosten!$C:$C,Invoer!$B61,Inrichtingskosten!$B:$B,Invoer!AC61)*Invoer!H61 -> 0 | AE31: =SUMIFS(Inrichtingskosten!$H:$H,Inrichtingskosten!$C:$C,Invoer!$B61,Inrichtingskosten!$B:$B,Invoer!AD61)*Invoer!J61 -> 0 | AF31: =SUMIFS(Inrichtingskosten!$H:$H,Inrichtingskosten!$C:$C,Invoer!$B61,Inrichtingskosten!$B:$B,Invoer!AE61)*Invoer!J61 -> 0 | AK31: Totaal | AL31: Realisatie | AM31: =SUM(AM11,AM13,AM19,AM21,AM23,AM29,AM8:AM10) -> 0 | AN31: =SUM(AN11,AN13,AN19,AN21,AN23,AN29,AN8:AN10) -> 0 | AO31: 0 | AP31: 0
B32: =Invoer!B62 -> 0 | D32: =IF(IF(Invoer!E62<>"Verwijderen",(SUMIFS(Onderhoudskosten!$K:$K,Onderhoudskosten!$B:$B,Invoer!$B62)*Invoer!D62)," ")=0," ",IF(Invoer!E62<>"Verwijderen",(SUMIFS(Onderhoudskosten!$K:$K,Onderhoudskosten!$B:$B,Invoer!$B62)*Invoer!D62)," ")) ->  | F32: =IF(IF(Invoer!G62<>"Verwijderen",(SUMIFS(Onderhoudskosten!$K:$K,Onderhoudskosten!$B:$B,Invoer!$B62)*Invoer!F62)," ")=0," ",IF(Invoer!G62<>"Verwijderen",(SUMIFS(Onderhoudskosten!$K:$K,Onderhoudskosten!$B:$B,Invoer!$B62)*Invoer!F62)," ")) ->  | H32: =IF(IF(Invoer!I62<>"Verwijderen",(SUMIFS(Onderhoudskosten!$K:$K,Onderhoudskosten!$B:$B,Invoer!$B62)*Invoer!H62)," ")=0," ",IF(Invoer!I62<>"Verwijderen",(SUMIFS(Onderhoudskosten!$K:$K,Onderhoudskosten!$B:$B,Invoer!$B62)*Invoer!H62)," ")) ->  | J32: =IF(IF(Invoer!K62<>"Verwijderen",(SUMIFS(Onderhoudskosten!$K:$K,Onderhoudskosten!$B:$B,Invoer!$B62)*Invoer!J62)," ")=0," ",IF(Invoer!K62<>"Verwijderen",(SUMIFS(Onderhoudskosten!$K:$K,Onderhoudskosten!$B:$B,Invoer!$B62)*Invoer!J62)," ")) ->  | X32: =B32 -> 0 | Y32: =SUMIFS(Inrichtingskosten!$H:$H,Inrichtingskosten!$C:$C,Invoer!$B62,Inrichtingskosten!$B:$B,Invoer!X62)*Invoer!D62 -> 0 | Z32: =SUMIFS(Inrichtingskosten!$H:$H,Inrichtingskosten!$C:$C,Invoer!$B62,Inrichtingskosten!$B:$B,Invoer!Y62)*Invoer!D62 -> 0 | AA32: =SUMIFS(Inrichtingskosten!$H:$H,Inrichtingskosten!$C:$C,Invoer!$B62,Inrichtingskosten!$B:$B,Invoer!Z62)*Invoer!F62 -> 0 | AB32: =SUMIFS(Inrichtingskosten!$H:$H,Inrichtingskosten!$C:$C,Invoer!$B62,Inrichtingskosten!$B:$B,Invoer!AA62)*Invoer!F62 -> 0 | AC32: =SUMIFS(Inrichtingskosten!$H:$H,Inrichtingskosten!$C:$C,Invoer!$B62,Inrichtingskosten!$B:$B,Invoer!AB62)*Invoer!H62 -> 0 | AD32: =SUMIFS(Inrichtingskosten!$H:$H,Inrichtingskosten!$C:$C,Invoer!$B62,Inrichtingskosten!$B:$B,Invoer!AC62)*Invoer!H62 -> 0 | AE32: =SUMIFS(Inrichtingskosten!$H:$H,Inrichtingskosten!$C:$C,Invoer!$B62,Inrichtingskosten!$B:$B,Invoer!AD62)*Invoer!J62 -> 0 | AF32: =SUMIFS(Inrichtingskosten!$H:$H,Inrichtingskosten!$C:$C,Invoer!$B62,Inrichtingskosten!$B:$B,Invoer!AE62)*Invoer!J62 -> 0 | AL32: Onderhoud | AM32: =SUM(AM12,AM14,AM20,AM22,AM28,AM30) -> 0 | AN32: =SUM(AN12,AN14,AN20,AN22,AN28,AN30) ->  | AO32: 0 | AP32: 0
B33: =Invoer!B63 -> Gescheiden hemelwaterriool | X33: =Invoer!B63 -> Gescheiden hemelwaterriool
B34: =Invoer!B64 -> Buis beton 400 | C34: =IF(2*(Y34+Z34)/100=0,"",2*(Y34+Z34)/100) ->  | D34: =IF(IF(Invoer!E64<>"Verwijderen",(SUMIFS(Onderhoudskosten!$K:$K,Onderhoudskosten!$B:$B,Invoer!$B64)*Invoer!D64)," ")=0," ",IF(Invoer!E64<>"Verwijderen",(SUMIFS(Onderhoudskosten!$K:$K,Onderhoudskosten!$B:$B,Invoer!$B64)*Invoer!D64)," ")) ->  | E34: =IF(2*(AA34+AB34)/100=0,"",2*(AA34+AB34)/100) ->  | F34: =IF(IF(Invoer!G64<>"Verwijderen",(SUMIFS(Onderhoudskosten!$K:$K,Onderhoudskosten!$B:$B,Invoer!$B64)*Invoer!F64)," ")=0," ",IF(Invoer!G64<>"Verwijderen",(SUMIFS(Onderhoudskosten!$K:$K,Onderhoudskosten!$B:$B,Invoer!$B64)*Invoer!F64)," ")) ->  | G34: =IF(2*(AC34+AD34)/100=0,"",2*(AC34+AD34)/100) ->  | H34: =IF(IF(Invoer!I64<>"Verwijderen",(SUMIFS(Onderhoudskosten!$K:$K,Onderhoudskosten!$B:$B,Invoer!$B64)*Invoer!H64)," ")=0," ",IF(Invoer!I64<>"Verwijderen",(SUMIFS(Onderhoudskosten!$K:$K,Onderhoudskosten!$B:$B,Invoer!$B64)*Invoer!H64)," ")) ->  | I34: =IF(2*(AE34+AF34)/100=0,"",2*(AE34+AF34)/100) ->  | J34: =IF(IF(Invoer!K64<>"Verwijderen",(SUMIFS(Onderhoudskosten!$K:$K,Onderhoudskosten!$B:$B,Invoer!$B64)*Invoer!J64)," ")=0," ",IF(Invoer!K64<>"Verwijderen",(SUMIFS(Onderhoudskosten!$K:$K,Onderhoudskosten!$B:$B,Invoer!$B64)*Invoer!J64)," ")) ->  | X34: =B34 -> Buis beton 400 | Y34: =SUMIFS(Inrichtingskosten!$H:$H,Inrichtingskosten!$C:$C,Invoer!$B64,Inrichtingskosten!$B:$B,Invoer!X64)*Invoer!D64 -> 0 | Z34: =SUMIFS(Inrichtingskosten!$H:$H,Inrichtingskosten!$C:$C,Invoer!$B64,Inrichtingskosten!$B:$B,Invoer!Y64)*Invoer!D64 -> 0 | AA34: =SUMIFS(Inrichtingskosten!$H:$H,Inrichtingskosten!$C:$C,Invoer!$B64,Inrichtingskosten!$B:$B,Invoer!Z64)*Invoer!F64 -> 0 | AB34: =SUMIFS(Inrichtingskosten!$H:$H,Inrichtingskosten!$C:$C,Invoer!$B64,Inrichtingskosten!$B:$B,Invoer!AA64)*Invoer!F64 -> 0 | AC34: =SUMIFS(Inrichtingskosten!$H:$H,Inrichtingskosten!$C:$C,Invoer!$B64,Inrichtingskosten!$B:$B,Invoer!AB64)*Invoer!H64 -> 0 | AD34: =SUMIFS(Inrichtingskosten!$H:$H,Inrichtingskosten!$C:$C,Invoer!$B64,Inrichtingskosten!$B:$B,Invoer!AC64)*Invoer!H64 -> 0 | AE34: =SUMIFS(Inrichtingskosten!$H:$H,Inrichtingskosten!$C:$C,Invoer!$B64,Inrichtingskosten!$B:$B,Invoer!AD64)*Invoer!J64 -> 0 | AF34: =SUMIFS(Inrichtingskosten!$H:$H,Inrichtingskosten!$C:$C,Invoer!$B64,Inrichtingskosten!$B:$B,Invoer!AE64)*Invoer!J64 -> 0 | AJ34: Variant 0 | AM34: Variant 1 | AN34: Variant 2 | AO34: Variant 3
B35: =Invoer!B65 -> Rioolput beton 400 | C35: =IF(2*(Y35+Z35)/100=0,"",2*(Y35+Z35)/100) ->  | D35: =IF(IF(Invoer!E65<>"Verwijderen",(SUMIFS(Onderhoudskosten!$K:$K,Onderhoudskosten!$B:$B,Invoer!$B65)*Invoer!D65)," ")=0," ",IF(Invoer!E65<>"Verwijderen",(SUMIFS(Onderhoudskosten!$K:$K,Onderhoudskosten!$B:$B,Invoer!$B65)*Invoer!D65)," ")) ->  | E35: =IF(2*(AA35+AB35)/100=0,"",2*(AA35+AB35)/100) ->  | F35: =IF(IF(Invoer!G65<>"Verwijderen",(SUMIFS(Onderhoudskosten!$K:$K,Onderhoudskosten!$B:$B,Invoer!$B65)*Invoer!F65)," ")=0," ",IF(Invoer!G65<>"Verwijderen",(SUMIFS(Onderhoudskosten!$K:$K,Onderhoudskosten!$B:$B,Invoer!$B65)*Invoer!F65)," ")) ->  | G35: =IF(2*(AC35+AD35)/100=0,"",2*(AC35+AD35)/100) ->  | H35: =IF(IF(Invoer!I65<>"Verwijderen",(SUMIFS(Onderhoudskosten!$K:$K,Onderhoudskosten!$B:$B,Invoer!$B65)*Invoer!H65)," ")=0," ",IF(Invoer!I65<>"Verwijderen",(SUMIFS(Onderhoudskosten!$K:$K,Onderhoudskosten!$B:$B,Invoer!$B65)*Invoer!H65)," ")) ->  | I35: =IF(2*(AE35+AF35)/100=0,"",2*(AE35+AF35)/100) ->  | J35: =IF(IF(Invoer!K65<>"Verwijderen",(SUMIFS(Onderhoudskosten!$K:$K,Onderhoudskosten!$B:$B,Invoer!$B65)*Invoer!J65)," ")=0," ",IF(Invoer!K65<>"Verwijderen",(SUMIFS(Onderhoudskosten!$K:$K,Onderhoudskosten!$B:$B,Invoer!$B65)*Invoer!J65)," ")) ->  | X35: Rioolput beton 400 | Y35: =SUMIFS(Inrichtingskosten!$H:$H,Inrichtingskosten!$C:$C,Invoer!$B65,Inrichtingskosten!$B:$B,Invoer!X65)*Invoer!D65 -> 0 | Z35: =SUMIFS(Inrichtingskosten!$H:$H,Inrichtingskosten!$C:$C,Invoer!$B65,Inrichtingskosten!$B:$B,Invoer!Y65)*Invoer!D65 -> 0 | AA35: =SUMIFS(Inrichtingskosten!$H:$H,Inrichtingskosten!$C:$C,Invoer!$B65,Inrichtingskosten!$B:$B,Invoer!Z65)*Invoer!F65 -> 0 | AB35: =SUMIFS(Inrichtingskosten!$H:$H,Inrichtingskosten!$C:$C,Invoer!$B65,Inrichtingskosten!$B:$B,Invoer!AA65)*Invoer!F65 -> 0 | AC35: =SUMIFS(Inrichtingskosten!$H:$H,Inrichtingskosten!$C:$C,Invoer!$B65,Inrichtingskosten!$B:$B,Invoer!AB65)*Invoer!H65 -> 0 | AD35: =SUMIFS(Inrichtingskosten!$H:$H,Inrichtingskosten!$C:$C,Invoer!$B65,Inrichtingskosten!$B:$B,Invoer!AC65)*Invoer!H65 -> 0 | AE35: =SUMIFS(Inrichtingskosten!$H:$H,Inrichtingskosten!$C:$C,Invoer!$B65,Inrichtingskosten!$B:$B,Invoer!AD65)*Invoer!J65 -> 0 | AF35: =SUMIFS(Inrichtingskosten!$H:$H,Inrichtingskosten!$C:$C,Invoer!$B65,Inrichtingskosten!$B:$B,Invoer!AE65)*Invoer!J65 -> 0 | AJ35: Inrichting | AL35: Onderhoud
B36: =Invoer!B66 -> Perceelaansluiting | C36: =IF(2*(Y36+Z36)/100=0,"",2*(Y36+Z36)/100) ->  | D36: =IF(IF(Invoer!E66<>"Verwijderen",(SUMIFS(Onderhoudskosten!$K:$K,Onderhoudskosten!$B:$B,Invoer!$B66)*Invoer!D66)," ")=0," ",IF(Invoer!E66<>"Verwijderen",(SUMIFS(Onderhoudskosten!$K:$K,Onderhoudskosten!$B:$B,Invoer!$B66)*Invoer!D66)," ")) ->  | E36: =IF(2*(AA36+AB36)/100=0,"",2*(AA36+AB36)/100) ->  | F36: =IF(IF(Invoer!G66<>"Verwijderen",(SUMIFS(Onderhoudskosten!$K:$K,Onderhoudskosten!$B:$B,Invoer!$B66)*Invoer!F66)," ")=0," ",IF(Invoer!G66<>"Verwijderen",(SUMIFS(Onderhoudskosten!$K:$K,Onderhoudskosten!$B:$B,Invoer!$B66)*Invoer!F66)," ")) ->  | G36: =IF(2*(AC36+AD36)/100=0,"",2*(AC36+AD36)/100) ->  | H36: =IF(IF(Invoer!I66<>"Verwijderen",(SUMIFS(Onderhoudskosten!$K:$K,Onderhoudskosten!$B:$B,Invoer!$B66)*Invoer!H66)," ")=0," ",IF(Invoer!I66<>"Verwijderen",(SUMIFS(Onderhoudskosten!$K:$K,Onderhoudskosten!$B:$B,Invoer!$B66)*Invoer!H66)," ")) ->  | I36: =IF(2*(AE36+AF36)/100=0,"",2*(AE36+AF36)/100) ->  | J36: =IF(IF(Invoer!K66<>"Verwijderen",(SUMIFS(Onderhoudskosten!$K:$K,Onderhoudskosten!$B:$B,Invoer!$B66)*Invoer!J66)," ")=0," ",IF(Invoer!K66<>"Verwijderen",(SUMIFS(Onderhoudskosten!$K:$K,Onderhoudskosten!$B:$B,Invoer!$B66)*Invoer!J66)," ")) ->  | X36: =B36 -> Perceelaansluiting | Y36: =SUMIFS(Inrichtingskosten!$H:$H,Inrichtingskosten!$C:$C,Invoer!$B66,Inrichtingskosten!$B:$B,Invoer!X66)*Invoer!D66 -> 0 | Z36: =SUMIFS(Inrichtingskosten!$H:$H,Inrichtingskosten!$C:$C,Invoer!$B66,Inrichtingskosten!$B:$B,Invoer!Y66)*Invoer!D66 -> 0 | AA36: =SUMIFS(Inrichtingskosten!$H:$H,Inrichtingskosten!$C:$C,Invoer!$B66,Inrichtingskosten!$B:$B,Invoer!Z66)*Invoer!F66 -> 0 | AB36: =SUMIFS(Inrichtingskosten!$H:$H,Inrichtingskosten!$C:$C,Invoer!$B66,Inrichtingskosten!$B:$B,Invoer!AA66)*Invoer!F66 -> 0 | AC36: =SUMIFS(Inrichtingskosten!$H:$H,Inrichtingskosten!$C:$C,Invoer!$B66,Inrichtingskosten!$B:$B,Invoer!AB66)*Invoer!H66 -> 0 | AD36: =SUMIFS(Inrichtingskosten!$H:$H,Inrichtingskosten!$C:$C,Invoer!$B66,Inrichtingskosten!$B:$B,Invoer!AC66)*Invoer!H66 -> 0 | AE36: =SUMIFS(Inrichtingskosten!$H:$H,Inrichtingskosten!$C:$C,Invoer!$B66,Inrichtingskosten!$B:$B,Invoer!AD66)*Invoer!J66 -> 0 | AF36: =SUMIFS(Inrichtingskosten!$H:$H,Inrichtingskosten!$C:$C,Invoer!$B66,Inrichtingskosten!$B:$B,Invoer!AE66)*Invoer!J66 -> 0
B37: =Invoer!B67 -> Kolk | D37: =IF(IF(Invoer!E67<>"Verwijderen",(SUMIFS(Onderhoudskosten!$K:$K,Onderhoudskosten!$B:$B,Invoer!$B67)*Invoer!D67)," ")=0," ",IF(Invoer!E67<>"Verwijderen",(SUMIFS(Onderhoudskosten!$K:$K,Onderhoudskosten!$B:$B,Invoer!$B67)*Invoer!D67)," ")) ->  | F37: =IF(IF(Invoer!G67<>"Verwijderen",(SUMIFS(Onderhoudskosten!$K:$K,Onderhoudskosten!$B:$B,Invoer!$B67)*Invoer!F67)," ")=0," ",IF(Invoer!G67<>"Verwijderen",(SUMIFS(Onderhoudskosten!$K:$K,Onderhoudskosten!$B:$B,Invoer!$B67)*Invoer!F67)," ")) ->  | H37: =IF(IF(Invoer!I67<>"Verwijderen",(SUMIFS(Onderhoudskosten!$K:$K,Onderhoudskosten!$B:$B,Invoer!$B67)*Invoer!H67)," ")=0," ",IF(Invoer!I67<>"Verwijderen",(SUMIFS(Onderhoudskosten!$K:$K,Onderhoudskosten!$B:$B,Invoer!$B67)*Invoer!H67)," ")) ->  | J37: =IF(IF(Invoer!K67<>"Verwijderen",(SUMIFS(Onderhoudskosten!$K:$K,Onderhoudskosten!$B:$B,Invoer!$B67)*Invoer!J67)," ")=0," ",IF(Invoer!K67<>"Verwijderen",(SUMIFS(Onderhoudskosten!$K:$K,Onderhoudskosten!$B:$B,Invoer!$B67)*Invoer!J67)," ")) ->  | X37: Kolk | Y37: =SUMIFS(Inrichtingskosten!$H:$H,Inrichtingskosten!$C:$C,Invoer!$B67,Inrichtingskosten!$B:$B,Invoer!X67)*Invoer!D67 -> 0 | Z37: =SUMIFS(Inrichtingskosten!$H:$H,Inrichtingskosten!$C:$C,Invoer!$B67,Inrichtingskosten!$B:$B,Invoer!Y67)*Invoer!D67 -> 0 | AA37: =SUMIFS(Inrichtingskosten!$H:$H,Inrichtingskosten!$C:$C,Invoer!$B67,Inrichtingskosten!$B:$B,Invoer!Z67)*Invoer!F67 -> 0 | AB37: =SUMIFS(Inrichtingskosten!$H:$H,Inrichtingskosten!$C:$C,Invoer!$B67,Inrichtingskosten!$B:$B,Invoer!AA67)*Invoer!F67 -> 0 | AC37: =SUMIFS(Inrichtingskosten!$H:$H,Inrichtingskosten!$C:$C,Invoer!$B67,Inrichtingskosten!$B:$B,Invoer!AB67)*Invoer!H67 -> 0 | AD37: =SUMIFS(Inrichtingskosten!$H:$H,Inrichtingskosten!$C:$C,Invoer!$B67,Inrichtingskosten!$B:$B,Invoer!AC67)*Invoer!H67 -> 0 | AE37: =SUMIFS(Inrichtingskosten!$H:$H,Inrichtingskosten!$C:$C,Invoer!$B67,Inrichtingskosten!$B:$B,Invoer!AD67)*Invoer!J67 -> 0 | AF37: =SUMIFS(Inrichtingskosten!$H:$H,Inrichtingskosten!$C:$C,Invoer!$B67,Inrichtingskosten!$B:$B,Invoer!AE67)*Invoer!J67 -> 0
B38: =Invoer!B68 -> Drainage | D38: =IF(IF(Invoer!E68<>"Verwijderen",(SUMIFS(Onderhoudskosten!$K:$K,Onderhoudskosten!$B:$B,Invoer!$B68)*Invoer!D68)," ")=0," ",IF(Invoer!E68<>"Verwijderen",(SUMIFS(Onderhoudskosten!$K:$K,Onderhoudskosten!$B:$B,Invoer!$B68)*Invoer!D68)," ")) ->  | F38: =IF(IF(Invoer!G68<>"Verwijderen",(SUMIFS(Onderhoudskosten!$K:$K,Onderhoudskosten!$B:$B,Invoer!$B68)*Invoer!F68)," ")=0," ",IF(Invoer!G68<>"Verwijderen",(SUMIFS(Onderhoudskosten!$K:$K,Onderhoudskosten!$B:$B,Invoer!$B68)*Invoer!F68)," ")) ->  | H38: =IF(IF(Invoer!I68<>"Verwijderen",(SUMIFS(Onderhoudskosten!$K:$K,Onderhoudskosten!$B:$B,Invoer!$B68)*Invoer!H68)," ")=0," ",IF(Invoer!I68<>"Verwijderen",(SUMIFS(Onderhoudskosten!$K:$K,Onderhoudskosten!$B:$B,Invoer!$B68)*Invoer!H68)," ")) ->  | J38: =IF(IF(Invoer!K68<>"Verwijderen",(SUMIFS(Onderhoudskosten!$K:$K,Onderhoudskosten!$B:$B,Invoer!$B68)*Invoer!J68)," ")=0," ",IF(Invoer!K68<>"Verwijderen",(SUMIFS(Onderhoudskosten!$K:$K,Onderhoudskosten!$B:$B,Invoer!$B68)*Invoer!J68)," ")) ->  | X38: Drainage | Y38: =SUMIFS(Inrichtingskosten!$H:$H,Inrichtingskosten!$C:$C,Invoer!$B68,Inrichtingskosten!$B:$B,Invoer!X68)*Invoer!D68 -> 0 | Z38: =SUMIFS(Inrichtingskosten!$H:$H,Inrichtingskosten!$C:$C,Invoer!$B68,Inrichtingskosten!$B:$B,Invoer!Y68)*Invoer!D68 -> 0 | AA38: =SUMIFS(Inrichtingskosten!$H:$H,Inrichtingskosten!$C:$C,Invoer!$B68,Inrichtingskosten!$B:$B,Invoer!Z68)*Invoer!F68 -> 0 | AB38: =SUMIFS(Inrichtingskosten!$H:$H,Inrichtingskosten!$C:$C,Invoer!$B68,Inrichtingskosten!$B:$B,Invoer!AA68)*Invoer!F68 -> 0 | AC38: =SUMIFS(Inrichtingskosten!$H:$H,Inrichtingskosten!$C:$C,Invoer!$B68,Inrichtingskosten!$B:$B,Invoer!AB68)*Invoer!H68 -> 0 | AD38: =SUMIFS(Inrichtingskosten!$H:$H,Inrichtingskosten!$C:$C,Invoer!$B68,Inrichtingskosten!$B:$B,Invoer!AC68)*Invoer!H68 -> 0 | AE38: =SUMIFS(Inrichtingskosten!$H:$H,Inrichtingskosten!$C:$C,Invoer!$B68,Inrichtingskosten!$B:$B,Invoer!AD68)*Invoer!J68 -> 0 | AF38: =SUMIFS(Inrichtingskosten!$H:$H,Inrichtingskosten!$C:$C,Invoer!$B68,Inrichtingskosten!$B:$B,Invoer!AE68)*Invoer!J68 -> 0
B39: =Invoer!B69 -> 0 | D39: =IF(IF(Invoer!E69<>"Verwijderen",(SUMIFS(Onderhoudskosten!$K:$K,Onderhoudskosten!$B:$B,Invoer!$B69)*Invoer!D69)," ")=0," ",IF(Invoer!E69<>"Verwijderen",(SUMIFS(Onderhoudskosten!$K:$K,Onderhoudskosten!$B:$B,Invoer!$B69)*Invoer!D69)," ")) ->  | F39: =IF(IF(Invoer!G69<>"Verwijderen",(SUMIFS(Onderhoudskosten!$K:$K,Onderhoudskosten!$B:$B,Invoer!$B69)*Invoer!F69)," ")=0," ",IF(Invoer!G69<>"Verwijderen",(SUMIFS(Onderhoudskosten!$K:$K,Onderhoudskosten!$B:$B,Invoer!$B69)*Invoer!F69)," ")) ->  | H39: =IF(IF(Invoer!I69<>"Verwijderen",(SUMIFS(Onderhoudskosten!$K:$K,Onderhoudskosten!$B:$B,Invoer!$B69)*Invoer!H69)," ")=0," ",IF(Invoer!I69<>"Verwijderen",(SUMIFS(Onderhoudskosten!$K:$K,Onderhoudskosten!$B:$B,Invoer!$B69)*Invoer!H69)," ")) ->  | J39: =IF(IF(Invoer!K69<>"Verwijderen",(SUMIFS(Onderhoudskosten!$K:$K,Onderhoudskosten!$B:$B,Invoer!$B69)*Invoer!J69)," ")=0," ",IF(Invoer!K69<>"Verwijderen",(SUMIFS(Onderhoudskosten!$K:$K,Onderhoudskosten!$B:$B,Invoer!$B69)*Invoer!J69)," ")) ->  | X39: 0 | Y39: =SUMIFS(Inrichtingskosten!$H:$H,Inrichtingskosten!$C:$C,Invoer!$B69,Inrichtingskosten!$B:$B,Invoer!X69)*Invoer!D69 -> 0 | Z39: =SUMIFS(Inrichtingskosten!$H:$H,Inrichtingskosten!$C:$C,Invoer!$B69,Inrichtingskosten!$B:$B,Invoer!Y69)*Invoer!D69 -> 0 | AA39: =SUMIFS(Inrichtingskosten!$H:$H,Inrichtingskosten!$C:$C,Invoer!$B69,Inrichtingskosten!$B:$B,Invoer!Z69)*Invoer!F69 -> 0 | AB39: =SUMIFS(Inrichtingskosten!$H:$H,Inrichtingskosten!$C:$C,Invoer!$B69,Inrichtingskosten!$B:$B,Invoer!AA69)*Invoer!F69 -> 0 | AC39: =SUMIFS(Inrichtingskosten!$H:$H,Inrichtingskosten!$C:$C,Invoer!$B69,Inrichtingskosten!$B:$B,Invoer!AB69)*Invoer!H69 -> 0 | AD39: =SUMIFS(Inrichtingskosten!$H:$H,Inrichtingskosten!$C:$C,Invoer!$B69,Inrichtingskosten!$B:$B,Invoer!AC69)*Invoer!H69 -> 0 | AE39: =SUMIFS(Inrichtingskosten!$H:$H,Inrichtingskosten!$C:$C,Invoer!$B69,Inrichtingskosten!$B:$B,Invoer!AD69)*Invoer!J69 -> 0 | AF39: =SUMIFS(Inrichtingskosten!$H:$H,Inrichtingskosten!$C:$C,Invoer!$B69,Inrichtingskosten!$B:$B,Invoer!AE69)*Invoer!J69 -> 0
B40: =Invoer!B70 -> 0 | D40: =IF(IF(Invoer!E70<>"Verwijderen",(SUMIFS(Onderhoudskosten!$K:$K,Onderhoudskosten!$B:$B,Invoer!$B70)*Invoer!D70)," ")=0," ",IF(Invoer!E70<>"Verwijderen",(SUMIFS(Onderhoudskosten!$K:$K,Onderhoudskosten!$B:$B,Invoer!$B70)*Invoer!D70)," ")) ->  | F40: =IF(IF(Invoer!G70<>"Verwijderen",(SUMIFS(Onderhoudskosten!$K:$K,Onderhoudskosten!$B:$B,Invoer!$B70)*Invoer!F70)," ")=0," ",IF(Invoer!G70<>"Verwijderen",(SUMIFS(Onderhoudskosten!$K:$K,Onderhoudskosten!$B:$B,Invoer!$B70)*Invoer!F70)," ")) ->  | H40: =IF(IF(Invoer!I70<>"Verwijderen",(SUMIFS(Onderhoudskosten!$K:$K,Onderhoudskosten!$B:$B,Invoer!$B70)*Invoer!H70)," ")=0," ",IF(Invoer!I70<>"Verwijderen",(SUMIFS(Onderhoudskosten!$K:$K,Onderhoudskosten!$B:$B,Invoer!$B70)*Invoer!H70)," ")) ->  | J40: =IF(IF(Invoer!K70<>"Verwijderen",(SUMIFS(Onderhoudskosten!$K:$K,Onderhoudskosten!$B:$B,Invoer!$B70)*Invoer!J70)," ")=0," ",IF(Invoer!K70<>"Verwijderen",(SUMIFS(Onderhoudskosten!$K:$K,Onderhoudskosten!$B:$B,Invoer!$B70)*Invoer!J70)," ")) ->  | X40: 0 | Y40: =SUMIFS(Inrichtingskosten!$H:$H,Inrichtingskosten!$C:$C,Invoer!$B70,Inrichtingskosten!$B:$B,Invoer!X70)*Invoer!D70 -> 0 | Z40: =SUMIFS(Inrichtingskosten!$H:$H,Inrichtingskosten!$C:$C,Invoer!$B70,Inrichtingskosten!$B:$B,Invoer!Y70)*Invoer!D70 -> 0 | AA40: =SUMIFS(Inrichtingskosten!$H:$H,Inrichtingskosten!$C:$C,Invoer!$B70,Inrichtingskosten!$B:$B,Invoer!Z70)*Invoer!F70 -> 0 | AB40: =SUMIFS(Inrichtingskosten!$H:$H,Inrichtingskosten!$C:$C,Invoer!$B70,Inrichtingskosten!$B:$B,Invoer!AA70)*Invoer!F70 -> 0 | AC40: =SUMIFS(Inrichtingskosten!$H:$H,Inrichtingskosten!$C:$C,Invoer!$B70,Inrichtingskosten!$B:$B,Invoer!AB70)*Invoer!H70 -> 0 | AD40: =SUMIFS(Inrichtingskosten!$H:$H,Inrichtingskosten!$C:$C,Invoer!$B70,Inrichtingskosten!$B:$B,Invoer!AC70)*Invoer!H70 -> 0 | AE40: =SUMIFS(Inrichtingskosten!$H:$H,Inrichtingskosten!$C:$C,Invoer!$B70,Inrichtingskosten!$B:$B,Invoer!AD70)*Invoer!J70 -> 0 | AF40: =SUMIFS(Inrichtingskosten!$H:$H,Inrichtingskosten!$C:$C,Invoer!$B70,Inrichtingskosten!$B:$B,Invoer!AE70)*Invoer!J70 -> 0 | AI40: =B7 -> Grondwerk | AJ40: =SUM(Y8) -> 0 | AK40: =AI40 -> Grondwerk | AL40: =SUM(D8) -> 0 | AM40: =SUM(AA8) -> 0 | AN40: =SUM(D8) -> 0 | AO40: =SUM(AA8) -> 0
B41: =Invoer!B71 -> 0 | D41: =IF(IF(Invoer!E71<>"Verwijderen",(SUMIFS(Onderhoudskosten!$K:$K,Onderhoudskosten!$B:$B,Invoer!$B71)*Invoer!D71)," ")=0," ",IF(Invoer!E71<>"Verwijderen",(SUMIFS(Onderhoudskosten!$K:$K,Onderhoudskosten!$B:$B,Invoer!$B71)*Invoer!D71)," ")) ->  | F41: =IF(IF(Invoer!G71<>"Verwijderen",(SUMIFS(Onderhoudskosten!$K:$K,Onderhoudskosten!$B:$B,Invoer!$B71)*Invoer!F71)," ")=0," ",IF(Invoer!G71<>"Verwijderen",(SUMIFS(Onderhoudskosten!$K:$K,Onderhoudskosten!$B:$B,Invoer!$B71)*Invoer!F71)," ")) ->  | H41: =IF(IF(Invoer!I71<>"Verwijderen",(SUMIFS(Onderhoudskosten!$K:$K,Onderhoudskosten!$B:$B,Invoer!$B71)*Invoer!H71)," ")=0," ",IF(Invoer!I71<>"Verwijderen",(SUMIFS(Onderhoudskosten!$K:$K,Onderhoudskosten!$B:$B,Invoer!$B71)*Invoer!H71)," ")) ->  | J41: =IF(IF(Invoer!K71<>"Verwijderen",(SUMIFS(Onderhoudskosten!$K:$K,Onderhoudskosten!$B:$B,Invoer!$B71)*Invoer!J71)," ")=0," ",IF(Invoer!K71<>"Verwijderen",(SUMIFS(Onderhoudskosten!$K:$K,Onderhoudskosten!$B:$B,Invoer!$B71)*Invoer!J71)," ")) ->  | X41: 0 | Y41: =SUMIFS(Inrichtingskosten!$H:$H,Inrichtingskosten!$C:$C,Invoer!$B71,Inrichtingskosten!$B:$B,Invoer!X71)*Invoer!D71 -> 0 | Z41: =SUMIFS(Inrichtingskosten!$H:$H,Inrichtingskosten!$C:$C,Invoer!$B71,Inrichtingskosten!$B:$B,Invoer!Y71)*Invoer!D71 -> 0 | AA41: =SUMIFS(Inrichtingskosten!$H:$H,Inrichtingskosten!$C:$C,Invoer!$B71,Inrichtingskosten!$B:$B,Invoer!Z71)*Invoer!F71 -> 0 | AB41: =SUMIFS(Inrichtingskosten!$H:$H,Inrichtingskosten!$C:$C,Invoer!$B71,Inrichtingskosten!$B:$B,Invoer!AA71)*Invoer!F71 -> 0 | AC41: =SUMIFS(Inrichtingskosten!$H:$H,Inrichtingskosten!$C:$C,Invoer!$B71,Inrichtingskosten!$B:$B,Invoer!AB71)*Invoer!H71 -> 0 | AD41: =SUMIFS(Inrichtingskosten!$H:$H,Inrichtingskosten!$C:$C,Invoer!$B71,Inrichtingskosten!$B:$B,Invoer!AC71)*Invoer!H71 -> 0 | AE41: =SUMIFS(Inrichtingskosten!$H:$H,Inrichtingskosten!$C:$C,Invoer!$B71,Inrichtingskosten!$B:$B,Invoer!AD71)*Invoer!J71 -> 0 | AF41: =SUMIFS(Inrichtingskosten!$H:$H,Inrichtingskosten!$C:$C,Invoer!$B71,Inrichtingskosten!$B:$B,Invoer!AE71)*Invoer!J71 -> 0 | AI41: =B11 -> Elementen verharding | AJ41: =SUM(Y12:Y19) -> 0 | AK41: Elementen verharding | AL41: =SUM(D12:D19) -> 0 | AM41: =SUM(AA12:AA19) -> 0 | AN41: =SUM(D12:D19) -> 0 | AO41: =SUM(AA12:AA19) -> 0
B42: =Invoer!B72 -> 0 | D42: =IF(IF(Invoer!E72<>"Verwijderen",(SUMIFS(Onderhoudskosten!$K:$K,Onderhoudskosten!$B:$B,Invoer!$B72)*Invoer!D72)," ")=0," ",IF(Invoer!E72<>"Verwijderen",(SUMIFS(Onderhoudskosten!$K:$K,Onderhoudskosten!$B:$B,Invoer!$B72)*Invoer!D72)," ")) ->  | F42: =IF(IF(Invoer!G72<>"Verwijderen",(SUMIFS(Onderhoudskosten!$K:$K,Onderhoudskosten!$B:$B,Invoer!$B72)*Invoer!F72)," ")=0," ",IF(Invoer!G72<>"Verwijderen",(SUMIFS(Onderhoudskosten!$K:$K,Onderhoudskosten!$B:$B,Invoer!$B72)*Invoer!F72)," ")) ->  | H42: =IF(IF(Invoer!I72<>"Verwijderen",(SUMIFS(Onderhoudskosten!$K:$K,Onderhoudskosten!$B:$B,Invoer!$B72)*Invoer!H72)," ")=0," ",IF(Invoer!I72<>"Verwijderen",(SUMIFS(Onderhoudskosten!$K:$K,Onderhoudskosten!$B:$B,Invoer!$B72)*Invoer!H72)," ")) ->  | J42: =IF(IF(Invoer!K72<>"Verwijderen",(SUMIFS(Onderhoudskosten!$K:$K,Onderhoudskosten!$B:$B,Invoer!$B72)*Invoer!J72)," ")=0," ",IF(Invoer!K72<>"Verwijderen",(SUMIFS(Onderhoudskosten!$K:$K,Onderhoudskosten!$B:$B,Invoer!$B72)*Invoer!J72)," ")) ->  | X42: 0 | Y42: =SUMIFS(Inrichtingskosten!$H:$H,Inrichtingskosten!$C:$C,Invoer!$B72,Inrichtingskosten!$B:$B,Invoer!X72)*Invoer!D72 -> 0 | Z42: =SUMIFS(Inrichtingskosten!$H:$H,Inrichtingskosten!$C:$C,Invoer!$B72,Inrichtingskosten!$B:$B,Invoer!Y72)*Invoer!D72 -> 0 | AA42: =SUMIFS(Inrichtingskosten!$H:$H,Inrichtingskosten!$C:$C,Invoer!$B72,Inrichtingskosten!$B:$B,Invoer!Z72)*Invoer!F72 -> 0 | AB42: =SUMIFS(Inrichtingskosten!$H:$H,Inrichtingskosten!$C:$C,Invoer!$B72,Inrichtingskosten!$B:$B,Invoer!AA72)*Invoer!F72 -> 0 | AC42: =SUMIFS(Inrichtingskosten!$H:$H,Inrichtingskosten!$C:$C,Invoer!$B72,Inrichtingskosten!$B:$B,Invoer!AB72)*Invoer!H72 -> 0 | AD42: =SUMIFS(Inrichtingskosten!$H:$H,Inrichtingskosten!$C:$C,Invoer!$B72,Inrichtingskosten!$B:$B,Invoer!AC72)*Invoer!H72 -> 0 | AE42: =SUMIFS(Inrichtingskosten!$H:$H,Inrichtingskosten!$C:$C,Invoer!$B72,Inrichtingskosten!$B:$B,Invoer!AD72)*Invoer!J72 -> 0 | AF42: =SUMIFS(Inrichtingskosten!$H:$H,Inrichtingskosten!$C:$C,Invoer!$B72,Inrichtingskosten!$B:$B,Invoer!AE72)*Invoer!J72 -> 0 | AI42: =B12 -> Woonstraat en parkeerterrein van betonstraatstenen | AJ42: =SUM(Y13:Y20) -> 0 | AK42: Woonstraat en parkeerterrein van betonstraatstenen | AL42: =SUM(D13:D20) -> 0 | AM42: =SUM(AA13:AA20) -> 0 | AN42: =SUM(D13:D20) -> 0 | AO42: =SUM(AA13:AA20) -> 0
B43: =Invoer!B73 -> 0 | D43: =IF(IF(Invoer!E73<>"Verwijderen",(SUMIFS(Onderhoudskosten!$K:$K,Onderhoudskosten!$B:$B,Invoer!$B73)*Invoer!D73)," ")=0," ",IF(Invoer!E73<>"Verwijderen",(SUMIFS(Onderhoudskosten!$K:$K,Onderhoudskosten!$B:$B,Invoer!$B73)*Invoer!D73)," ")) ->  | F43: =IF(IF(Invoer!G73<>"Verwijderen",(SUMIFS(Onderhoudskosten!$K:$K,Onderhoudskosten!$B:$B,Invoer!$B73)*Invoer!F73)," ")=0," ",IF(Invoer!G73<>"Verwijderen",(SUMIFS(Onderhoudskosten!$K:$K,Onderhoudskosten!$B:$B,Invoer!$B73)*Invoer!F73)," ")) ->  | H43: =IF(IF(Invoer!I73<>"Verwijderen",(SUMIFS(Onderhoudskosten!$K:$K,Onderhoudskosten!$B:$B,Invoer!$B73)*Invoer!H73)," ")=0," ",IF(Invoer!I73<>"Verwijderen",(SUMIFS(Onderhoudskosten!$K:$K,Onderhoudskosten!$B:$B,Invoer!$B73)*Invoer!H73)," ")) ->  | J43: =IF(IF(Invoer!K73<>"Verwijderen",(SUMIFS(Onderhoudskosten!$K:$K,Onderhoudskosten!$B:$B,Invoer!$B73)*Invoer!J73)," ")=0," ",IF(Invoer!K73<>"Verwijderen",(SUMIFS(Onderhoudskosten!$K:$K,Onderhoudskosten!$B:$B,Invoer!$B73)*Invoer!J73)," ")) ->  | X43: 0 | Y43: =SUMIFS(Inrichtingskosten!$H:$H,Inrichtingskosten!$C:$C,Invoer!$B73,Inrichtingskosten!$B:$B,Invoer!X73)*Invoer!D73 -> 0 | Z43: =SUMIFS(Inrichtingskosten!$H:$H,Inrichtingskosten!$C:$C,Invoer!$B73,Inrichtingskosten!$B:$B,Invoer!Y73)*Invoer!D73 -> 0 | AA43: =SUMIFS(Inrichtingskosten!$H:$H,Inrichtingskosten!$C:$C,Invoer!$B73,Inrichtingskosten!$B:$B,Invoer!Z73)*Invoer!F73 -> 0 | AB43: =SUMIFS(Inrichtingskosten!$H:$H,Inrichtingskosten!$C:$C,Invoer!$B73,Inrichtingskosten!$B:$B,Invoer!AA73)*Invoer!F73 -> 0 | AC43: =SUMIFS(Inrichtingskosten!$H:$H,Inrichtingskosten!$C:$C,Invoer!$B73,Inrichtingskosten!$B:$B,Invoer!AB73)*Invoer!H73 -> 0 | AD43: =SUMIFS(Inrichtingskosten!$H:$H,Inrichtingskosten!$C:$C,Invoer!$B73,Inrichtingskosten!$B:$B,Invoer!AC73)*Invoer!H73 -> 0 | AE43: =SUMIFS(Inrichtingskosten!$H:$H,Inrichtingskosten!$C:$C,Invoer!$B73,Inrichtingskosten!$B:$B,Invoer!AD73)*Invoer!J73 -> 0 | AF43: =SUMIFS(Inrichtingskosten!$H:$H,Inrichtingskosten!$C:$C,Invoer!$B73,Inrichtingskosten!$B:$B,Invoer!AE73)*Invoer!J73 -> 0 | AI43: =B13 -> Voetpad/plein van betonstraatstenen | AJ43: =SUM(Y14:Y20) -> 0 | AK43: Voetpad/plein van betonstraatstenen | AL43: =SUM(D14:D20) -> 0 | AM43: =SUM(AA14:AA20) -> 0 | AN43: =SUM(D14:D20) -> 0 | AO43: =SUM(AA14:AA20) -> 0
B44: =Invoer!B74 -> 0 | C44: =IF(2*(Y44+Z44)/100=0,"",2*(Y44+Z44)/100) ->  | D44: =IF(IF(Invoer!E74<>"Verwijderen",(SUMIFS(Onderhoudskosten!$K:$K,Onderhoudskosten!$B:$B,Invoer!$B74)*Invoer!D74)," ")=0," ",IF(Invoer!E74<>"Verwijderen",(SUMIFS(Onderhoudskosten!$K:$K,Onderhoudskosten!$B:$B,Invoer!$B74)*Invoer!D74)," ")) ->  | E44: =IF(2*(AA44+AB44)/100=0,"",2*(AA44+AB44)/100) ->  | F44: =IF(IF(Invoer!G74<>"Verwijderen",(SUMIFS(Onderhoudskosten!$K:$K,Onderhoudskosten!$B:$B,Invoer!$B74)*Invoer!F74)," ")=0," ",IF(Invoer!G74<>"Verwijderen",(SUMIFS(Onderhoudskosten!$K:$K,Onderhoudskosten!$B:$B,Invoer!$B74)*Invoer!F74)," ")) ->  | G44: =IF(2*(AC44+AD44)/100=0,"",2*(AC44+AD44)/100) ->  | H44: =IF(IF(Invoer!I74<>"Verwijderen",(SUMIFS(Onderhoudskosten!$K:$K,Onderhoudskosten!$B:$B,Invoer!$B74)*Invoer!H74)," ")=0," ",IF(Invoer!I74<>"Verwijderen",(SUMIFS(Onderhoudskosten!$K:$K,Onderhoudskosten!$B:$B,Invoer!$B74)*Invoer!H74)," ")) ->  | I44: =IF(2*(AE44+AF44)/100=0,"",2*(AE44+AF44)/100) ->  | J44: =IF(IF(Invoer!K74<>"Verwijderen",(SUMIFS(Onderhoudskosten!$K:$K,Onderhoudskosten!$B:$B,Invoer!$B74)*Invoer!J74)," ")=0," ",IF(Invoer!K74<>"Verwijderen",(SUMIFS(Onderhoudskosten!$K:$K,Onderhoudskosten!$B:$B,Invoer!$B74)*Invoer!J74)," ")) ->  | X44: 0 | Y44: =SUMIFS(Inrichtingskosten!$H:$H,Inrichtingskosten!$C:$C,Invoer!$B74,Inrichtingskosten!$B:$B,Invoer!X74)*Invoer!D74 -> 0 | Z44: =SUMIFS(Inrichtingskosten!$H:$H,Inrichtingskosten!$C:$C,Invoer!$B74,Inrichtingskosten!$B:$B,Invoer!Y74)*Invoer!D74 -> 0 | AA44: =SUMIFS(Inrichtingskosten!$H:$H,Inrichtingskosten!$C:$C,Invoer!$B74,Inrichtingskosten!$B:$B,Invoer!Z74)*Invoer!F74 -> 0 | AB44: =SUMIFS(Inrichtingskosten!$H:$H,Inrichtingskosten!$C:$C,Invoer!$B74,Inrichtingskosten!$B:$B,Invoer!AA74)*Invoer!F74 -> 0 | AC44: =SUMIFS(Inrichtingskosten!$H:$H,Inrichtingskosten!$C:$C,Invoer!$B74,Inrichtingskosten!$B:$B,Invoer!AB74)*Invoer!H74 -> 0 | AD44: =SUMIFS(Inrichtingskosten!$H:$H,Inrichtingskosten!$C:$C,Invoer!$B74,Inrichtingskosten!$B:$B,Invoer!AC74)*Invoer!H74 -> 0 | AE44: =SUMIFS(Inrichtingskosten!$H:$H,Inrichtingskosten!$C:$C,Invoer!$B74,Inrichtingskosten!$B:$B,Invoer!AD74)*Invoer!J74 -> 0 | AF44: =SUMIFS(Inrichtingskosten!$H:$H,Inrichtingskosten!$C:$C,Invoer!$B74,Inrichtingskosten!$B:$B,Invoer!AE74)*Invoer!J74 -> 0 | AI44: =B14 -> Woonstraat en parkeerterrein van betonstraatstenen | AJ44: =SUM(Y19:Y22) -> 0 | AK44: Woonstraat en parkeerterrein van betonstraatstenen | AL44: =SUM(D19:D22) -> 0 | AM44: =SUM(AA19:AA22) -> 0 | AN44: =SUM(D19:D22) -> 0 | AO44: =SUM(AA19:AA22) -> 0
B45: =Invoer!B75 -> Gemengd of afvalwaterriool | X45: =Invoer!B75 -> Gemengd of afvalwaterriool | AI45: =B33 -> Gescheiden hemelwaterriool | AJ45: =SUM(Y34:Y40) -> 0 | AK45: Gescheiden hemelwaterriool | AL45: =SUM(D34:D41) -> 0 | AM45: =SUM(AA34:AA40) -> 0 | AN45: =SUM(D34:D41) -> 0 | AO45: =SUM(AA34:AA40) -> 0
B46: =Invoer!B76 -> Buis beton 400 | C46: =IF(2*(Y46+Z46)/100=0,"",2*(Y46+Z46)/100) ->  | D46: =IF(IF(Invoer!E76<>"Verwijderen",(SUMIFS(Onderhoudskosten!$K:$K,Onderhoudskosten!$B:$B,Invoer!$B76)*Invoer!D76)," ")=0," ",IF(Invoer!E76<>"Verwijderen",(SUMIFS(Onderhoudskosten!$K:$K,Onderhoudskosten!$B:$B,Invoer!$B76)*Invoer!D76)," ")) ->  | E46: =IF(2*(AA46+AB46)/100=0,"",2*(AA46+AB46)/100) ->  | F46: =IF(IF(Invoer!G76<>"Verwijderen",(SUMIFS(Onderhoudskosten!$K:$K,Onderhoudskosten!$B:$B,Invoer!$B76)*Invoer!F76)," ")=0," ",IF(Invoer!G76<>"Verwijderen",(SUMIFS(Onderhoudskosten!$K:$K,Onderhoudskosten!$B:$B,Invoer!$B76)*Invoer!F76)," ")) ->  | G46: =IF(2*(AC46+AD46)/100=0,"",2*(AC46+AD46)/100) ->  | H46: =IF(IF(Invoer!I76<>"Verwijderen",(SUMIFS(Onderhoudskosten!$K:$K,Onderhoudskosten!$B:$B,Invoer!$B76)*Invoer!H76)," ")=0," ",IF(Invoer!I76<>"Verwijderen",(SUMIFS(Onderhoudskosten!$K:$K,Onderhoudskosten!$B:$B,Invoer!$B76)*Invoer!H76)," ")) ->  | I46: =IF(2*(AE46+AF46)/100=0,"",2*(AE46+AF46)/100) ->  | J46: =IF(IF(Invoer!K76<>"Verwijderen",(SUMIFS(Onderhoudskosten!$K:$K,Onderhoudskosten!$B:$B,Invoer!$B76)*Invoer!J76)," ")=0," ",IF(Invoer!K76<>"Verwijderen",(SUMIFS(Onderhoudskosten!$K:$K,Onderhoudskosten!$B:$B,Invoer!$B76)*Invoer!J76)," ")) ->  | X46: =B46 -> Buis beton 400 | Y46: =SUMIFS(Inrichtingskosten!$H:$H,Inrichtingskosten!$C:$C,Invoer!$B76,Inrichtingskosten!$B:$B,Invoer!X76)*Invoer!D76 -> 0 | Z46: =SUMIFS(Inrichtingskosten!$H:$H,Inrichtingskosten!$C:$C,Invoer!$B76,Inrichtingskosten!$B:$B,Invoer!Y76)*Invoer!D76 -> 0 | AA46: =SUMIFS(Inrichtingskosten!$H:$H,Inrichtingskosten!$C:$C,Invoer!$B76,Inrichtingskosten!$B:$B,Invoer!Z76)*Invoer!F76 -> 0 | AB46: =SUMIFS(Inrichtingskosten!$H:$H,Inrichtingskosten!$C:$C,Invoer!$B76,Inrichtingskosten!$B:$B,Invoer!AA76)*Invoer!F76 -> 0 | AC46: =SUMIFS(Inrichtingskosten!$H:$H,Inrichtingskosten!$C:$C,Invoer!$B76,Inrichtingskosten!$B:$B,Invoer!AB76)*Invoer!H76 -> 0 | AD46: =SUMIFS(Inrichtingskosten!$H:$H,Inrichtingskosten!$C:$C,Invoer!$B76,Inrichtingskosten!$B:$B,Invoer!AC76)*Invoer!H76 -> 0 | AE46: =SUMIFS(Inrichtingskosten!$H:$H,Inrichtingskosten!$C:$C,Invoer!$B76,Inrichtingskosten!$B:$B,Invoer!AD76)*Invoer!J76 -> 0 | AF46: =SUMIFS(Inrichtingskosten!$H:$H,Inrichtingskosten!$C:$C,Invoer!$B76,Inrichtingskosten!$B:$B,Invoer!AE76)*Invoer!J76 -> 0 | AI46: =B45 -> Gemengd of afvalwaterriool | AJ46: =SUM(Y46:Y47) -> 0 | AK46: Gemengd of afvalwaterriool | AL46: =SUM(D46:D48) -> 0 | AM46: =SUM(AA46:AA47) -> 0 | AN46: =SUM(D46:D48) -> 0 | AO46: =SUM(AA46:AA47) -> 0
B47: =Invoer!B77 -> Rioolput beton 400 | C47: =IF(2*(Y47+Z47)/100=0,"",2*(Y47+Z47)/100) ->  | D47: =IF(IF(Invoer!E77<>"Verwijderen",(SUMIFS(Onderhoudskosten!$K:$K,Onderhoudskosten!$B:$B,Invoer!$B77)*Invoer!D77)," ")=0," ",IF(Invoer!E77<>"Verwijderen",(SUMIFS(Onderhoudskosten!$K:$K,Onderhoudskosten!$B:$B,Invoer!$B77)*Invoer!D77)," ")) ->  | E47: =IF(2*(AA47+AB47)/100=0,"",2*(AA47+AB47)/100) ->  | F47: =IF(IF(Invoer!G77<>"Verwijderen",(SUMIFS(Onderhoudskosten!$K:$K,Onderhoudskosten!$B:$B,Invoer!$B77)*Invoer!F77)," ")=0," ",IF(Invoer!G77<>"Verwijderen",(SUMIFS(Onderhoudskosten!$K:$K,Onderhoudskosten!$B:$B,Invoer!$B77)*Invoer!F77)," ")) ->  | G47: =IF(2*(AC47+AD47)/100=0,"",2*(AC47+AD47)/100) ->  | H47: =IF(IF(Invoer!I77<>"Verwijderen",(SUMIFS(Onderhoudskosten!$K:$K,Onderhoudskosten!$B:$B,Invoer!$B77)*Invoer!H77)," ")=0," ",IF(Invoer!I77<>"Verwijderen",(SUMIFS(Onderhoudskosten!$K:$K,Onderhoudskosten!$B:$B,Invoer!$B77)*Invoer!H77)," ")) ->  | I47: =IF(2*(AE47+AF47)/100=0,"",2*(AE47+AF47)/100) ->  | J47: =IF(IF(Invoer!K77<>"Verwijderen",(SUMIFS(Onderhoudskosten!$K:$K,Onderhoudskosten!$B:$B,Invoer!$B77)*Invoer!J77)," ")=0," ",IF(Invoer!K77<>"Verwijderen",(SUMIFS(Onderhoudskosten!$K:$K,Onderhoudskosten!$B:$B,Invoer!$B77)*Invoer!J77)," ")) ->  | X47: Rioolput beton 400 | Y47: =SUMIFS(Inrichtingskosten!$H:$H,Inrichtingskosten!$C:$C,Invoer!$B77,Inrichtingskosten!$B:$B,Invoer!X77)*Invoer!D77 -> 0 | Z47: =SUMIFS(Inrichtingskosten!$H:$H,Inrichtingskosten!$C:$C,Invoer!$B77,Inrichtingskosten!$B:$B,Invoer!Y77)*Invoer!D77 -> 0 | AA47: =SUMIFS(Inrichtingskosten!$H:$H,Inrichtingskosten!$C:$C,Invoer!$B77,Inrichtingskosten!$B:$B,Invoer!Z77)*Invoer!F77 -> 0 | AB47: =SUMIFS(Inrichtingskosten!$H:$H,Inrichtingskosten!$C:$C,Invoer!$B77,Inrichtingskosten!$B:$B,Invoer!AA77)*Invoer!F77 -> 0 | AC47: =SUMIFS(Inrichtingskosten!$H:$H,Inrichtingskosten!$C:$C,Invoer!$B77,Inrichtingskosten!$B:$B,Invoer!AB77)*Invoer!H77 -> 0 | AD47: =SUMIFS(Inrichtingskosten!$H:$H,Inrichtingskosten!$C:$C,Invoer!$B77,Inrichtingskosten!$B:$B,Invoer!AC77)*Invoer!H77 -> 0 | AE47: =SUMIFS(Inrichtingskosten!$H:$H,Inrichtingskosten!$C:$C,Invoer!$B77,Inrichtingskosten!$B:$B,Invoer!AD77)*Invoer!J77 -> 0 | AF47: =SUMIFS(Inrichtingskosten!$H:$H,Inrichtingskosten!$C:$C,Invoer!$B77,Inrichtingskosten!$B:$B,Invoer!AE77)*Invoer!J77 -> 0 | AI47: =B58 -> Groenvoorziening | AJ47: =SUM(Y58:Y60) -> 0 | AK47: Groenvoorziening | AL47: =SUM(D59:D64) -> 0 | AM47: =SUM(AA58:AA60) -> 0 | AN47: =SUM(D59:D64) -> 0 | AO47: =SUM(AA58:AA60) -> 0
B48: =Invoer!B78 -> Perceelaansluiting | C48: =IF(2*(Y48+Z48)/100=0,"",2*(Y48+Z48)/100) ->  | D48: =IF(IF(Invoer!E78<>"Verwijderen",(SUMIFS(Onderhoudskosten!$K:$K,Onderhoudskosten!$B:$B,Invoer!$B78)*Invoer!D78)," ")=0," ",IF(Invoer!E78<>"Verwijderen",(SUMIFS(Onderhoudskosten!$K:$K,Onderhoudskosten!$B:$B,Invoer!$B78)*Invoer!D78)," ")) ->  | F48: =IF(IF(Invoer!G78<>"Verwijderen",(SUMIFS(Onderhoudskosten!$K:$K,Onderhoudskosten!$B:$B,Invoer!$B78)*Invoer!F78)," ")=0," ",IF(Invoer!G78<>"Verwijderen",(SUMIFS(Onderhoudskosten!$K:$K,Onderhoudskosten!$B:$B,Invoer!$B78)*Invoer!F78)," ")) ->  | H48: =IF(IF(Invoer!I78<>"Verwijderen",(SUMIFS(Onderhoudskosten!$K:$K,Onderhoudskosten!$B:$B,Invoer!$B78)*Invoer!H78)," ")=0," ",IF(Invoer!I78<>"Verwijderen",(SUMIFS(Onderhoudskosten!$K:$K,Onderhoudskosten!$B:$B,Invoer!$B78)*Invoer!H78)," ")) ->  | J48: =IF(IF(Invoer!K78<>"Verwijderen",(SUMIFS(Onderhoudskosten!$K:$K,Onderhoudskosten!$B:$B,Invoer!$B78)*Invoer!J78)," ")=0," ",IF(Invoer!K78<>"Verwijderen",(SUMIFS(Onderhoudskosten!$K:$K,Onderhoudskosten!$B:$B,Invoer!$B78)*Invoer!J78)," ")) ->  | X48: Perceelaansluiting | Y48: =SUMIFS(Inrichtingskosten!$H:$H,Inrichtingskosten!$C:$C,Invoer!$B78,Inrichtingskosten!$B:$B,Invoer!X78)*Invoer!D78 -> 0 | Z48: =SUMIFS(Inrichtingskosten!$H:$H,Inrichtingskosten!$C:$C,Invoer!$B78,Inrichtingskosten!$B:$B,Invoer!Y78)*Invoer!D78 -> 0 | AA48: =SUMIFS(Inrichtingskosten!$H:$H,Inrichtingskosten!$C:$C,Invoer!$B78,Inrichtingskosten!$B:$B,Invoer!Z78)*Invoer!F78 -> 0 | AB48: =SUMIFS(Inrichtingskosten!$H:$H,Inrichtingskosten!$C:$C,Invoer!$B78,Inrichtingskosten!$B:$B,Invoer!AA78)*Invoer!F78 -> 0 | AC48: =SUMIFS(Inrichtingskosten!$H:$H,Inrichtingskosten!$C:$C,Invoer!$B78,Inrichtingskosten!$B:$B,Invoer!AB78)*Invoer!H78 -> 0 | AD48: =SUMIFS(Inrichtingskosten!$H:$H,Inrichtingskosten!$C:$C,Invoer!$B78,Inrichtingskosten!$B:$B,Invoer!AC78)*Invoer!H78 -> 0 | AE48: =SUMIFS(Inrichtingskosten!$H:$H,Inrichtingskosten!$C:$C,Invoer!$B78,Inrichtingskosten!$B:$B,Invoer!AD78)*Invoer!J78 -> 0 | AF48: =SUMIFS(Inrichtingskosten!$H:$H,Inrichtingskosten!$C:$C,Invoer!$B78,Inrichtingskosten!$B:$B,Invoer!AE78)*Invoer!J78 -> 0 | AI48: =B67 -> Overig | AJ48: =SUM(#REF!) ->  | AK48: Overig | AL48: =SUM(#REF!) ->  | AM48: =SUM(#REF!) ->  | AN48: =SUM(D68) -> 0 | AO48: =SUM(#REF!) -> 
B49: =Invoer!B79 -> 0 | D49: =IF(IF(Invoer!E79<>"Verwijderen",(SUMIFS(Onderhoudskosten!$K:$K,Onderhoudskosten!$B:$B,Invoer!$B79)*Invoer!D79)," ")=0," ",IF(Invoer!E79<>"Verwijderen",(SUMIFS(Onderhoudskosten!$K:$K,Onderhoudskosten!$B:$B,Invoer!$B79)*Invoer!D79)," ")) ->  | F49: =IF(IF(Invoer!G79<>"Verwijderen",(SUMIFS(Onderhoudskosten!$K:$K,Onderhoudskosten!$B:$B,Invoer!$B79)*Invoer!F79)," ")=0," ",IF(Invoer!G79<>"Verwijderen",(SUMIFS(Onderhoudskosten!$K:$K,Onderhoudskosten!$B:$B,Invoer!$B79)*Invoer!F79)," ")) ->  | H49: =IF(IF(Invoer!I79<>"Verwijderen",(SUMIFS(Onderhoudskosten!$K:$K,Onderhoudskosten!$B:$B,Invoer!$B79)*Invoer!H79)," ")=0," ",IF(Invoer!I79<>"Verwijderen",(SUMIFS(Onderhoudskosten!$K:$K,Onderhoudskosten!$B:$B,Invoer!$B79)*Invoer!H79)," ")) ->  | J49: =IF(IF(Invoer!K79<>"Verwijderen",(SUMIFS(Onderhoudskosten!$K:$K,Onderhoudskosten!$B:$B,Invoer!$B79)*Invoer!J79)," ")=0," ",IF(Invoer!K79<>"Verwijderen",(SUMIFS(Onderhoudskosten!$K:$K,Onderhoudskosten!$B:$B,Invoer!$B79)*Invoer!J79)," ")) ->  | X49: 0 | Y49: =SUMIFS(Inrichtingskosten!$H:$H,Inrichtingskosten!$C:$C,Invoer!$B79,Inrichtingskosten!$B:$B,Invoer!X79)*Invoer!D79 -> 0 | Z49: =SUMIFS(Inrichtingskosten!$H:$H,Inrichtingskosten!$C:$C,Invoer!$B79,Inrichtingskosten!$B:$B,Invoer!Y79)*Invoer!D79 -> 0 | AA49: =SUMIFS(Inrichtingskosten!$H:$H,Inrichtingskosten!$C:$C,Invoer!$B79,Inrichtingskosten!$B:$B,Invoer!Z79)*Invoer!F79 -> 0 | AB49: =SUMIFS(Inrichtingskosten!$H:$H,Inrichtingskosten!$C:$C,Invoer!$B79,Inrichtingskosten!$B:$B,Invoer!AA79)*Invoer!F79 -> 0 | AC49: =SUMIFS(Inrichtingskosten!$H:$H,Inrichtingskosten!$C:$C,Invoer!$B79,Inrichtingskosten!$B:$B,Invoer!AB79)*Invoer!H79 -> 0 | AD49: =SUMIFS(Inrichtingskosten!$H:$H,Inrichtingskosten!$C:$C,Invoer!$B79,Inrichtingskosten!$B:$B,Invoer!AC79)*Invoer!H79 -> 0 | AE49: =SUMIFS(Inrichtingskosten!$H:$H,Inrichtingskosten!$C:$C,Invoer!$B79,Inrichtingskosten!$B:$B,Invoer!AD79)*Invoer!J79 -> 0 | AF49: =SUMIFS(Inrichtingskosten!$H:$H,Inrichtingskosten!$C:$C,Invoer!$B79,Inrichtingskosten!$B:$B,Invoer!AE79)*Invoer!J79 -> 0
B50: =Invoer!B80 -> 0 | C50: =IF(2*(Y50+Z50)/100=0,"",2*(Y50+Z50)/100) ->  | D50: =IF(IF(Invoer!E80<>"Verwijderen",(SUMIFS(Onderhoudskosten!$K:$K,Onderhoudskosten!$B:$B,Invoer!$B80)*Invoer!D80)," ")=0," ",IF(Invoer!E80<>"Verwijderen",(SUMIFS(Onderhoudskosten!$K:$K,Onderhoudskosten!$B:$B,Invoer!$B80)*Invoer!D80)," ")) ->  | E50: =IF(2*(AA50+AB50)/100=0,"",2*(AA50+AB50)/100) ->  | F50: =IF(IF(Invoer!G80<>"Verwijderen",(SUMIFS(Onderhoudskosten!$K:$K,Onderhoudskosten!$B:$B,Invoer!$B80)*Invoer!F80)," ")=0," ",IF(Invoer!G80<>"Verwijderen",(SUMIFS(Onderhoudskosten!$K:$K,Onderhoudskosten!$B:$B,Invoer!$B80)*Invoer!F80)," ")) ->  | G50: =IF(2*(AC50+AD50)/100=0,"",2*(AC50+AD50)/100) ->  | H50: =IF(IF(Invoer!I80<>"Verwijderen",(SUMIFS(Onderhoudskosten!$K:$K,Onderhoudskosten!$B:$B,Invoer!$B80)*Invoer!H80)," ")=0," ",IF(Invoer!I80<>"Verwijderen",(SUMIFS(Onderhoudskosten!$K:$K,Onderhoudskosten!$B:$B,Invoer!$B80)*Invoer!H80)," ")) ->  | I50: =IF(2*(AE50+AF50)/100=0,"",2*(AE50+AF50)/100) ->  | J50: =IF(IF(Invoer!K80<>"Verwijderen",(SUMIFS(Onderhoudskosten!$K:$K,Onderhoudskosten!$B:$B,Invoer!$B80)*Invoer!J80)," ")=0," ",IF(Invoer!K80<>"Verwijderen",(SUMIFS(Onderhoudskosten!$K:$K,Onderhoudskosten!$B:$B,Invoer!$B80)*Invoer!J80)," ")) ->  | X50: =B50 -> 0 | Y50: =SUMIFS(Inrichtingskosten!$H:$H,Inrichtingskosten!$C:$C,Invoer!$B80,Inrichtingskosten!$B:$B,Invoer!X80)*Invoer!D80 -> 0 | Z50: =SUMIFS(Inrichtingskosten!$H:$H,Inrichtingskosten!$C:$C,Invoer!$B80,Inrichtingskosten!$B:$B,Invoer!Y80)*Invoer!D80 -> 0 | AA50: =SUMIFS(Inrichtingskosten!$H:$H,Inrichtingskosten!$C:$C,Invoer!$B80,Inrichtingskosten!$B:$B,Invoer!Z80)*Invoer!F80 -> 0 | AB50: =SUMIFS(Inrichtingskosten!$H:$H,Inrichtingskosten!$C:$C,Invoer!$B80,Inrichtingskosten!$B:$B,Invoer!AA80)*Invoer!F80 -> 0 | AC50: =SUMIFS(Inrichtingskosten!$H:$H,Inrichtingskosten!$C:$C,Invoer!$B80,Inrichtingskosten!$B:$B,Invoer!AB80)*Invoer!H80 -> 0 | AD50: =SUMIFS(Inrichtingskosten!$H:$H,Inrichtingskosten!$C:$C,Invoer!$B80,Inrichtingskosten!$B:$B,Invoer!AC80)*Invoer!H80 -> 0 | AE50: =SUMIFS(Inrichtingskosten!$H:$H,Inrichtingskosten!$C:$C,Invoer!$B80,Inrichtingskosten!$B:$B,Invoer!AD80)*Invoer!J80 -> 0 | AF50: =SUMIFS(Inrichtingskosten!$H:$H,Inrichtingskosten!$C:$C,Invoer!$B80,Inrichtingskosten!$B:$B,Invoer!AE80)*Invoer!J80 -> 0
B51: =Invoer!B81 -> 0 | D51: =IF(IF(Invoer!E81<>"Verwijderen",(SUMIFS(Onderhoudskosten!$K:$K,Onderhoudskosten!$B:$B,Invoer!$B81)*Invoer!D81)," ")=0," ",IF(Invoer!E81<>"Verwijderen",(SUMIFS(Onderhoudskosten!$K:$K,Onderhoudskosten!$B:$B,Invoer!$B81)*Invoer!D81)," ")) ->  | F51: =IF(IF(Invoer!G81<>"Verwijderen",(SUMIFS(Onderhoudskosten!$K:$K,Onderhoudskosten!$B:$B,Invoer!$B81)*Invoer!F81)," ")=0," ",IF(Invoer!G81<>"Verwijderen",(SUMIFS(Onderhoudskosten!$K:$K,Onderhoudskosten!$B:$B,Invoer!$B81)*Invoer!F81)," ")) ->  | H51: =IF(IF(Invoer!I81<>"Verwijderen",(SUMIFS(Onderhoudskosten!$K:$K,Onderhoudskosten!$B:$B,Invoer!$B81)*Invoer!H81)," ")=0," ",IF(Invoer!I81<>"Verwijderen",(SUMIFS(Onderhoudskosten!$K:$K,Onderhoudskosten!$B:$B,Invoer!$B81)*Invoer!H81)," ")) ->  | J51: =IF(IF(Invoer!K81<>"Verwijderen",(SUMIFS(Onderhoudskosten!$K:$K,Onderhoudskosten!$B:$B,Invoer!$B81)*Invoer!J81)," ")=0," ",IF(Invoer!K81<>"Verwijderen",(SUMIFS(Onderhoudskosten!$K:$K,Onderhoudskosten!$B:$B,Invoer!$B81)*Invoer!J81)," ")) ->  | X51: 0 | Y51: =SUMIFS(Inrichtingskosten!$H:$H,Inrichtingskosten!$C:$C,Invoer!$B81,Inrichtingskosten!$B:$B,Invoer!X81)*Invoer!D81 -> 0 | Z51: =SUMIFS(Inrichtingskosten!$H:$H,Inrichtingskosten!$C:$C,Invoer!$B81,Inrichtingskosten!$B:$B,Invoer!Y81)*Invoer!D81 -> 0 | AA51: =SUMIFS(Inrichtingskosten!$H:$H,Inrichtingskosten!$C:$C,Invoer!$B81,Inrichtingskosten!$B:$B,Invoer!Z81)*Invoer!F81 -> 0 | AB51: =SUMIFS(Inrichtingskosten!$H:$H,Inrichtingskosten!$C:$C,Invoer!$B81,Inrichtingskosten!$B:$B,Invoer!AA81)*Invoer!F81 -> 0 | AC51: =SUMIFS(Inrichtingskosten!$H:$H,Inrichtingskosten!$C:$C,Invoer!$B81,Inrichtingskosten!$B:$B,Invoer!AB81)*Invoer!H81 -> 0 | AD51: =SUMIFS(Inrichtingskosten!$H:$H,Inrichtingskosten!$C:$C,Invoer!$B81,Inrichtingskosten!$B:$B,Invoer!AC81)*Invoer!H81 -> 0 | AE51: =SUMIFS(Inrichtingskosten!$H:$H,Inrichtingskosten!$C:$C,Invoer!$B81,Inrichtingskosten!$B:$B,Invoer!AD81)*Invoer!J81 -> 0 | AF51: =SUMIFS(Inrichtingskosten!$H:$H,Inrichtingskosten!$C:$C,Invoer!$B81,Inrichtingskosten!$B:$B,Invoer!AE81)*Invoer!J81 -> 0
B52: =Invoer!B82 -> 0 | D52: =IF(IF(Invoer!E82<>"Verwijderen",(SUMIFS(Onderhoudskosten!$K:$K,Onderhoudskosten!$B:$B,Invoer!$B82)*Invoer!D82)," ")=0," ",IF(Invoer!E82<>"Verwijderen",(SUMIFS(Onderhoudskosten!$K:$K,Onderhoudskosten!$B:$B,Invoer!$B82)*Invoer!D82)," ")) ->  | F52: =IF(IF(Invoer!G82<>"Verwijderen",(SUMIFS(Onderhoudskosten!$K:$K,Onderhoudskosten!$B:$B,Invoer!$B82)*Invoer!F82)," ")=0," ",IF(Invoer!G82<>"Verwijderen",(SUMIFS(Onderhoudskosten!$K:$K,Onderhoudskosten!$B:$B,Invoer!$B82)*Invoer!F82)," ")) ->  | H52: =IF(IF(Invoer!I82<>"Verwijderen",(SUMIFS(Onderhoudskosten!$K:$K,Onderhoudskosten!$B:$B,Invoer!$B82)*Invoer!H82)," ")=0," ",IF(Invoer!I82<>"Verwijderen",(SUMIFS(Onderhoudskosten!$K:$K,Onderhoudskosten!$B:$B,Invoer!$B82)*Invoer!H82)," ")) ->  | J52: =IF(IF(Invoer!K82<>"Verwijderen",(SUMIFS(Onderhoudskosten!$K:$K,Onderhoudskosten!$B:$B,Invoer!$B82)*Invoer!J82)," ")=0," ",IF(Invoer!K82<>"Verwijderen",(SUMIFS(Onderhoudskosten!$K:$K,Onderhoudskosten!$B:$B,Invoer!$B82)*Invoer!J82)," ")) ->  | X52: 0 | Y52: =SUMIFS(Inrichtingskosten!$H:$H,Inrichtingskosten!$C:$C,Invoer!$B82,Inrichtingskosten!$B:$B,Invoer!X82)*Invoer!D82 -> 0 | Z52: =SUMIFS(Inrichtingskosten!$H:$H,Inrichtingskosten!$C:$C,Invoer!$B82,Inrichtingskosten!$B:$B,Invoer!Y82)*Invoer!D82 -> 0 | AA52: =SUMIFS(Inrichtingskosten!$H:$H,Inrichtingskosten!$C:$C,Invoer!$B82,Inrichtingskosten!$B:$B,Invoer!Z82)*Invoer!F82 -> 0 | AB52: =SUMIFS(Inrichtingskosten!$H:$H,Inrichtingskosten!$C:$C,Invoer!$B82,Inrichtingskosten!$B:$B,Invoer!AA82)*Invoer!F82 -> 0 | AC52: =SUMIFS(Inrichtingskosten!$H:$H,Inrichtingskosten!$C:$C,Invoer!$B82,Inrichtingskosten!$B:$B,Invoer!AB82)*Invoer!H82 -> 0 | AD52: =SUMIFS(Inrichtingskosten!$H:$H,Inrichtingskosten!$C:$C,Invoer!$B82,Inrichtingskosten!$B:$B,Invoer!AC82)*Invoer!H82 -> 0 | AE52: =SUMIFS(Inrichtingskosten!$H:$H,Inrichtingskosten!$C:$C,Invoer!$B82,Inrichtingskosten!$B:$B,Invoer!AD82)*Invoer!J82 -> 0 | AF52: =SUMIFS(Inrichtingskosten!$H:$H,Inrichtingskosten!$C:$C,Invoer!$B82,Inrichtingskosten!$B:$B,Invoer!AE82)*Invoer!J82 -> 0
B53: =Invoer!B83 -> 0 | D53: =IF(IF(Invoer!E83<>"Verwijderen",(SUMIFS(Onderhoudskosten!$K:$K,Onderhoudskosten!$B:$B,Invoer!$B83)*Invoer!D83)," ")=0," ",IF(Invoer!E83<>"Verwijderen",(SUMIFS(Onderhoudskosten!$K:$K,Onderhoudskosten!$B:$B,Invoer!$B83)*Invoer!D83)," ")) ->  | F53: =IF(IF(Invoer!G83<>"Verwijderen",(SUMIFS(Onderhoudskosten!$K:$K,Onderhoudskosten!$B:$B,Invoer!$B83)*Invoer!F83)," ")=0," ",IF(Invoer!G83<>"Verwijderen",(SUMIFS(Onderhoudskosten!$K:$K,Onderhoudskosten!$B:$B,Invoer!$B83)*Invoer!F83)," ")) ->  | H53: =IF(IF(Invoer!I83<>"Verwijderen",(SUMIFS(Onderhoudskosten!$K:$K,Onderhoudskosten!$B:$B,Invoer!$B83)*Invoer!H83)," ")=0," ",IF(Invoer!I83<>"Verwijderen",(SUMIFS(Onderhoudskosten!$K:$K,Onderhoudskosten!$B:$B,Invoer!$B83)*Invoer!H83)," ")) ->  | J53: =IF(IF(Invoer!K83<>"Verwijderen",(SUMIFS(Onderhoudskosten!$K:$K,Onderhoudskosten!$B:$B,Invoer!$B83)*Invoer!J83)," ")=0," ",IF(Invoer!K83<>"Verwijderen",(SUMIFS(Onderhoudskosten!$K:$K,Onderhoudskosten!$B:$B,Invoer!$B83)*Invoer!J83)," ")) ->  | X53: 0 | Y53: =SUMIFS(Inrichtingskosten!$H:$H,Inrichtingskosten!$C:$C,Invoer!$B83,Inrichtingskosten!$B:$B,Invoer!X83)*Invoer!D83 -> 0 | Z53: =SUMIFS(Inrichtingskosten!$H:$H,Inrichtingskosten!$C:$C,Invoer!$B83,Inrichtingskosten!$B:$B,Invoer!Y83)*Invoer!D83 -> 0 | AA53: =SUMIFS(Inrichtingskosten!$H:$H,Inrichtingskosten!$C:$C,Invoer!$B83,Inrichtingskosten!$B:$B,Invoer!Z83)*Invoer!F83 -> 0 | AB53: =SUMIFS(Inrichtingskosten!$H:$H,Inrichtingskosten!$C:$C,Invoer!$B83,Inrichtingskosten!$B:$B,Invoer!AA83)*Invoer!F83 -> 0 | AC53: =SUMIFS(Inrichtingskosten!$H:$H,Inrichtingskosten!$C:$C,Invoer!$B83,Inrichtingskosten!$B:$B,Invoer!AB83)*Invoer!H83 -> 0 | AD53: =SUMIFS(Inrichtingskosten!$H:$H,Inrichtingskosten!$C:$C,Invoer!$B83,Inrichtingskosten!$B:$B,Invoer!AC83)*Invoer!H83 -> 0 | AE53: =SUMIFS(Inrichtingskosten!$H:$H,Inrichtingskosten!$C:$C,Invoer!$B83,Inrichtingskosten!$B:$B,Invoer!AD83)*Invoer!J83 -> 0 | AF53: =SUMIFS(Inrichtingskosten!$H:$H,Inrichtingskosten!$C:$C,Invoer!$B83,Inrichtingskosten!$B:$B,Invoer!AE83)*Invoer!J83 -> 0
B54: =Invoer!B84 -> 0 | D54: =IF(IF(Invoer!E84<>"Verwijderen",(SUMIFS(Onderhoudskosten!$K:$K,Onderhoudskosten!$B:$B,Invoer!$B84)*Invoer!D84)," ")=0," ",IF(Invoer!E84<>"Verwijderen",(SUMIFS(Onderhoudskosten!$K:$K,Onderhoudskosten!$B:$B,Invoer!$B84)*Invoer!D84)," ")) ->  | F54: =IF(IF(Invoer!G84<>"Verwijderen",(SUMIFS(Onderhoudskosten!$K:$K,Onderhoudskosten!$B:$B,Invoer!$B84)*Invoer!F84)," ")=0," ",IF(Invoer!G84<>"Verwijderen",(SUMIFS(Onderhoudskosten!$K:$K,Onderhoudskosten!$B:$B,Invoer!$B84)*Invoer!F84)," ")) ->  | H54: =IF(IF(Invoer!I84<>"Verwijderen",(SUMIFS(Onderhoudskosten!$K:$K,Onderhoudskosten!$B:$B,Invoer!$B84)*Invoer!H84)," ")=0," ",IF(Invoer!I84<>"Verwijderen",(SUMIFS(Onderhoudskosten!$K:$K,Onderhoudskosten!$B:$B,Invoer!$B84)*Invoer!H84)," ")) ->  | J54: =IF(IF(Invoer!K84<>"Verwijderen",(SUMIFS(Onderhoudskosten!$K:$K,Onderhoudskosten!$B:$B,Invoer!$B84)*Invoer!J84)," ")=0," ",IF(Invoer!K84<>"Verwijderen",(SUMIFS(Onderhoudskosten!$K:$K,Onderhoudskosten!$B:$B,Invoer!$B84)*Invoer!J84)," ")) ->  | X54: 0 | Y54: =SUMIFS(Inrichtingskosten!$H:$H,Inrichtingskosten!$C:$C,Invoer!$B84,Inrichtingskosten!$B:$B,Invoer!X84)*Invoer!D84 -> 0 | Z54: =SUMIFS(Inrichtingskosten!$H:$H,Inrichtingskosten!$C:$C,Invoer!$B84,Inrichtingskosten!$B:$B,Invoer!Y84)*Invoer!D84 -> 0 | AA54: =SUMIFS(Inrichtingskosten!$H:$H,Inrichtingskosten!$C:$C,Invoer!$B84,Inrichtingskosten!$B:$B,Invoer!Z84)*Invoer!F84 -> 0 | AB54: =SUMIFS(Inrichtingskosten!$H:$H,Inrichtingskosten!$C:$C,Invoer!$B84,Inrichtingskosten!$B:$B,Invoer!AA84)*Invoer!F84 -> 0 | AC54: =SUMIFS(Inrichtingskosten!$H:$H,Inrichtingskosten!$C:$C,Invoer!$B84,Inrichtingskosten!$B:$B,Invoer!AB84)*Invoer!H84 -> 0 | AD54: =SUMIFS(Inrichtingskosten!$H:$H,Inrichtingskosten!$C:$C,Invoer!$B84,Inrichtingskosten!$B:$B,Invoer!AC84)*Invoer!H84 -> 0 | AE54: =SUMIFS(Inrichtingskosten!$H:$H,Inrichtingskosten!$C:$C,Invoer!$B84,Inrichtingskosten!$B:$B,Invoer!AD84)*Invoer!J84 -> 0 | AF54: =SUMIFS(Inrichtingskosten!$H:$H,Inrichtingskosten!$C:$C,Invoer!$B84,Inrichtingskosten!$B:$B,Invoer!AE84)*Invoer!J84 -> 0
B55: =Invoer!B85 -> 0 | D55: =IF(IF(Invoer!E85<>"Verwijderen",(SUMIFS(Onderhoudskosten!$K:$K,Onderhoudskosten!$B:$B,Invoer!$B85)*Invoer!D85)," ")=0," ",IF(Invoer!E85<>"Verwijderen",(SUMIFS(Onderhoudskosten!$K:$K,Onderhoudskosten!$B:$B,Invoer!$B85)*Invoer!D85)," ")) ->  | F55: =IF(IF(Invoer!G85<>"Verwijderen",(SUMIFS(Onderhoudskosten!$K:$K,Onderhoudskosten!$B:$B,Invoer!$B85)*Invoer!F85)," ")=0," ",IF(Invoer!G85<>"Verwijderen",(SUMIFS(Onderhoudskosten!$K:$K,Onderhoudskosten!$B:$B,Invoer!$B85)*Invoer!F85)," ")) ->  | H55: =IF(IF(Invoer!I85<>"Verwijderen",(SUMIFS(Onderhoudskosten!$K:$K,Onderhoudskosten!$B:$B,Invoer!$B85)*Invoer!H85)," ")=0," ",IF(Invoer!I85<>"Verwijderen",(SUMIFS(Onderhoudskosten!$K:$K,Onderhoudskosten!$B:$B,Invoer!$B85)*Invoer!H85)," ")) ->  | J55: =IF(IF(Invoer!K85<>"Verwijderen",(SUMIFS(Onderhoudskosten!$K:$K,Onderhoudskosten!$B:$B,Invoer!$B85)*Invoer!J85)," ")=0," ",IF(Invoer!K85<>"Verwijderen",(SUMIFS(Onderhoudskosten!$K:$K,Onderhoudskosten!$B:$B,Invoer!$B85)*Invoer!J85)," ")) ->  | X55: 0 | Y55: =SUMIFS(Inrichtingskosten!$H:$H,Inrichtingskosten!$C:$C,Invoer!$B85,Inrichtingskosten!$B:$B,Invoer!X85)*Invoer!D85 -> 0 | Z55: =SUMIFS(Inrichtingskosten!$H:$H,Inrichtingskosten!$C:$C,Invoer!$B85,Inrichtingskosten!$B:$B,Invoer!Y85)*Invoer!D85 -> 0 | AA55: =SUMIFS(Inrichtingskosten!$H:$H,Inrichtingskosten!$C:$C,Invoer!$B85,Inrichtingskosten!$B:$B,Invoer!Z85)*Invoer!F85 -> 0 | AB55: =SUMIFS(Inrichtingskosten!$H:$H,Inrichtingskosten!$C:$C,Invoer!$B85,Inrichtingskosten!$B:$B,Invoer!AA85)*Invoer!F85 -> 0 | AC55: =SUMIFS(Inrichtingskosten!$H:$H,Inrichtingskosten!$C:$C,Invoer!$B85,Inrichtingskosten!$B:$B,Invoer!AB85)*Invoer!H85 -> 0 | AD55: =SUMIFS(Inrichtingskosten!$H:$H,Inrichtingskosten!$C:$C,Invoer!$B85,Inrichtingskosten!$B:$B,Invoer!AC85)*Invoer!H85 -> 0 | AE55: =SUMIFS(Inrichtingskosten!$H:$H,Inrichtingskosten!$C:$C,Invoer!$B85,Inrichtingskosten!$B:$B,Invoer!AD85)*Invoer!J85 -> 0 | AF55: =SUMIFS(Inrichtingskosten!$H:$H,Inrichtingskosten!$C:$C,Invoer!$B85,Inrichtingskosten!$B:$B,Invoer!AE85)*Invoer!J85 -> 0
B56: =Invoer!B86 -> 0 | D56: =IF(IF(Invoer!E86<>"Verwijderen",(SUMIFS(Onderhoudskosten!$K:$K,Onderhoudskosten!$B:$B,Invoer!$B86)*Invoer!D86)," ")=0," ",IF(Invoer!E86<>"Verwijderen",(SUMIFS(Onderhoudskosten!$K:$K,Onderhoudskosten!$B:$B,Invoer!$B86)*Invoer!D86)," ")) ->  | F56: =IF(IF(Invoer!G86<>"Verwijderen",(SUMIFS(Onderhoudskosten!$K:$K,Onderhoudskosten!$B:$B,Invoer!$B86)*Invoer!F86)," ")=0," ",IF(Invoer!G86<>"Verwijderen",(SUMIFS(Onderhoudskosten!$K:$K,Onderhoudskosten!$B:$B,Invoer!$B86)*Invoer!F86)," ")) ->  | H56: =IF(IF(Invoer!I86<>"Verwijderen",(SUMIFS(Onderhoudskosten!$K:$K,Onderhoudskosten!$B:$B,Invoer!$B86)*Invoer!H86)," ")=0," ",IF(Invoer!I86<>"Verwijderen",(SUMIFS(Onderhoudskosten!$K:$K,Onderhoudskosten!$B:$B,Invoer!$B86)*Invoer!H86)," ")) ->  | J56: =IF(IF(Invoer!K86<>"Verwijderen",(SUMIFS(Onderhoudskosten!$K:$K,Onderhoudskosten!$B:$B,Invoer!$B86)*Invoer!J86)," ")=0," ",IF(Invoer!K86<>"Verwijderen",(SUMIFS(Onderhoudskosten!$K:$K,Onderhoudskosten!$B:$B,Invoer!$B86)*Invoer!J86)," ")) ->  | X56: 0 | Y56: =SUMIFS(Inrichtingskosten!$H:$H,Inrichtingskosten!$C:$C,Invoer!$B86,Inrichtingskosten!$B:$B,Invoer!X86)*Invoer!D86 -> 0 | Z56: =SUMIFS(Inrichtingskosten!$H:$H,Inrichtingskosten!$C:$C,Invoer!$B86,Inrichtingskosten!$B:$B,Invoer!Y86)*Invoer!D86 -> 0 | AA56: =SUMIFS(Inrichtingskosten!$H:$H,Inrichtingskosten!$C:$C,Invoer!$B86,Inrichtingskosten!$B:$B,Invoer!Z86)*Invoer!F86 -> 0 | AB56: =SUMIFS(Inrichtingskosten!$H:$H,Inrichtingskosten!$C:$C,Invoer!$B86,Inrichtingskosten!$B:$B,Invoer!AA86)*Invoer!F86 -> 0 | AC56: =SUMIFS(Inrichtingskosten!$H:$H,Inrichtingskosten!$C:$C,Invoer!$B86,Inrichtingskosten!$B:$B,Invoer!AB86)*Invoer!H86 -> 0 | AD56: =SUMIFS(Inrichtingskosten!$H:$H,Inrichtingskosten!$C:$C,Invoer!$B86,Inrichtingskosten!$B:$B,Invoer!AC86)*Invoer!H86 -> 0 | AE56: =SUMIFS(Inrichtingskosten!$H:$H,Inrichtingskosten!$C:$C,Invoer!$B86,Inrichtingskosten!$B:$B,Invoer!AD86)*Invoer!J86 -> 0 | AF56: =SUMIFS(Inrichtingskosten!$H:$H,Inrichtingskosten!$C:$C,Invoer!$B86,Inrichtingskosten!$B:$B,Invoer!AE86)*Invoer!J86 -> 0 | AI56: =B69 -> 0 | AJ56: =SUM(#REF!) ->  | AK56: =AI56 -> 0 | AL56: =SUM(#REF!) ->  | AM56: =SUM(#REF!) ->  | AN56: =SUM(D70) -> 0 | AO56: =SUM(#REF!) -> 
B57: =Invoer!B87 -> 0 | D57: =IF(IF(Invoer!E87<>"Verwijderen",(SUMIFS(Onderhoudskosten!$K:$K,Onderhoudskosten!$B:$B,Invoer!$B87)*Invoer!D87)," ")=0," ",IF(Invoer!E87<>"Verwijderen",(SUMIFS(Onderhoudskosten!$K:$K,Onderhoudskosten!$B:$B,Invoer!$B87)*Invoer!D87)," ")) ->  | F57: =IF(IF(Invoer!G87<>"Verwijderen",(SUMIFS(Onderhoudskosten!$K:$K,Onderhoudskosten!$B:$B,Invoer!$B87)*Invoer!F87)," ")=0," ",IF(Invoer!G87<>"Verwijderen",(SUMIFS(Onderhoudskosten!$K:$K,Onderhoudskosten!$B:$B,Invoer!$B87)*Invoer!F87)," ")) ->  | H57: =IF(IF(Invoer!I87<>"Verwijderen",(SUMIFS(Onderhoudskosten!$K:$K,Onderhoudskosten!$B:$B,Invoer!$B87)*Invoer!H87)," ")=0," ",IF(Invoer!I87<>"Verwijderen",(SUMIFS(Onderhoudskosten!$K:$K,Onderhoudskosten!$B:$B,Invoer!$B87)*Invoer!H87)," ")) ->  | J57: =IF(IF(Invoer!K87<>"Verwijderen",(SUMIFS(Onderhoudskosten!$K:$K,Onderhoudskosten!$B:$B,Invoer!$B87)*Invoer!J87)," ")=0," ",IF(Invoer!K87<>"Verwijderen",(SUMIFS(Onderhoudskosten!$K:$K,Onderhoudskosten!$B:$B,Invoer!$B87)*Invoer!J87)," ")) ->  | X57: 0 | Y57: =SUMIFS(Inrichtingskosten!$H:$H,Inrichtingskosten!$C:$C,Invoer!$B87,Inrichtingskosten!$B:$B,Invoer!X87)*Invoer!D87 -> 0 | Z57: =SUMIFS(Inrichtingskosten!$H:$H,Inrichtingskosten!$C:$C,Invoer!$B87,Inrichtingskosten!$B:$B,Invoer!Y87)*Invoer!D87 -> 0 | AA57: =SUMIFS(Inrichtingskosten!$H:$H,Inrichtingskosten!$C:$C,Invoer!$B87,Inrichtingskosten!$B:$B,Invoer!Z87)*Invoer!F87 -> 0 | AB57: =SUMIFS(Inrichtingskosten!$H:$H,Inrichtingskosten!$C:$C,Invoer!$B87,Inrichtingskosten!$B:$B,Invoer!AA87)*Invoer!F87 -> 0 | AC57: =SUMIFS(Inrichtingskosten!$H:$H,Inrichtingskosten!$C:$C,Invoer!$B87,Inrichtingskosten!$B:$B,Invoer!AB87)*Invoer!H87 -> 0 | AD57: =SUMIFS(Inrichtingskosten!$H:$H,Inrichtingskosten!$C:$C,Invoer!$B87,Inrichtingskosten!$B:$B,Invoer!AC87)*Invoer!H87 -> 0 | AE57: =SUMIFS(Inrichtingskosten!$H:$H,Inrichtingskosten!$C:$C,Invoer!$B87,Inrichtingskosten!$B:$B,Invoer!AD87)*Invoer!J87 -> 0 | AF57: =SUMIFS(Inrichtingskosten!$H:$H,Inrichtingskosten!$C:$C,Invoer!$B87,Inrichtingskosten!$B:$B,Invoer!AE87)*Invoer!J87 -> 0
B58: =Invoer!B88 -> Groenvoorziening | X58: =Invoer!B88 -> Groenvoorziening
B59: =Invoer!B89 -> Gazon | C59: =IF(2*(Y59+Z59)/100=0,"",2*(Y59+Z59)/100) ->  | D59: =IF(IF(Invoer!E89<>"Verwijderen",(SUMIFS(Onderhoudskosten!$K:$K,Onderhoudskosten!$B:$B,Invoer!$B89)*Invoer!D89)," ")=0," ",IF(Invoer!E89<>"Verwijderen",(SUMIFS(Onderhoudskosten!$K:$K,Onderhoudskosten!$B:$B,Invoer!$B89)*Invoer!D89)," ")) ->  | E59: =IF(2*(AA59+AB59)/100=0,"",2*(AA59+AB59)/100) ->  | F59: =IF(IF(Invoer!G89<>"Verwijderen",(SUMIFS(Onderhoudskosten!$K:$K,Onderhoudskosten!$B:$B,Invoer!$B89)*Invoer!F89)," ")=0," ",IF(Invoer!G89<>"Verwijderen",(SUMIFS(Onderhoudskosten!$K:$K,Onderhoudskosten!$B:$B,Invoer!$B89)*Invoer!F89)," ")) ->  | G59: =IF(2*(AC59+AD59)/100=0,"",2*(AC59+AD59)/100) ->  | H59: =IF(IF(Invoer!I89<>"Verwijderen",(SUMIFS(Onderhoudskosten!$K:$K,Onderhoudskosten!$B:$B,Invoer!$B89)*Invoer!H89)," ")=0," ",IF(Invoer!I89<>"Verwijderen",(SUMIFS(Onderhoudskosten!$K:$K,Onderhoudskosten!$B:$B,Invoer!$B89)*Invoer!H89)," ")) ->  | I59: =IF(2*(AE59+AF59)/100=0,"",2*(AE59+AF59)/100) ->  | J59: =IF(IF(Invoer!K89<>"Verwijderen",(SUMIFS(Onderhoudskosten!$K:$K,Onderhoudskosten!$B:$B,Invoer!$B89)*Invoer!J89)," ")=0," ",IF(Invoer!K89<>"Verwijderen",(SUMIFS(Onderhoudskosten!$K:$K,Onderhoudskosten!$B:$B,Invoer!$B89)*Invoer!J89)," ")) ->  | X59: =B59 -> Gazon | Y59: =SUMIFS(Inrichtingskosten!$H:$H,Inrichtingskosten!$C:$C,Invoer!$B89,Inrichtingskosten!$B:$B,Invoer!X89)*Invoer!D89 -> 0 | Z59: =SUMIFS(Inrichtingskosten!$H:$H,Inrichtingskosten!$C:$C,Invoer!$B89,Inrichtingskosten!$B:$B,Invoer!Y89)*Invoer!D89 -> 0 | AA59: =SUMIFS(Inrichtingskosten!$H:$H,Inrichtingskosten!$C:$C,Invoer!$B89,Inrichtingskosten!$B:$B,Invoer!Z89)*Invoer!F89 -> 0 | AB59: =SUMIFS(Inrichtingskosten!$H:$H,Inrichtingskosten!$C:$C,Invoer!$B89,Inrichtingskosten!$B:$B,Invoer!AA89)*Invoer!F89 -> 0 | AC59: =SUMIFS(Inrichtingskosten!$H:$H,Inrichtingskosten!$C:$C,Invoer!$B89,Inrichtingskosten!$B:$B,Invoer!AB89)*Invoer!H89 -> 0 | AD59: =SUMIFS(Inrichtingskosten!$H:$H,Inrichtingskosten!$C:$C,Invoer!$B89,Inrichtingskosten!$B:$B,Invoer!AC89)*Invoer!H89 -> 0 | AE59: =SUMIFS(Inrichtingskosten!$H:$H,Inrichtingskosten!$C:$C,Invoer!$B89,Inrichtingskosten!$B:$B,Invoer!AD89)*Invoer!J89 -> 0 | AF59: =SUMIFS(Inrichtingskosten!$H:$H,Inrichtingskosten!$C:$C,Invoer!$B89,Inrichtingskosten!$B:$B,Invoer!AE89)*Invoer!J89 -> 0
B60: =Invoer!B90 -> Haag | D60: =IF(IF(Invoer!E90<>"Verwijderen",(SUMIFS(Onderhoudskosten!$K:$K,Onderhoudskosten!$B:$B,Invoer!$B90)*Invoer!D90)," ")=0," ",IF(Invoer!E90<>"Verwijderen",(SUMIFS(Onderhoudskosten!$K:$K,Onderhoudskosten!$B:$B,Invoer!$B90)*Invoer!D90)," ")) ->  | F60: =IF(IF(Invoer!G90<>"Verwijderen",(SUMIFS(Onderhoudskosten!$K:$K,Onderhoudskosten!$B:$B,Invoer!$B90)*Invoer!F90)," ")=0," ",IF(Invoer!G90<>"Verwijderen",(SUMIFS(Onderhoudskosten!$K:$K,Onderhoudskosten!$B:$B,Invoer!$B90)*Invoer!F90)," ")) ->  | H60: =IF(IF(Invoer!I90<>"Verwijderen",(SUMIFS(Onderhoudskosten!$K:$K,Onderhoudskosten!$B:$B,Invoer!$B90)*Invoer!H90)," ")=0," ",IF(Invoer!I90<>"Verwijderen",(SUMIFS(Onderhoudskosten!$K:$K,Onderhoudskosten!$B:$B,Invoer!$B90)*Invoer!H90)," ")) ->  | J60: =IF(IF(Invoer!K90<>"Verwijderen",(SUMIFS(Onderhoudskosten!$K:$K,Onderhoudskosten!$B:$B,Invoer!$B90)*Invoer!J90)," ")=0," ",IF(Invoer!K90<>"Verwijderen",(SUMIFS(Onderhoudskosten!$K:$K,Onderhoudskosten!$B:$B,Invoer!$B90)*Invoer!J90)," ")) ->  | X60: Haag | Y60: =SUMIFS(Inrichtingskosten!$H:$H,Inrichtingskosten!$C:$C,Invoer!$B90,Inrichtingskosten!$B:$B,Invoer!X90)*Invoer!D90 -> 0 | Z60: =SUMIFS(Inrichtingskosten!$H:$H,Inrichtingskosten!$C:$C,Invoer!$B90,Inrichtingskosten!$B:$B,Invoer!Y90)*Invoer!D90 -> 0 | AA60: =SUMIFS(Inrichtingskosten!$H:$H,Inrichtingskosten!$C:$C,Invoer!$B90,Inrichtingskosten!$B:$B,Invoer!Z90)*Invoer!F90 -> 0 | AB60: =SUMIFS(Inrichtingskosten!$H:$H,Inrichtingskosten!$C:$C,Invoer!$B90,Inrichtingskosten!$B:$B,Invoer!AA90)*Invoer!F90 -> 0 | AC60: =SUMIFS(Inrichtingskosten!$H:$H,Inrichtingskosten!$C:$C,Invoer!$B90,Inrichtingskosten!$B:$B,Invoer!AB90)*Invoer!H90 -> 0 | AD60: =SUMIFS(Inrichtingskosten!$H:$H,Inrichtingskosten!$C:$C,Invoer!$B90,Inrichtingskosten!$B:$B,Invoer!AC90)*Invoer!H90 -> 0 | AE60: =SUMIFS(Inrichtingskosten!$H:$H,Inrichtingskosten!$C:$C,Invoer!$B90,Inrichtingskosten!$B:$B,Invoer!AD90)*Invoer!J90 -> 0 | AF60: =SUMIFS(Inrichtingskosten!$H:$H,Inrichtingskosten!$C:$C,Invoer!$B90,Inrichtingskosten!$B:$B,Invoer!AE90)*Invoer!J90 -> 0
B61: =Invoer!B91 -> Boom in verharding | D61: =IF(IF(Invoer!E91<>"Verwijderen",(SUMIFS(Onderhoudskosten!$K:$K,Onderhoudskosten!$B:$B,Invoer!$B91)*Invoer!D91)," ")=0," ",IF(Invoer!E91<>"Verwijderen",(SUMIFS(Onderhoudskosten!$K:$K,Onderhoudskosten!$B:$B,Invoer!$B91)*Invoer!D91)," ")) ->  | F61: =IF(IF(Invoer!G91<>"Verwijderen",(SUMIFS(Onderhoudskosten!$K:$K,Onderhoudskosten!$B:$B,Invoer!$B91)*Invoer!F91)," ")=0," ",IF(Invoer!G91<>"Verwijderen",(SUMIFS(Onderhoudskosten!$K:$K,Onderhoudskosten!$B:$B,Invoer!$B91)*Invoer!F91)," ")) ->  | H61: =IF(IF(Invoer!I91<>"Verwijderen",(SUMIFS(Onderhoudskosten!$K:$K,Onderhoudskosten!$B:$B,Invoer!$B91)*Invoer!H91)," ")=0," ",IF(Invoer!I91<>"Verwijderen",(SUMIFS(Onderhoudskosten!$K:$K,Onderhoudskosten!$B:$B,Invoer!$B91)*Invoer!H91)," ")) ->  | J61: =IF(IF(Invoer!K91<>"Verwijderen",(SUMIFS(Onderhoudskosten!$K:$K,Onderhoudskosten!$B:$B,Invoer!$B91)*Invoer!J91)," ")=0," ",IF(Invoer!K91<>"Verwijderen",(SUMIFS(Onderhoudskosten!$K:$K,Onderhoudskosten!$B:$B,Invoer!$B91)*Invoer!J91)," ")) ->  | X61: Boom in verharding | Y61: =SUMIFS(Inrichtingskosten!$H:$H,Inrichtingskosten!$C:$C,Invoer!$B91,Inrichtingskosten!$B:$B,Invoer!X91)*Invoer!D91 -> 0 | Z61: =SUMIFS(Inrichtingskosten!$H:$H,Inrichtingskosten!$C:$C,Invoer!$B91,Inrichtingskosten!$B:$B,Invoer!Y91)*Invoer!D91 -> 0 | AA61: =SUMIFS(Inrichtingskosten!$H:$H,Inrichtingskosten!$C:$C,Invoer!$B91,Inrichtingskosten!$B:$B,Invoer!Z91)*Invoer!F91 -> 0 | AB61: =SUMIFS(Inrichtingskosten!$H:$H,Inrichtingskosten!$C:$C,Invoer!$B91,Inrichtingskosten!$B:$B,Invoer!AA91)*Invoer!F91 -> 0 | AC61: =SUMIFS(Inrichtingskosten!$H:$H,Inrichtingskosten!$C:$C,Invoer!$B91,Inrichtingskosten!$B:$B,Invoer!AB91)*Invoer!H91 -> 0 | AD61: =SUMIFS(Inrichtingskosten!$H:$H,Inrichtingskosten!$C:$C,Invoer!$B91,Inrichtingskosten!$B:$B,Invoer!AC91)*Invoer!H91 -> 0 | AE61: =SUMIFS(Inrichtingskosten!$H:$H,Inrichtingskosten!$C:$C,Invoer!$B91,Inrichtingskosten!$B:$B,Invoer!AD91)*Invoer!J91 -> 0 | AF61: =SUMIFS(Inrichtingskosten!$H:$H,Inrichtingskosten!$C:$C,Invoer!$B91,Inrichtingskosten!$B:$B,Invoer!AE91)*Invoer!J91 -> 0
B62: =Invoer!B92 -> 0 | C62: =IF(2*(Y62+Z62)/100=0,"",2*(Y62+Z62)/100) ->  | D62: =IF(IF(Invoer!E92<>"Verwijderen",(SUMIFS(Onderhoudskosten!$K:$K,Onderhoudskosten!$B:$B,Invoer!$B92)*Invoer!D92)," ")=0," ",IF(Invoer!E92<>"Verwijderen",(SUMIFS(Onderhoudskosten!$K:$K,Onderhoudskosten!$B:$B,Invoer!$B92)*Invoer!D92)," ")) ->  | E62: =IF(2*(AA62+AB62)/100=0,"",2*(AA62+AB62)/100) ->  | F62: =IF(IF(Invoer!G92<>"Verwijderen",(SUMIFS(Onderhoudskosten!$K:$K,Onderhoudskosten!$B:$B,Invoer!$B92)*Invoer!F92)," ")=0," ",IF(Invoer!G92<>"Verwijderen",(SUMIFS(Onderhoudskosten!$K:$K,Onderhoudskosten!$B:$B,Invoer!$B92)*Invoer!F92)," ")) ->  | G62: =IF(2*(AC62+AD62)/100=0,"",2*(AC62+AD62)/100) ->  | H62: =IF(IF(Invoer!I92<>"Verwijderen",(SUMIFS(Onderhoudskosten!$K:$K,Onderhoudskosten!$B:$B,Invoer!$B92)*Invoer!H92)," ")=0," ",IF(Invoer!I92<>"Verwijderen",(SUMIFS(Onderhoudskosten!$K:$K,Onderhoudskosten!$B:$B,Invoer!$B92)*Invoer!H92)," ")) ->  | I62: =IF(2*(AE62+AF62)/100=0,"",2*(AE62+AF62)/100) ->  | J62: =IF(IF(Invoer!K92<>"Verwijderen",(SUMIFS(Onderhoudskosten!$K:$K,Onderhoudskosten!$B:$B,Invoer!$B92)*Invoer!J92)," ")=0," ",IF(Invoer!K92<>"Verwijderen",(SUMIFS(Onderhoudskosten!$K:$K,Onderhoudskosten!$B:$B,Invoer!$B92)*Invoer!J92)," ")) ->  | X62: =B62 -> 0 | Y62: =SUMIFS(Inrichtingskosten!$H:$H,Inrichtingskosten!$C:$C,Invoer!$B92,Inrichtingskosten!$B:$B,Invoer!X92)*Invoer!D92 -> 0 | Z62: =SUMIFS(Inrichtingskosten!$H:$H,Inrichtingskosten!$C:$C,Invoer!$B92,Inrichtingskosten!$B:$B,Invoer!Y92)*Invoer!D92 -> 0 | AA62: =SUMIFS(Inrichtingskosten!$H:$H,Inrichtingskosten!$C:$C,Invoer!$B92,Inrichtingskosten!$B:$B,Invoer!Z92)*Invoer!F92 -> 0 | AB62: =SUMIFS(Inrichtingskosten!$H:$H,Inrichtingskosten!$C:$C,Invoer!$B92,Inrichtingskosten!$B:$B,Invoer!AA92)*Invoer!F92 -> 0 | AC62: =SUMIFS(Inrichtingskosten!$H:$H,Inrichtingskosten!$C:$C,Invoer!$B92,Inrichtingskosten!$B:$B,Invoer!AB92)*Invoer!H92 -> 0 | AD62: =SUMIFS(Inrichtingskosten!$H:$H,Inrichtingskosten!$C:$C,Invoer!$B92,Inrichtingskosten!$B:$B,Invoer!AC92)*Invoer!H92 -> 0 | AE62: =SUMIFS(Inrichtingskosten!$H:$H,Inrichtingskosten!$C:$C,Invoer!$B92,Inrichtingskosten!$B:$B,Invoer!AD92)*Invoer!J92 -> 0 | AF62: =SUMIFS(Inrichtingskosten!$H:$H,Inrichtingskosten!$C:$C,Invoer!$B92,Inrichtingskosten!$B:$B,Invoer!AE92)*Invoer!J92 -> 0
B63: =Invoer!B93 -> 0 | D63: =IF(IF(Invoer!E93<>"Verwijderen",(SUMIFS(Onderhoudskosten!$K:$K,Onderhoudskosten!$B:$B,Invoer!$B93)*Invoer!D93)," ")=0," ",IF(Invoer!E93<>"Verwijderen",(SUMIFS(Onderhoudskosten!$K:$K,Onderhoudskosten!$B:$B,Invoer!$B93)*Invoer!D93)," ")) ->  | F63: =IF(IF(Invoer!G93<>"Verwijderen",(SUMIFS(Onderhoudskosten!$K:$K,Onderhoudskosten!$B:$B,Invoer!$B93)*Invoer!F93)," ")=0," ",IF(Invoer!G93<>"Verwijderen",(SUMIFS(Onderhoudskosten!$K:$K,Onderhoudskosten!$B:$B,Invoer!$B93)*Invoer!F93)," ")) ->  | H63: =IF(IF(Invoer!I93<>"Verwijderen",(SUMIFS(Onderhoudskosten!$K:$K,Onderhoudskosten!$B:$B,Invoer!$B93)*Invoer!H93)," ")=0," ",IF(Invoer!I93<>"Verwijderen",(SUMIFS(Onderhoudskosten!$K:$K,Onderhoudskosten!$B:$B,Invoer!$B93)*Invoer!H93)," ")) ->  | J63: =IF(IF(Invoer!K93<>"Verwijderen",(SUMIFS(Onderhoudskosten!$K:$K,Onderhoudskosten!$B:$B,Invoer!$B93)*Invoer!J93)," ")=0," ",IF(Invoer!K93<>"Verwijderen",(SUMIFS(Onderhoudskosten!$K:$K,Onderhoudskosten!$B:$B,Invoer!$B93)*Invoer!J93)," ")) ->  | X63: 0 | Y63: =SUMIFS(Inrichtingskosten!$H:$H,Inrichtingskosten!$C:$C,Invoer!$B93,Inrichtingskosten!$B:$B,Invoer!X93)*Invoer!D93 -> 0 | Z63: =SUMIFS(Inrichtingskosten!$H:$H,Inrichtingskosten!$C:$C,Invoer!$B93,Inrichtingskosten!$B:$B,Invoer!Y93)*Invoer!D93 -> 0 | AA63: =SUMIFS(Inrichtingskosten!$H:$H,Inrichtingskosten!$C:$C,Invoer!$B93,Inrichtingskosten!$B:$B,Invoer!Z93)*Invoer!F93 -> 0 | AB63: =SUMIFS(Inrichtingskosten!$H:$H,Inrichtingskosten!$C:$C,Invoer!$B93,Inrichtingskosten!$B:$B,Invoer!AA93)*Invoer!F93 -> 0 | AC63: =SUMIFS(Inrichtingskosten!$H:$H,Inrichtingskosten!$C:$C,Invoer!$B93,Inrichtingskosten!$B:$B,Invoer!AB93)*Invoer!H93 -> 0 | AD63: =SUMIFS(Inrichtingskosten!$H:$H,Inrichtingskosten!$C:$C,Invoer!$B93,Inrichtingskosten!$B:$B,Invoer!AC93)*Invoer!H93 -> 0 | AE63: =SUMIFS(Inrichtingskosten!$H:$H,Inrichtingskosten!$C:$C,Invoer!$B93,Inrichtingskosten!$B:$B,Invoer!AD93)*Invoer!J93 -> 0 | AF63: =SUMIFS(Inrichtingskosten!$H:$H,Inrichtingskosten!$C:$C,Invoer!$B93,Inrichtingskosten!$B:$B,Invoer!AE93)*Invoer!J93 -> 0
B64: =Invoer!B94 -> 0 | D64: =IF(IF(Invoer!E94<>"Verwijderen",(SUMIFS(Onderhoudskosten!$K:$K,Onderhoudskosten!$B:$B,Invoer!$B94)*Invoer!D94)," ")=0," ",IF(Invoer!E94<>"Verwijderen",(SUMIFS(Onderhoudskosten!$K:$K,Onderhoudskosten!$B:$B,Invoer!$B94)*Invoer!D94)," ")) ->  | F64: =IF(IF(Invoer!G94<>"Verwijderen",(SUMIFS(Onderhoudskosten!$K:$K,Onderhoudskosten!$B:$B,Invoer!$B94)*Invoer!F94)," ")=0," ",IF(Invoer!G94<>"Verwijderen",(SUMIFS(Onderhoudskosten!$K:$K,Onderhoudskosten!$B:$B,Invoer!$B94)*Invoer!F94)," ")) ->  | H64: =IF(IF(Invoer!I94<>"Verwijderen",(SUMIFS(Onderhoudskosten!$K:$K,Onderhoudskosten!$B:$B,Invoer!$B94)*Invoer!H94)," ")=0," ",IF(Invoer!I94<>"Verwijderen",(SUMIFS(Onderhoudskosten!$K:$K,Onderhoudskosten!$B:$B,Invoer!$B94)*Invoer!H94)," ")) ->  | J64: =IF(IF(Invoer!K94<>"Verwijderen",(SUMIFS(Onderhoudskosten!$K:$K,Onderhoudskosten!$B:$B,Invoer!$B94)*Invoer!J94)," ")=0," ",IF(Invoer!K94<>"Verwijderen",(SUMIFS(Onderhoudskosten!$K:$K,Onderhoudskosten!$B:$B,Invoer!$B94)*Invoer!J94)," ")) ->  | X64: 0 | Y64: =SUMIFS(Inrichtingskosten!$H:$H,Inrichtingskosten!$C:$C,Invoer!$B94,Inrichtingskosten!$B:$B,Invoer!X94)*Invoer!D94 -> 0 | Z64: =SUMIFS(Inrichtingskosten!$H:$H,Inrichtingskosten!$C:$C,Invoer!$B94,Inrichtingskosten!$B:$B,Invoer!Y94)*Invoer!D94 -> 0 | AA64: =SUMIFS(Inrichtingskosten!$H:$H,Inrichtingskosten!$C:$C,Invoer!$B94,Inrichtingskosten!$B:$B,Invoer!Z94)*Invoer!F94 -> 0 | AB64: =SUMIFS(Inrichtingskosten!$H:$H,Inrichtingskosten!$C:$C,Invoer!$B94,Inrichtingskosten!$B:$B,Invoer!AA94)*Invoer!F94 -> 0 | AC64: =SUMIFS(Inrichtingskosten!$H:$H,Inrichtingskosten!$C:$C,Invoer!$B94,Inrichtingskosten!$B:$B,Invoer!AB94)*Invoer!H94 -> 0 | AD64: =SUMIFS(Inrichtingskosten!$H:$H,Inrichtingskosten!$C:$C,Invoer!$B94,Inrichtingskosten!$B:$B,Invoer!AC94)*Invoer!H94 -> 0 | AE64: =SUMIFS(Inrichtingskosten!$H:$H,Inrichtingskosten!$C:$C,Invoer!$B94,Inrichtingskosten!$B:$B,Invoer!AD94)*Invoer!J94 -> 0 | AF64: =SUMIFS(Inrichtingskosten!$H:$H,Inrichtingskosten!$C:$C,Invoer!$B94,Inrichtingskosten!$B:$B,Invoer!AE94)*Invoer!J94 -> 0
B65: =Invoer!B95 -> 0 | D65: =IF(IF(Invoer!E95<>"Verwijderen",(SUMIFS(Onderhoudskosten!$K:$K,Onderhoudskosten!$B:$B,Invoer!$B95)*Invoer!D95)," ")=0," ",IF(Invoer!E95<>"Verwijderen",(SUMIFS(Onderhoudskosten!$K:$K,Onderhoudskosten!$B:$B,Invoer!$B95)*Invoer!D95)," ")) ->  | F65: =IF(IF(Invoer!G95<>"Verwijderen",(SUMIFS(Onderhoudskosten!$K:$K,Onderhoudskosten!$B:$B,Invoer!$B95)*Invoer!F95)," ")=0," ",IF(Invoer!G95<>"Verwijderen",(SUMIFS(Onderhoudskosten!$K:$K,Onderhoudskosten!$B:$B,Invoer!$B95)*Invoer!F95)," ")) ->  | H65: =IF(IF(Invoer!I95<>"Verwijderen",(SUMIFS(Onderhoudskosten!$K:$K,Onderhoudskosten!$B:$B,Invoer!$B95)*Invoer!H95)," ")=0," ",IF(Invoer!I95<>"Verwijderen",(SUMIFS(Onderhoudskosten!$K:$K,Onderhoudskosten!$B:$B,Invoer!$B95)*Invoer!H95)," ")) ->  | J65: =IF(IF(Invoer!K95<>"Verwijderen",(SUMIFS(Onderhoudskosten!$K:$K,Onderhoudskosten!$B:$B,Invoer!$B95)*Invoer!J95)," ")=0," ",IF(Invoer!K95<>"Verwijderen",(SUMIFS(Onderhoudskosten!$K:$K,Onderhoudskosten!$B:$B,Invoer!$B95)*Invoer!J95)," ")) ->  | X65: 0 | Y65: =SUMIFS(Inrichtingskosten!$H:$H,Inrichtingskosten!$C:$C,Invoer!$B95,Inrichtingskosten!$B:$B,Invoer!X95)*Invoer!D95 -> 0 | Z65: =SUMIFS(Inrichtingskosten!$H:$H,Inrichtingskosten!$C:$C,Invoer!$B95,Inrichtingskosten!$B:$B,Invoer!Y95)*Invoer!D95 -> 0 | AA65: =SUMIFS(Inrichtingskosten!$H:$H,Inrichtingskosten!$C:$C,Invoer!$B95,Inrichtingskosten!$B:$B,Invoer!Z95)*Invoer!F95 -> 0 | AB65: =SUMIFS(Inrichtingskosten!$H:$H,Inrichtingskosten!$C:$C,Invoer!$B95,Inrichtingskosten!$B:$B,Invoer!AA95)*Invoer!F95 -> 0 | AC65: =SUMIFS(Inrichtingskosten!$H:$H,Inrichtingskosten!$C:$C,Invoer!$B95,Inrichtingskosten!$B:$B,Invoer!AB95)*Invoer!H95 -> 0 | AD65: =SUMIFS(Inrichtingskosten!$H:$H,Inrichtingskosten!$C:$C,Invoer!$B95,Inrichtingskosten!$B:$B,Invoer!AC95)*Invoer!H95 -> 0 | AE65: =SUMIFS(Inrichtingskosten!$H:$H,Inrichtingskosten!$C:$C,Invoer!$B95,Inrichtingskosten!$B:$B,Invoer!AD95)*Invoer!J95 -> 0 | AF65: =SUMIFS(Inrichtingskosten!$H:$H,Inrichtingskosten!$C:$C,Invoer!$B95,Inrichtingskosten!$B:$B,Invoer!AE95)*Invoer!J95 -> 0
B66: =Invoer!B96 -> 0 | D66: =IF(IF(Invoer!E96<>"Verwijderen",(SUMIFS(Onderhoudskosten!$K:$K,Onderhoudskosten!$B:$B,Invoer!$B96)*Invoer!D96)," ")=0," ",IF(Invoer!E96<>"Verwijderen",(SUMIFS(Onderhoudskosten!$K:$K,Onderhoudskosten!$B:$B,Invoer!$B96)*Invoer!D96)," ")) ->  | F66: =IF(IF(Invoer!G96<>"Verwijderen",(SUMIFS(Onderhoudskosten!$K:$K,Onderhoudskosten!$B:$B,Invoer!$B96)*Invoer!F96)," ")=0," ",IF(Invoer!G96<>"Verwijderen",(SUMIFS(Onderhoudskosten!$K:$K,Onderhoudskosten!$B:$B,Invoer!$B96)*Invoer!F96)," ")) ->  | H66: =IF(IF(Invoer!I96<>"Verwijderen",(SUMIFS(Onderhoudskosten!$K:$K,Onderhoudskosten!$B:$B,Invoer!$B96)*Invoer!H96)," ")=0," ",IF(Invoer!I96<>"Verwijderen",(SUMIFS(Onderhoudskosten!$K:$K,Onderhoudskosten!$B:$B,Invoer!$B96)*Invoer!H96)," ")) ->  | J66: =IF(IF(Invoer!K96<>"Verwijderen",(SUMIFS(Onderhoudskosten!$K:$K,Onderhoudskosten!$B:$B,Invoer!$B96)*Invoer!J96)," ")=0," ",IF(Invoer!K96<>"Verwijderen",(SUMIFS(Onderhoudskosten!$K:$K,Onderhoudskosten!$B:$B,Invoer!$B96)*Invoer!J96)," ")) ->  | X66: 0 | Y66: =SUMIFS(Inrichtingskosten!$H:$H,Inrichtingskosten!$C:$C,Invoer!$B96,Inrichtingskosten!$B:$B,Invoer!X96)*Invoer!D96 -> 0 | Z66: =SUMIFS(Inrichtingskosten!$H:$H,Inrichtingskosten!$C:$C,Invoer!$B96,Inrichtingskosten!$B:$B,Invoer!Y96)*Invoer!D96 -> 0 | AA66: =SUMIFS(Inrichtingskosten!$H:$H,Inrichtingskosten!$C:$C,Invoer!$B96,Inrichtingskosten!$B:$B,Invoer!Z96)*Invoer!F96 -> 0 | AB66: =SUMIFS(Inrichtingskosten!$H:$H,Inrichtingskosten!$C:$C,Invoer!$B96,Inrichtingskosten!$B:$B,Invoer!AA96)*Invoer!F96 -> 0 | AC66: =SUMIFS(Inrichtingskosten!$H:$H,Inrichtingskosten!$C:$C,Invoer!$B96,Inrichtingskosten!$B:$B,Invoer!AB96)*Invoer!H96 -> 0 | AD66: =SUMIFS(Inrichtingskosten!$H:$H,Inrichtingskosten!$C:$C,Invoer!$B96,Inrichtingskosten!$B:$B,Invoer!AC96)*Invoer!H96 -> 0 | AE66: =SUMIFS(Inrichtingskosten!$H:$H,Inrichtingskosten!$C:$C,Invoer!$B96,Inrichtingskosten!$B:$B,Invoer!AD96)*Invoer!J96 -> 0 | AF66: =SUMIFS(Inrichtingskosten!$H:$H,Inrichtingskosten!$C:$C,Invoer!$B96,Inrichtingskosten!$B:$B,Invoer!AE96)*Invoer!J96 -> 0
B67: =Invoer!B97 -> Overig | X67: =Invoer!B97 -> Overig
B68: =Invoer!B98 -> Straatverlichting | C68: =IF(2*(Y68+Z68)/100=0,"",2*(Y68+Z68)/100) ->  | D68: =IF(IF(Invoer!E98<>"Verwijderen",(SUMIFS(Onderhoudskosten!$K:$K,Onderhoudskosten!$B:$B,Invoer!$B98)*Invoer!D98)," ")=0," ",IF(Invoer!E98<>"Verwijderen",(SUMIFS(Onderhoudskosten!$K:$K,Onderhoudskosten!$B:$B,Invoer!$B98)*Invoer!D98)," ")) ->  | E68: =IF(2*(AA68+AB68)/100=0,"",2*(AA68+AB68)/100) ->  | F68: =IF(IF(Invoer!G98<>"Verwijderen",(SUMIFS(Onderhoudskosten!$K:$K,Onderhoudskosten!$B:$B,Invoer!$B98)*Invoer!F98)," ")=0," ",IF(Invoer!G98<>"Verwijderen",(SUMIFS(Onderhoudskosten!$K:$K,Onderhoudskosten!$B:$B,Invoer!$B98)*Invoer!F98)," ")) ->  | G68: =IF(2*(AC68+AD68)/100=0,"",2*(AC68+AD68)/100) ->  | H68: =IF(IF(Invoer!I98<>"Verwijderen",(SUMIFS(Onderhoudskosten!$K:$K,Onderhoudskosten!$B:$B,Invoer!$B98)*Invoer!H98)," ")=0," ",IF(Invoer!I98<>"Verwijderen",(SUMIFS(Onderhoudskosten!$K:$K,Onderhoudskosten!$B:$B,Invoer!$B98)*Invoer!H98)," ")) ->  | I68: =IF(2*(AE68+AF68)/100=0,"",2*(AE68+AF68)/100) ->  | J68: =IF(IF(Invoer!K98<>"Verwijderen",(SUMIFS(Onderhoudskosten!$K:$K,Onderhoudskosten!$B:$B,Invoer!$B98)*Invoer!J98)," ")=0," ",IF(Invoer!K98<>"Verwijderen",(SUMIFS(Onderhoudskosten!$K:$K,Onderhoudskosten!$B:$B,Invoer!$B98)*Invoer!J98)," ")) ->  | X68: =B68 -> Straatverlichting | Y68: =SUMIFS(Inrichtingskosten!$H:$H,Inrichtingskosten!$C:$C,Invoer!$B98,Inrichtingskosten!$B:$B,Invoer!X98)*Invoer!D98 -> 0 | Z68: =SUMIFS(Inrichtingskosten!$H:$H,Inrichtingskosten!$C:$C,Invoer!$B98,Inrichtingskosten!$B:$B,Invoer!Y98)*Invoer!D98 -> 0 | AA68: =SUMIFS(Inrichtingskosten!$H:$H,Inrichtingskosten!$C:$C,Invoer!$B98,Inrichtingskosten!$B:$B,Invoer!Z98)*Invoer!F98 -> 0 | AB68: =SUMIFS(Inrichtingskosten!$H:$H,Inrichtingskosten!$C:$C,Invoer!$B98,Inrichtingskosten!$B:$B,Invoer!AA98)*Invoer!F98 -> 0 | AC68: =SUMIFS(Inrichtingskosten!$H:$H,Inrichtingskosten!$C:$C,Invoer!$B98,Inrichtingskosten!$B:$B,Invoer!AB98)*Invoer!H98 -> 0 | AD68: =SUMIFS(Inrichtingskosten!$H:$H,Inrichtingskosten!$C:$C,Invoer!$B98,Inrichtingskosten!$B:$B,Invoer!AC98)*Invoer!H98 -> 0 | AE68: =SUMIFS(Inrichtingskosten!$H:$H,Inrichtingskosten!$C:$C,Invoer!$B98,Inrichtingskosten!$B:$B,Invoer!AD98)*Invoer!J98 -> 0 | AF68: =SUMIFS(Inrichtingskosten!$H:$H,Inrichtingskosten!$C:$C,Invoer!$B98,Inrichtingskosten!$B:$B,Invoer!AE98)*Invoer!J98 -> 0
B69: =Invoer!B99 -> 0 | C69: =IF(2*(Y69+Z69)/100=0,"",2*(Y69+Z69)/100) ->  | D69: =IF(IF(Invoer!E99<>"Verwijderen",(SUMIFS(Onderhoudskosten!$K:$K,Onderhoudskosten!$B:$B,Invoer!$B99)*Invoer!D99)," ")=0," ",IF(Invoer!E99<>"Verwijderen",(SUMIFS(Onderhoudskosten!$K:$K,Onderhoudskosten!$B:$B,Invoer!$B99)*Invoer!D99)," ")) ->  | E69: =IF(2*(AA69+AB69)/100=0,"",2*(AA69+AB69)/100) ->  | F69: =IF(IF(Invoer!G99<>"Verwijderen",(SUMIFS(Onderhoudskosten!$K:$K,Onderhoudskosten!$B:$B,Invoer!$B99)*Invoer!F99)," ")=0," ",IF(Invoer!G99<>"Verwijderen",(SUMIFS(Onderhoudskosten!$K:$K,Onderhoudskosten!$B:$B,Invoer!$B99)*Invoer!F99)," ")) ->  | G69: =IF(2*(AC69+AD69)/100=0,"",2*(AC69+AD69)/100) ->  | H69: =IF(IF(Invoer!I99<>"Verwijderen",(SUMIFS(Onderhoudskosten!$K:$K,Onderhoudskosten!$B:$B,Invoer!$B99)*Invoer!H99)," ")=0," ",IF(Invoer!I99<>"Verwijderen",(SUMIFS(Onderhoudskosten!$K:$K,Onderhoudskosten!$B:$B,Invoer!$B99)*Invoer!H99)," ")) ->  | I69: =IF(2*(AE69+AF69)/100=0,"",2*(AE69+AF69)/100) ->  | J69: =IF(IF(Invoer!K99<>"Verwijderen",(SUMIFS(Onderhoudskosten!$K:$K,Onderhoudskosten!$B:$B,Invoer!$B99)*Invoer!J99)," ")=0," ",IF(Invoer!K99<>"Verwijderen",(SUMIFS(Onderhoudskosten!$K:$K,Onderhoudskosten!$B:$B,Invoer!$B99)*Invoer!J99)," ")) ->  | X69: =B69 -> 0 | Y69: =SUMIFS(Inrichtingskosten!$H:$H,Inrichtingskosten!$C:$C,Invoer!$B99,Inrichtingskosten!$B:$B,Invoer!X99)*Invoer!D99 -> 0 | Z69: =SUMIFS(Inrichtingskosten!$H:$H,Inrichtingskosten!$C:$C,Invoer!$B99,Inrichtingskosten!$B:$B,Invoer!Y99)*Invoer!D99 -> 0 | AA69: =SUMIFS(Inrichtingskosten!$H:$H,Inrichtingskosten!$C:$C,Invoer!$B99,Inrichtingskosten!$B:$B,Invoer!Z99)*Invoer!F99 -> 0 | AB69: =SUMIFS(Inrichtingskosten!$H:$H,Inrichtingskosten!$C:$C,Invoer!$B99,Inrichtingskosten!$B:$B,Invoer!AA99)*Invoer!F99 -> 0 | AC69: =SUMIFS(Inrichtingskosten!$H:$H,Inrichtingskosten!$C:$C,Invoer!$B99,Inrichtingskosten!$B:$B,Invoer!AB99)*Invoer!H99 -> 0 | AD69: =SUMIFS(Inrichtingskosten!$H:$H,Inrichtingskosten!$C:$C,Invoer!$B99,Inrichtingskosten!$B:$B,Invoer!AC99)*Invoer!H99 -> 0 | AE69: =SUMIFS(Inrichtingskosten!$H:$H,Inrichtingskosten!$C:$C,Invoer!$B99,Inrichtingskosten!$B:$B,Invoer!AD99)*Invoer!J99 -> 0 | AF69: =SUMIFS(Inrichtingskosten!$H:$H,Inrichtingskosten!$C:$C,Invoer!$B99,Inrichtingskosten!$B:$B,Invoer!AE99)*Invoer!J99 -> 0
B70: =Invoer!B100 -> 0 | C70: =IF(2*(Y70+Z70)/100=0,"",2*(Y70+Z70)/100) ->  | D70: =IF(IF(Invoer!E100<>"Verwijderen",(SUMIFS(Onderhoudskosten!$K:$K,Onderhoudskosten!$B:$B,Invoer!$B100)*Invoer!D100)," ")=0," ",IF(Invoer!E100<>"Verwijderen",(SUMIFS(Onderhoudskosten!$K:$K,Onderhoudskosten!$B:$B,Invoer!$B100)*Invoer!D100)," ")) ->  | E70: =IF(2*(AA70+AB70)/100=0,"",2*(AA70+AB70)/100) ->  | F70: =IF(IF(Invoer!G100<>"Verwijderen",(SUMIFS(Onderhoudskosten!$K:$K,Onderhoudskosten!$B:$B,Invoer!$B100)*Invoer!F100)," ")=0," ",IF(Invoer!G100<>"Verwijderen",(SUMIFS(Onderhoudskosten!$K:$K,Onderhoudskosten!$B:$B,Invoer!$B100)*Invoer!F100)," ")) ->  | G70: =IF(2*(AC70+AD70)/100=0,"",2*(AC70+AD70)/100) ->  | H70: =IF(IF(Invoer!I100<>"Verwijderen",(SUMIFS(Onderhoudskosten!$K:$K,Onderhoudskosten!$B:$B,Invoer!$B100)*Invoer!H100)," ")=0," ",IF(Invoer!I100<>"Verwijderen",(SUMIFS(Onderhoudskosten!$K:$K,Onderhoudskosten!$B:$B,Invoer!$B100)*Invoer!H100)," ")) ->  | I70: =IF(2*(AE70+AF70)/100=0,"",2*(AE70+AF70)/100) ->  | J70: =IF(IF(Invoer!K100<>"Verwijderen",(SUMIFS(Onderhoudskosten!$K:$K,Onderhoudskosten!$B:$B,Invoer!$B100)*Invoer!J100)," ")=0," ",IF(Invoer!K100<>"Verwijderen",(SUMIFS(Onderhoudskosten!$K:$K,Onderhoudskosten!$B:$B,Invoer!$B100)*Invoer!J100)," ")) ->  | X70: =B70 -> 0 | Y70: =SUMIFS(Inrichtingskosten!$H:$H,Inrichtingskosten!$C:$C,Invoer!$B100,Inrichtingskosten!$B:$B,Invoer!X100)*Invoer!D100 -> 0 | Z70: =SUMIFS(Inrichtingskosten!$H:$H,Inrichtingskosten!$C:$C,Invoer!$B100,Inrichtingskosten!$B:$B,Invoer!Y100)*Invoer!D100 -> 0 | AA70: =SUMIFS(Inrichtingskosten!$H:$H,Inrichtingskosten!$C:$C,Invoer!$B100,Inrichtingskosten!$B:$B,Invoer!Z100)*Invoer!F100 -> 0 | AB70: =SUMIFS(Inrichtingskosten!$H:$H,Inrichtingskosten!$C:$C,Invoer!$B100,Inrichtingskosten!$B:$B,Invoer!AA100)*Invoer!F100 -> 0 | AC70: =SUMIFS(Inrichtingskosten!$H:$H,Inrichtingskosten!$C:$C,Invoer!$B100,Inrichtingskosten!$B:$B,Invoer!AB100)*Invoer!H100 -> 0 | AD70: =SUMIFS(Inrichtingskosten!$H:$H,Inrichtingskosten!$C:$C,Invoer!$B100,Inrichtingskosten!$B:$B,Invoer!AC100)*Invoer!H100 -> 0 | AE70: =SUMIFS(Inrichtingskosten!$H:$H,Inrichtingskosten!$C:$C,Invoer!$B100,Inrichtingskosten!$B:$B,Invoer!AD100)*Invoer!J100 -> 0 | AF70: =SUMIFS(Inrichtingskosten!$H:$H,Inrichtingskosten!$C:$C,Invoer!$B100,Inrichtingskosten!$B:$B,Invoer!AE100)*Invoer!J100 -> 0
B71: =Invoer!B101 -> 0 | C71: =IF(2*(Y71+Z71)/100=0,"",2*(Y71+Z71)/100) ->  | D71: =IF(IF(Invoer!E101<>"Verwijderen",(SUMIFS(Onderhoudskosten!$K:$K,Onderhoudskosten!$B:$B,Invoer!$B101)*Invoer!D101)," ")=0," ",IF(Invoer!E101<>"Verwijderen",(SUMIFS(Onderhoudskosten!$K:$K,Onderhoudskosten!$B:$B,Invoer!$B101)*Invoer!D101)," ")) ->  | E71: =IF(2*(AA71+AB71)/100=0,"",2*(AA71+AB71)/100) ->  | F71: =IF(IF(Invoer!G101<>"Verwijderen",(SUMIFS(Onderhoudskosten!$K:$K,Onderhoudskosten!$B:$B,Invoer!$B101)*Invoer!F101)," ")=0," ",IF(Invoer!G101<>"Verwijderen",(SUMIFS(Onderhoudskosten!$K:$K,Onderhoudskosten!$B:$B,Invoer!$B101)*Invoer!F101)," ")) ->  | G71: =IF(2*(AC71+AD71)/100=0,"",2*(AC71+AD71)/100) ->  | H71: =IF(IF(Invoer!I101<>"Verwijderen",(SUMIFS(Onderhoudskosten!$K:$K,Onderhoudskosten!$B:$B,Invoer!$B101)*Invoer!H101)," ")=0," ",IF(Invoer!I101<>"Verwijderen",(SUMIFS(Onderhoudskosten!$K:$K,Onderhoudskosten!$B:$B,Invoer!$B101)*Invoer!H101)," ")) ->  | I71: =IF(2*(AE71+AF71)/100=0,"",2*(AE71+AF71)/100) ->  | J71: =IF(IF(Invoer!K101<>"Verwijderen",(SUMIFS(Onderhoudskosten!$K:$K,Onderhoudskosten!$B:$B,Invoer!$B101)*Invoer!J101)," ")=0," ",IF(Invoer!K101<>"Verwijderen",(SUMIFS(Onderhoudskosten!$K:$K,Onderhoudskosten!$B:$B,Invoer!$B101)*Invoer!J101)," ")) ->  | X71: =B71 -> 0 | Y71: =SUMIFS(Inrichtingskosten!$H:$H,Inrichtingskosten!$C:$C,Invoer!$B101,Inrichtingskosten!$B:$B,Invoer!X101)*Invoer!D101 -> 0 | Z71: =SUMIFS(Inrichtingskosten!$H:$H,Inrichtingskosten!$C:$C,Invoer!$B101,Inrichtingskosten!$B:$B,Invoer!Y101)*Invoer!D101 -> 0 | AA71: =SUMIFS(Inrichtingskosten!$H:$H,Inrichtingskosten!$C:$C,Invoer!$B101,Inrichtingskosten!$B:$B,Invoer!Z101)*Invoer!F101 -> 0 | AB71: =SUMIFS(Inrichtingskosten!$H:$H,Inrichtingskosten!$C:$C,Invoer!$B101,Inrichtingskosten!$B:$B,Invoer!AA101)*Invoer!F101 -> 0 | AC71: =SUMIFS(Inrichtingskosten!$H:$H,Inrichtingskosten!$C:$C,Invoer!$B101,Inrichtingskosten!$B:$B,Invoer!AB101)*Invoer!H101 -> 0 | AD71: =SUMIFS(Inrichtingskosten!$H:$H,Inrichtingskosten!$C:$C,Invoer!$B101,Inrichtingskosten!$B:$B,Invoer!AC101)*Invoer!H101 -> 0 | AE71: =SUMIFS(Inrichtingskosten!$H:$H,Inrichtingskosten!$C:$C,Invoer!$B101,Inrichtingskosten!$B:$B,Invoer!AD101)*Invoer!J101 -> 0 | AF71: =SUMIFS(Inrichtingskosten!$H:$H,Inrichtingskosten!$C:$C,Invoer!$B101,Inrichtingskosten!$B:$B,Invoer!AE101)*Invoer!J101 -> 0
B72: =Invoer!B102 -> 0 | C72: =IF(2*(Y72+Z72)/100=0,"",2*(Y72+Z72)/100) ->  | D72: =IF(IF(Invoer!E102<>"Verwijderen",(SUMIFS(Onderhoudskosten!$K:$K,Onderhoudskosten!$B:$B,Invoer!$B102)*Invoer!D102)," ")=0," ",IF(Invoer!E102<>"Verwijderen",(SUMIFS(Onderhoudskosten!$K:$K,Onderhoudskosten!$B:$B,Invoer!$B102)*Invoer!D102)," ")) ->  | E72: =IF(2*(AA72+AB72)/100=0,"",2*(AA72+AB72)/100) ->  | F72: =IF(IF(Invoer!G102<>"Verwijderen",(SUMIFS(Onderhoudskosten!$K:$K,Onderhoudskosten!$B:$B,Invoer!$B102)*Invoer!F102)," ")=0," ",IF(Invoer!G102<>"Verwijderen",(SUMIFS(Onderhoudskosten!$K:$K,Onderhoudskosten!$B:$B,Invoer!$B102)*Invoer!F102)," ")) ->  | G72: =IF(2*(AC72+AD72)/100=0,"",2*(AC72+AD72)/100) ->  | H72: =IF(IF(Invoer!I102<>"Verwijderen",(SUMIFS(Onderhoudskosten!$K:$K,Onderhoudskosten!$B:$B,Invoer!$B102)*Invoer!H102)," ")=0," ",IF(Invoer!I102<>"Verwijderen",(SUMIFS(Onderhoudskosten!$K:$K,Onderhoudskosten!$B:$B,Invoer!$B102)*Invoer!H102)," ")) ->  | I72: =IF(2*(AE72+AF72)/100=0,"",2*(AE72+AF72)/100) ->  | J72: =IF(IF(Invoer!K102<>"Verwijderen",(SUMIFS(Onderhoudskosten!$K:$K,Onderhoudskosten!$B:$B,Invoer!$B102)*Invoer!J102)," ")=0," ",IF(Invoer!K102<>"Verwijderen",(SUMIFS(Onderhoudskosten!$K:$K,Onderhoudskosten!$B:$B,Invoer!$B102)*Invoer!J102)," ")) ->  | X72: =B72 -> 0 | Y72: =SUMIFS(Inrichtingskosten!$H:$H,Inrichtingskosten!$C:$C,Invoer!$B102,Inrichtingskosten!$B:$B,Invoer!X102)*Invoer!D102 -> 0 | Z72: =SUMIFS(Inrichtingskosten!$H:$H,Inrichtingskosten!$C:$C,Invoer!$B102,Inrichtingskosten!$B:$B,Invoer!Y102)*Invoer!D102 -> 0 | AA72: =SUMIFS(Inrichtingskosten!$H:$H,Inrichtingskosten!$C:$C,Invoer!$B102,Inrichtingskosten!$B:$B,Invoer!Z102)*Invoer!F102 -> 0 | AB72: =SUMIFS(Inrichtingskosten!$H:$H,Inrichtingskosten!$C:$C,Invoer!$B102,Inrichtingskosten!$B:$B,Invoer!AA102)*Invoer!F102 -> 0 | AC72: =SUMIFS(Inrichtingskosten!$H:$H,Inrichtingskosten!$C:$C,Invoer!$B102,Inrichtingskosten!$B:$B,Invoer!AB102)*Invoer!H102 -> 0 | AD72: =SUMIFS(Inrichtingskosten!$H:$H,Inrichtingskosten!$C:$C,Invoer!$B102,Inrichtingskosten!$B:$B,Invoer!AC102)*Invoer!H102 -> 0 | AE72: =SUMIFS(Inrichtingskosten!$H:$H,Inrichtingskosten!$C:$C,Invoer!$B102,Inrichtingskosten!$B:$B,Invoer!AD102)*Invoer!J102 -> 0 | AF72: =SUMIFS(Inrichtingskosten!$H:$H,Inrichtingskosten!$C:$C,Invoer!$B102,Inrichtingskosten!$B:$B,Invoer!AE102)*Invoer!J102 -> 0
B73: Totale kosten per kolom: | C73: =SUM(C7:C70) -> 0 | D73: =SUM(D7:D70) -> 0 | E73: =SUM(E7:E70) -> 0 | F73: =SUM(F7:F70) -> 0 | G73: 0 | H73: =SUM(H7:H70) -> 0 | I73: 0 | J73: 0 | Y73: =SUM(Y7:Y70) -> 0 | Z73: 0 | AA73: 0 | AB73: 0 | AC73: 0 | AD73: 0 | AE73: 0 | AF73: 0
B74: Totale kosten (per jaar) | C74: =C73+D73 -> 0 | E74: =E73+F73 -> 0 | G74: =G73+H73 -> 0 | I74: =I73+J73 -> 0
B75: Opsplitsing DWA- en HWA-kosten (Totaal over 100 jaar) | C75: Jaar 0 | D75: 2de herinrichting | E75: Jaar 0 | F75: 2de herinrichting | G75: Jaar 0 | H75: 2de herinrichting | I75: Jaar 0 | J75: 2de herinrichting
B76: Kosten incl. DWA en (verwijderen) HWA | C76: =Y73 -> 0 | D76: 0 | E76: 0 | F76: 0 | G76: 0 | H76: 0 | I76: 0 | J76: 0
B77: Kosten excl. DWA en HWA | D77: =D76-(SUM(Y34:Y49)) -> 0 | F77: =F76-(SUM(AA34:AA49)) -> 0 | H77: =H76-(SUM(AC34:AC49)) -> 0 | J77: =J76-(SUM(AE34:AE49)) -> 0
B78: Opslagperc. | C78: 0.417
C79: =C75 -> Jaar 0 | D79: =D75 -> 2de herinrichting | E79: Jaar 0 | F79: 2de herinrichting | G79: Jaar 0 | H79: 2de herinrichting | I79: Jaar 0 | J79: 2de herinrichting
B80: Kosten incl. DWA en (verwijderen) HWA | C80: =ROUND(((C76*$C78)+C76),-3) -> 0 | D80: =ROUND(((D76*$C78)+D76),-3) -> 0 | E80: =ROUND(((E76*$C78)+E76),-3) -> 0 | F80: =ROUND(((F76*$C78)+F76),-3) -> 0 | G80: =ROUND(((G76*$C78))+G76,-3) -> 0 | H80: =ROUND(((H76*$C78)+H76),-3) -> 0 | I80: =ROUND(((I76*$C78)+I76),-3) -> 0 | J80: =ROUND(((J76*$C78)+J76),-3) -> 0
B81: Kosten excl. DWA en HWA | D81: =ROUND(((D77*$C78)+D77),-3) -> 0 | F81: =ROUND(((F77*$C78)+F77),-3) -> 0 | H81: =ROUND(((H77*$C78)+H77),-3) -> 0 | J81: =ROUND(((J77*$C78)+J77),-3) -> 0
B83: Waterschadekosten
C84: Definitie schadegrens
C85: Grens 1 | D85: Grens 2 | E85: Grens 3 | I85: Variant 0 | J85: Variant 1 | K85: Variant 2 | L85: Variant 3
B86: Waterstand | C86: VP + 0 cm | D86: VP + 4 cm | E86: VP + 8 cm | H86: Herhalingskans schadegrens 1 (T) | I86: =Neerslagberekeningen!M7 -> 0.1 | J86: =Neerslagberekeningen!M54 -> 0.1 | K86: =Neerslagberekeningen!M101 -> 0.1 | L86: =Neerslagberekeningen!M148 -> 0.1
B87: Woningschade | C87: 0.1 | D87: 0.3 | E87: 1 | H87: Herhalingskans schadegrens 2(T) | I87: =Neerslagberekeningen!M23 -> 10000 | J87: =Neerslagberekeningen!M70 -> 10000 | K87: =Neerslagberekeningen!M117 -> 10000 | L87: =Neerslagberekeningen!M164 -> 10000
B88: Persoonschade | C88: 0 | D88: 0.2 | E88: 0.3 | H88: Herhalingskans schadegrens 3 (T) | I88: =Neerslagberekeningen!M39 -> 10000 | J88: =Neerslagberekeningen!M86 -> 10000 | K88: =Neerslagberekeningen!M133 -> 10000 | L88: =Neerslagberekeningen!M180 -> 10000
B89: Afzetting weg | C89: 1 | D89: 1 | E89: 1
B90: Schadekosten per woning | C90: 3500 | D90: 3500 | E90: 3500 | H90: Schadekosten grens 1 | I90: =((1/I86)-(1/I87))*$C$96 -> 0 | J90: =((1/J86)-(1/J87))*$C$96 -> 0 | K90: =((1/K86)-(1/K87))*$C$96 -> 0 | L90: =((1/L86)-(1/L87))*$C$96 -> 0
B91: Schadekosten per persoon | C91: 193 | D91: 193 | E91: 193 | H91: Schadekosten grens 2 | I91: =((1/I87)-(1/I88))*$D$96 -> 0 | J91: =((1/J87)-(1/J88))*$D$96 -> 0 | K91: =((1/K87)-(1/K88))*$D$96 -> 0 | L91: =((1/L87)-(1/L88))*$D$96 -> 0
B92: Schadekosten per strekkende meter weg | C92: 0.73 | D92: 0.73 | E92: 0.73 | H92: Schadekostengrens 3 | I92: =(1/I88)*$E$96 -> 0 | J92: =(1/J88)*$E$96 -> 0 | K92: =(1/K88)*$E$96 -> 0 | L92: =(1/L88)*$E$96 -> 0
B93: Aantal beschadigde woningen [st] | C93: =Invoer!D26*C87 -> 0 | D93: =Invoer!D26*D87 -> 0 | E93: =Invoer!D26*E87 -> 0 | H93: Totale schadekosten | I93: =IF(C73=0,"n.v.t.",IF(Invoer!$D$6="Hellend",0,ROUND(SUM(I90:I92),-1))) -> n.v.t. | J93: =IF(E73=0,"n.v.t.",IF(Invoer!$D$6="Hellend",0,ROUND(SUM(J90:J92),-1))) -> n.v.t. | K93: =IF(G73=0,"n.v.t.",IF(Invoer!$D$6="Hellend",0,ROUND(SUM(K90:K92),-1))) -> n.v.t. | L93: =IF(I73=0,"n.v.t.",IF(Invoer!$D$6="Hellend",0,ROUND(SUM(L90:L92),-1))) -> n.v.t.
B94: Aantal personen [st] | C94: =Invoer!D27*C88 -> 0 | D94: =Invoer!D27*D88 -> 0 | E94: =Invoer!D27*E88 -> 0
B95: Lengte (afgezette) weg [m1] | C95: =Invoer!D30*C89 -> 0 | D95: =Invoer!D30*D89 -> 0 | E95: =Invoer!D30*E89 -> 0
B96: Totale schadekosten per schadegrens | C96: =C93*C90+C94*C91+C95*C92 -> 0 | D96: =D93*D90+D94*D91+D95*D92 -> 0 | E96: =E93*E90+E94*E91+E95*E92 -> 0
B98: Groenbaten
C99: Variant 0 | D99: Variant 1 | E99: Variant 2 | F99: Variant 3
B100: Groenopp. (m2) | C100: =Invoer!D23+C101 -> 0 | D100: =Invoer!E23+D101 -> 0 | E100: =Invoer!F23+E101 -> 0 | F100: =Invoer!G23+F101 -> 0 | U100: Centrale wadi | V100: Boom in gazon | W100: Stijging Woningwaarde (€/j)
B101: Waarvan Bomen (m2) | C101: =_xlfn.XLOOKUP($V$100,$U$106:$U$112,$W$106:$W$112,0,2)*34+_xlfn.XLOOKUP($V$101,$U$106:$U$112,$W$106:$W$112,0,2)*34+_xlfn.XLOOKUP($V$102,$U$106:$U$112,$W$106:$W$112,0,2)*34+_xlfn.XLOOKUP($V$103,$U$106:$U$112,$W$106:$W$112,0,2)*34 -> 0 | D101: =_xlfn.XLOOKUP($V$100,$U$106:$U$112,$X$106:$X$112,0,2)*34+_xlfn.XLOOKUP($V$101,$U$106:$U$112,$X$106:$X$112,0,2)*34+_xlfn.XLOOKUP($V$102,$U$106:$U$112,$X$106:$X$112,0,2)*34+_xlfn.XLOOKUP($V$103,$U$106:$U$112,$X$106:$X$112,0,2)*34 -> 0 | E101: =_xlfn.XLOOKUP($V$100,$U$106:$U$112,$Y$106:$Y$112,0,2)*34+_xlfn.XLOOKUP($V$101,$U$106:$U$112,$Y$106:$Y$112,0,2)*34+_xlfn.XLOOKUP($V$102,$U$106:$U$112,$Y$106:$Y$112,0,2)*34+_xlfn.XLOOKUP($V$103,$U$106:$U$112,$Y$106:$Y$112,0,2)*34 -> 0 | F101: =_xlfn.XLOOKUP($V$100,$U$106:$U$112,$Z$106:$Z$112,0,2)*34+_xlfn.XLOOKUP($V$101,$U$106:$U$112,$Z$106:$Z$112,0,2)*34+_xlfn.XLOOKUP($V$102,$U$106:$U$112,$Z$106:$Z$112,0,2)*34+_xlfn.XLOOKUP($V$103,$U$106:$U$112,$Z$106:$Z$112,0,2)*34 -> 0 | U101: Onderhoudsarme wadi (inc. beplanting) | V101: Boom in verharding | W101: =C113/100 -> 0 | X101: =D113/100 -> 0 | Y101: =E113/100 -> 0 | Z101: =F113/100 -> 0
B102: (staat uit) Waarvan Wadi (m2) | C102: 0 | D102: 0 | E102: 0 | F102: 0 | U102: Wadi (meerdere kleine) | V102: Boom in beplanting
B103: Percentage groen inc. bomen | C103: =IFERROR((C100)/Invoer!D19,0) -> 0 | D103: =IFERROR((D100)/Invoer!E19,0) -> 0 | E103: =IFERROR((E100)/Invoer!F19,0) -> 0 | F103: =IFERROR((F100)/Invoer!G19,0) -> 0 | V103: Bosplantsoen
B104: Percentage Groenopp. openbaar Ex. bomen | C104: =IFERROR((C100-C101)/Invoer!D22,0) -> 0 | D104: =IFERROR((D100-D101)/Invoer!E22,0) -> 0 | E104: =IFERROR((E100-E101)/Invoer!F22,0) -> 0 | F104: =IFERROR((F100-F101)/Invoer!G22,0) -> 0 | U104: kopie van invoer groen voor groenbaten
B105: Vermeden Gezondheidzorgkosten | U105: Bomen en wadis werken zonder dit niet! | V105: eenheid | W105: hoeveelheid var0 | X105: hoeveelheid var1 | Y105: hoeveelheid var2 | Z105: hoeveelheid var3
B106: Minder patienten bij de huisarts (€/j) | C106: =IF(C100=0,0,C108*C107/30) -> 0 | D106: =IF(D100=0,0,D108*D107/30) -> 0 | E106: =IF(E100=0,0,E108*E107/30) -> 0 | F106: =IF(F100=0,0,F108*F107/30) -> 0 | U106: =Invoer!B88 -> Groenvoorziening | V106: =Invoer!C88 -> 0 | W106: =Invoer!D88 -> 0 | X106: =Invoer!F88 -> 0 | Y106: =Invoer!H88 -> 0 | Z106: =Invoer!J88 -> 0
B107: kengetal (€/patient) | C107: 868 | D107: 868 | E107: 868 | F107: 868 | U107: =Invoer!B89 -> Gazon | V107: =Invoer!C89 -> m² | W107: =Invoer!D89 -> 0 | X107: =Invoer!F89 -> 0 | Y107: =Invoer!H89 -> 0 | Z107: =Invoer!J89 -> 0
B108: aantal patienten | C108: =Invoer!$E$28*C103*0.835/1000 ->  | D108: =Invoer!$E$28*D103*0.835/1000 ->  | E108: =Invoer!$E$28*E103*0.835/1000 ->  | F108: =Invoer!$E$28*F103*0.835/1000 ->  | Q108: VLOOKUP test | R108: =VLOOKUP(V101,U105:Z112,3,TRUE) -> hoeveelheid var0 | U108: =Invoer!B90 -> Haag | V108: =Invoer!C90 -> m² | W108: =Invoer!D90 -> 0 | X108: =Invoer!F90 -> 0 | Y108: =Invoer!H90 -> 0 | Z108: =Invoer!J90 -> 0
B109: Minder arbeidsverlies (€/j) | C109: =IF(C100=0,0,C111*C110/30) -> 0 | D109: =IF(D100=0,0,D111*D110/30) -> 0 | E109: =IF(E100=0,0,E111*E110/30) -> 0 | F109: =IF(F100=0,0,F111*F110/30) -> 0 | Q109: XLOOKUP test | R109: =_xlfn.XLOOKUP(V101,U106:U112,W106:W112,"jammer joh",2) -> 0 | U109: =Invoer!B91 -> Boom in verharding | V109: =Invoer!C91 -> st | W109: =Invoer!D91 -> 0 | X109: =Invoer!F91 -> 0 | Y109: =Invoer!H91 -> 0 | Z109: =Invoer!J91 -> 0
B110: kengetal (€/patient) | C110: 6341 | D110: =C110 -> 6341 | E110: =D110 -> 6341 | F110: =E110 -> 6341 | U110: =Invoer!B94 -> 0 | V110: =Invoer!C94 ->  | W110: =Invoer!D94 -> 0 | X110: =Invoer!F94 -> 0 | Y110: =Invoer!H94 -> 0 | Z110: =Invoer!J94 -> 0
B111: Aantal minder patiënten | C111: =Invoer!$D$28*C103*0.835*0.67/1000 ->  | D111: =Invoer!$D$28*D103*0.835*0.67/1000 ->  | E111: =Invoer!$D$28*E103*0.835*0.67/1000 ->  | F111: =Invoer!$D$28*F103*0.835*0.67/1000 ->  | U111: =Invoer!B95 -> 0 | V111: =Invoer!C95 ->  | W111: =Invoer!D95 -> 0 | X111: =Invoer!F95 -> 0 | Y111: =Invoer!H95 -> 0 | Z111: =Invoer!J95 -> 0
B112: Woningwaarde | U112: =Invoer!B96 -> 0 | V112: =Invoer!C96 ->  | W112: =Invoer!D96 -> 0 | X112: =Invoer!F96 -> 0 | Y112: =Invoer!H96 -> 0 | Z112: =Invoer!J96 -> 0
B113: Stijging Woningwaarde (eenmalig) | C113: =IF(C100=0,0,IF(Invoer!D24>0,IF(C104>50%,0.05*C114,0.05*C114*C104*2),IF(C104>30%,0.05*C114,0.05*C114*C104*(100/30)))) -> 0 | D113: =IF(D100=0,0,IF(Invoer!E24>0,IF(D104>50%,0.05*D114,0.05*D114*D104*2),IF(D104>30%,0.05*D114,0.05*D114*D104*(100/30)))) -> 0 | E113: =IF(E100=0,0,IF(Invoer!F24>0,IF(E104>50%,0.05*E114,0.05*E114*E104*2),IF(E104>30%,0.05*E114,0.05*E114*E104*(100/30)))) -> 0 | F113: =IF(F100=0,0,IF(Invoer!G24>0,IF(F104>50%,0.05*F114,0.05*F114*F104*2),IF(F104>30%,0.05*F114,0.05*F114*F104*(100/30)))) -> 0
B114: Totale woningwaarde (WOZ) | C114: =Invoer!D26*Invoer!D29 -> 0 | D114: =Invoer!E26*Invoer!E29 -> 0 | E114: =Invoer!F26*Invoer!F29 -> 0 | F114: =Invoer!G26*Invoer!G29 -> 0
B115: OZB (€/j) | C115: =IF(C100=0,0,C113*$C$116) -> 0 | D115: =IF(D100=0,0,D113*$C$116) -> 0 | E115: =IF(E100=0,0,E113*$C$116) -> 0 | F115: =IF(F100=0,0,F113*$C$116) -> 0
B116: OZB Kengetal | C116: 0.0015
B117: Eigenwoningforfait (€/j) | C117: =IF(C100=0,0,C113*$C$118) -> 0 | D117: =IF(D100=0,0,D113*$C$118) -> 0 | E117: 0 | F117: 0
B118: EWF Kengetal | C118: 0.0075
B119: Watersysteembelasting (€/j) | C119: =IF(C100=0,0,C113*$C$120) -> 0 | D119: =IF(D100=0,0,D113*$C$120) -> 0 | E119: 0 | F119: 0
B120: Watersysteemheffing Kengetal | C120: 0.0003648492308
B121: Waterhuishouding
B122: Vermindering afvoerkosten (€/j) | C122: =IF(C100=0,0,C123*$C$124) -> 0 | D122: =IF(D100=0,0,D123*$C$124) -> 0 | E122: =IF(E100=0,0,E123*$C$124) -> 0 | F122: 0
B123: volledig infiltrerend oppervlak (m²) | C123: =Invoer!Neerslag_oppervlak*Berekeningen!C139 ->  | D123: =Invoer!Neerslag_oppervlak*Berekeningen!D139 ->  | E123: =Invoer!Neerslag_oppervlak*Berekeningen!E139 ->  | F123: =Invoer!Neerslag_oppervlak*Berekeningen!F139 -> 
B124: Afvoerverm. Groen Kengetal | C124: 0.25
B125: (hier stond ooit het aantal m2 waarmee verhard afnam)
